Workbook

Sheet EW TABLE (hidden)
A1: EW TABLE | B1: AREAS | M1: VOLUMES
A2: STATION | B2: ROCK ROADBED | C2: REFILL | D2: EMB. BENCH | E2: GRAN. EMB. | F2: COM | G2: EM | H2: ROCK EXC. | I2: DT LT | J2: DT RT | K2: LEVEL-WEDGE | M2: ROCK ROADBED | N2: REFILL | O2: EMB. BENCH | P2: GRAN. EMB. | Q2: COM | R2: EM | S2: ROCK EXC. | T2: DT LT | U2: DT RT | V2: LEVEL-WEDGE
A3: TOTALS | M3: =SUM(M6:M2002) -> 0 | N3: =SUM(N6:N2002) -> 0 | O3: 0 | P3: 0 | Q3: 0 | R3: 0 | S3: 0 | T3: 0 | U3: 0 | V3: 0
M6: =IF((B5+B6)>0,MAX(1,ROUNDUP(($A6-$A5)*((B5+B6)/2)/27,0)),ROUNDUP(($A6-$A5)*((B5+B6)/2)/27,0)) -> 0 | N6: =IF((C5+C6)>0,MAX(1,ROUNDUP(($A6-$A5)*((C5+C6)/2)/27,0)),ROUNDUP(($A6-$A5)*((C5+C6)/2)/27,0)) -> 0 | O6: 0 | P6: 0 | Q6: 0 | R6: 0 | S6: 0 | T6: 0 | U6: 0 | V6: =IF((K5+K6)>0,MAX(1,ROUNDUP(($A6-$A5)*((K5+K6)/2)/27,0)),ROUNDUP(($A6-$A5)*((K5+K6)/2)/27,0)) -> 0
M7: =IF((B6+B7)>0,MAX(1,ROUNDUP(($A7-$A6)*((B6+B7)/2)/27,0)),ROUNDUP(($A7-$A6)*((B6+B7)/2)/27,0)) -> 0 | N7: 0 | O7: 0 | P7: 0 | Q7: 0 | R7: 0 | S7: 0 | T7: 0 | U7: 0 | V7: 0
M8: 0 | N8: 0 | O8: 0 | P8: 0 | Q8: 0 | R8: 0 | S8: 0 | T8: 0 | U8: 0 | V8: 0
M9: 0 | N9: 0 | O9: 0 | P9: 0 | Q9: 0 | R9: 0 | S9: 0 | T9: 0 | U9: 0 | V9: 0
M10: 0 | N10: 0 | O10: 0 | P10: 0 | Q10: 0 | R10: 0 | S10: 0 | T10: 0 | U10: 0 | V10: 0
M11: 0 | N11: 0 | O11: 0 | P11: 0 | Q11: 0 | R11: 0 | S11: 0 | T11: 0 | U11: 0 | V11: 0
M12: 0 | N12: 0 | O12: 0 | P12: 0 | Q12: 0 | R12: 0 | S12: 0 | T12: 0 | U12: 0 | V12: 0
M13: 0 | N13: 0 | O13: 0 | P13: 0 | Q13: 0 | R13: 0 | S13: 0 | T13: 0 | U13: 0 | V13: 0
M14: 0 | N14: 0 | O14: 0 | P14: 0 | Q14: 0 | R14: 0 | S14: 0 | T14: 0 | U14: 0 | V14: 0
M15: 0 | N15: 0 | O15: 0 | P15: 0 | Q15: 0 | R15: 0 | S15: 0 | T15: 0 | U15: 0 | V15: 0
M16: 0 | N16: 0 | O16: 0 | P16: 0 | Q16: 0 | R16: 0 | S16: 0 | T16: 0 | U16: 0 | V16: 0
M17: 0 | N17: 0 | O17: 0 | P17: 0 | Q17: 0 | R17: 0 | S17: 0 | T17: 0 | U17: 0 | V17: 0
M18: 0 | N18: 0 | O18: 0 | P18: 0 | Q18: 0 | R18: 0 | S18: 0 | T18: 0 | U18: 0 | V18: 0
M19: 0 | N19: 0 | O19: 0 | P19: 0 | Q19: 0 | R19: 0 | S19: 0 | T19: 0 | U19: 0 | V19: 0
M20: 0 | N20: 0 | O20: 0 | P20: 0 | Q20: 0 | R20: 0 | S20: 0 | T20: 0 | U20: 0 | V20: 0
M21: 0 | N21: 0 | O21: 0 | P21: 0 | Q21: 0 | R21: 0 | S21: 0 | T21: 0 | U21: 0 | V21: 0
M22: 0 | N22: 0 | O22: 0 | P22: 0 | Q22: 0 | R22: 0 | S22: 0 | T22: 0 | U22: 0 | V22: 0
M23: =IF((B22+B23)>0,MAX(1,ROUNDUP(($A23-$A22)*((B22+B23)/2)/27,0)),ROUNDUP(($A23-$A22)*((B22+B23)/2)/27,0)) -> 0 | N23: 0 | O23: 0 | P23: 0 | Q23: 0 | R23: 0 | S23: 0 | T23: 0 | U23: 0 | V23: 0
M24: 0 | N24: 0 | O24: 0 | P24: 0 | Q24: 0 | R24: 0 | S24: 0 | T24: 0 | U24: 0 | V24: 0
M25: 0 | N25: 0 | O25: 0 | P25: 0 | Q25: 0 | R25: 0 | S25: 0 | T25: 0 | U25: 0 | V25: 0
M26: 0 | N26: 0 | O26: 0 | P26: 0 | Q26: 0 | R26: 0 | S26: 0 | T26: 0 | U26: 0 | V26: 0
M27: 0 | N27: 0 | O27: 0 | P27: 0 | Q27: 0 | R27: 0 | S27: 0 | T27: 0 | U27: 0 | V27: 0
M28: 0 | N28: 0 | O28: 0 | P28: 0 | Q28: 0 | R28: 0 | S28: 0 | T28: 0 | U28: 0 | V28: 0
M29: 0 | N29: 0 | O29: 0 | P29: 0 | Q29: 0 | R29: 0 | S29: 0 | T29: 0 | U29: 0 | V29: 0
M30: 0 | N30: 0 | O30: 0 | P30: 0 | Q30: 0 | R30: 0 | S30: 0 | T30: 0 | U30: 0 | V30: 0
M31: 0 | N31: 0 | O31: 0 | P31: 0 | Q31: 0 | R31: 0 | S31: 0 | T31: 0 | U31: 0 | V31: 0
M32: 0 | N32: 0 | O32: 0 | P32: 0 | Q32: 0 | R32: 0 | S32: 0 | T32: 0 | U32: 0 | V32: 0
M33: 0 | N33: 0 | O33: 0 | P33: 0 | Q33: 0 | R33: 0 | S33: 0 | T33: 0 | U33: 0 | V33: 0
M34: 0 | N34: 0 | O34: 0 | P34: 0 | Q34: 0 | R34: 0 | S34: 0 | T34: 0 | U34: 0 | V34: 0
M35: 0 | N35: 0 | O35: 0 | P35: 0 | Q35: 0 | R35: 0 | S35: 0 | T35: 0 | U35: 0 | V35: 0
M36: 0 | N36: 0 | O36: 0 | P36: 0 | Q36: 0 | R36: 0 | S36: 0 | T36: 0 | U36: 0 | V36: 0
M37: 0 | N37: 0 | O37: 0 | P37: 0 | Q37: 0 | R37: 0 | S37: 0 | T37: 0 | U37: 0 | V37: 0
M38: 0 | N38: 0 | O38: 0 | P38: 0 | Q38: 0 | R38: 0 | S38: 0 | T38: 0 | U38: 0 | V38: 0
M39: =IF((B38+B39)>0,MAX(1,ROUNDUP(($A39-$A38)*((B38+B39)/2)/27,0)),ROUNDUP(($A39-$A38)*((B38+B39)/2)/27,0)) -> 0 | N39: 0 | O39: 0 | P39: 0 | Q39: 0 | R39: 0 | S39: 0 | T39: 0 | U39: 0 | V39: 0
M40: 0 | N40: 0 | O40: 0 | P40: 0 | Q40: 0 | R40: 0 | S40: 0 | T40: 0 | U40: 0 | V40: 0
M41: 0 | N41: 0 | O41: 0 | P41: 0 | Q41: 0 | R41: 0 | S41: 0 | T41: 0 | U41: 0 | V41: 0
M42: 0 | N42: 0 | O42: 0 | P42: 0 | Q42: 0 | R42: 0 | S42: 0 | T42: 0 | U42: 0 | V42: 0
M43: 0 | N43: 0 | O43: 0 | P43: 0 | Q43: 0 | R43: 0 | S43: 0 | T43: 0 | U43: 0 | V43: 0
M44: 0 | N44: 0 | O44: 0 | P44: 0 | Q44: 0 | R44: 0 | S44: 0 | T44: 0 | U44: 0 | V44: 0
M45: 0 | N45: 0 | O45: 0 | P45: 0 | Q45: 0 | R45: 0 | S45: 0 | T45: 0 | U45: 0 | V45: 0
M46: 0 | N46: 0 | O46: 0 | P46: 0 | Q46: 0 | R46: 0 | S46: 0 | T46: 0 | U46: 0 | V46: 0
M47: 0 | N47: 0 | O47: 0 | P47: 0 | Q47: 0 | R47: 0 | S47: 0 | T47: 0 | U47: 0 | V47: 0
M48: 0 | N48: 0 | O48: 0 | P48: 0 | Q48: 0 | R48: 0 | S48: 0 | T48: 0 | U48: 0 | V48: 0
M49: 0 | N49: 0 | O49: 0 | P49: 0 | Q49: 0 | R49: 0 | S49: 0 | T49: 0 | U49: 0 | V49: 0
M50: 0 | N50: 0 | O50: 0 | P50: 0 | Q50: 0 | R50: 0 | S50: 0 | T50: 0 | U50: 0 | V50: 0
M51: 0 | N51: 0 | O51: 0 | P51: 0 | Q51: 0 | R51: 0 | S51: 0 | T51: 0 | U51: 0 | V51: 0
M52: 0 | N52: 0 | O52: 0 | P52: 0 | Q52: 0 | R52: 0 | S52: 0 | T52: 0 | U52: 0 | V52: 0
M53: 0 | N53: 0 | O53: 0 | P53: 0 | Q53: 0 | R53: 0 | S53: 0 | T53: 0 | U53: 0 | V53: 0
M54: 0 | N54: 0 | O54: 0 | P54: 0 | Q54: 0 | R54: 0 | S54: 0 | T54: 0 | U54: 0 | V54: 0
M55: =IF((B54+B55)>0,MAX(1,ROUNDUP(($A55-$A54)*((B54+B55)/2)/27,0)),ROUNDUP(($A55-$A54)*((B54+B55)/2)/27,0)) -> 0 | N55: =IF((C54+C55)>0,MAX(1,ROUNDUP(($A55-$A54)*((C54+C55)/2)/27,0)),ROUNDUP(($A55-$A54)*((C54+C55)/2)/27,0)) -> 0 | O55: =IF((D54+D55)>0,MAX(1,ROUNDUP(($A55-$A54)*((D54+D55)/2)/27,0)),ROUNDUP(($A55-$A54)*((D54+D55)/2)/27,0)) -> 0 | P55: =IF((E54+E55)>0,MAX(1,ROUNDUP(($A55-$A54)*((E54+E55)/2)/27,0)),ROUNDUP(($A55-$A54)*((E54+E55)/2)/27,0)) -> 0 | Q55: =IF((F54+F55)>0,MAX(1,ROUNDUP(($A55-$A54)*((F54+F55)/2)/27,0)),ROUNDUP(($A55-$A54)*((F54+F55)/2)/27,0)) -> 0 | R55: =IF((G54+G55)>0,MAX(1,ROUNDUP(($A55-$A54)*((G54+G55)/2)/27,0)),ROUNDUP(($A55-$A54)*((G54+G55)/2)/27,0)) -> 0 | S55: =IF((H54+H55)>0,MAX(1,ROUNDUP(($A55-$A54)*((H54+H55)/2)/27,0)),ROUNDUP(($A55-$A54)*((H54+H55)/2)/27,0)) -> 0 | T55: =IF((I54+I55)>0,MAX(1,ROUNDUP(($A55-$A54)*((I54+I55)/2)/27,0)),ROUNDUP(($A55-$A54)*((I54+I55)/2)/27,0)) -> 0 | U55: =IF((J54+J55)>0,MAX(1,ROUNDUP(($A55-$A54)*((J54+J55)/2)/27,0)),ROUNDUP(($A55-$A54)*((J54+J55)/2)/27,0)) -> 0 | V55: =IF((K54+K55)>0,MAX(1,ROUNDUP(($A55-$A54)*((K54+K55)/2)/27,0)),ROUNDUP(($A55-$A54)*((K54+K55)/2)/27,0)) -> 0
M56: 0 | N56: 0 | O56: 0 | P56: 0 | Q56: 0 | R56: 0 | S56: 0 | T56: 0 | U56: 0 | V56: 0
M57: 0 | N57: 0 | O57: 0 | P57: 0 | Q57: 0 | R57: 0 | S57: 0 | T57: 0 | U57: 0 | V57: 0
M58: 0 | N58: 0 | O58: 0 | P58: 0 | Q58: 0 | R58: 0 | S58: 0 | T58: 0 | U58: 0 | V58: 0
M59: 0 | N59: 0 | O59: 0 | P59: 0 | Q59: 0 | R59: 0 | S59: 0 | T59: 0 | U59: 0 | V59: 0
M60: 0 | N60: 0 | O60: 0 | P60: 0 | Q60: 0 | R60: 0 | S60: 0 | T60: 0 | U60: 0 | V60: 0
M61: 0 | N61: 0 | O61: 0 | P61: 0 | Q61: 0 | R61: 0 | S61: 0 | T61: 0 | U61: 0 | V61: 0
M62: 0 | N62: 0 | O62: 0 | P62: 0 | Q62: 0 | R62: 0 | S62: 0 | T62: 0 | U62: 0 | V62: 0
M63: 0 | N63: 0 | O63: 0 | P63: 0 | Q63: 0 | R63: 0 | S63: 0 | T63: 0 | U63: 0 | V63: 0
M64: 0 | N64: 0 | O64: 0 | P64: 0 | Q64: 0 | R64: 0 | S64: 0 | T64: 0 | U64: 0 | V64: 0
M65: 0 | N65: 0 | O65: 0 | P65: 0 | Q65: 0 | R65: 0 | S65: 0 | T65: 0 | U65: 0 | V65: 0
M66: 0 | N66: 0 | O66: 0 | P66: 0 | Q66: 0 | R66: 0 | S66: 0 | T66: 0 | U66: 0 | V66: 0
M67: 0 | N67: 0 | O67: 0 | P67: 0 | Q67: 0 | R67: 0 | S67: 0 | T67: 0 | U67: 0 | V67: 0
M68: 0 | N68: 0 | O68: 0 | P68: 0 | Q68: 0 | R68: 0 | S68: 0 | T68: 0 | U68: 0 | V68: 0
M69: 0 | N69: 0 | O69: 0 | P69: 0 | Q69: 0 | R69: 0 | S69: 0 | T69: 0 | U69: 0 | V69: 0
M70: 0 | N70: 0 | O70: 0 | P70: 0 | Q70: 0 | R70: 0 | S70: 0 | T70: 0 | U70: 0 | V70: 0
M71: 0 | N71: 0 | O71: 0 | P71: 0 | Q71: 0 | R71: 0 | S71: 0 | T71: 0 | U71: 0 | V71: 0
M72: 0 | N72: 0 | O72: 0 | P72: 0 | Q72: 0 | R72: 0 | S72: 0 | T72: 0 | U72: 0 | V72: 0
M73: 0 | N73: 0 | O73: 0 | P73: 0 | Q73: 0 | R73: 0 | S73: 0 | T73: 0 | U73: 0 | V73: 0
M74: 0 | N74: 0 | O74: 0 | P74: 0 | Q74: 0 | R74: 0 | S74: 0 | T74: 0 | U74: 0 | V74: 0
M75: 0 | N75: 0 | O75: 0 | P75: 0 | Q75: 0 | R75: 0 | S75: 0 | T75: 0 | U75: 0 | V75: 0
M76: =IF((B75+B76)>0,MAX(1,ROUNDUP(($A76-$A75)*((B75+B76)/2)/27,0)),ROUNDUP(($A76-$A75)*((B75+B76)/2)/27,0)) -> 0 | N76: 0 | O76: 0 | P76: 0 | Q76: 0 | R76: 0 | S76: 0 | T76: 0 | U76: 0 | V76: 0
M77: 0 | N77: 0 | O77: 0 | P77: 0 | Q77: 0 | R77: 0 | S77: 0 | T77: 0 | U77: 0 | V77: 0
M78: 0 | N78: 0 | O78: 0 | P78: 0 | Q78: 0 | R78: 0 | S78: 0 | T78: 0 | U78: 0 | V78: 0
M79: 0 | N79: 0 | O79: 0 | P79: 0 | Q79: 0 | R79: 0 | S79: 0 | T79: 0 | U79: 0 | V79: 0

Sheet PROJECT TOTALS
A1: Last Revised: July 31, 2019 | B1: ROCK ROADBED | C1: REFILL | D1: EMB. BENCH | E1: MILLING | F1: COM | G1: EM | H1: ROCK EXC. | I1: DT LT | J1: DT RT | K1: LEVEL-WEDGE | M1: PROJECT EARTHWORK TOTALS
A2: TOTALS | B2: =SUM(B4:B240) -> 0 | C2: =SUM(C4:C240) -> 0 | D2: 0 | E2: 0 | F2: 82831 | G2: 45539 | H2: 0 | I2: 0 | J2: 0 | K2: 0 | M2: ='PROJECT TOTALS'!F2 -> 82831 | N2: C.Y. COM.
M3: ='PROJECT TOTALS'!H2 -> 0 | N3: C.Y. ROCK EXC.
A4: =MAINLINE!A1 -> MAINLINE | B4: =MAINLINE!M$3 -> 0 | C4: =MAINLINE!N$3 -> 0 | D4: =MAINLINE!O$3 -> 0 | E4: =MAINLINE!P$3 -> 0 | F4: =MAINLINE!Q$3 -> 77155 | G4: =MAINLINE!R$3 -> 41546 | H4: =MAINLINE!S$3 -> 0 | I4: =MAINLINE!T$3 -> 0 | J4: =MAINLINE!U$3 -> 0 | K4: =MAINLINE!V$3 -> 0 | M4: ='PROJECT TOTALS'!I2 -> 0 | N4: C.Y. DT. LT.
M5: ='PROJECT TOTALS'!J2 -> 0 | N5: C.Y. DT. RT.
A6: ='Bethel Church Rd'!$A$1 -> Bethel Church Rd | B6: ='Bethel Church Rd'!M$3 -> 0 | C6: ='Bethel Church Rd'!N$3 -> 0 | D6: ='Bethel Church Rd'!O$3 -> 0 | E6: ='Bethel Church Rd'!P$3 -> 0 | F6: ='Bethel Church Rd'!Q$3 -> 429 | G6: ='Bethel Church Rd'!R$3 -> 390 | H6: ='Bethel Church Rd'!S$3 -> 0 | I6: ='Bethel Church Rd'!T$3 -> 0 | J6: ='Bethel Church Rd'!U$3 -> 0 | K6: ='Bethel Church Rd'!V$3 -> 0 | M6: ='PROJECT TOTALS'!D2 -> 0 | N6: C.Y. EMB. BENCH | Q6: ='PROJECT TOTALS'!G2 -> 45539 | R6: C.Y. EMB.
M7: ='PROJECT TOTALS'!C2 -> 0 | N7: C.Y. REFILL | Q7: ='PROJECT TOTALS'!D2 -> 0 | R7: C.Y. EMB. BENCH
A8: ='Wren Rd'!$A$1 -> Wren Rd | B8: ='Wren Rd'!M$3 -> 0 | C8: ='Wren Rd'!N$3 -> 0 | D8: ='Wren Rd'!O$3 -> 0 | E8: ='Wren Rd'!P$3 -> 0 | F8: ='Wren Rd'!Q$3 -> 825 | G8: ='Wren Rd'!R$3 -> 113 | H8: ='Wren Rd'!S$3 -> 0 | I8: ='Wren Rd'!T$3 -> 0 | J8: ='Wren Rd'!U$3 -> 0 | K8: ='Wren Rd'!V$3 -> 0 | N8: C.Y. TRANS. BENCH | Q8: ='PROJECT TOTALS'!C2 -> 0 | R8: C.Y. REFILL
N9: C.Y. INLET/OUTLET DITCHES | R9: C.Y. TRANS. BENCH
A10: ='Ex US 60 CulDeSac'!$A$1 -> Ex US 60 CulDeSac | B10: ='Ex US 60 CulDeSac'!M$3 -> 0 | C10: ='Ex US 60 CulDeSac'!N$3 -> 0 | D10: ='Ex US 60 CulDeSac'!O$3 -> 0 | E10: ='Ex US 60 CulDeSac'!P$3 -> 0 | F10: ='Ex US 60 CulDeSac'!Q$3 -> 234 | G10: ='Ex US 60 CulDeSac'!R$3 -> 10 | H10: ='Ex US 60 CulDeSac'!S$3 -> 0 | I10: ='Ex US 60 CulDeSac'!T$3 -> 0 | J10: ='Ex US 60 CulDeSac'!U$3 -> 0 | K10: ='Ex US 60 CulDeSac'!V$3 -> 0 | M10: =SUM(M2:M9) -> 82831 | N10: C.Y. TOTAL RDWY. EXC. | Q10: =SUM(Q6:Q9) -> 45539 | R10: TOTAL EMB.
A12: ='Rice Spring Rd'!$A$1 -> Rice Spring Rd | B12: ='Rice Spring Rd'!M$3 -> 0 | C12: ='Rice Spring Rd'!N$3 -> 0 | D12: ='Rice Spring Rd'!O$3 -> 0 | E12: ='Rice Spring Rd'!P$3 -> 0 | F12: ='Rice Spring Rd'!Q$3 -> 298 | G12: ='Rice Spring Rd'!R$3 -> 513 | H12: ='Rice Spring Rd'!S$3 -> 0 | I12: ='Rice Spring Rd'!T$3 -> 0 | J12: ='Rice Spring Rd'!U$3 -> 0 | K12: ='Rice Spring Rd'!V$3 -> 0
A14: ='Frontage Rd#1'!$A$1 -> Frontage Rd#1 | B14: ='Frontage Rd#1'!M$3 -> 0 | C14: ='Frontage Rd#1'!N$3 -> 0 | D14: ='Frontage Rd#1'!O$3 -> 0 | E14: ='Frontage Rd#1'!P$3 -> 0 | F14: ='Frontage Rd#1'!Q$3 -> 200 | G14: ='Frontage Rd#1'!R$3 -> 460 | H14: ='Frontage Rd#1'!S$3 -> 0 | I14: ='Frontage Rd#1'!T$3 -> 0 | J14: ='Frontage Rd#1'!U$3 -> 0 | K14: ='Frontage Rd#1'!V$3 -> 0
A16: ='Frontage Rd#2'!$A$1 -> Frontage Rd#2 | B16: ='Frontage Rd#2'!M$3 -> 0 | C16: ='Frontage Rd#2'!N$3 -> 0 | D16: ='Frontage Rd#2'!O$3 -> 0 | E16: ='Frontage Rd#2'!P$3 -> 0 | F16: ='Frontage Rd#2'!Q$3 -> 392 | G16: ='Frontage Rd#2'!R$3 -> 403 | H16: ='Frontage Rd#2'!S$3 -> 0 | I16: ='Frontage Rd#2'!T$3 -> 0 | J16: ='Frontage Rd#2'!U$3 -> 0 | K16: ='Frontage Rd#2'!V$3 -> 0
A18: ='Roberts Rd CulDeSac'!$A$1 -> Roberts Rd CulDeSac | B18: ='Roberts Rd CulDeSac'!M$3 -> 0 | C18: ='Roberts Rd CulDeSac'!N$3 -> 0 | D18: ='Roberts Rd CulDeSac'!O$3 -> 0 | E18: ='Roberts Rd CulDeSac'!P$3 -> 0 | F18: ='Roberts Rd CulDeSac'!Q$3 -> 206 | G18: ='Roberts Rd CulDeSac'!R$3 -> 153 | H18: ='Roberts Rd CulDeSac'!S$3 -> 0 | I18: ='Roberts Rd CulDeSac'!T$3 -> 0 | J18: ='Roberts Rd CulDeSac'!U$3 -> 0 | K18: ='Roberts Rd CulDeSac'!V$3 -> 0
A20: ='Linda Mel'!$A$1 -> Linda Mel | B20: ='Linda Mel'!M$3 -> 0 | C20: ='Linda Mel'!N$3 -> 0 | D20: ='Linda Mel'!O$3 -> 0 | E20: ='Linda Mel'!P$3 -> 0 | F20: ='Linda Mel'!Q$3 -> 20 | G20: ='Linda Mel'!R$3 -> 39 | H20: ='Linda Mel'!S$3 -> 0 | I20: ='Linda Mel'!T$3 -> 0 | J20: ='Linda Mel'!U$3 -> 0 | K20: ='Linda Mel'!V$3 -> 0
A22: ='Frontage Rd#3'!$A$1 -> Frontage Rd#3 | B22: ='Frontage Rd#3'!M$3 -> 0 | C22: ='Frontage Rd#3'!N$3 -> 0 | D22: ='Frontage Rd#3'!O$3 -> 0 | E22: ='Frontage Rd#3'!P$3 -> 0 | F22: ='Frontage Rd#3'!Q$3 -> 216 | G22: ='Frontage Rd#3'!R$3 -> 0 | H22: ='Frontage Rd#3'!S$3 -> 0 | I22: ='Frontage Rd#3'!T$3 -> 0 | J22: ='Frontage Rd#3'!U$3 -> 0 | K22: ='Frontage Rd#3'!V$3 -> 0
A24: ='Frontage Rd#4'!$A$1 -> Frontage Rd#4 | B24: ='Frontage Rd#4'!M$3 -> 0 | C24: ='Frontage Rd#4'!N$3 -> 0 | D24: ='Frontage Rd#4'!O$3 -> 0 | E24: ='Frontage Rd#4'!P$3 -> 0 | F24: ='Frontage Rd#4'!Q$3 -> 659 | G24: ='Frontage Rd#4'!R$3 -> 1896 | H24: ='Frontage Rd#4'!S$3 -> 0 | I24: ='Frontage Rd#4'!T$3 -> 0 | J24: ='Frontage Rd#4'!U$3 -> 0 | K24: ='Frontage Rd#4'!V$3 -> 0
A26: ='Kingsway Dr'!$A$1 -> Kingsway Dr | B26: ='Kingsway Dr'!M$3 -> 0 | C26: ='Kingsway Dr'!N$3 -> 0 | D26: ='Kingsway Dr'!O$3 -> 0 | E26: ='Kingsway Dr'!P$3 -> 0 | F26: ='Kingsway Dr'!Q$3 -> 1845 | G26: ='Kingsway Dr'!R$3 -> 16 | H26: ='Kingsway Dr'!S$3 -> 0 | I26: ='Kingsway Dr'!T$3 -> 0 | J26: ='Kingsway Dr'!U$3 -> 0 | K26: ='Kingsway Dr'!V$3 -> 0
A28: ='Queensway Dr'!$A$1 -> Queensway Dr | B28: ='Queensway Dr'!M$3 -> 0 | C28: ='Queensway Dr'!N$3 -> 0 | D28: ='Queensway Dr'!O$3 -> 0 | E28: ='Queensway Dr'!P$3 -> 0 | F28: ='Queensway Dr'!Q$3 -> 352 | G28: ='Queensway Dr'!R$3 -> 0 | H28: ='Queensway Dr'!S$3 -> 0 | I28: ='Queensway Dr'!T$3 -> 0 | J28: ='Queensway Dr'!U$3 -> 0 | K28: ='Queensway Dr'!V$3 -> 0

Sheet MAINLINE
A1: =MID(CELL("filename",$A$2),FIND("]",CELL("filename",$A$2))+1,256) -> MAINLINE | B1: AREAS | M1: VOLUMES
A2: STATION | B2: ROCK ROADBED | C2: REFILL | D2: EMB. BENCH | E2: GRAN. EMB. | F2: COM | G2: EM | H2: ROCK EXC. | I2: DT LT | J2: DT RT | K2: LEVEL-WEDGE | M2: ROCK ROADBED | N2: REFILL | O2: EMB. BENCH | P2: GRAN. EMB. | Q2: COM | R2: EM | S2: ROCK EXC. | T2: DT LT | U2: DT RT | V2: LEVEL-WEDGE
A3: TOTALS | M3: =SUM(M6:M2000) -> 0 | N3: 0 | O3: 0 | P3: 0 | Q3: 77155 | R3: 41546 | S3: 0 | T3: 0 | U3: 0 | V3: 0
A5: 43521.22 | F5: 602 | G5: 0
A6: 43550 | F6: 686 | G6: 0 | M6: =IF((B5+B6)>0,MAX(1,ROUNDUP(($A6-$A5)*((B5+B6)/2)/27,0)),ROUNDUP(($A6-$A5)*((B5+B6)/2)/27,0)) -> 0 | N6: =IF((C5+C6)>0,MAX(1,ROUNDUP(($A6-$A5)*((C5+C6)/2)/27,0)),ROUNDUP(($A6-$A5)*((C5+C6)/2)/27,0)) -> 0 | O6: 0 | P6: 0 | Q6: 687 | R6: 0 | S6: 0 | T6: 0 | U6: 0 | V6: 0
A7: 43600 | F7: 519 | G7: 0 | M7: =IF((B6+B7)>0,MAX(1,ROUNDUP(($A7-$A6)*((B6+B7)/2)/27,0)),ROUNDUP(($A7-$A6)*((B6+B7)/2)/27,0)) -> 0 | N7: =IF((C6+C7)>0,MAX(1,ROUNDUP(($A7-$A6)*((C6+C7)/2)/27,0)),ROUNDUP(($A7-$A6)*((C6+C7)/2)/27,0)) -> 0 | O7: =IF((D6+D7)>0,MAX(1,ROUNDUP(($A7-$A6)*((D6+D7)/2)/27,0)),ROUNDUP(($A7-$A6)*((D6+D7)/2)/27,0)) -> 0 | P7: =IF((E6+E7)>0,MAX(1,ROUNDUP(($A7-$A6)*((E6+E7)/2)/27,0)),ROUNDUP(($A7-$A6)*((E6+E7)/2)/27,0)) -> 0 | Q7: =IF((F6+F7)>0,MAX(1,ROUNDUP(($A7-$A6)*((F6+F7)/2)/27,0)),ROUNDUP(($A7-$A6)*((F6+F7)/2)/27,0)) -> 1116 | R7: =IF((G6+G7)>0,MAX(1,ROUNDUP(($A7-$A6)*((G6+G7)/2)/27,0)),ROUNDUP(($A7-$A6)*((G6+G7)/2)/27,0)) -> 0 | S7: =IF((H6+H7)>0,MAX(1,ROUNDUP(($A7-$A6)*((H6+H7)/2)/27,0)),ROUNDUP(($A7-$A6)*((H6+H7)/2)/27,0)) -> 0 | T7: =IF((I6+I7)>0,MAX(1,ROUNDUP(($A7-$A6)*((I6+I7)/2)/27,0)),ROUNDUP(($A7-$A6)*((I6+I7)/2)/27,0)) -> 0 | U7: =IF((J6+J7)>0,MAX(1,ROUNDUP(($A7-$A6)*((J6+J7)/2)/27,0)),ROUNDUP(($A7-$A6)*((J6+J7)/2)/27,0)) -> 0 | V7: 0
A8: 43650 | F8: 417 | G8: 0 | M8: 0 | N8: 0 | O8: 0 | P8: 0 | Q8: 867 | R8: 0 | S8: 0 | T8: 0 | U8: 0 | V8: 0
A9: 43700 | F9: 323 | G9: 0 | M9: 0 | N9: 0 | O9: 0 | P9: 0 | Q9: 686 | R9: 0 | S9: 0 | T9: 0 | U9: 0 | V9: 0
A10: 43750 | F10: 207 | G10: 4 | M10: 0 | N10: 0 | O10: 0 | P10: 0 | Q10: 491 | R10: 4 | S10: 0 | T10: 0 | U10: 0 | V10: 0
A11: 43800 | F11: 89 | G11: 22 | M11: 0 | N11: 0 | O11: 0 | P11: 0 | Q11: 275 | R11: 25 | S11: 0 | T11: 0 | U11: 0 | V11: 0
A12: 43850 | F12: 50 | G12: 86 | M12: 0 | N12: 0 | O12: 0 | P12: 0 | Q12: 129 | R12: 100 | S12: 0 | T12: 0 | U12: 0 | V12: 0
A13: 43900 | F13: 83 | G13: 46 | M13: 0 | N13: 0 | O13: 0 | P13: 0 | Q13: 124 | R13: 123 | S13: 0 | T13: 0 | U13: 0 | V13: 0
A14: 43950 | F14: 58 | G14: 40 | M14: 0 | N14: 0 | O14: 0 | P14: 0 | Q14: 131 | R14: 80 | S14: 0 | T14: 0 | U14: 0 | V14: 0
A15: 44000 | F15: 33 | G15: 90 | M15: 0 | N15: 0 | O15: 0 | P15: 0 | Q15: 85 | R15: 121 | S15: 0 | T15: 0 | U15: 0 | V15: 0
A16: 44050 | F16: 81 | G16: 132 | M16: 0 | N16: 0 | O16: 0 | P16: 0 | Q16: 106 | R16: 206 | S16: 0 | T16: 0 | U16: 0 | V16: 0
A17: 44100 | F17: 68 | G17: 146 | M17: 0 | N17: 0 | O17: 0 | P17: 0 | Q17: 138 | R17: 258 | S17: 0 | T17: 0 | U17: 0 | V17: 0
A18: 44150 | F18: 94 | G18: 140 | M18: 0 | N18: 0 | O18: 0 | P18: 0 | Q18: 150 | R18: 265 | S18: 0 | T18: 0 | U18: 0 | V18: 0
A19: 44200 | F19: 100 | G19: 127 | M19: 0 | N19: 0 | O19: 0 | P19: 0 | Q19: 180 | R19: 248 | S19: 0 | T19: 0 | U19: 0 | V19: 0
A20: 44250 | F20: 329 | G20: 9 | M20: 0 | N20: 0 | O20: 0 | P20: 0 | Q20: 398 | R20: 126 | S20: 0 | T20: 0 | U20: 0 | V20: 0
A21: 44300 | F21: 559 | G21: 0 | M21: 0 | N21: 0 | O21: 0 | P21: 0 | Q21: 823 | R21: 9 | S21: 0 | T21: 0 | U21: 0 | V21: 0
A22: 44350 | F22: 352 | G22: 0 | M22: 0 | N22: 0 | O22: 0 | P22: 0 | Q22: 844 | R22: 0 | S22: 0 | T22: 0 | U22: 0 | V22: 0
A23: 44400 | F23: 163 | G23: 91 | M23: 0 | N23: 0 | O23: 0 | P23: 0 | Q23: 477 | R23: 85 | S23: 0 | T23: 0 | U23: 0 | V23: 0
A24: 44450 | F24: 62 | G24: 290 | M24: 0 | N24: 0 | O24: 0 | P24: 0 | Q24: 209 | R24: 353 | S24: 0 | T24: 0 | U24: 0 | V24: 0
A25: 44500 | F25: 41 | G25: 398 | M25: 0 | N25: 0 | O25: 0 | P25: 0 | Q25: 96 | R25: 638 | S25: 0 | T25: 0 | U25: 0 | V25: 0
A26: 44550 | F26: 21 | G26: 471 | M26: 0 | N26: 0 | O26: 0 | P26: 0 | Q26: 58 | R26: 805 | S26: 0 | T26: 0 | U26: 0 | V26: 0
A27: 44600 | F27: 35 | G27: 470 | M27: 0 | N27: 0 | O27: 0 | P27: 0 | Q27: 52 | R27: 872 | S27: 0 | T27: 0 | U27: 0 | V27: 0
A28: 44650 | F28: 57 | G28: 444 | M28: 0 | N28: 0 | O28: 0 | P28: 0 | Q28: 86 | R28: 847 | S28: 0 | T28: 0 | U28: 0 | V28: 0
A29: 44700 | F29: 62 | G29: 399 | M29: 0 | N29: 0 | O29: 0 | P29: 0 | Q29: 111 | R29: 781 | S29: 0 | T29: 0 | U29: 0 | V29: 0
A30: 44750 | F30: 76 | G30: 304 | M30: 0 | N30: 0 | O30: 0 | P30: 0 | Q30: 128 | R30: 651 | S30: 0 | T30: 0 | U30: 0 | V30: 0
A31: 44800 | F31: 94 | G31: 247 | M31: 0 | N31: 0 | O31: 0 | P31: 0 | Q31: 158 | R31: 511 | S31: 0 | T31: 0 | U31: 0 | V31: 0
A32: 44850 | F32: 102 | G32: 159 | M32: 0 | N32: 0 | O32: 0 | P32: 0 | Q32: 182 | R32: 376 | S32: 0 | T32: 0 | U32: 0 | V32: 0
A33: 44900 | F33: 108 | G33: 80 | M33: 0 | N33: 0 | O33: 0 | P33: 0 | Q33: 195 | R33: 222 | S33: 0 | T33: 0 | U33: 0 | V33: 0
A34: 44950 | F34: 115 | G34: 33 | M34: 0 | N34: 0 | O34: 0 | P34: 0 | Q34: 207 | R34: 105 | S34: 0 | T34: 0 | U34: 0 | V34: 0
A35: 45000 | F35: 192 | G35: 9 | M35: 0 | N35: 0 | O35: 0 | P35: 0 | Q35: 285 | R35: 39 | S35: 0 | T35: 0 | U35: 0 | V35: 0
A36: 45050 | F36: 278 | G36: 0 | M36: 0 | N36: 0 | O36: 0 | P36: 0 | Q36: 436 | R36: 9 | S36: 0 | T36: 0 | U36: 0 | V36: 0
A37: 45100 | F37: 316 | G37: 0 | M37: 0 | N37: 0 | O37: 0 | P37: 0 | Q37: 550 | R37: 0 | S37: 0 | T37: 0 | U37: 0 | V37: 0
A38: 45150 | F38: 249 | G38: 0 | M38: 0 | N38: 0 | O38: 0 | P38: 0 | Q38: 524 | R38: 0 | S38: 0 | T38: 0 | U38: 0 | V38: 0
A39: 45200 | F39: 312 | G39: 0 | M39: 0 | N39: 0 | O39: 0 | P39: 0 | Q39: 520 | R39: 0 | S39: 0 | T39: 0 | U39: 0 | V39: 0
A40: 45250 | F40: 404 | G40: 0 | M40: 0 | N40: 0 | O40: 0 | P40: 0 | Q40: 663 | R40: 0 | S40: 0 | T40: 0 | U40: 0 | V40: 0
A41: 45300 | F41: 410 | G41: 0 | M41: 0 | N41: 0 | O41: 0 | P41: 0 | Q41: 754 | R41: 0 | S41: 0 | T41: 0 | U41: 0 | V41: 0
A42: 45350 | F42: 458 | G42: 0 | M42: 0 | N42: 0 | O42: 0 | P42: 0 | Q42: 804 | R42: 0 | S42: 0 | T42: 0 | U42: 0 | V42: 0
A43: 45400 | F43: 530 | G43: 0 | M43: 0 | N43: 0 | O43: 0 | P43: 0 | Q43: 915 | R43: 0 | S43: 0 | T43: 0 | U43: 0 | V43: 0
A44: 45450 | F44: 558 | G44: 0 | M44: 0 | N44: 0 | O44: 0 | P44: 0 | Q44: 1008 | R44: 0 | S44: 0 | T44: 0 | U44: 0 | V44: 0
A45: 45500 | F45: 556 | G45: 0 | M45: 0 | N45: 0 | O45: 0 | P45: 0 | Q45: 1032 | R45: 0 | S45: 0 | T45: 0 | U45: 0 | V45: 0
A46: 45550 | F46: 577 | G46: 0 | M46: 0 | N46: 0 | O46: 0 | P46: 0 | Q46: 1050 | R46: 0 | S46: 0 | T46: 0 | U46: 0 | V46: 0
A47: 45600 | F47: 610 | G47: 0 | M47: 0 | N47: 0 | O47: 0 | P47: 0 | Q47: 1100 | R47: 0 | S47: 0 | T47: 0 | U47: 0 | V47: 0
A48: 45650 | F48: 607 | G48: 0 | M48: 0 | N48: 0 | O48: 0 | P48: 0 | Q48: 1127 | R48: 0 | S48: 0 | T48: 0 | U48: 0 | V48: 0
A49: 45700 | F49: 587 | G49: 0 | M49: 0 | N49: 0 | O49: 0 | P49: 0 | Q49: 1106 | R49: 0 | S49: 0 | T49: 0 | U49: 0 | V49: 0
A50: 45750 | F50: 590 | G50: 0 | M50: 0 | N50: 0 | O50: 0 | P50: 0 | Q50: 1090 | R50: 0 | S50: 0 | T50: 0 | U50: 0 | V50: 0
A51: 45800 | F51: 600 | G51: 0 | M51: 0 | N51: 0 | O51: 0 | P51: 0 | Q51: 1102 | R51: 0 | S51: 0 | T51: 0 | U51: 0 | V51: 0
A52: 45850 | F52: 595 | G52: 0 | M52: 0 | N52: 0 | O52: 0 | P52: 0 | Q52: 1107 | R52: 0 | S52: 0 | T52: 0 | U52: 0 | V52: 0
A53: 45900 | F53: 622 | G53: 0 | M53: 0 | N53: 0 | O53: 0 | P53: 0 | Q53: 1127 | R53: 0 | S53: 0 | T53: 0 | U53: 0 | V53: 0
A54: 45950 | F54: 649 | G54: 0 | M54: 0 | N54: 0 | O54: 0 | P54: 0 | Q54: 1177 | R54: 0 | S54: 0 | T54: 0 | U54: 0 | V54: 0
A55: 46000 | F55: 713 | G55: 0 | M55: 0 | N55: 0 | O55: 0 | P55: 0 | Q55: 1262 | R55: 0 | S55: 0 | T55: 0 | U55: 0 | V55: 0
A56: 46050 | F56: 762 | G56: 0 | M56: 0 | N56: 0 | O56: 0 | P56: 0 | Q56: 1366 | R56: 0 | S56: 0 | T56: 0 | U56: 0 | V56: 0
A57: 46100 | F57: 812 | G57: 0 | M57: 0 | N57: 0 | O57: 0 | P57: 0 | Q57: 1458 | R57: 0 | S57: 0 | T57: 0 | U57: 0 | V57: 0
A58: 46150 | F58: 834 | G58: 0 | M58: 0 | N58: 0 | O58: 0 | P58: 0 | Q58: 1525 | R58: 0 | S58: 0 | T58: 0 | U58: 0 | V58: 0
A59: 46200 | F59: 799 | G59: 0 | M59: 0 | N59: 0 | O59: 0 | P59: 0 | Q59: 1513 | R59: 0 | S59: 0 | T59: 0 | U59: 0 | V59: 0
A60: 46250 | F60: 697 | G60: 0 | M60: 0 | N60: 0 | O60: 0 | P60: 0 | Q60: 1386 | R60: 0 | S60: 0 | T60: 0 | U60: 0 | V60: 0
A61: 46300 | F61: 616 | G61: 0 | M61: 0 | N61: 0 | O61: 0 | P61: 0 | Q61: 1216 | R61: 0 | S61: 0 | T61: 0 | U61: 0 | V61: 0
A62: 46350 | F62: 499 | G62: 0 | M62: 0 | N62: 0 | O62: 0 | P62: 0 | Q62: 1033 | R62: 0 | S62: 0 | T62: 0 | U62: 0 | V62: 0
A63: 46400 | F63: 442 | G63: 0 | M63: 0 | N63: 0 | O63: 0 | P63: 0 | Q63: 872 | R63: 0 | S63: 0 | T63: 0 | U63: 0 | V63: 0
A64: 46450 | F64: 379 | G64: 0 | M64: 0 | N64: 0 | O64: 0 | P64: 0 | Q64: 761 | R64: 0 | S64: 0 | T64: 0 | U64: 0 | V64: 0
A65: 46500 | F65: 347 | G65: 0 | M65: 0 | N65: 0 | O65: 0 | P65: 0 | Q65: 673 | R65: 0 | S65: 0 | T65: 0 | U65: 0 | V65: 0
A66: 46550 | F66: 292 | G66: 0 | M66: 0 | N66: 0 | O66: 0 | P66: 0 | Q66: 592 | R66: 0 | S66: 0 | T66: 0 | U66: 0 | V66: 0
A67: 46600 | F67: 142 | G67: 1 | M67: 0 | N67: 0 | O67: 0 | P67: 0 | Q67: 402 | R67: 1 | S67: 0 | T67: 0 | U67: 0 | V67: 0
A68: 46650 | F68: 51 | G68: 82 | M68: 0 | N68: 0 | O68: 0 | P68: 0 | Q68: 179 | R68: 77 | S68: 0 | T68: 0 | U68: 0 | V68: 0
A69: 46700 | F69: 98 | G69: 147 | M69: 0 | N69: 0 | O69: 0 | P69: 0 | Q69: 138 | R69: 213 | S69: 0 | T69: 0 | U69: 0 | V69: 0
A70: 46750 | F70: 7 | G70: 250 | M70: 0 | N70: 0 | O70: 0 | P70: 0 | Q70: 98 | R70: 368 | S70: 0 | T70: 0 | U70: 0 | V70: 0
A71: 46800 | F71: 115 | G71: 306 | M71: =IF((B70+B71)>0,MAX(1,ROUNDUP(($A71-$A70)*((B70+B71)/2)/27,0)),ROUNDUP(($A71-$A70)*((B70+B71)/2)/27,0)) -> 0 | N71: =IF((C70+C71)>0,MAX(1,ROUNDUP(($A71-$A70)*((C70+C71)/2)/27,0)),ROUNDUP(($A71-$A70)*((C70+C71)/2)/27,0)) -> 0 | O71: =IF((D70+D71)>0,MAX(1,ROUNDUP(($A71-$A70)*((D70+D71)/2)/27,0)),ROUNDUP(($A71-$A70)*((D70+D71)/2)/27,0)) -> 0 | P71: =IF((E70+E71)>0,MAX(1,ROUNDUP(($A71-$A70)*((E70+E71)/2)/27,0)),ROUNDUP(($A71-$A70)*((E70+E71)/2)/27,0)) -> 0 | Q71: =IF((F70+F71)>0,MAX(1,ROUNDUP(($A71-$A70)*((F70+F71)/2)/27,0)),ROUNDUP(($A71-$A70)*((F70+F71)/2)/27,0)) -> 113 | R71: =IF((G70+G71)>0,MAX(1,ROUNDUP(($A71-$A70)*((G70+G71)/2)/27,0)),ROUNDUP(($A71-$A70)*((G70+G71)/2)/27,0)) -> 515 | S71: =IF((H70+H71)>0,MAX(1,ROUNDUP(($A71-$A70)*((H70+H71)/2)/27,0)),ROUNDUP(($A71-$A70)*((H70+H71)/2)/27,0)) -> 0 | T71: =IF((I70+I71)>0,MAX(1,ROUNDUP(($A71-$A70)*((I70+I71)/2)/27,0)),ROUNDUP(($A71-$A70)*((I70+I71)/2)/27,0)) -> 0 | U71: =IF((J70+J71)>0,MAX(1,ROUNDUP(($A71-$A70)*((J70+J71)/2)/27,0)),ROUNDUP(($A71-$A70)*((J70+J71)/2)/27,0)) -> 0 | V71: 0
A72: 46850 | F72: 118 | G72: 381 | M72: 0 | N72: 0 | O72: 0 | P72: 0 | Q72: 216 | R72: 637 | S72: 0 | T72: 0 | U72: 0 | V72: 0
A73: 46900 | F73: 93 | G73: 534 | M73: 0 | N73: 0 | O73: 0 | P73: 0 | Q73: 196 | R73: 848 | S73: 0 | T73: 0 | U73: 0 | V73: 0
A74: 46950 | F74: 88 | G74: 725 | M74: 0 | N74: 0 | O74: 0 | P74: 0 | Q74: 168 | R74: 1166 | S74: 0 | T74: 0 | U74: 0 | V74: 0
A75: 47000 | F75: 61 | G75: 965 | M75: 0 | N75: 0 | O75: 0 | P75: 0 | Q75: 138 | R75: 1565 | S75: 0 | T75: 0 | U75: 0 | V75: 0
A76: 47050 | F76: 54 | G76: 1047 | M76: 0 | N76: 0 | O76: 0 | P76: 0 | Q76: 107 | R76: =IF((G75+G76)>0,MAX(1,ROUNDUP(($A76-$A75)*((G75+G76)/2)/27,0)),ROUNDUP(($A76-$A75)*((G75+G76)/2)/27,0)) -> 1863 | S76: 0 | T76: 0 | U76: 0 | V76: 0
A77: 47100 | F77: 46 | G77: 1061 | M77: 0 | N77: 0 | O77: 0 | P77: 0 | Q77: 93 | R77: 1952 | S77: 0 | T77: 0 | U77: 0 | V77: 0
A78: 47150 | F78: 77 | G78: 958 | M78: 0 | N78: 0 | O78: 0 | P78: 0 | Q78: 114 | R78: 1870 | S78: 0 | T78: 0 | U78: 0 | V78: 0
A79: 47200 | F79: 80 | G79: 896 | M79: 0 | N79: 0 | O79: 0 | P79: 0 | Q79: 146 | R79: 1717 | S79: 0 | T79: 0 | U79: 0 | V79: 0
A80: 47250 | F80: 91 | G80: 895 | M80: 0 | N80: 0 | O80: 0 | P80: 0 | Q80: 159 | R80: 1659 | S80: 0 | T80: 0 | U80: 0 | V80: 0
A81: 47300 | F81: 75 | G81: 889 | M81: 0 | N81: 0 | O81: 0 | P81: 0 | Q81: 154 | R81: 1652 | S81: 0 | T81: 0 | U81: 0 | V81: 0
A82: 47350 | F82: 80 | G82: 886 | M82: 0 | N82: 0 | O82: 0 | P82: 0 | Q82: 144 | R82: 1644 | S82: 0 | T82: 0 | U82: 0 | V82: 0
A83: 47400 | F83: 54 | G83: 872 | M83: 0 | N83: 0 | O83: 0 | P83: 0 | Q83: 125 | R83: 1628 | S83: 0 | T83: 0 | U83: 0 | V83: 0
A84: 47450 | F84: 55 | G84: 940 | M84: 0 | N84: 0 | O84: 0 | P84: 0 | Q84: 101 | R84: 1678 | S84: 0 | T84: 0 | U84: 0 | V84: 0
A85: 47500 | F85: 49 | G85: 745 | M85: 0 | N85: 0 | O85: 0 | P85: 0 | Q85: 97 | R85: 1561 | S85: 0 | T85: 0 | U85: 0 | V85: 0
A86: 47550 | F86: 75 | G86: 635 | M86: 0 | N86: 0 | O86: 0 | P86: 0 | Q86: 115 | R86: 1278 | S86: 0 | T86: 0 | U86: 0 | V86: 0
A87: 47600 | F87: 28 | G87: 522 | M87: 0 | N87: 0 | O87: 0 | P87: 0 | Q87: 96 | R87: 1072 | S87: 0 | T87: 0 | U87: 0 | V87: 0
A88: 47650 | F88: 32 | G88: 348 | M88: 0 | N88: 0 | O88: 0 | P88: 0 | Q88: 56 | R88: 806 | S88: 0 | T88: 0 | U88: 0 | V88: 0
A89: 47700 | F89: 35 | G89: 221 | M89: 0 | N89: 0 | O89: 0 | P89: 0 | Q89: 63 | R89: 527 | S89: 0 | T89: 0 | U89: 0 | V89: 0
A90: 47750 | F90: 99 | G90: 180 | M90: 0 | N90: 0 | O90: 0 | P90: 0 | Q90: 125 | R90: 372 | S90: 0 | T90: 0 | U90: 0 | V90: 0
A91: 47800 | F91: 56 | G91: 156 | M91: 0 | N91: 0 | O91: 0 | P91: 0 | Q91: 144 | R91: 312 | S91: 0 | T91: 0 | U91: 0 | V91: 0
A92: 47850 | F92: 65 | G92: 153 | M92: 0 | N92: 0 | O92: 0 | P92: 0 | Q92: 113 | R92: 287 | S92: 0 | T92: 0 | U92: 0 | V92: 0
A93: 47900 | F93: 16 | G93: 261 | M93: 0 | N93: 0 | O93: 0 | P93: 0 | Q93: 75 | R93: 384 | S93: 0 | T93: 0 | U93: 0 | V93: 0
A94: 47950 | F94: 30 | G94: 258 | M94: 0 | N94: 0 | O94: 0 | P94: 0 | Q94: 43 | R94: 481 | S94: 0 | T94: 0 | U94: 0 | V94: 0
A95: 48000 | F95: 59 | G95: 213 | M95: 0 | N95: 0 | O95: 0 | P95: 0 | Q95: 83 | R95: 437 | S95: 0 | T95: 0 | U95: 0 | V95: 0
A96: 48050 | F96: 46 | G96: 146 | M96: 0 | N96: 0 | O96: 0 | P96: 0 | Q96: 98 | R96: 333 | S96: 0 | T96: 0 | U96: 0 | V96: 0
A97: 48100 | F97: 114 | G97: 83 | M97: 0 | N97: 0 | O97: 0 | P97: 0 | Q97: 149 | R97: 213 | S97: 0 | T97: 0 | U97: 0 | V97: 0
A98: 48150 | F98: 286 | G98: 56 | M98: 0 | N98: 0 | O98: 0 | P98: 0 | Q98: 371 | R98: 129 | S98: 0 | T98: 0 | U98: 0 | V98: 0
A99: 48200 | F99: 578 | G99: 5 | M99: 0 | N99: 0 | O99: 0 | P99: 0 | Q99: 800 | R99: 57 | S99: 0 | T99: 0 | U99: 0 | V99: 0
A100: 48250 | F100: 1058 | G100: 0 | M100: 0 | N100: 0 | O100: 0 | P100: 0 | Q100: 1515 | R100: 5 | S100: 0 | T100: 0 | U100: 0 | V100: 0
A101: 48300 | F101: 1392 | G101: 0 | M101: 0 | N101: 0 | O101: 0 | P101: 0 | Q101: 2269 | R101: 0 | S101: 0 | T101: 0 | U101: 0 | V101: 0
A102: 48350 | F102: 1645 | G102: 0 | M102: 0 | N102: 0 | O102: 0 | P102: 0 | Q102: 2813 | R102: 0 | S102: 0 | T102: 0 | U102: 0 | V102: 0
A103: 48400 | F103: 1996 | G103: 0 | M103: 0 | N103: 0 | O103: 0 | P103: 0 | Q103: 3372 | R103: 0 | S103: 0 | T103: 0 | U103: 0 | V103: 0
A104: 48450 | F104: 1826 | G104: 0 | M104: 0 | N104: 0 | O104: 0 | P104: 0 | Q104: 3539 | R104: 0 | S104: 0 | T104: 0 | U104: 0 | V104: 0
A105: 48500 | F105: 1483 | G105: 0 | M105: 0 | N105: 0 | O105: 0 | P105: 0 | Q105: 3064 | R105: 0 | S105: 0 | T105: 0 | U105: 0 | V105: 0
A106: 48550 | F106: 1311 | G106: 0 | M106: 0 | N106: 0 | O106: 0 | P106: 0 | Q106: 2588 | R106: 0 | S106: 0 | T106: 0 | U106: 0 | V106: 0
A107: 48600 | F107: 988 | G107: 0 | M107: 0 | N107: 0 | O107: 0 | P107: 0 | Q107: 2129 | R107: 0 | S107: 0 | T107: 0 | U107: 0 | V107: 0
A108: 48650 | F108: 447 | G108: 0 | M108: 0 | N108: 0 | O108: 0 | P108: 0 | Q108: 1329 | R108: 0 | S108: 0 | T108: 0 | U108: 0 | V108: 0
A109: 48700 | F109: 214 | G109: 23 | M109: 0 | N109: 0 | O109: 0 | P109: 0 | Q109: 613 | R109: 22 | S109: 0 | T109: 0 | U109: 0 | V109: 0
A110: 48750 | F110: 101 | G110: 143 | M110: 0 | N110: 0 | O110: 0 | P110: 0 | Q110: 292 | R110: 154 | S110: 0 | T110: 0 | U110: 0 | V110: 0
A111: 48800 | F111: 73 | G111: 269 | M111: 0 | N111: 0 | O111: 0 | P111: 0 | Q111: 162 | R111: 382 | S111: 0 | T111: 0 | U111: 0 | V111: 0
A112: 48850 | F112: 60 | G112: 340 | M112: 0 | N112: 0 | O112: 0 | P112: 0 | Q112: 124 | R112: 564 | S112: 0 | T112: 0 | U112: 0 | V112: 0
A113: 48900 | F113: 55 | G113: 334 | M113: 0 | N113: 0 | O113: 0 | P113: 0 | Q113: 107 | R113: 625 | S113: 0 | T113: 0 | U113: 0 | V113: 0
A114: 48950 | F114: 16 | G114: 396 | M114: 0 | N114: 0 | O114: 0 | P114: 0 | Q114: 66 | R114: 676 | S114: 0 | T114: 0 | U114: 0 | V114: 0
A115: 49000 | F115: 54 | G115: 321 | M115: 0 | N115: 0 | O115: 0 | P115: 0 | Q115: 65 | R115: 664 | S115: 0 | T115: 0 | U115: 0 | V115: 0
A116: 49050 | F116: 57 | G116: 179 | M116: 0 | N116: 0 | O116: 0 | P116: 0 | Q116: 103 | R116: 463 | S116: 0 | T116: 0 | U116: 0 | V116: 0
A117: 49100 | F117: 41 | G117: 101 | M117: 0 | N117: 0 | O117: 0 | P117: 0 | Q117: 91 | R117: 260 | S117: 0 | T117: 0 | U117: 0 | V117: 0
A118: 49150 | F118: 169 | G118: 34 | M118: 0 | N118: 0 | O118: 0 | P118: 0 | Q118: 195 | R118: 125 | S118: 0 | T118: 0 | U118: 0 | V118: 0
A119: 49200 | F119: 280 | G119: 5 | M119: 0 | N119: 0 | O119: 0 | P119: 0 | Q119: 416 | R119: 37 | S119: 0 | T119: 0 | U119: 0 | V119: 0
A120: 49250 | F120: 326 | G120: 2 | M120: 0 | N120: 0 | O120: 0 | P120: 0 | Q120: 562 | R120: 7 | S120: 0 | T120: 0 | U120: 0 | V120: 0
A121: 49300 | F121: 385 | G121: 0 | M121: 0 | N121: 0 | O121: 0 | P121: 0 | Q121: 659 | R121: 2 | S121: 0 | T121: 0 | U121: 0 | V121: 0
A122: 49350 | F122: 411 | G122: 0 | M122: 0 | N122: 0 | O122: 0 | P122: 0 | Q122: 738 | R122: 0 | S122: 0 | T122: 0 | U122: 0 | V122: 0
A123: 49400 | F123: 386 | G123: 0 | M123: 0 | N123: 0 | O123: 0 | P123: 0 | Q123: 738 | R123: 0 | S123: 0 | T123: 0 | U123: 0 | V123: 0
A124: 49450 | F124: 255 | G124: 0 | M124: 0 | N124: 0 | O124: 0 | P124: 0 | Q124: 594 | R124: 0 | S124: 0 | T124: 0 | U124: 0 | V124: 0
A125: 49500 | F125: 430 | G125: 0 | M125: 0 | N125: 0 | O125: 0 | P125: 0 | Q125: 635 | R125: 0 | S125: 0 | T125: 0 | U125: 0 | V125: 0
A126: 49550 | F126: 267 | G126: 17 | M126: 0 | N126: 0 | O126: 0 | P126: 0 | Q126: 646 | R126: 16 | S126: 0 | T126: 0 | U126: 0 | V126: 0
A127: 49600 | F127: 280 | G127: 43 | M127: 0 | N127: 0 | O127: 0 | P127: 0 | Q127: 507 | R127: 56 | S127: 0 | T127: 0 | U127: 0 | V127: 0
A128: 49650 | F128: 203 | G128: 15 | M128: 0 | N128: 0 | O128: 0 | P128: 0 | Q128: 448 | R128: 54 | S128: 0 | T128: 0 | U128: 0 | V128: 0
A129: 49700 | F129: 166 | G129: 1 | M129: 0 | N129: 0 | O129: 0 | P129: 0 | Q129: 342 | R129: 15 | S129: 0 | T129: 0 | U129: 0 | V129: 0
A130: 49750 | F130: 110 | G130: 35 | M130: 0 | N130: 0 | O130: 0 | P130: 0 | Q130: 256 | R130: 34 | S130: 0 | T130: 0 | U130: 0 | V130: 0
A131: 49800 | F131: 114 | G131: 20 | M131: 0 | N131: 0 | O131: 0 | P131: 0 | Q131: 208 | R131: 51 | S131: 0 | T131: 0 | U131: 0 | V131: 0
A132: 49850 | F132: 110 | G132: 78 | M132: 0 | N132: 0 | O132: 0 | P132: 0 | Q132: 208 | R132: 91 | S132: 0 | T132: 0 | U132: 0 | V132: 0
A133: 49900 | F133: 126 | G133: 9 | M133: 0 | N133: 0 | O133: 0 | P133: 0 | Q133: 219 | R133: 81 | S133: 0 | T133: 0 | U133: 0 | V133: 0
M134: 0 | N134: 0 | O134: 0 | P134: 0 | Q134: 1 | R134: 1 | S134: 0 | T134: 0 | U134: 0 | V134: 0
M135: =IF((B134+B135)>0,MAX(1,ROUNDUP(($A135-$A134)*((B134+B135)/2)/27,0)),ROUNDUP(($A135-$A134)*((B134+B135)/2)/27,0)) -> 0 | N135: =IF((C134+C135)>0,MAX(1,ROUNDUP(($A135-$A134)*((C134+C135)/2)/27,0)),ROUNDUP(($A135-$A134)*((C134+C135)/2)/27,0)) -> 0 | O135: =IF((D134+D135)>0,MAX(1,ROUNDUP(($A135-$A134)*((D134+D135)/2)/27,0)),ROUNDUP(($A135-$A134)*((D134+D135)/2)/27,0)) -> 0 | P135: =IF((E134+E135)>0,MAX(1,ROUNDUP(($A135-$A134)*((E134+E135)/2)/27,0)),ROUNDUP(($A135-$A134)*((E134+E135)/2)/27,0)) -> 0 | Q135: =IF((F134+F135)>0,MAX(1,ROUNDUP(($A135-$A134)*((F134+F135)/2)/27,0)),ROUNDUP(($A135-$A134)*((F134+F135)/2)/27,0)) -> 0 | R135: =IF((G134+G135)>0,MAX(1,ROUNDUP(($A135-$A134)*((G134+G135)/2)/27,0)),ROUNDUP(($A135-$A134)*((G134+G135)/2)/27,0)) -> 0 | S135: =IF((H134+H135)>0,MAX(1,ROUNDUP(($A135-$A134)*((H134+H135)/2)/27,0)),ROUNDUP(($A135-$A134)*((H134+H135)/2)/27,0)) -> 0 | T135: =IF((I134+I135)>0,MAX(1,ROUNDUP(($A135-$A134)*((I134+I135)/2)/27,0)),ROUNDUP(($A135-$A134)*((I134+I135)/2)/27,0)) -> 0 | U135: =IF((J134+J135)>0,MAX(1,ROUNDUP(($A135-$A134)*((J134+J135)/2)/27,0)),ROUNDUP(($A135-$A134)*((J134+J135)/2)/27,0)) -> 0 | V135: 0
M136: 0 | N136: 0 | O136: 0 | P136: 0 | Q136: 0 | R136: 0 | S136: 0 | T136: 0 | U136: 0 | V136: 0
M137: 0 | N137: 0 | O137: 0 | P137: 0 | Q137: 0 | R137: 0 | S137: 0 | T137: 0 | U137: 0 | V137: 0
M138: 0 | N138: 0 | O138: 0 | P138: 0 | Q138: 0 | R138: 0 | S138: 0 | T138: 0 | U138: 0 | V138: 0
M139: 0 | N139: 0 | O139: 0 | P139: 0 | Q139: 0 | R139: 0 | S139: 0 | T139: 0 | U139: 0 | V139: 0
M140: 0 | N140: 0 | O140: 0 | P140: 0 | Q140: 0 | R140: 0 | S140: 0 | T140: 0 | U140: 0 | V140: 0
M141: 0 | N141: 0 | O141: 0 | P141: 0 | Q141: 0 | R141: 0 | S141: 0 | T141: 0 | U141: 0 | V141: 0
M142: 0 | N142: 0 | O142: 0 | P142: 0 | Q142: 0 | R142: 0 | S142: 0 | T142: 0 | U142: 0 | V142: 0
M143: 0 | N143: 0 | O143: 0 | P143: 0 | Q143: 0 | R143: 0 | S143: 0 | T143: 0 | U143: 0 | V143: 0
M144: 0 | N144: 0 | O144: 0 | P144: 0 | Q144: 0 | R144: 0 | S144: 0 | T144: 0 | U144: 0 | V144: 0
M145: 0 | N145: 0 | O145: 0 | P145: 0 | Q145: 0 | R145: 0 | S145: 0 | T145: 0 | U145: 0 | V145: 0
M146: 0 | N146: 0 | O146: 0 | P146: 0 | Q146: 0 | R146: 0 | S146: 0 | T146: 0 | U146: 0 | V146: 0
M147: 0 | N147: 0 | O147: 0 | P147: 0 | Q147: 0 | R147: 0 | S147: 0 | T147: 0 | U147: 0 | V147: 0
M148: 0 | N148: 0 | O148: 0 | P148: 0 | Q148: 0 | R148: 0 | S148: 0 | T148: 0 | U148: 0 | V148: 0
M149: 0 | N149: 0 | O149: 0 | P149: 0 | Q149: 0 | R149: 0 | S149: 0 | T149: 0 | U149: 0 | V149: 0
M150: 0 | N150: 0 | O150: 0 | P150: 0 | Q150: 0 | R150: 0 | S150: 0 | T150: 0 | U150: 0 | V150: 0
M151: 0 | N151: 0 | O151: 0 | P151: 0 | Q151: 0 | R151: 0 | S151: 0 | T151: 0 | U151: 0 | V151: 0
M152: 0 | N152: 0 | O152: 0 | P152: 0 | Q152: 0 | R152: 0 | S152: 0 | T152: 0 | U152: 0 | V152: 0
M153: 0 | N153: 0 | O153: 0 | P153: 0 | Q153: 0 | R153: 0 | S153: 0 | T153: 0 | U153: 0 | V153: 0
M154: 0 | N154: 0 | O154: 0 | P154: 0 | Q154: 0 | R154: 0 | S154: 0 | T154: 0 | U154: 0 | V154: 0
M155: 0 | N155: 0 | O155: 0 | P155: 0 | Q155: 0 | R155: 0 | S155: 0 | T155: 0 | U155: 0 | V155: 0
M156: 0 | N156: 0 | O156: 0 | P156: 0 | Q156: 0 | R156: 0 | S156: 0 | T156: 0 | U156: 0 | V156: 0
M157: 0 | N157: 0 | O157: 0 | P157: 0 | Q157: 0 | R157: 0 | S157: 0 | T157: 0 | U157: 0 | V157: 0
M158: 0 | N158: 0 | O158: 0 | P158: 0 | Q158: 0 | R158: 0 | S158: 0 | T158: 0 | U158: 0 | V158: 0
M159: 0 | N159: 0 | O159: 0 | P159: 0 | Q159: 0 | R159: 0 | S159: 0 | T159: 0 | U159: 0 | V159: 0
M160: 0 | N160: 0 | O160: 0 | P160: 0 | Q160: 0 | R160: 0 | S160: 0 | T160: 0 | U160: 0 | V160: 0
M161: 0 | N161: 0 | O161: 0 | P161: 0 | Q161: 0 | R161: 0 | S161: 0 | T161: 0 | U161: 0 | V161: 0
M162: 0 | N162: 0 | O162: 0 | P162: 0 | Q162: 0 | R162: 0 | S162: 0 | T162: 0 | U162: 0 | V162: 0
M163: 0 | N163: 0 | O163: 0 | P163: 0 | Q163: 0 | R163: 0 | S163: 0 | T163: 0 | U163: 0 | V163: 0
M164: 0 | N164: 0 | O164: 0 | P164: 0 | Q164: 0 | R164: 0 | S164: 0 | T164: 0 | U164: 0 | V164: 0
M165: 0 | N165: 0 | O165: 0 | P165: 0 | Q165: 0 | R165: 0 | S165: 0 | T165: 0 | U165: 0 | V165: 0
M166: 0 | N166: 0 | O166: 0 | P166: 0 | Q166: 0 | R166: 0 | S166: 0 | T166: 0 | U166: 0 | V166: 0
M167: 0 | N167: 0 | O167: 0 | P167: 0 | Q167: 0 | R167: 0 | S167: 0 | T167: 0 | U167: 0 | V167: 0
M168: 0 | N168: 0 | O168: 0 | P168: 0 | Q168: 0 | R168: 0 | S168: 0 | T168: 0 | U168: 0 | V168: 0
M169: 0 | N169: 0 | O169: 0 | P169: 0 | Q169: 0 | R169: 0 | S169: 0 | T169: 0 | U169: 0 | V169: 0
M170: 0 | N170: 0 | O170: 0 | P170: 0 | Q170: 0 | R170: 0 | S170: 0 | T170: 0 | U170: 0 | V170: 0
M171: 0 | N171: 0 | O171: 0 | P171: 0 | Q171: 0 | R171: 0 | S171: 0 | T171: 0 | U171: 0 | V171: 0
M172: 0 | N172: 0 | O172: 0 | P172: 0 | Q172: 0 | R172: 0 | S172: 0 | T172: 0 | U172: 0 | V172: 0
M173: 0 | N173: 0 | O173: 0 | P173: 0 | Q173: 0 | R173: 0 | S173: 0 | T173: 0 | U173: 0 | V173: 0
M174: 0 | N174: 0 | O174: 0 | P174: 0 | Q174: 0 | R174: 0 | S174: 0 | T174: 0 | U174: 0 | V174: 0
M175: 0 | N175: 0 | O175: 0 | P175: 0 | Q175: 0 | R175: 0 | S175: 0 | T175: 0 | U175: 0 | V175: 0
M176: 0 | N176: 0 | O176: 0 | P176: 0 | Q176: 0 | R176: 0 | S176: 0 | T176: 0 | U176: 0 | V176: 0
M177: 0 | N177: 0 | O177: 0 | P177: 0 | Q177: 0 | R177: 0 | S177: 0 | T177: 0 | U177: 0 | V177: 0
M178: 0 | N178: 0 | O178: 0 | P178: 0 | Q178: 0 | R178: 0 | S178: 0 | T178: 0 | U178: 0 | V178: 0
M179: 0 | N179: 0 | O179: 0 | P179: 0 | Q179: 0 | R179: 0 | S179: 0 | T179: 0 | U179: 0 | V179: 0
M180: 0 | N180: 0 | O180: 0 | P180: 0 | Q180: 0 | R180: 0 | S180: 0 | T180: 0 | U180: 0 | V180: 0
M181: 0 | N181: 0 | O181: 0 | P181: 0 | Q181: 0 | R181: 0 | S181: 0 | T181: 0 | U181: 0 | V181: 0
M182: 0 | N182: 0 | O182: 0 | P182: 0 | Q182: 0 | R182: 0 | S182: 0 | T182: 0 | U182: 0 | V182: 0
M183: 0 | N183: 0 | O183: 0 | P183: 0 | Q183: 0 | R183: 0 | S183: 0 | T183: 0 | U183: 0 | V183: 0
M184: 0 | N184: 0 | O184: 0 | P184: 0 | Q184: 0 | R184: 0 | S184: 0 | T184: 0 | U184: 0 | V184: 0
M185: 0 | N185: 0 | O185: 0 | P185: 0 | Q185: 0 | R185: 0 | S185: 0 | T185: 0 | U185: 0 | V185: 0
M186: 0 | N186: 0 | O186: 0 | P186: 0 | Q186: 0 | R186: 0 | S186: 0 | T186: 0 | U186: 0 | V186: 0
M187: 0 | N187: 0 | O187: 0 | P187: 0 | Q187: 0 | R187: 0 | S187: 0 | T187: 0 | U187: 0 | V187: 0
M188: 0 | N188: 0 | O188: 0 | P188: 0 | Q188: 0 | R188: 0 | S188: 0 | T188: 0 | U188: 0 | V188: 0
M189: 0 | N189: 0 | O189: 0 | P189: 0 | Q189: 0 | R189: 0 | S189: 0 | T189: 0 | U189: 0 | V189: 0
M190: 0 | N190: 0 | O190: 0 | P190: 0 | Q190: 0 | R190: 0 | S190: 0 | T190: 0 | U190: 0 | V190: 0
M191: 0 | N191: 0 | O191: 0 | P191: 0 | Q191: 0 | R191: 0 | S191: 0 | T191: 0 | U191: 0 | V191: 0
M192: 0 | N192: 0 | O192: 0 | P192: 0 | Q192: 0 | R192: 0 | S192: 0 | T192: 0 | U192: 0 | V192: 0
M193: 0 | N193: 0 | O193: 0 | P193: 0 | Q193: 0 | R193: 0 | S193: 0 | T193: 0 | U193: 0 | V193: 0
M194: 0 | N194: 0 | O194: 0 | P194: 0 | Q194: 0 | R194: 0 | S194: 0 | T194: 0 | U194: 0 | V194: 0
M195: 0 | N195: 0 | O195: 0 | P195: 0 | Q195: 0 | R195: 0 | S195: 0 | T195: 0 | U195: 0 | V195: 0
M196: 0 | N196: 0 | O196: 0 | P196: 0 | Q196: 0 | R196: 0 | S196: 0 | T196: 0 | U196: 0 | V196: 0
M197: 0 | N197: 0 | O197: 0 | P197: 0 | Q197: 0 | R197: 0 | S197: 0 | T197: 0 | U197: 0 | V197: 0
M198: 0 | N198: 0 | O198: 0 | P198: 0 | Q198: 0 | R198: 0 | S198: 0 | T198: 0 | U198: 0 | V198: 0
M199: =IF((B198+B199)>0,MAX(1,ROUNDUP(($A199-$A198)*((B198+B199)/2)/27,0)),ROUNDUP(($A199-$A198)*((B198+B199)/2)/27,0)) -> 0 | N199: =IF((C198+C199)>0,MAX(1,ROUNDUP(($A199-$A198)*((C198+C199)/2)/27,0)),ROUNDUP(($A199-$A198)*((C198+C199)/2)/27,0)) -> 0 | O199: =IF((D198+D199)>0,MAX(1,ROUNDUP(($A199-$A198)*((D198+D199)/2)/27,0)),ROUNDUP(($A199-$A198)*((D198+D199)/2)/27,0)) -> 0 | P199: =IF((E198+E199)>0,MAX(1,ROUNDUP(($A199-$A198)*((E198+E199)/2)/27,0)),ROUNDUP(($A199-$A198)*((E198+E199)/2)/27,0)) -> 0 | Q199: =IF((F198+F199)>0,MAX(1,ROUNDUP(($A199-$A198)*((F198+F199)/2)/27,0)),ROUNDUP(($A199-$A198)*((F198+F199)/2)/27,0)) -> 0 | R199: =IF((G198+G199)>0,MAX(1,ROUNDUP(($A199-$A198)*((G198+G199)/2)/27,0)),ROUNDUP(($A199-$A198)*((G198+G199)/2)/27,0)) -> 0 | S199: =IF((H198+H199)>0,MAX(1,ROUNDUP(($A199-$A198)*((H198+H199)/2)/27,0)),ROUNDUP(($A199-$A198)*((H198+H199)/2)/27,0)) -> 0 | T199: =IF((I198+I199)>0,MAX(1,ROUNDUP(($A199-$A198)*((I198+I199)/2)/27,0)),ROUNDUP(($A199-$A198)*((I198+I199)/2)/27,0)) -> 0 | U199: =IF((J198+J199)>0,MAX(1,ROUNDUP(($A199-$A198)*((J198+J199)/2)/27,0)),ROUNDUP(($A199-$A198)*((J198+J199)/2)/27,0)) -> 0 | V199: 0
M200: 0 | N200: 0 | O200: 0 | P200: 0 | Q200: 0 | R200: 0 | S200: 0 | T200: 0 | U200: 0 | V200: 0
M201: 0 | N201: 0 | O201: 0 | P201: 0 | Q201: 0 | R201: 0 | S201: 0 | T201: 0 | U201: 0 | V201: 0
... 385 more rows

Sheet MAINLINE SHEET TOTALS
A1: Start Station | C1: End Station | F1: ROCK ROADBED | G1: REFILL | H1: EMB. BENCH | I1: GRAN. EMB. | J1: COM | K1: EM | L1: ROCK EXC. | M1: DT LT | N1: DT RT | O1: LEVEL-WEDGE
A2: =MAINLINE!A5 -> 43521.22 | B2: =_xlfn.IFNA(MATCH(A2,MAINLINE!$A$1:$A$586,0),"") -> 5 | D2: =_xlfn.IFNA(MATCH(C2,MAINLINE!$A$1:$A$586,0),"") ->  | F2: =IF(B2="","",IF(D2="","",SUM(INDIRECT("MAINLINE!M"&$B2+1):INDIRECT("MAINLINE!M"&$D2)))) ->  | G2: =IF(B2="","",IF(D2="","",SUM(INDIRECT("MAINLINE!N"&$B2+1):INDIRECT("MAINLINE!N"&$D2)))) ->  | H2: =IF(B2="","",IF(D2="","",SUM(INDIRECT("MAINLINE!O"&$B2+1):INDIRECT("MAINLINE!O"&$D2)))) ->  | I2: =IF(B2="","",IF(D2="","",SUM(INDIRECT("MAINLINE!P"&$B2+1):INDIRECT("MAINLINE!P"&$D2)))) ->  | J2: =IF(B2="","",IF(D2="","",SUM(INDIRECT("MAINLINE!Q"&$B2+1):INDIRECT("MAINLINE!Q"&$D2)))) ->  | K2: =IF(B2="","",IF(D2="","",SUM(INDIRECT("MAINLINE!R"&$B2+1):INDIRECT("MAINLINE!R"&$D2)))) ->  | L2: =IF(B2="","",IF(D2="","",SUM(INDIRECT("MAINLINE!S"&$B2+1):INDIRECT("MAINLINE!S"&$D2)))) ->  | M2: =IF(B2="","",IF(D2="","",SUM(INDIRECT("MAINLINE!T"&$B2+1):INDIRECT("MAINLINE!T"&$D2)))) ->  | N2: =IF(B2="","",IF(D2="","",SUM(INDIRECT("MAINLINE!U"&$B2+1):INDIRECT("MAINLINE!U"&$D2)))) ->  | O2: =IF(B2="","",IF(D2="","",SUM(INDIRECT("MAINLINE!V"&$B2+1):INDIRECT("MAINLINE!V"&$D2)))) -> 
A3: =IF(C2="","",C2) ->  | B3: =_xlfn.IFNA(MATCH(A3,MAINLINE!$A$1:$A$586,0),"") ->  | D3: =_xlfn.IFNA(MATCH(C3,MAINLINE!$A$1:$A$586,0),"") ->  | F3: =IF(B3="","",IF(D3="","",SUM(INDIRECT("MAINLINE!M"&$B3+1):INDIRECT("MAINLINE!M"&$D3)))) ->  | G3: =IF(B3="","",IF(D3="","",SUM(INDIRECT("MAINLINE!N"&$B3+1):INDIRECT("MAINLINE!N"&$D3)))) ->  | H3: =IF(B3="","",IF(D3="","",SUM(INDIRECT("MAINLINE!O"&$B3+1):INDIRECT("MAINLINE!O"&$D3)))) ->  | I3: =IF(B3="","",IF(D3="","",SUM(INDIRECT("MAINLINE!P"&$B3+1):INDIRECT("MAINLINE!P"&$D3)))) ->  | J3: =IF(B3="","",IF(D3="","",SUM(INDIRECT("MAINLINE!Q"&$B3+1):INDIRECT("MAINLINE!Q"&$D3)))) ->  | K3: =IF(B3="","",IF(D3="","",SUM(INDIRECT("MAINLINE!R"&$B3+1):INDIRECT("MAINLINE!R"&$D3)))) ->  | L3: =IF(B3="","",IF(D3="","",SUM(INDIRECT("MAINLINE!S"&$B3+1):INDIRECT("MAINLINE!S"&$D3)))) ->  | M3: =IF(B3="","",IF(D3="","",SUM(INDIRECT("MAINLINE!T"&$B3+1):INDIRECT("MAINLINE!T"&$D3)))) ->  | N3: =IF(B3="","",IF(D3="","",SUM(INDIRECT("MAINLINE!U"&$B3+1):INDIRECT("MAINLINE!U"&$D3)))) ->  | O3: =IF(B3="","",IF(D3="","",SUM(INDIRECT("MAINLINE!V"&$B3+1):INDIRECT("MAINLINE!V"&$D3)))) -> 
A4: =IF(C3="","",C3) ->  | B4: =_xlfn.IFNA(MATCH(A4,MAINLINE!$A$1:$A$586,0),"") ->  | D4: =_xlfn.IFNA(MATCH(C4,MAINLINE!$A$1:$A$586,0),"") ->  | F4: =IF(B4="","",IF(D4="","",SUM(INDIRECT("MAINLINE!M"&$B4+1):INDIRECT("MAINLINE!M"&$D4)))) ->  | G4: =IF(B4="","",IF(D4="","",SUM(INDIRECT("MAINLINE!N"&$B4+1):INDIRECT("MAINLINE!N"&$D4)))) ->  | H4: =IF(B4="","",IF(D4="","",SUM(INDIRECT("MAINLINE!O"&$B4+1):INDIRECT("MAINLINE!O"&$D4)))) ->  | I4: =IF(B4="","",IF(D4="","",SUM(INDIRECT("MAINLINE!P"&$B4+1):INDIRECT("MAINLINE!P"&$D4)))) ->  | J4: =IF(B4="","",IF(D4="","",SUM(INDIRECT("MAINLINE!Q"&$B4+1):INDIRECT("MAINLINE!Q"&$D4)))) ->  | K4: =IF(B4="","",IF(D4="","",SUM(INDIRECT("MAINLINE!R"&$B4+1):INDIRECT("MAINLINE!R"&$D4)))) ->  | L4: =IF(B4="","",IF(D4="","",SUM(INDIRECT("MAINLINE!S"&$B4+1):INDIRECT("MAINLINE!S"&$D4)))) ->  | M4: =IF(B4="","",IF(D4="","",SUM(INDIRECT("MAINLINE!T"&$B4+1):INDIRECT("MAINLINE!T"&$D4)))) ->  | N4: =IF(B4="","",IF(D4="","",SUM(INDIRECT("MAINLINE!U"&$B4+1):INDIRECT("MAINLINE!U"&$D4)))) ->  | O4: =IF(B4="","",IF(D4="","",SUM(INDIRECT("MAINLINE!V"&$B4+1):INDIRECT("MAINLINE!V"&$D4)))) -> 
B5: =_xlfn.IFNA(MATCH(A5,MAINLINE!$A$1:$A$586,0),"") ->  | D5: =_xlfn.IFNA(MATCH(C5,MAINLINE!$A$1:$A$586,0),"") ->  | F5: =IF(B5="","",IF(D5="","",SUM(INDIRECT("MAINLINE!M"&$B5+1):INDIRECT("MAINLINE!M"&$D5)))) ->  | G5: =IF(B5="","",IF(D5="","",SUM(INDIRECT("MAINLINE!N"&$B5+1):INDIRECT("MAINLINE!N"&$D5)))) ->  | H5: =IF(B5="","",IF(D5="","",SUM(INDIRECT("MAINLINE!O"&$B5+1):INDIRECT("MAINLINE!O"&$D5)))) ->  | I5: =IF(B5="","",IF(D5="","",SUM(INDIRECT("MAINLINE!P"&$B5+1):INDIRECT("MAINLINE!P"&$D5)))) ->  | J5: =IF(B5="","",IF(D5="","",SUM(INDIRECT("MAINLINE!Q"&$B5+1):INDIRECT("MAINLINE!Q"&$D5)))) ->  | K5: =IF(B5="","",IF(D5="","",SUM(INDIRECT("MAINLINE!R"&$B5+1):INDIRECT("MAINLINE!R"&$D5)))) ->  | L5: =IF(B5="","",IF(D5="","",SUM(INDIRECT("MAINLINE!S"&$B5+1):INDIRECT("MAINLINE!S"&$D5)))) ->  | M5: =IF(B5="","",IF(D5="","",SUM(INDIRECT("MAINLINE!T"&$B5+1):INDIRECT("MAINLINE!T"&$D5)))) ->  | N5: =IF(B5="","",IF(D5="","",SUM(INDIRECT("MAINLINE!U"&$B5+1):INDIRECT("MAINLINE!U"&$D5)))) ->  | O5: =IF(B5="","",IF(D5="","",SUM(INDIRECT("MAINLINE!V"&$B5+1):INDIRECT("MAINLINE!V"&$D5)))) -> 
B6: =_xlfn.IFNA(MATCH(A6,MAINLINE!$A$1:$A$586,0),"") ->  | D6: =_xlfn.IFNA(MATCH(C6,MAINLINE!$A$1:$A$586,0),"") ->  | F6: =IF(B6="","",IF(D6="","",SUM(INDIRECT("MAINLINE!M"&$B6+1):INDIRECT("MAINLINE!M"&$D6)))) ->  | G6: =IF(B6="","",IF(D6="","",SUM(INDIRECT("MAINLINE!N"&$B6+1):INDIRECT("MAINLINE!N"&$D6)))) ->  | H6: =IF(B6="","",IF(D6="","",SUM(INDIRECT("MAINLINE!O"&$B6+1):INDIRECT("MAINLINE!O"&$D6)))) ->  | I6: =IF(B6="","",IF(D6="","",SUM(INDIRECT("MAINLINE!P"&$B6+1):INDIRECT("MAINLINE!P"&$D6)))) ->  | J6: =IF(B6="","",IF(D6="","",SUM(INDIRECT("MAINLINE!Q"&$B6+1):INDIRECT("MAINLINE!Q"&$D6)))) ->  | K6: =IF(B6="","",IF(D6="","",SUM(INDIRECT("MAINLINE!R"&$B6+1):INDIRECT("MAINLINE!R"&$D6)))) ->  | L6: =IF(B6="","",IF(D6="","",SUM(INDIRECT("MAINLINE!S"&$B6+1):INDIRECT("MAINLINE!S"&$D6)))) ->  | M6: =IF(B6="","",IF(D6="","",SUM(INDIRECT("MAINLINE!T"&$B6+1):INDIRECT("MAINLINE!T"&$D6)))) ->  | N6: =IF(B6="","",IF(D6="","",SUM(INDIRECT("MAINLINE!U"&$B6+1):INDIRECT("MAINLINE!U"&$D6)))) ->  | O6: =IF(B6="","",IF(D6="","",SUM(INDIRECT("MAINLINE!V"&$B6+1):INDIRECT("MAINLINE!V"&$D6)))) -> 
B7: =_xlfn.IFNA(MATCH(A7,MAINLINE!$A$1:$A$586,0),"") ->  | D7: =_xlfn.IFNA(MATCH(C7,MAINLINE!$A$1:$A$586,0),"") ->  | F7: =IF(B7="","",IF(D7="","",SUM(INDIRECT("MAINLINE!M"&$B7+1):INDIRECT("MAINLINE!M"&$D7)))) ->  | G7: =IF(B7="","",IF(D7="","",SUM(INDIRECT("MAINLINE!N"&$B7+1):INDIRECT("MAINLINE!N"&$D7)))) ->  | H7: =IF(B7="","",IF(D7="","",SUM(INDIRECT("MAINLINE!O"&$B7+1):INDIRECT("MAINLINE!O"&$D7)))) ->  | I7: =IF(B7="","",IF(D7="","",SUM(INDIRECT("MAINLINE!P"&$B7+1):INDIRECT("MAINLINE!P"&$D7)))) ->  | J7: =IF(B7="","",IF(D7="","",SUM(INDIRECT("MAINLINE!Q"&$B7+1):INDIRECT("MAINLINE!Q"&$D7)))) ->  | K7: =IF(B7="","",IF(D7="","",SUM(INDIRECT("MAINLINE!R"&$B7+1):INDIRECT("MAINLINE!R"&$D7)))) ->  | L7: =IF(B7="","",IF(D7="","",SUM(INDIRECT("MAINLINE!S"&$B7+1):INDIRECT("MAINLINE!S"&$D7)))) ->  | M7: =IF(B7="","",IF(D7="","",SUM(INDIRECT("MAINLINE!T"&$B7+1):INDIRECT("MAINLINE!T"&$D7)))) ->  | N7: =IF(B7="","",IF(D7="","",SUM(INDIRECT("MAINLINE!U"&$B7+1):INDIRECT("MAINLINE!U"&$D7)))) ->  | O7: =IF(B7="","",IF(D7="","",SUM(INDIRECT("MAINLINE!V"&$B7+1):INDIRECT("MAINLINE!V"&$D7)))) -> 
B8: =_xlfn.IFNA(MATCH(A8,MAINLINE!$A$1:$A$586,0),"") ->  | D8: =_xlfn.IFNA(MATCH(C8,MAINLINE!$A$1:$A$586,0),"") ->  | F8: =IF(B8="","",IF(D8="","",SUM(INDIRECT("MAINLINE!M"&$B8+1):INDIRECT("MAINLINE!M"&$D8)))) ->  | G8: =IF(B8="","",IF(D8="","",SUM(INDIRECT("MAINLINE!N"&$B8+1):INDIRECT("MAINLINE!N"&$D8)))) ->  | H8: =IF(B8="","",IF(D8="","",SUM(INDIRECT("MAINLINE!O"&$B8+1):INDIRECT("MAINLINE!O"&$D8)))) ->  | I8: =IF(B8="","",IF(D8="","",SUM(INDIRECT("MAINLINE!P"&$B8+1):INDIRECT("MAINLINE!P"&$D8)))) ->  | J8: =IF(B8="","",IF(D8="","",SUM(INDIRECT("MAINLINE!Q"&$B8+1):INDIRECT("MAINLINE!Q"&$D8)))) ->  | K8: =IF(B8="","",IF(D8="","",SUM(INDIRECT("MAINLINE!R"&$B8+1):INDIRECT("MAINLINE!R"&$D8)))) ->  | L8: =IF(B8="","",IF(D8="","",SUM(INDIRECT("MAINLINE!S"&$B8+1):INDIRECT("MAINLINE!S"&$D8)))) ->  | M8: =IF(B8="","",IF(D8="","",SUM(INDIRECT("MAINLINE!T"&$B8+1):INDIRECT("MAINLINE!T"&$D8)))) ->  | N8: =IF(B8="","",IF(D8="","",SUM(INDIRECT("MAINLINE!U"&$B8+1):INDIRECT("MAINLINE!U"&$D8)))) ->  | O8: =IF(B8="","",IF(D8="","",SUM(INDIRECT("MAINLINE!V"&$B8+1):INDIRECT("MAINLINE!V"&$D8)))) -> 
B9: =_xlfn.IFNA(MATCH(A9,MAINLINE!$A$1:$A$586,0),"") ->  | D9: =_xlfn.IFNA(MATCH(C9,MAINLINE!$A$1:$A$586,0),"") ->  | F9: =IF(B9="","",IF(D9="","",SUM(INDIRECT("MAINLINE!M"&$B9+1):INDIRECT("MAINLINE!M"&$D9)))) ->  | G9: =IF(B9="","",IF(D9="","",SUM(INDIRECT("MAINLINE!N"&$B9+1):INDIRECT("MAINLINE!N"&$D9)))) ->  | H9: =IF(B9="","",IF(D9="","",SUM(INDIRECT("MAINLINE!O"&$B9+1):INDIRECT("MAINLINE!O"&$D9)))) ->  | I9: =IF(B9="","",IF(D9="","",SUM(INDIRECT("MAINLINE!P"&$B9+1):INDIRECT("MAINLINE!P"&$D9)))) ->  | J9: =IF(B9="","",IF(D9="","",SUM(INDIRECT("MAINLINE!Q"&$B9+1):INDIRECT("MAINLINE!Q"&$D9)))) ->  | K9: =IF(B9="","",IF(D9="","",SUM(INDIRECT("MAINLINE!R"&$B9+1):INDIRECT("MAINLINE!R"&$D9)))) ->  | L9: =IF(B9="","",IF(D9="","",SUM(INDIRECT("MAINLINE!S"&$B9+1):INDIRECT("MAINLINE!S"&$D9)))) ->  | M9: =IF(B9="","",IF(D9="","",SUM(INDIRECT("MAINLINE!T"&$B9+1):INDIRECT("MAINLINE!T"&$D9)))) ->  | N9: =IF(B9="","",IF(D9="","",SUM(INDIRECT("MAINLINE!U"&$B9+1):INDIRECT("MAINLINE!U"&$D9)))) ->  | O9: =IF(B9="","",IF(D9="","",SUM(INDIRECT("MAINLINE!V"&$B9+1):INDIRECT("MAINLINE!V"&$D9)))) -> 
B10: =_xlfn.IFNA(MATCH(A10,MAINLINE!$A$1:$A$586,0),"") ->  | D10: =_xlfn.IFNA(MATCH(C10,MAINLINE!$A$1:$A$586,0),"") ->  | F10: =IF(B10="","",IF(D10="","",SUM(INDIRECT("MAINLINE!M"&$B10+1):INDIRECT("MAINLINE!M"&$D10)))) ->  | G10: =IF(B10="","",IF(D10="","",SUM(INDIRECT("MAINLINE!N"&$B10+1):INDIRECT("MAINLINE!N"&$D10)))) ->  | H10: =IF(B10="","",IF(D10="","",SUM(INDIRECT("MAINLINE!O"&$B10+1):INDIRECT("MAINLINE!O"&$D10)))) ->  | I10: =IF(B10="","",IF(D10="","",SUM(INDIRECT("MAINLINE!P"&$B10+1):INDIRECT("MAINLINE!P"&$D10)))) ->  | J10: =IF(B10="","",IF(D10="","",SUM(INDIRECT("MAINLINE!Q"&$B10+1):INDIRECT("MAINLINE!Q"&$D10)))) ->  | K10: =IF(B10="","",IF(D10="","",SUM(INDIRECT("MAINLINE!R"&$B10+1):INDIRECT("MAINLINE!R"&$D10)))) ->  | L10: =IF(B10="","",IF(D10="","",SUM(INDIRECT("MAINLINE!S"&$B10+1):INDIRECT("MAINLINE!S"&$D10)))) ->  | M10: =IF(B10="","",IF(D10="","",SUM(INDIRECT("MAINLINE!T"&$B10+1):INDIRECT("MAINLINE!T"&$D10)))) ->  | N10: =IF(B10="","",IF(D10="","",SUM(INDIRECT("MAINLINE!U"&$B10+1):INDIRECT("MAINLINE!U"&$D10)))) ->  | O10: =IF(B10="","",IF(D10="","",SUM(INDIRECT("MAINLINE!V"&$B10+1):INDIRECT("MAINLINE!V"&$D10)))) -> 
B11: =_xlfn.IFNA(MATCH(A11,MAINLINE!$A$1:$A$586,0),"") ->  | D11: =_xlfn.IFNA(MATCH(C11,MAINLINE!$A$1:$A$586,0),"") ->  | F11: =IF(B11="","",IF(D11="","",SUM(INDIRECT("MAINLINE!M"&$B11+1):INDIRECT("MAINLINE!M"&$D11)))) ->  | G11: =IF(B11="","",IF(D11="","",SUM(INDIRECT("MAINLINE!N"&$B11+1):INDIRECT("MAINLINE!N"&$D11)))) ->  | H11: =IF(B11="","",IF(D11="","",SUM(INDIRECT("MAINLINE!O"&$B11+1):INDIRECT("MAINLINE!O"&$D11)))) ->  | I11: =IF(B11="","",IF(D11="","",SUM(INDIRECT("MAINLINE!P"&$B11+1):INDIRECT("MAINLINE!P"&$D11)))) ->  | J11: =IF(B11="","",IF(D11="","",SUM(INDIRECT("MAINLINE!Q"&$B11+1):INDIRECT("MAINLINE!Q"&$D11)))) ->  | K11: =IF(B11="","",IF(D11="","",SUM(INDIRECT("MAINLINE!R"&$B11+1):INDIRECT("MAINLINE!R"&$D11)))) ->  | L11: =IF(B11="","",IF(D11="","",SUM(INDIRECT("MAINLINE!S"&$B11+1):INDIRECT("MAINLINE!S"&$D11)))) ->  | M11: =IF(B11="","",IF(D11="","",SUM(INDIRECT("MAINLINE!T"&$B11+1):INDIRECT("MAINLINE!T"&$D11)))) ->  | N11: =IF(B11="","",IF(D11="","",SUM(INDIRECT("MAINLINE!U"&$B11+1):INDIRECT("MAINLINE!U"&$D11)))) ->  | O11: =IF(B11="","",IF(D11="","",SUM(INDIRECT("MAINLINE!V"&$B11+1):INDIRECT("MAINLINE!V"&$D11)))) -> 
B12: =_xlfn.IFNA(MATCH(A12,MAINLINE!$A$1:$A$586,0),"") ->  | D12: =_xlfn.IFNA(MATCH(C12,MAINLINE!$A$1:$A$586,0),"") ->  | F12: =IF(B12="","",IF(D12="","",SUM(INDIRECT("MAINLINE!M"&$B12+1):INDIRECT("MAINLINE!M"&$D12)))) ->  | G12: =IF(B12="","",IF(D12="","",SUM(INDIRECT("MAINLINE!N"&$B12+1):INDIRECT("MAINLINE!N"&$D12)))) ->  | H12: =IF(B12="","",IF(D12="","",SUM(INDIRECT("MAINLINE!O"&$B12+1):INDIRECT("MAINLINE!O"&$D12)))) ->  | I12: =IF(B12="","",IF(D12="","",SUM(INDIRECT("MAINLINE!P"&$B12+1):INDIRECT("MAINLINE!P"&$D12)))) ->  | J12: =IF(B12="","",IF(D12="","",SUM(INDIRECT("MAINLINE!Q"&$B12+1):INDIRECT("MAINLINE!Q"&$D12)))) ->  | K12: =IF(B12="","",IF(D12="","",SUM(INDIRECT("MAINLINE!R"&$B12+1):INDIRECT("MAINLINE!R"&$D12)))) ->  | L12: =IF(B12="","",IF(D12="","",SUM(INDIRECT("MAINLINE!S"&$B12+1):INDIRECT("MAINLINE!S"&$D12)))) ->  | M12: =IF(B12="","",IF(D12="","",SUM(INDIRECT("MAINLINE!T"&$B12+1):INDIRECT("MAINLINE!T"&$D12)))) ->  | N12: =IF(B12="","",IF(D12="","",SUM(INDIRECT("MAINLINE!U"&$B12+1):INDIRECT("MAINLINE!U"&$D12)))) ->  | O12: =IF(B12="","",IF(D12="","",SUM(INDIRECT("MAINLINE!V"&$B12+1):INDIRECT("MAINLINE!V"&$D12)))) -> 
B13: =_xlfn.IFNA(MATCH(A13,MAINLINE!$A$1:$A$586,0),"") ->  | D13: =_xlfn.IFNA(MATCH(C13,MAINLINE!$A$1:$A$586,0),"") ->  | F13: =IF(B13="","",IF(D13="","",SUM(INDIRECT("MAINLINE!M"&$B13+1):INDIRECT("MAINLINE!M"&$D13)))) ->  | G13: =IF(B13="","",IF(D13="","",SUM(INDIRECT("MAINLINE!N"&$B13+1):INDIRECT("MAINLINE!N"&$D13)))) ->  | H13: =IF(B13="","",IF(D13="","",SUM(INDIRECT("MAINLINE!O"&$B13+1):INDIRECT("MAINLINE!O"&$D13)))) ->  | I13: =IF(B13="","",IF(D13="","",SUM(INDIRECT("MAINLINE!P"&$B13+1):INDIRECT("MAINLINE!P"&$D13)))) ->  | J13: =IF(B13="","",IF(D13="","",SUM(INDIRECT("MAINLINE!Q"&$B13+1):INDIRECT("MAINLINE!Q"&$D13)))) ->  | K13: =IF(B13="","",IF(D13="","",SUM(INDIRECT("MAINLINE!R"&$B13+1):INDIRECT("MAINLINE!R"&$D13)))) ->  | L13: =IF(B13="","",IF(D13="","",SUM(INDIRECT("MAINLINE!S"&$B13+1):INDIRECT("MAINLINE!S"&$D13)))) ->  | M13: =IF(B13="","",IF(D13="","",SUM(INDIRECT("MAINLINE!T"&$B13+1):INDIRECT("MAINLINE!T"&$D13)))) ->  | N13: =IF(B13="","",IF(D13="","",SUM(INDIRECT("MAINLINE!U"&$B13+1):INDIRECT("MAINLINE!U"&$D13)))) ->  | O13: =IF(B13="","",IF(D13="","",SUM(INDIRECT("MAINLINE!V"&$B13+1):INDIRECT("MAINLINE!V"&$D13)))) -> 
B14: =_xlfn.IFNA(MATCH(A14,MAINLINE!$A$1:$A$586,0),"") ->  | D14: =_xlfn.IFNA(MATCH(C14,MAINLINE!$A$1:$A$586,0),"") ->  | F14: =IF(B14="","",IF(D14="","",SUM(INDIRECT("MAINLINE!M"&$B14+1):INDIRECT("MAINLINE!M"&$D14)))) ->  | G14: =IF(B14="","",IF(D14="","",SUM(INDIRECT("MAINLINE!N"&$B14+1):INDIRECT("MAINLINE!N"&$D14)))) ->  | H14: =IF(B14="","",IF(D14="","",SUM(INDIRECT("MAINLINE!O"&$B14+1):INDIRECT("MAINLINE!O"&$D14)))) ->  | I14: =IF(B14="","",IF(D14="","",SUM(INDIRECT("MAINLINE!P"&$B14+1):INDIRECT("MAINLINE!P"&$D14)))) ->  | J14: =IF(B14="","",IF(D14="","",SUM(INDIRECT("MAINLINE!Q"&$B14+1):INDIRECT("MAINLINE!Q"&$D14)))) ->  | K14: =IF(B14="","",IF(D14="","",SUM(INDIRECT("MAINLINE!R"&$B14+1):INDIRECT("MAINLINE!R"&$D14)))) ->  | L14: =IF(B14="","",IF(D14="","",SUM(INDIRECT("MAINLINE!S"&$B14+1):INDIRECT("MAINLINE!S"&$D14)))) ->  | M14: =IF(B14="","",IF(D14="","",SUM(INDIRECT("MAINLINE!T"&$B14+1):INDIRECT("MAINLINE!T"&$D14)))) ->  | N14: =IF(B14="","",IF(D14="","",SUM(INDIRECT("MAINLINE!U"&$B14+1):INDIRECT("MAINLINE!U"&$D14)))) ->  | O14: =IF(B14="","",IF(D14="","",SUM(INDIRECT("MAINLINE!V"&$B14+1):INDIRECT("MAINLINE!V"&$D14)))) -> 
B15: =_xlfn.IFNA(MATCH(A15,MAINLINE!$A$1:$A$586,0),"") ->  | D15: =_xlfn.IFNA(MATCH(C15,MAINLINE!$A$1:$A$586,0),"") ->  | F15: =IF(B15="","",IF(D15="","",SUM(INDIRECT("MAINLINE!M"&$B15+1):INDIRECT("MAINLINE!M"&$D15)))) ->  | G15: =IF(B15="","",IF(D15="","",SUM(INDIRECT("MAINLINE!N"&$B15+1):INDIRECT("MAINLINE!N"&$D15)))) ->  | H15: =IF(B15="","",IF(D15="","",SUM(INDIRECT("MAINLINE!O"&$B15+1):INDIRECT("MAINLINE!O"&$D15)))) ->  | I15: =IF(B15="","",IF(D15="","",SUM(INDIRECT("MAINLINE!P"&$B15+1):INDIRECT("MAINLINE!P"&$D15)))) ->  | J15: =IF(B15="","",IF(D15="","",SUM(INDIRECT("MAINLINE!Q"&$B15+1):INDIRECT("MAINLINE!Q"&$D15)))) ->  | K15: =IF(B15="","",IF(D15="","",SUM(INDIRECT("MAINLINE!R"&$B15+1):INDIRECT("MAINLINE!R"&$D15)))) ->  | L15: =IF(B15="","",IF(D15="","",SUM(INDIRECT("MAINLINE!S"&$B15+1):INDIRECT("MAINLINE!S"&$D15)))) ->  | M15: =IF(B15="","",IF(D15="","",SUM(INDIRECT("MAINLINE!T"&$B15+1):INDIRECT("MAINLINE!T"&$D15)))) ->  | N15: =IF(B15="","",IF(D15="","",SUM(INDIRECT("MAINLINE!U"&$B15+1):INDIRECT("MAINLINE!U"&$D15)))) ->  | O15: =IF(B15="","",IF(D15="","",SUM(INDIRECT("MAINLINE!V"&$B15+1):INDIRECT("MAINLINE!V"&$D15)))) -> 
B16: =_xlfn.IFNA(MATCH(A16,MAINLINE!$A$1:$A$586,0),"") ->  | D16: =_xlfn.IFNA(MATCH(C16,MAINLINE!$A$1:$A$586,0),"") ->  | F16: =IF(B16="","",IF(D16="","",SUM(INDIRECT("MAINLINE!M"&$B16+1):INDIRECT("MAINLINE!M"&$D16)))) ->  | G16: =IF(B16="","",IF(D16="","",SUM(INDIRECT("MAINLINE!N"&$B16+1):INDIRECT("MAINLINE!N"&$D16)))) ->  | H16: =IF(B16="","",IF(D16="","",SUM(INDIRECT("MAINLINE!O"&$B16+1):INDIRECT("MAINLINE!O"&$D16)))) ->  | I16: =IF(B16="","",IF(D16="","",SUM(INDIRECT("MAINLINE!P"&$B16+1):INDIRECT("MAINLINE!P"&$D16)))) ->  | J16: =IF(B16="","",IF(D16="","",SUM(INDIRECT("MAINLINE!Q"&$B16+1):INDIRECT("MAINLINE!Q"&$D16)))) ->  | K16: =IF(B16="","",IF(D16="","",SUM(INDIRECT("MAINLINE!R"&$B16+1):INDIRECT("MAINLINE!R"&$D16)))) ->  | L16: =IF(B16="","",IF(D16="","",SUM(INDIRECT("MAINLINE!S"&$B16+1):INDIRECT("MAINLINE!S"&$D16)))) ->  | M16: =IF(B16="","",IF(D16="","",SUM(INDIRECT("MAINLINE!T"&$B16+1):INDIRECT("MAINLINE!T"&$D16)))) ->  | N16: =IF(B16="","",IF(D16="","",SUM(INDIRECT("MAINLINE!U"&$B16+1):INDIRECT("MAINLINE!U"&$D16)))) ->  | O16: =IF(B16="","",IF(D16="","",SUM(INDIRECT("MAINLINE!V"&$B16+1):INDIRECT("MAINLINE!V"&$D16)))) -> 
B17: =_xlfn.IFNA(MATCH(A17,MAINLINE!$A$1:$A$586,0),"") ->  | D17: =_xlfn.IFNA(MATCH(C17,MAINLINE!$A$1:$A$586,0),"") ->  | F17: =IF(B17="","",IF(D17="","",SUM(INDIRECT("MAINLINE!M"&$B17+1):INDIRECT("MAINLINE!M"&$D17)))) ->  | G17: =IF(B17="","",IF(D17="","",SUM(INDIRECT("MAINLINE!N"&$B17+1):INDIRECT("MAINLINE!N"&$D17)))) ->  | H17: =IF(B17="","",IF(D17="","",SUM(INDIRECT("MAINLINE!O"&$B17+1):INDIRECT("MAINLINE!O"&$D17)))) ->  | I17: =IF(B17="","",IF(D17="","",SUM(INDIRECT("MAINLINE!P"&$B17+1):INDIRECT("MAINLINE!P"&$D17)))) ->  | J17: =IF(B17="","",IF(D17="","",SUM(INDIRECT("MAINLINE!Q"&$B17+1):INDIRECT("MAINLINE!Q"&$D17)))) ->  | K17: =IF(B17="","",IF(D17="","",SUM(INDIRECT("MAINLINE!R"&$B17+1):INDIRECT("MAINLINE!R"&$D17)))) ->  | L17: =IF(B17="","",IF(D17="","",SUM(INDIRECT("MAINLINE!S"&$B17+1):INDIRECT("MAINLINE!S"&$D17)))) ->  | M17: =IF(B17="","",IF(D17="","",SUM(INDIRECT("MAINLINE!T"&$B17+1):INDIRECT("MAINLINE!T"&$D17)))) ->  | N17: =IF(B17="","",IF(D17="","",SUM(INDIRECT("MAINLINE!U"&$B17+1):INDIRECT("MAINLINE!U"&$D17)))) ->  | O17: =IF(B17="","",IF(D17="","",SUM(INDIRECT("MAINLINE!V"&$B17+1):INDIRECT("MAINLINE!V"&$D17)))) -> 
B18: =_xlfn.IFNA(MATCH(A18,MAINLINE!$A$1:$A$586,0),"") ->  | D18: =_xlfn.IFNA(MATCH(C18,MAINLINE!$A$1:$A$586,0),"") ->  | F18: =IF(B18="","",IF(D18="","",SUM(INDIRECT("MAINLINE!M"&$B18+1):INDIRECT("MAINLINE!M"&$D18)))) ->  | G18: =IF(B18="","",IF(D18="","",SUM(INDIRECT("MAINLINE!N"&$B18+1):INDIRECT("MAINLINE!N"&$D18)))) ->  | H18: =IF(B18="","",IF(D18="","",SUM(INDIRECT("MAINLINE!O"&$B18+1):INDIRECT("MAINLINE!O"&$D18)))) ->  | I18: =IF(B18="","",IF(D18="","",SUM(INDIRECT("MAINLINE!P"&$B18+1):INDIRECT("MAINLINE!P"&$D18)))) ->  | J18: =IF(B18="","",IF(D18="","",SUM(INDIRECT("MAINLINE!Q"&$B18+1):INDIRECT("MAINLINE!Q"&$D18)))) ->  | K18: =IF(B18="","",IF(D18="","",SUM(INDIRECT("MAINLINE!R"&$B18+1):INDIRECT("MAINLINE!R"&$D18)))) ->  | L18: =IF(B18="","",IF(D18="","",SUM(INDIRECT("MAINLINE!S"&$B18+1):INDIRECT("MAINLINE!S"&$D18)))) ->  | M18: =IF(B18="","",IF(D18="","",SUM(INDIRECT("MAINLINE!T"&$B18+1):INDIRECT("MAINLINE!T"&$D18)))) ->  | N18: =IF(B18="","",IF(D18="","",SUM(INDIRECT("MAINLINE!U"&$B18+1):INDIRECT("MAINLINE!U"&$D18)))) ->  | O18: =IF(B18="","",IF(D18="","",SUM(INDIRECT("MAINLINE!V"&$B18+1):INDIRECT("MAINLINE!V"&$D18)))) -> 
B19: =_xlfn.IFNA(MATCH(A19,MAINLINE!$A$1:$A$586,0),"") ->  | D19: =_xlfn.IFNA(MATCH(C19,MAINLINE!$A$1:$A$586,0),"") ->  | F19: =IF(B19="","",IF(D19="","",SUM(INDIRECT("MAINLINE!M"&$B19+1):INDIRECT("MAINLINE!M"&$D19)))) ->  | G19: =IF(B19="","",IF(D19="","",SUM(INDIRECT("MAINLINE!N"&$B19+1):INDIRECT("MAINLINE!N"&$D19)))) ->  | H19: =IF(B19="","",IF(D19="","",SUM(INDIRECT("MAINLINE!O"&$B19+1):INDIRECT("MAINLINE!O"&$D19)))) ->  | I19: =IF(B19="","",IF(D19="","",SUM(INDIRECT("MAINLINE!P"&$B19+1):INDIRECT("MAINLINE!P"&$D19)))) ->  | J19: =IF(B19="","",IF(D19="","",SUM(INDIRECT("MAINLINE!Q"&$B19+1):INDIRECT("MAINLINE!Q"&$D19)))) ->  | K19: =IF(B19="","",IF(D19="","",SUM(INDIRECT("MAINLINE!R"&$B19+1):INDIRECT("MAINLINE!R"&$D19)))) ->  | L19: =IF(B19="","",IF(D19="","",SUM(INDIRECT("MAINLINE!S"&$B19+1):INDIRECT("MAINLINE!S"&$D19)))) ->  | M19: =IF(B19="","",IF(D19="","",SUM(INDIRECT("MAINLINE!T"&$B19+1):INDIRECT("MAINLINE!T"&$D19)))) ->  | N19: =IF(B19="","",IF(D19="","",SUM(INDIRECT("MAINLINE!U"&$B19+1):INDIRECT("MAINLINE!U"&$D19)))) ->  | O19: =IF(B19="","",IF(D19="","",SUM(INDIRECT("MAINLINE!V"&$B19+1):INDIRECT("MAINLINE!V"&$D19)))) -> 
B20: =_xlfn.IFNA(MATCH(A20,MAINLINE!$A$1:$A$586,0),"") ->  | D20: =_xlfn.IFNA(MATCH(C20,MAINLINE!$A$1:$A$586,0),"") ->  | F20: =IF(B20="","",IF(D20="","",SUM(INDIRECT("MAINLINE!M"&$B20+1):INDIRECT("MAINLINE!M"&$D20)))) ->  | G20: =IF(B20="","",IF(D20="","",SUM(INDIRECT("MAINLINE!N"&$B20+1):INDIRECT("MAINLINE!N"&$D20)))) ->  | H20: =IF(B20="","",IF(D20="","",SUM(INDIRECT("MAINLINE!O"&$B20+1):INDIRECT("MAINLINE!O"&$D20)))) ->  | I20: =IF(B20="","",IF(D20="","",SUM(INDIRECT("MAINLINE!P"&$B20+1):INDIRECT("MAINLINE!P"&$D20)))) ->  | J20: =IF(B20="","",IF(D20="","",SUM(INDIRECT("MAINLINE!Q"&$B20+1):INDIRECT("MAINLINE!Q"&$D20)))) ->  | K20: =IF(B20="","",IF(D20="","",SUM(INDIRECT("MAINLINE!R"&$B20+1):INDIRECT("MAINLINE!R"&$D20)))) ->  | L20: =IF(B20="","",IF(D20="","",SUM(INDIRECT("MAINLINE!S"&$B20+1):INDIRECT("MAINLINE!S"&$D20)))) ->  | M20: =IF(B20="","",IF(D20="","",SUM(INDIRECT("MAINLINE!T"&$B20+1):INDIRECT("MAINLINE!T"&$D20)))) ->  | N20: =IF(B20="","",IF(D20="","",SUM(INDIRECT("MAINLINE!U"&$B20+1):INDIRECT("MAINLINE!U"&$D20)))) ->  | O20: =IF(B20="","",IF(D20="","",SUM(INDIRECT("MAINLINE!V"&$B20+1):INDIRECT("MAINLINE!V"&$D20)))) -> 
B21: =_xlfn.IFNA(MATCH(A21,MAINLINE!$A$1:$A$586,0),"") ->  | D21: =_xlfn.IFNA(MATCH(C21,MAINLINE!$A$1:$A$586,0),"") ->  | F21: =IF(B21="","",IF(D21="","",SUM(INDIRECT("MAINLINE!M"&$B21+1):INDIRECT("MAINLINE!M"&$D21)))) ->  | G21: =IF(B21="","",IF(D21="","",SUM(INDIRECT("MAINLINE!N"&$B21+1):INDIRECT("MAINLINE!N"&$D21)))) ->  | H21: =IF(B21="","",IF(D21="","",SUM(INDIRECT("MAINLINE!O"&$B21+1):INDIRECT("MAINLINE!O"&$D21)))) ->  | I21: =IF(B21="","",IF(D21="","",SUM(INDIRECT("MAINLINE!P"&$B21+1):INDIRECT("MAINLINE!P"&$D21)))) ->  | J21: =IF(B21="","",IF(D21="","",SUM(INDIRECT("MAINLINE!Q"&$B21+1):INDIRECT("MAINLINE!Q"&$D21)))) ->  | K21: =IF(B21="","",IF(D21="","",SUM(INDIRECT("MAINLINE!R"&$B21+1):INDIRECT("MAINLINE!R"&$D21)))) ->  | L21: =IF(B21="","",IF(D21="","",SUM(INDIRECT("MAINLINE!S"&$B21+1):INDIRECT("MAINLINE!S"&$D21)))) ->  | M21: =IF(B21="","",IF(D21="","",SUM(INDIRECT("MAINLINE!T"&$B21+1):INDIRECT("MAINLINE!T"&$D21)))) ->  | N21: =IF(B21="","",IF(D21="","",SUM(INDIRECT("MAINLINE!U"&$B21+1):INDIRECT("MAINLINE!U"&$D21)))) ->  | O21: =IF(B21="","",IF(D21="","",SUM(INDIRECT("MAINLINE!V"&$B21+1):INDIRECT("MAINLINE!V"&$D21)))) -> 
B22: =_xlfn.IFNA(MATCH(A22,MAINLINE!$A$1:$A$586,0),"") ->  | D22: =_xlfn.IFNA(MATCH(C22,MAINLINE!$A$1:$A$586,0),"") ->  | F22: =IF(B22="","",IF(D22="","",SUM(INDIRECT("MAINLINE!M"&$B22+1):INDIRECT("MAINLINE!M"&$D22)))) ->  | G22: =IF(B22="","",IF(D22="","",SUM(INDIRECT("MAINLINE!N"&$B22+1):INDIRECT("MAINLINE!N"&$D22)))) ->  | H22: =IF(B22="","",IF(D22="","",SUM(INDIRECT("MAINLINE!O"&$B22+1):INDIRECT("MAINLINE!O"&$D22)))) ->  | I22: =IF(B22="","",IF(D22="","",SUM(INDIRECT("MAINLINE!P"&$B22+1):INDIRECT("MAINLINE!P"&$D22)))) ->  | J22: =IF(B22="","",IF(D22="","",SUM(INDIRECT("MAINLINE!Q"&$B22+1):INDIRECT("MAINLINE!Q"&$D22)))) ->  | K22: =IF(B22="","",IF(D22="","",SUM(INDIRECT("MAINLINE!R"&$B22+1):INDIRECT("MAINLINE!R"&$D22)))) ->  | L22: =IF(B22="","",IF(D22="","",SUM(INDIRECT("MAINLINE!S"&$B22+1):INDIRECT("MAINLINE!S"&$D22)))) ->  | M22: =IF(B22="","",IF(D22="","",SUM(INDIRECT("MAINLINE!T"&$B22+1):INDIRECT("MAINLINE!T"&$D22)))) ->  | N22: =IF(B22="","",IF(D22="","",SUM(INDIRECT("MAINLINE!U"&$B22+1):INDIRECT("MAINLINE!U"&$D22)))) ->  | O22: =IF(B22="","",IF(D22="","",SUM(INDIRECT("MAINLINE!V"&$B22+1):INDIRECT("MAINLINE!V"&$D22)))) -> 
B23: =_xlfn.IFNA(MATCH(A23,MAINLINE!$A$1:$A$586,0),"") ->  | D23: =_xlfn.IFNA(MATCH(C23,MAINLINE!$A$1:$A$586,0),"") ->  | F23: =IF(B23="","",IF(D23="","",SUM(INDIRECT("MAINLINE!M"&$B23+1):INDIRECT("MAINLINE!M"&$D23)))) ->  | G23: =IF(B23="","",IF(D23="","",SUM(INDIRECT("MAINLINE!N"&$B23+1):INDIRECT("MAINLINE!N"&$D23)))) ->  | H23: =IF(B23="","",IF(D23="","",SUM(INDIRECT("MAINLINE!O"&$B23+1):INDIRECT("MAINLINE!O"&$D23)))) ->  | I23: =IF(B23="","",IF(D23="","",SUM(INDIRECT("MAINLINE!P"&$B23+1):INDIRECT("MAINLINE!P"&$D23)))) ->  | J23: =IF(B23="","",IF(D23="","",SUM(INDIRECT("MAINLINE!Q"&$B23+1):INDIRECT("MAINLINE!Q"&$D23)))) ->  | K23: =IF(B23="","",IF(D23="","",SUM(INDIRECT("MAINLINE!R"&$B23+1):INDIRECT("MAINLINE!R"&$D23)))) ->  | L23: =IF(B23="","",IF(D23="","",SUM(INDIRECT("MAINLINE!S"&$B23+1):INDIRECT("MAINLINE!S"&$D23)))) ->  | M23: =IF(B23="","",IF(D23="","",SUM(INDIRECT("MAINLINE!T"&$B23+1):INDIRECT("MAINLINE!T"&$D23)))) ->  | N23: =IF(B23="","",IF(D23="","",SUM(INDIRECT("MAINLINE!U"&$B23+1):INDIRECT("MAINLINE!U"&$D23)))) ->  | O23: =IF(B23="","",IF(D23="","",SUM(INDIRECT("MAINLINE!V"&$B23+1):INDIRECT("MAINLINE!V"&$D23)))) -> 
B24: =_xlfn.IFNA(MATCH(A24,MAINLINE!$A$1:$A$586,0),"") ->  | D24: =_xlfn.IFNA(MATCH(C24,MAINLINE!$A$1:$A$586,0),"") ->  | F24: =IF(B24="","",IF(D24="","",SUM(INDIRECT("MAINLINE!M"&$B24+1):INDIRECT("MAINLINE!M"&$D24)))) ->  | G24: =IF(B24="","",IF(D24="","",SUM(INDIRECT("MAINLINE!N"&$B24+1):INDIRECT("MAINLINE!N"&$D24)))) ->  | H24: =IF(B24="","",IF(D24="","",SUM(INDIRECT("MAINLINE!O"&$B24+1):INDIRECT("MAINLINE!O"&$D24)))) ->  | I24: =IF(B24="","",IF(D24="","",SUM(INDIRECT("MAINLINE!P"&$B24+1):INDIRECT("MAINLINE!P"&$D24)))) ->  | J24: =IF(B24="","",IF(D24="","",SUM(INDIRECT("MAINLINE!Q"&$B24+1):INDIRECT("MAINLINE!Q"&$D24)))) ->  | K24: =IF(B24="","",IF(D24="","",SUM(INDIRECT("MAINLINE!R"&$B24+1):INDIRECT("MAINLINE!R"&$D24)))) ->  | L24: =IF(B24="","",IF(D24="","",SUM(INDIRECT("MAINLINE!S"&$B24+1):INDIRECT("MAINLINE!S"&$D24)))) ->  | M24: =IF(B24="","",IF(D24="","",SUM(INDIRECT("MAINLINE!T"&$B24+1):INDIRECT("MAINLINE!T"&$D24)))) ->  | N24: =IF(B24="","",IF(D24="","",SUM(INDIRECT("MAINLINE!U"&$B24+1):INDIRECT("MAINLINE!U"&$D24)))) ->  | O24: =IF(B24="","",IF(D24="","",SUM(INDIRECT("MAINLINE!V"&$B24+1):INDIRECT("MAINLINE!V"&$D24)))) -> 
B25: =_xlfn.IFNA(MATCH(A25,MAINLINE!$A$1:$A$586,0),"") ->  | D25: =_xlfn.IFNA(MATCH(C25,MAINLINE!$A$1:$A$586,0),"") ->  | F25: =IF(B25="","",IF(D25="","",SUM(INDIRECT("MAINLINE!M"&$B25+1):INDIRECT("MAINLINE!M"&$D25)))) ->  | G25: =IF(B25="","",IF(D25="","",SUM(INDIRECT("MAINLINE!N"&$B25+1):INDIRECT("MAINLINE!N"&$D25)))) ->  | H25: =IF(B25="","",IF(D25="","",SUM(INDIRECT("MAINLINE!O"&$B25+1):INDIRECT("MAINLINE!O"&$D25)))) ->  | I25: =IF(B25="","",IF(D25="","",SUM(INDIRECT("MAINLINE!P"&$B25+1):INDIRECT("MAINLINE!P"&$D25)))) ->  | J25: =IF(B25="","",IF(D25="","",SUM(INDIRECT("MAINLINE!Q"&$B25+1):INDIRECT("MAINLINE!Q"&$D25)))) ->  | K25: =IF(B25="","",IF(D25="","",SUM(INDIRECT("MAINLINE!R"&$B25+1):INDIRECT("MAINLINE!R"&$D25)))) ->  | L25: =IF(B25="","",IF(D25="","",SUM(INDIRECT("MAINLINE!S"&$B25+1):INDIRECT("MAINLINE!S"&$D25)))) ->  | M25: =IF(B25="","",IF(D25="","",SUM(INDIRECT("MAINLINE!T"&$B25+1):INDIRECT("MAINLINE!T"&$D25)))) ->  | N25: =IF(B25="","",IF(D25="","",SUM(INDIRECT("MAINLINE!U"&$B25+1):INDIRECT("MAINLINE!U"&$D25)))) ->  | O25: =IF(B25="","",IF(D25="","",SUM(INDIRECT("MAINLINE!V"&$B25+1):INDIRECT("MAINLINE!V"&$D25)))) -> 
B26: =_xlfn.IFNA(MATCH(A26,MAINLINE!$A$1:$A$586,0),"") ->  | D26: =_xlfn.IFNA(MATCH(C26,MAINLINE!$A$1:$A$586,0),"") ->  | F26: =IF(B26="","",IF(D26="","",SUM(INDIRECT("MAINLINE!M"&$B26+1):INDIRECT("MAINLINE!M"&$D26)))) ->  | G26: =IF(B26="","",IF(D26="","",SUM(INDIRECT("MAINLINE!N"&$B26+1):INDIRECT("MAINLINE!N"&$D26)))) ->  | H26: =IF(B26="","",IF(D26="","",SUM(INDIRECT("MAINLINE!O"&$B26+1):INDIRECT("MAINLINE!O"&$D26)))) ->  | I26: =IF(B26="","",IF(D26="","",SUM(INDIRECT("MAINLINE!P"&$B26+1):INDIRECT("MAINLINE!P"&$D26)))) ->  | J26: =IF(B26="","",IF(D26="","",SUM(INDIRECT("MAINLINE!Q"&$B26+1):INDIRECT("MAINLINE!Q"&$D26)))) ->  | K26: =IF(B26="","",IF(D26="","",SUM(INDIRECT("MAINLINE!R"&$B26+1):INDIRECT("MAINLINE!R"&$D26)))) ->  | L26: =IF(B26="","",IF(D26="","",SUM(INDIRECT("MAINLINE!S"&$B26+1):INDIRECT("MAINLINE!S"&$D26)))) ->  | M26: =IF(B26="","",IF(D26="","",SUM(INDIRECT("MAINLINE!T"&$B26+1):INDIRECT("MAINLINE!T"&$D26)))) ->  | N26: =IF(B26="","",IF(D26="","",SUM(INDIRECT("MAINLINE!U"&$B26+1):INDIRECT("MAINLINE!U"&$D26)))) ->  | O26: =IF(B26="","",IF(D26="","",SUM(INDIRECT("MAINLINE!V"&$B26+1):INDIRECT("MAINLINE!V"&$D26)))) -> 
B27: =_xlfn.IFNA(MATCH(A27,MAINLINE!$A$1:$A$586,0),"") ->  | D27: =_xlfn.IFNA(MATCH(C27,MAINLINE!$A$1:$A$586,0),"") ->  | F27: =IF(B27="","",IF(D27="","",SUM(INDIRECT("MAINLINE!M"&$B27+1):INDIRECT("MAINLINE!M"&$D27)))) ->  | G27: =IF(B27="","",IF(D27="","",SUM(INDIRECT("MAINLINE!N"&$B27+1):INDIRECT("MAINLINE!N"&$D27)))) ->  | H27: =IF(B27="","",IF(D27="","",SUM(INDIRECT("MAINLINE!O"&$B27+1):INDIRECT("MAINLINE!O"&$D27)))) ->  | I27: =IF(B27="","",IF(D27="","",SUM(INDIRECT("MAINLINE!P"&$B27+1):INDIRECT("MAINLINE!P"&$D27)))) ->  | J27: =IF(B27="","",IF(D27="","",SUM(INDIRECT("MAINLINE!Q"&$B27+1):INDIRECT("MAINLINE!Q"&$D27)))) ->  | K27: =IF(B27="","",IF(D27="","",SUM(INDIRECT("MAINLINE!R"&$B27+1):INDIRECT("MAINLINE!R"&$D27)))) ->  | L27: =IF(B27="","",IF(D27="","",SUM(INDIRECT("MAINLINE!S"&$B27+1):INDIRECT("MAINLINE!S"&$D27)))) ->  | M27: =IF(B27="","",IF(D27="","",SUM(INDIRECT("MAINLINE!T"&$B27+1):INDIRECT("MAINLINE!T"&$D27)))) ->  | N27: =IF(B27="","",IF(D27="","",SUM(INDIRECT("MAINLINE!U"&$B27+1):INDIRECT("MAINLINE!U"&$D27)))) ->  | O27: =IF(B27="","",IF(D27="","",SUM(INDIRECT("MAINLINE!V"&$B27+1):INDIRECT("MAINLINE!V"&$D27)))) -> 
B28: =_xlfn.IFNA(MATCH(A28,MAINLINE!$A$1:$A$586,0),"") ->  | D28: =_xlfn.IFNA(MATCH(C28,MAINLINE!$A$1:$A$586,0),"") ->  | F28: =IF(B28="","",IF(D28="","",SUM(INDIRECT("MAINLINE!M"&$B28+1):INDIRECT("MAINLINE!M"&$D28)))) ->  | G28: =IF(B28="","",IF(D28="","",SUM(INDIRECT("MAINLINE!N"&$B28+1):INDIRECT("MAINLINE!N"&$D28)))) ->  | H28: =IF(B28="","",IF(D28="","",SUM(INDIRECT("MAINLINE!O"&$B28+1):INDIRECT("MAINLINE!O"&$D28)))) ->  | I28: =IF(B28="","",IF(D28="","",SUM(INDIRECT("MAINLINE!P"&$B28+1):INDIRECT("MAINLINE!P"&$D28)))) ->  | J28: =IF(B28="","",IF(D28="","",SUM(INDIRECT("MAINLINE!Q"&$B28+1):INDIRECT("MAINLINE!Q"&$D28)))) ->  | K28: =IF(B28="","",IF(D28="","",SUM(INDIRECT("MAINLINE!R"&$B28+1):INDIRECT("MAINLINE!R"&$D28)))) ->  | L28: =IF(B28="","",IF(D28="","",SUM(INDIRECT("MAINLINE!S"&$B28+1):INDIRECT("MAINLINE!S"&$D28)))) ->  | M28: =IF(B28="","",IF(D28="","",SUM(INDIRECT("MAINLINE!T"&$B28+1):INDIRECT("MAINLINE!T"&$D28)))) ->  | N28: =IF(B28="","",IF(D28="","",SUM(INDIRECT("MAINLINE!U"&$B28+1):INDIRECT("MAINLINE!U"&$D28)))) ->  | O28: =IF(B28="","",IF(D28="","",SUM(INDIRECT("MAINLINE!V"&$B28+1):INDIRECT("MAINLINE!V"&$D28)))) -> 
B29: =_xlfn.IFNA(MATCH(A29,MAINLINE!$A$1:$A$586,0),"") ->  | D29: =_xlfn.IFNA(MATCH(C29,MAINLINE!$A$1:$A$586,0),"") ->  | F29: =IF(B29="","",IF(D29="","",SUM(INDIRECT("MAINLINE!M"&$B29+1):INDIRECT("MAINLINE!M"&$D29)))) ->  | G29: =IF(B29="","",IF(D29="","",SUM(INDIRECT("MAINLINE!N"&$B29+1):INDIRECT("MAINLINE!N"&$D29)))) ->  | H29: =IF(B29="","",IF(D29="","",SUM(INDIRECT("MAINLINE!O"&$B29+1):INDIRECT("MAINLINE!O"&$D29)))) ->  | I29: =IF(B29="","",IF(D29="","",SUM(INDIRECT("MAINLINE!P"&$B29+1):INDIRECT("MAINLINE!P"&$D29)))) ->  | J29: =IF(B29="","",IF(D29="","",SUM(INDIRECT("MAINLINE!Q"&$B29+1):INDIRECT("MAINLINE!Q"&$D29)))) ->  | K29: =IF(B29="","",IF(D29="","",SUM(INDIRECT("MAINLINE!R"&$B29+1):INDIRECT("MAINLINE!R"&$D29)))) ->  | L29: =IF(B29="","",IF(D29="","",SUM(INDIRECT("MAINLINE!S"&$B29+1):INDIRECT("MAINLINE!S"&$D29)))) ->  | M29: =IF(B29="","",IF(D29="","",SUM(INDIRECT("MAINLINE!T"&$B29+1):INDIRECT("MAINLINE!T"&$D29)))) ->  | N29: =IF(B29="","",IF(D29="","",SUM(INDIRECT("MAINLINE!U"&$B29+1):INDIRECT("MAINLINE!U"&$D29)))) ->  | O29: =IF(B29="","",IF(D29="","",SUM(INDIRECT("MAINLINE!V"&$B29+1):INDIRECT("MAINLINE!V"&$D29)))) -> 
B30: =_xlfn.IFNA(MATCH(A30,MAINLINE!$A$1:$A$586,0),"") ->  | D30: =_xlfn.IFNA(MATCH(C30,MAINLINE!$A$1:$A$586,0),"") ->  | F30: =IF(B30="","",IF(D30="","",SUM(INDIRECT("MAINLINE!M"&$B30+1):INDIRECT("MAINLINE!M"&$D30)))) ->  | G30: =IF(B30="","",IF(D30="","",SUM(INDIRECT("MAINLINE!N"&$B30+1):INDIRECT("MAINLINE!N"&$D30)))) ->  | H30: =IF(B30="","",IF(D30="","",SUM(INDIRECT("MAINLINE!O"&$B30+1):INDIRECT("MAINLINE!O"&$D30)))) ->  | I30: =IF(B30="","",IF(D30="","",SUM(INDIRECT("MAINLINE!P"&$B30+1):INDIRECT("MAINLINE!P"&$D30)))) ->  | J30: =IF(B30="","",IF(D30="","",SUM(INDIRECT("MAINLINE!Q"&$B30+1):INDIRECT("MAINLINE!Q"&$D30)))) ->  | K30: =IF(B30="","",IF(D30="","",SUM(INDIRECT("MAINLINE!R"&$B30+1):INDIRECT("MAINLINE!R"&$D30)))) ->  | L30: =IF(B30="","",IF(D30="","",SUM(INDIRECT("MAINLINE!S"&$B30+1):INDIRECT("MAINLINE!S"&$D30)))) ->  | M30: =IF(B30="","",IF(D30="","",SUM(INDIRECT("MAINLINE!T"&$B30+1):INDIRECT("MAINLINE!T"&$D30)))) ->  | N30: =IF(B30="","",IF(D30="","",SUM(INDIRECT("MAINLINE!U"&$B30+1):INDIRECT("MAINLINE!U"&$D30)))) ->  | O30: =IF(B30="","",IF(D30="","",SUM(INDIRECT("MAINLINE!V"&$B30+1):INDIRECT("MAINLINE!V"&$D30)))) -> 
B31: =_xlfn.IFNA(MATCH(A31,MAINLINE!$A$1:$A$586,0),"") ->  | D31: =_xlfn.IFNA(MATCH(C31,MAINLINE!$A$1:$A$586,0),"") ->  | F31: =IF(B31="","",IF(D31="","",SUM(INDIRECT("MAINLINE!M"&$B31+1):INDIRECT("MAINLINE!M"&$D31)))) ->  | G31: =IF(B31="","",IF(D31="","",SUM(INDIRECT("MAINLINE!N"&$B31+1):INDIRECT("MAINLINE!N"&$D31)))) ->  | H31: =IF(B31="","",IF(D31="","",SUM(INDIRECT("MAINLINE!O"&$B31+1):INDIRECT("MAINLINE!O"&$D31)))) ->  | I31: =IF(B31="","",IF(D31="","",SUM(INDIRECT("MAINLINE!P"&$B31+1):INDIRECT("MAINLINE!P"&$D31)))) ->  | J31: =IF(B31="","",IF(D31="","",SUM(INDIRECT("MAINLINE!Q"&$B31+1):INDIRECT("MAINLINE!Q"&$D31)))) ->  | K31: =IF(B31="","",IF(D31="","",SUM(INDIRECT("MAINLINE!R"&$B31+1):INDIRECT("MAINLINE!R"&$D31)))) ->  | L31: =IF(B31="","",IF(D31="","",SUM(INDIRECT("MAINLINE!S"&$B31+1):INDIRECT("MAINLINE!S"&$D31)))) ->  | M31: =IF(B31="","",IF(D31="","",SUM(INDIRECT("MAINLINE!T"&$B31+1):INDIRECT("MAINLINE!T"&$D31)))) ->  | N31: =IF(B31="","",IF(D31="","",SUM(INDIRECT("MAINLINE!U"&$B31+1):INDIRECT("MAINLINE!U"&$D31)))) ->  | O31: =IF(B31="","",IF(D31="","",SUM(INDIRECT("MAINLINE!V"&$B31+1):INDIRECT("MAINLINE!V"&$D31)))) -> 
B32: =_xlfn.IFNA(MATCH(A32,MAINLINE!$A$1:$A$586,0),"") ->  | D32: =_xlfn.IFNA(MATCH(C32,MAINLINE!$A$1:$A$586,0),"") ->  | F32: =IF(B32="","",IF(D32="","",SUM(INDIRECT("MAINLINE!M"&$B32+1):INDIRECT("MAINLINE!M"&$D32)))) ->  | G32: =IF(B32="","",IF(D32="","",SUM(INDIRECT("MAINLINE!N"&$B32+1):INDIRECT("MAINLINE!N"&$D32)))) ->  | H32: =IF(B32="","",IF(D32="","",SUM(INDIRECT("MAINLINE!O"&$B32+1):INDIRECT("MAINLINE!O"&$D32)))) ->  | I32: =IF(B32="","",IF(D32="","",SUM(INDIRECT("MAINLINE!P"&$B32+1):INDIRECT("MAINLINE!P"&$D32)))) ->  | J32: =IF(B32="","",IF(D32="","",SUM(INDIRECT("MAINLINE!Q"&$B32+1):INDIRECT("MAINLINE!Q"&$D32)))) ->  | K32: =IF(B32="","",IF(D32="","",SUM(INDIRECT("MAINLINE!R"&$B32+1):INDIRECT("MAINLINE!R"&$D32)))) ->  | L32: =IF(B32="","",IF(D32="","",SUM(INDIRECT("MAINLINE!S"&$B32+1):INDIRECT("MAINLINE!S"&$D32)))) ->  | M32: =IF(B32="","",IF(D32="","",SUM(INDIRECT("MAINLINE!T"&$B32+1):INDIRECT("MAINLINE!T"&$D32)))) ->  | N32: =IF(B32="","",IF(D32="","",SUM(INDIRECT("MAINLINE!U"&$B32+1):INDIRECT("MAINLINE!U"&$D32)))) ->  | O32: =IF(B32="","",IF(D32="","",SUM(INDIRECT("MAINLINE!V"&$B32+1):INDIRECT("MAINLINE!V"&$D32)))) -> 
B33: =_xlfn.IFNA(MATCH(A33,MAINLINE!$A$1:$A$586,0),"") ->  | D33: =_xlfn.IFNA(MATCH(C33,MAINLINE!$A$1:$A$586,0),"") ->  | F33: =IF(B33="","",IF(D33="","",SUM(INDIRECT("MAINLINE!M"&$B33+1):INDIRECT("MAINLINE!M"&$D33)))) ->  | G33: =IF(B33="","",IF(D33="","",SUM(INDIRECT("MAINLINE!N"&$B33+1):INDIRECT("MAINLINE!N"&$D33)))) ->  | H33: =IF(B33="","",IF(D33="","",SUM(INDIRECT("MAINLINE!O"&$B33+1):INDIRECT("MAINLINE!O"&$D33)))) ->  | I33: =IF(B33="","",IF(D33="","",SUM(INDIRECT("MAINLINE!P"&$B33+1):INDIRECT("MAINLINE!P"&$D33)))) ->  | J33: =IF(B33="","",IF(D33="","",SUM(INDIRECT("MAINLINE!Q"&$B33+1):INDIRECT("MAINLINE!Q"&$D33)))) ->  | K33: =IF(B33="","",IF(D33="","",SUM(INDIRECT("MAINLINE!R"&$B33+1):INDIRECT("MAINLINE!R"&$D33)))) ->  | L33: =IF(B33="","",IF(D33="","",SUM(INDIRECT("MAINLINE!S"&$B33+1):INDIRECT("MAINLINE!S"&$D33)))) ->  | M33: =IF(B33="","",IF(D33="","",SUM(INDIRECT("MAINLINE!T"&$B33+1):INDIRECT("MAINLINE!T"&$D33)))) ->  | N33: =IF(B33="","",IF(D33="","",SUM(INDIRECT("MAINLINE!U"&$B33+1):INDIRECT("MAINLINE!U"&$D33)))) ->  | O33: =IF(B33="","",IF(D33="","",SUM(INDIRECT("MAINLINE!V"&$B33+1):INDIRECT("MAINLINE!V"&$D33)))) -> 
B34: =_xlfn.IFNA(MATCH(A34,MAINLINE!$A$1:$A$586,0),"") ->  | D34: =_xlfn.IFNA(MATCH(C34,MAINLINE!$A$1:$A$586,0),"") ->  | F34: =IF(B34="","",IF(D34="","",SUM(INDIRECT("MAINLINE!M"&$B34+1):INDIRECT("MAINLINE!M"&$D34)))) ->  | G34: =IF(B34="","",IF(D34="","",SUM(INDIRECT("MAINLINE!N"&$B34+1):INDIRECT("MAINLINE!N"&$D34)))) ->  | H34: =IF(B34="","",IF(D34="","",SUM(INDIRECT("MAINLINE!O"&$B34+1):INDIRECT("MAINLINE!O"&$D34)))) ->  | I34: =IF(B34="","",IF(D34="","",SUM(INDIRECT("MAINLINE!P"&$B34+1):INDIRECT("MAINLINE!P"&$D34)))) ->  | J34: =IF(B34="","",IF(D34="","",SUM(INDIRECT("MAINLINE!Q"&$B34+1):INDIRECT("MAINLINE!Q"&$D34)))) ->  | K34: =IF(B34="","",IF(D34="","",SUM(INDIRECT("MAINLINE!R"&$B34+1):INDIRECT("MAINLINE!R"&$D34)))) ->  | L34: =IF(B34="","",IF(D34="","",SUM(INDIRECT("MAINLINE!S"&$B34+1):INDIRECT("MAINLINE!S"&$D34)))) ->  | M34: =IF(B34="","",IF(D34="","",SUM(INDIRECT("MAINLINE!T"&$B34+1):INDIRECT("MAINLINE!T"&$D34)))) ->  | N34: =IF(B34="","",IF(D34="","",SUM(INDIRECT("MAINLINE!U"&$B34+1):INDIRECT("MAINLINE!U"&$D34)))) ->  | O34: =IF(B34="","",IF(D34="","",SUM(INDIRECT("MAINLINE!V"&$B34+1):INDIRECT("MAINLINE!V"&$D34)))) -> 
B35: =_xlfn.IFNA(MATCH(A35,MAINLINE!$A$1:$A$586,0),"") ->  | D35: =_xlfn.IFNA(MATCH(C35,MAINLINE!$A$1:$A$586,0),"") ->  | F35: =IF(B35="","",IF(D35="","",SUM(INDIRECT("MAINLINE!M"&$B35+1):INDIRECT("MAINLINE!M"&$D35)))) ->  | G35: =IF(B35="","",IF(D35="","",SUM(INDIRECT("MAINLINE!N"&$B35+1):INDIRECT("MAINLINE!N"&$D35)))) ->  | H35: =IF(B35="","",IF(D35="","",SUM(INDIRECT("MAINLINE!O"&$B35+1):INDIRECT("MAINLINE!O"&$D35)))) ->  | I35: =IF(B35="","",IF(D35="","",SUM(INDIRECT("MAINLINE!P"&$B35+1):INDIRECT("MAINLINE!P"&$D35)))) ->  | J35: =IF(B35="","",IF(D35="","",SUM(INDIRECT("MAINLINE!Q"&$B35+1):INDIRECT("MAINLINE!Q"&$D35)))) ->  | K35: =IF(B35="","",IF(D35="","",SUM(INDIRECT("MAINLINE!R"&$B35+1):INDIRECT("MAINLINE!R"&$D35)))) ->  | L35: =IF(B35="","",IF(D35="","",SUM(INDIRECT("MAINLINE!S"&$B35+1):INDIRECT("MAINLINE!S"&$D35)))) ->  | M35: =IF(B35="","",IF(D35="","",SUM(INDIRECT("MAINLINE!T"&$B35+1):INDIRECT("MAINLINE!T"&$D35)))) ->  | N35: =IF(B35="","",IF(D35="","",SUM(INDIRECT("MAINLINE!U"&$B35+1):INDIRECT("MAINLINE!U"&$D35)))) ->  | O35: =IF(B35="","",IF(D35="","",SUM(INDIRECT("MAINLINE!V"&$B35+1):INDIRECT("MAINLINE!V"&$D35)))) -> 
B36: =_xlfn.IFNA(MATCH(A36,MAINLINE!$A$1:$A$586,0),"") ->  | D36: =_xlfn.IFNA(MATCH(C36,MAINLINE!$A$1:$A$586,0),"") ->  | F36: =IF(B36="","",IF(D36="","",SUM(INDIRECT("MAINLINE!M"&$B36+1):INDIRECT("MAINLINE!M"&$D36)))) ->  | G36: =IF(B36="","",IF(D36="","",SUM(INDIRECT("MAINLINE!N"&$B36+1):INDIRECT("MAINLINE!N"&$D36)))) ->  | H36: =IF(B36="","",IF(D36="","",SUM(INDIRECT("MAINLINE!O"&$B36+1):INDIRECT("MAINLINE!O"&$D36)))) ->  | I36: =IF(B36="","",IF(D36="","",SUM(INDIRECT("MAINLINE!P"&$B36+1):INDIRECT("MAINLINE!P"&$D36)))) ->  | J36: =IF(B36="","",IF(D36="","",SUM(INDIRECT("MAINLINE!Q"&$B36+1):INDIRECT("MAINLINE!Q"&$D36)))) ->  | K36: =IF(B36="","",IF(D36="","",SUM(INDIRECT("MAINLINE!R"&$B36+1):INDIRECT("MAINLINE!R"&$D36)))) ->  | L36: =IF(B36="","",IF(D36="","",SUM(INDIRECT("MAINLINE!S"&$B36+1):INDIRECT("MAINLINE!S"&$D36)))) ->  | M36: =IF(B36="","",IF(D36="","",SUM(INDIRECT("MAINLINE!T"&$B36+1):INDIRECT("MAINLINE!T"&$D36)))) ->  | N36: =IF(B36="","",IF(D36="","",SUM(INDIRECT("MAINLINE!U"&$B36+1):INDIRECT("MAINLINE!U"&$D36)))) ->  | O36: =IF(B36="","",IF(D36="","",SUM(INDIRECT("MAINLINE!V"&$B36+1):INDIRECT("MAINLINE!V"&$D36)))) -> 
B37: =_xlfn.IFNA(MATCH(A37,MAINLINE!$A$1:$A$586,0),"") ->  | D37: =_xlfn.IFNA(MATCH(C37,MAINLINE!$A$1:$A$586,0),"") ->  | F37: =IF(B37="","",IF(D37="","",SUM(INDIRECT("MAINLINE!M"&$B37+1):INDIRECT("MAINLINE!M"&$D37)))) ->  | G37: =IF(B37="","",IF(D37="","",SUM(INDIRECT("MAINLINE!N"&$B37+1):INDIRECT("MAINLINE!N"&$D37)))) ->  | H37: =IF(B37="","",IF(D37="","",SUM(INDIRECT("MAINLINE!O"&$B37+1):INDIRECT("MAINLINE!O"&$D37)))) ->  | I37: =IF(B37="","",IF(D37="","",SUM(INDIRECT("MAINLINE!P"&$B37+1):INDIRECT("MAINLINE!P"&$D37)))) ->  | J37: =IF(B37="","",IF(D37="","",SUM(INDIRECT("MAINLINE!Q"&$B37+1):INDIRECT("MAINLINE!Q"&$D37)))) ->  | K37: =IF(B37="","",IF(D37="","",SUM(INDIRECT("MAINLINE!R"&$B37+1):INDIRECT("MAINLINE!R"&$D37)))) ->  | L37: =IF(B37="","",IF(D37="","",SUM(INDIRECT("MAINLINE!S"&$B37+1):INDIRECT("MAINLINE!S"&$D37)))) ->  | M37: =IF(B37="","",IF(D37="","",SUM(INDIRECT("MAINLINE!T"&$B37+1):INDIRECT("MAINLINE!T"&$D37)))) ->  | N37: =IF(B37="","",IF(D37="","",SUM(INDIRECT("MAINLINE!U"&$B37+1):INDIRECT("MAINLINE!U"&$D37)))) ->  | O37: =IF(B37="","",IF(D37="","",SUM(INDIRECT("MAINLINE!V"&$B37+1):INDIRECT("MAINLINE!V"&$D37)))) -> 
B38: =_xlfn.IFNA(MATCH(A38,MAINLINE!$A$1:$A$586,0),"") ->  | D38: =_xlfn.IFNA(MATCH(C38,MAINLINE!$A$1:$A$586,0),"") ->  | F38: =IF(B38="","",IF(D38="","",SUM(INDIRECT("MAINLINE!M"&$B38+1):INDIRECT("MAINLINE!M"&$D38)))) ->  | G38: =IF(B38="","",IF(D38="","",SUM(INDIRECT("MAINLINE!N"&$B38+1):INDIRECT("MAINLINE!N"&$D38)))) ->  | H38: =IF(B38="","",IF(D38="","",SUM(INDIRECT("MAINLINE!O"&$B38+1):INDIRECT("MAINLINE!O"&$D38)))) ->  | I38: =IF(B38="","",IF(D38="","",SUM(INDIRECT("MAINLINE!P"&$B38+1):INDIRECT("MAINLINE!P"&$D38)))) ->  | J38: =IF(B38="","",IF(D38="","",SUM(INDIRECT("MAINLINE!Q"&$B38+1):INDIRECT("MAINLINE!Q"&$D38)))) ->  | K38: =IF(B38="","",IF(D38="","",SUM(INDIRECT("MAINLINE!R"&$B38+1):INDIRECT("MAINLINE!R"&$D38)))) ->  | L38: =IF(B38="","",IF(D38="","",SUM(INDIRECT("MAINLINE!S"&$B38+1):INDIRECT("MAINLINE!S"&$D38)))) ->  | M38: =IF(B38="","",IF(D38="","",SUM(INDIRECT("MAINLINE!T"&$B38+1):INDIRECT("MAINLINE!T"&$D38)))) ->  | N38: =IF(B38="","",IF(D38="","",SUM(INDIRECT("MAINLINE!U"&$B38+1):INDIRECT("MAINLINE!U"&$D38)))) ->  | O38: =IF(B38="","",IF(D38="","",SUM(INDIRECT("MAINLINE!V"&$B38+1):INDIRECT("MAINLINE!V"&$D38)))) -> 
B39: =_xlfn.IFNA(MATCH(A39,MAINLINE!$A$1:$A$586,0),"") ->  | D39: =_xlfn.IFNA(MATCH(C39,MAINLINE!$A$1:$A$586,0),"") ->  | F39: =IF(B39="","",IF(D39="","",SUM(INDIRECT("MAINLINE!M"&$B39+1):INDIRECT("MAINLINE!M"&$D39)))) ->  | G39: =IF(B39="","",IF(D39="","",SUM(INDIRECT("MAINLINE!N"&$B39+1):INDIRECT("MAINLINE!N"&$D39)))) ->  | H39: =IF(B39="","",IF(D39="","",SUM(INDIRECT("MAINLINE!O"&$B39+1):INDIRECT("MAINLINE!O"&$D39)))) ->  | I39: =IF(B39="","",IF(D39="","",SUM(INDIRECT("MAINLINE!P"&$B39+1):INDIRECT("MAINLINE!P"&$D39)))) ->  | J39: =IF(B39="","",IF(D39="","",SUM(INDIRECT("MAINLINE!Q"&$B39+1):INDIRECT("MAINLINE!Q"&$D39)))) ->  | K39: =IF(B39="","",IF(D39="","",SUM(INDIRECT("MAINLINE!R"&$B39+1):INDIRECT("MAINLINE!R"&$D39)))) ->  | L39: =IF(B39="","",IF(D39="","",SUM(INDIRECT("MAINLINE!S"&$B39+1):INDIRECT("MAINLINE!S"&$D39)))) ->  | M39: =IF(B39="","",IF(D39="","",SUM(INDIRECT("MAINLINE!T"&$B39+1):INDIRECT("MAINLINE!T"&$D39)))) ->  | N39: =IF(B39="","",IF(D39="","",SUM(INDIRECT("MAINLINE!U"&$B39+1):INDIRECT("MAINLINE!U"&$D39)))) ->  | O39: =IF(B39="","",IF(D39="","",SUM(INDIRECT("MAINLINE!V"&$B39+1):INDIRECT("MAINLINE!V"&$D39)))) -> 
B40: =_xlfn.IFNA(MATCH(A40,MAINLINE!$A$1:$A$586,0),"") ->  | D40: =_xlfn.IFNA(MATCH(C40,MAINLINE!$A$1:$A$586,0),"") ->  | F40: =IF(B40="","",IF(D40="","",SUM(INDIRECT("MAINLINE!M"&$B40+1):INDIRECT("MAINLINE!M"&$D40)))) ->  | G40: =IF(B40="","",IF(D40="","",SUM(INDIRECT("MAINLINE!N"&$B40+1):INDIRECT("MAINLINE!N"&$D40)))) ->  | H40: =IF(B40="","",IF(D40="","",SUM(INDIRECT("MAINLINE!O"&$B40+1):INDIRECT("MAINLINE!O"&$D40)))) ->  | I40: =IF(B40="","",IF(D40="","",SUM(INDIRECT("MAINLINE!P"&$B40+1):INDIRECT("MAINLINE!P"&$D40)))) ->  | J40: =IF(B40="","",IF(D40="","",SUM(INDIRECT("MAINLINE!Q"&$B40+1):INDIRECT("MAINLINE!Q"&$D40)))) ->  | K40: =IF(B40="","",IF(D40="","",SUM(INDIRECT("MAINLINE!R"&$B40+1):INDIRECT("MAINLINE!R"&$D40)))) ->  | L40: =IF(B40="","",IF(D40="","",SUM(INDIRECT("MAINLINE!S"&$B40+1):INDIRECT("MAINLINE!S"&$D40)))) ->  | M40: =IF(B40="","",IF(D40="","",SUM(INDIRECT("MAINLINE!T"&$B40+1):INDIRECT("MAINLINE!T"&$D40)))) ->  | N40: =IF(B40="","",IF(D40="","",SUM(INDIRECT("MAINLINE!U"&$B40+1):INDIRECT("MAINLINE!U"&$D40)))) ->  | O40: =IF(B40="","",IF(D40="","",SUM(INDIRECT("MAINLINE!V"&$B40+1):INDIRECT("MAINLINE!V"&$D40)))) -> 
B41: =_xlfn.IFNA(MATCH(A41,MAINLINE!$A$1:$A$586,0),"") ->  | D41: =_xlfn.IFNA(MATCH(C41,MAINLINE!$A$1:$A$586,0),"") ->  | F41: =IF(B41="","",IF(D41="","",SUM(INDIRECT("MAINLINE!M"&$B41+1):INDIRECT("MAINLINE!M"&$D41)))) ->  | G41: =IF(B41="","",IF(D41="","",SUM(INDIRECT("MAINLINE!N"&$B41+1):INDIRECT("MAINLINE!N"&$D41)))) ->  | H41: =IF(B41="","",IF(D41="","",SUM(INDIRECT("MAINLINE!O"&$B41+1):INDIRECT("MAINLINE!O"&$D41)))) ->  | I41: =IF(B41="","",IF(D41="","",SUM(INDIRECT("MAINLINE!P"&$B41+1):INDIRECT("MAINLINE!P"&$D41)))) ->  | J41: =IF(B41="","",IF(D41="","",SUM(INDIRECT("MAINLINE!Q"&$B41+1):INDIRECT("MAINLINE!Q"&$D41)))) ->  | K41: =IF(B41="","",IF(D41="","",SUM(INDIRECT("MAINLINE!R"&$B41+1):INDIRECT("MAINLINE!R"&$D41)))) ->  | L41: =IF(B41="","",IF(D41="","",SUM(INDIRECT("MAINLINE!S"&$B41+1):INDIRECT("MAINLINE!S"&$D41)))) ->  | M41: =IF(B41="","",IF(D41="","",SUM(INDIRECT("MAINLINE!T"&$B41+1):INDIRECT("MAINLINE!T"&$D41)))) ->  | N41: =IF(B41="","",IF(D41="","",SUM(INDIRECT("MAINLINE!U"&$B41+1):INDIRECT("MAINLINE!U"&$D41)))) ->  | O41: =IF(B41="","",IF(D41="","",SUM(INDIRECT("MAINLINE!V"&$B41+1):INDIRECT("MAINLINE!V"&$D41)))) -> 
B42: =_xlfn.IFNA(MATCH(A42,MAINLINE!$A$1:$A$586,0),"") ->  | D42: =_xlfn.IFNA(MATCH(C42,MAINLINE!$A$1:$A$586,0),"") ->  | F42: =IF(B42="","",IF(D42="","",SUM(INDIRECT("MAINLINE!M"&$B42+1):INDIRECT("MAINLINE!M"&$D42)))) ->  | G42: =IF(B42="","",IF(D42="","",SUM(INDIRECT("MAINLINE!N"&$B42+1):INDIRECT("MAINLINE!N"&$D42)))) ->  | H42: =IF(B42="","",IF(D42="","",SUM(INDIRECT("MAINLINE!O"&$B42+1):INDIRECT("MAINLINE!O"&$D42)))) ->  | I42: =IF(B42="","",IF(D42="","",SUM(INDIRECT("MAINLINE!P"&$B42+1):INDIRECT("MAINLINE!P"&$D42)))) ->  | J42: =IF(B42="","",IF(D42="","",SUM(INDIRECT("MAINLINE!Q"&$B42+1):INDIRECT("MAINLINE!Q"&$D42)))) ->  | K42: =IF(B42="","",IF(D42="","",SUM(INDIRECT("MAINLINE!R"&$B42+1):INDIRECT("MAINLINE!R"&$D42)))) ->  | L42: =IF(B42="","",IF(D42="","",SUM(INDIRECT("MAINLINE!S"&$B42+1):INDIRECT("MAINLINE!S"&$D42)))) ->  | M42: =IF(B42="","",IF(D42="","",SUM(INDIRECT("MAINLINE!T"&$B42+1):INDIRECT("MAINLINE!T"&$D42)))) ->  | N42: =IF(B42="","",IF(D42="","",SUM(INDIRECT("MAINLINE!U"&$B42+1):INDIRECT("MAINLINE!U"&$D42)))) ->  | O42: =IF(B42="","",IF(D42="","",SUM(INDIRECT("MAINLINE!V"&$B42+1):INDIRECT("MAINLINE!V"&$D42)))) -> 
B43: =_xlfn.IFNA(MATCH(A43,MAINLINE!$A$1:$A$586,0),"") ->  | D43: =_xlfn.IFNA(MATCH(C43,MAINLINE!$A$1:$A$586,0),"") ->  | F43: =IF(B43="","",IF(D43="","",SUM(INDIRECT("MAINLINE!M"&$B43+1):INDIRECT("MAINLINE!M"&$D43)))) ->  | G43: =IF(B43="","",IF(D43="","",SUM(INDIRECT("MAINLINE!N"&$B43+1):INDIRECT("MAINLINE!N"&$D43)))) ->  | H43: =IF(B43="","",IF(D43="","",SUM(INDIRECT("MAINLINE!O"&$B43+1):INDIRECT("MAINLINE!O"&$D43)))) ->  | I43: =IF(B43="","",IF(D43="","",SUM(INDIRECT("MAINLINE!P"&$B43+1):INDIRECT("MAINLINE!P"&$D43)))) ->  | J43: =IF(B43="","",IF(D43="","",SUM(INDIRECT("MAINLINE!Q"&$B43+1):INDIRECT("MAINLINE!Q"&$D43)))) ->  | K43: =IF(B43="","",IF(D43="","",SUM(INDIRECT("MAINLINE!R"&$B43+1):INDIRECT("MAINLINE!R"&$D43)))) ->  | L43: =IF(B43="","",IF(D43="","",SUM(INDIRECT("MAINLINE!S"&$B43+1):INDIRECT("MAINLINE!S"&$D43)))) ->  | M43: =IF(B43="","",IF(D43="","",SUM(INDIRECT("MAINLINE!T"&$B43+1):INDIRECT("MAINLINE!T"&$D43)))) ->  | N43: =IF(B43="","",IF(D43="","",SUM(INDIRECT("MAINLINE!U"&$B43+1):INDIRECT("MAINLINE!U"&$D43)))) ->  | O43: =IF(B43="","",IF(D43="","",SUM(INDIRECT("MAINLINE!V"&$B43+1):INDIRECT("MAINLINE!V"&$D43)))) -> 
B44: =_xlfn.IFNA(MATCH(A44,MAINLINE!$A$1:$A$586,0),"") ->  | D44: =_xlfn.IFNA(MATCH(C44,MAINLINE!$A$1:$A$586,0),"") ->  | F44: =IF(B44="","",IF(D44="","",SUM(INDIRECT("MAINLINE!M"&$B44+1):INDIRECT("MAINLINE!M"&$D44)))) ->  | G44: =IF(B44="","",IF(D44="","",SUM(INDIRECT("MAINLINE!N"&$B44+1):INDIRECT("MAINLINE!N"&$D44)))) ->  | H44: =IF(B44="","",IF(D44="","",SUM(INDIRECT("MAINLINE!O"&$B44+1):INDIRECT("MAINLINE!O"&$D44)))) ->  | I44: =IF(B44="","",IF(D44="","",SUM(INDIRECT("MAINLINE!P"&$B44+1):INDIRECT("MAINLINE!P"&$D44)))) ->  | J44: =IF(B44="","",IF(D44="","",SUM(INDIRECT("MAINLINE!Q"&$B44+1):INDIRECT("MAINLINE!Q"&$D44)))) ->  | K44: =IF(B44="","",IF(D44="","",SUM(INDIRECT("MAINLINE!R"&$B44+1):INDIRECT("MAINLINE!R"&$D44)))) ->  | L44: =IF(B44="","",IF(D44="","",SUM(INDIRECT("MAINLINE!S"&$B44+1):INDIRECT("MAINLINE!S"&$D44)))) ->  | M44: =IF(B44="","",IF(D44="","",SUM(INDIRECT("MAINLINE!T"&$B44+1):INDIRECT("MAINLINE!T"&$D44)))) ->  | N44: =IF(B44="","",IF(D44="","",SUM(INDIRECT("MAINLINE!U"&$B44+1):INDIRECT("MAINLINE!U"&$D44)))) ->  | O44: =IF(B44="","",IF(D44="","",SUM(INDIRECT("MAINLINE!V"&$B44+1):INDIRECT("MAINLINE!V"&$D44)))) -> 
B45: =_xlfn.IFNA(MATCH(A45,MAINLINE!$A$1:$A$586,0),"") ->  | D45: =_xlfn.IFNA(MATCH(C45,MAINLINE!$A$1:$A$586,0),"") ->  | F45: =IF(B45="","",IF(D45="","",SUM(INDIRECT("MAINLINE!M"&$B45+1):INDIRECT("MAINLINE!M"&$D45)))) ->  | G45: =IF(B45="","",IF(D45="","",SUM(INDIRECT("MAINLINE!N"&$B45+1):INDIRECT("MAINLINE!N"&$D45)))) ->  | H45: =IF(B45="","",IF(D45="","",SUM(INDIRECT("MAINLINE!O"&$B45+1):INDIRECT("MAINLINE!O"&$D45)))) ->  | I45: =IF(B45="","",IF(D45="","",SUM(INDIRECT("MAINLINE!P"&$B45+1):INDIRECT("MAINLINE!P"&$D45)))) ->  | J45: =IF(B45="","",IF(D45="","",SUM(INDIRECT("MAINLINE!Q"&$B45+1):INDIRECT("MAINLINE!Q"&$D45)))) ->  | K45: =IF(B45="","",IF(D45="","",SUM(INDIRECT("MAINLINE!R"&$B45+1):INDIRECT("MAINLINE!R"&$D45)))) ->  | L45: =IF(B45="","",IF(D45="","",SUM(INDIRECT("MAINLINE!S"&$B45+1):INDIRECT("MAINLINE!S"&$D45)))) ->  | M45: =IF(B45="","",IF(D45="","",SUM(INDIRECT("MAINLINE!T"&$B45+1):INDIRECT("MAINLINE!T"&$D45)))) ->  | N45: =IF(B45="","",IF(D45="","",SUM(INDIRECT("MAINLINE!U"&$B45+1):INDIRECT("MAINLINE!U"&$D45)))) ->  | O45: =IF(B45="","",IF(D45="","",SUM(INDIRECT("MAINLINE!V"&$B45+1):INDIRECT("MAINLINE!V"&$D45)))) -> 
B46: =_xlfn.IFNA(MATCH(A46,MAINLINE!$A$1:$A$586,0),"") ->  | D46: =_xlfn.IFNA(MATCH(C46,MAINLINE!$A$1:$A$586,0),"") ->  | F46: =IF(B46="","",IF(D46="","",SUM(INDIRECT("MAINLINE!M"&$B46+1):INDIRECT("MAINLINE!M"&$D46)))) ->  | G46: =IF(B46="","",IF(D46="","",SUM(INDIRECT("MAINLINE!N"&$B46+1):INDIRECT("MAINLINE!N"&$D46)))) ->  | H46: =IF(B46="","",IF(D46="","",SUM(INDIRECT("MAINLINE!O"&$B46+1):INDIRECT("MAINLINE!O"&$D46)))) ->  | I46: =IF(B46="","",IF(D46="","",SUM(INDIRECT("MAINLINE!P"&$B46+1):INDIRECT("MAINLINE!P"&$D46)))) ->  | J46: =IF(B46="","",IF(D46="","",SUM(INDIRECT("MAINLINE!Q"&$B46+1):INDIRECT("MAINLINE!Q"&$D46)))) ->  | K46: =IF(B46="","",IF(D46="","",SUM(INDIRECT("MAINLINE!R"&$B46+1):INDIRECT("MAINLINE!R"&$D46)))) ->  | L46: =IF(B46="","",IF(D46="","",SUM(INDIRECT("MAINLINE!S"&$B46+1):INDIRECT("MAINLINE!S"&$D46)))) ->  | M46: =IF(B46="","",IF(D46="","",SUM(INDIRECT("MAINLINE!T"&$B46+1):INDIRECT("MAINLINE!T"&$D46)))) ->  | N46: =IF(B46="","",IF(D46="","",SUM(INDIRECT("MAINLINE!U"&$B46+1):INDIRECT("MAINLINE!U"&$D46)))) ->  | O46: =IF(B46="","",IF(D46="","",SUM(INDIRECT("MAINLINE!V"&$B46+1):INDIRECT("MAINLINE!V"&$D46)))) -> 
B47: =_xlfn.IFNA(MATCH(A47,MAINLINE!$A$1:$A$586,0),"") ->  | D47: =_xlfn.IFNA(MATCH(C47,MAINLINE!$A$1:$A$586,0),"") ->  | F47: =IF(B47="","",IF(D47="","",SUM(INDIRECT("MAINLINE!M"&$B47+1):INDIRECT("MAINLINE!M"&$D47)))) ->  | G47: =IF(B47="","",IF(D47="","",SUM(INDIRECT("MAINLINE!N"&$B47+1):INDIRECT("MAINLINE!N"&$D47)))) ->  | H47: =IF(B47="","",IF(D47="","",SUM(INDIRECT("MAINLINE!O"&$B47+1):INDIRECT("MAINLINE!O"&$D47)))) ->  | I47: =IF(B47="","",IF(D47="","",SUM(INDIRECT("MAINLINE!P"&$B47+1):INDIRECT("MAINLINE!P"&$D47)))) ->  | J47: =IF(B47="","",IF(D47="","",SUM(INDIRECT("MAINLINE!Q"&$B47+1):INDIRECT("MAINLINE!Q"&$D47)))) ->  | K47: =IF(B47="","",IF(D47="","",SUM(INDIRECT("MAINLINE!R"&$B47+1):INDIRECT("MAINLINE!R"&$D47)))) ->  | L47: =IF(B47="","",IF(D47="","",SUM(INDIRECT("MAINLINE!S"&$B47+1):INDIRECT("MAINLINE!S"&$D47)))) ->  | M47: =IF(B47="","",IF(D47="","",SUM(INDIRECT("MAINLINE!T"&$B47+1):INDIRECT("MAINLINE!T"&$D47)))) ->  | N47: =IF(B47="","",IF(D47="","",SUM(INDIRECT("MAINLINE!U"&$B47+1):INDIRECT("MAINLINE!U"&$D47)))) ->  | O47: =IF(B47="","",IF(D47="","",SUM(INDIRECT("MAINLINE!V"&$B47+1):INDIRECT("MAINLINE!V"&$D47)))) -> 
B48: =_xlfn.IFNA(MATCH(A48,MAINLINE!$A$1:$A$586,0),"") ->  | D48: =_xlfn.IFNA(MATCH(C48,MAINLINE!$A$1:$A$586,0),"") ->  | F48: =IF(B48="","",IF(D48="","",SUM(INDIRECT("MAINLINE!M"&$B48+1):INDIRECT("MAINLINE!M"&$D48)))) ->  | G48: =IF(B48="","",IF(D48="","",SUM(INDIRECT("MAINLINE!N"&$B48+1):INDIRECT("MAINLINE!N"&$D48)))) ->  | H48: =IF(B48="","",IF(D48="","",SUM(INDIRECT("MAINLINE!O"&$B48+1):INDIRECT("MAINLINE!O"&$D48)))) ->  | I48: =IF(B48="","",IF(D48="","",SUM(INDIRECT("MAINLINE!P"&$B48+1):INDIRECT("MAINLINE!P"&$D48)))) ->  | J48: =IF(B48="","",IF(D48="","",SUM(INDIRECT("MAINLINE!Q"&$B48+1):INDIRECT("MAINLINE!Q"&$D48)))) ->  | K48: =IF(B48="","",IF(D48="","",SUM(INDIRECT("MAINLINE!R"&$B48+1):INDIRECT("MAINLINE!R"&$D48)))) ->  | L48: =IF(B48="","",IF(D48="","",SUM(INDIRECT("MAINLINE!S"&$B48+1):INDIRECT("MAINLINE!S"&$D48)))) ->  | M48: =IF(B48="","",IF(D48="","",SUM(INDIRECT("MAINLINE!T"&$B48+1):INDIRECT("MAINLINE!T"&$D48)))) ->  | N48: =IF(B48="","",IF(D48="","",SUM(INDIRECT("MAINLINE!U"&$B48+1):INDIRECT("MAINLINE!U"&$D48)))) ->  | O48: =IF(B48="","",IF(D48="","",SUM(INDIRECT("MAINLINE!V"&$B48+1):INDIRECT("MAINLINE!V"&$D48)))) -> 
B49: =_xlfn.IFNA(MATCH(A49,MAINLINE!$A$1:$A$586,0),"") ->  | D49: =_xlfn.IFNA(MATCH(C49,MAINLINE!$A$1:$A$586,0),"") ->  | F49: =IF(B49="","",IF(D49="","",SUM(INDIRECT("MAINLINE!M"&$B49+1):INDIRECT("MAINLINE!M"&$D49)))) ->  | G49: =IF(B49="","",IF(D49="","",SUM(INDIRECT("MAINLINE!N"&$B49+1):INDIRECT("MAINLINE!N"&$D49)))) ->  | H49: =IF(B49="","",IF(D49="","",SUM(INDIRECT("MAINLINE!O"&$B49+1):INDIRECT("MAINLINE!O"&$D49)))) ->  | I49: =IF(B49="","",IF(D49="","",SUM(INDIRECT("MAINLINE!P"&$B49+1):INDIRECT("MAINLINE!P"&$D49)))) ->  | J49: =IF(B49="","",IF(D49="","",SUM(INDIRECT("MAINLINE!Q"&$B49+1):INDIRECT("MAINLINE!Q"&$D49)))) ->  | K49: =IF(B49="","",IF(D49="","",SUM(INDIRECT("MAINLINE!R"&$B49+1):INDIRECT("MAINLINE!R"&$D49)))) ->  | L49: =IF(B49="","",IF(D49="","",SUM(INDIRECT("MAINLINE!S"&$B49+1):INDIRECT("MAINLINE!S"&$D49)))) ->  | M49: =IF(B49="","",IF(D49="","",SUM(INDIRECT("MAINLINE!T"&$B49+1):INDIRECT("MAINLINE!T"&$D49)))) ->  | N49: =IF(B49="","",IF(D49="","",SUM(INDIRECT("MAINLINE!U"&$B49+1):INDIRECT("MAINLINE!U"&$D49)))) ->  | O49: =IF(B49="","",IF(D49="","",SUM(INDIRECT("MAINLINE!V"&$B49+1):INDIRECT("MAINLINE!V"&$D49)))) -> 
B50: =_xlfn.IFNA(MATCH(A50,MAINLINE!$A$1:$A$586,0),"") ->  | D50: =_xlfn.IFNA(MATCH(C50,MAINLINE!$A$1:$A$586,0),"") ->  | F50: =IF(B50="","",IF(D50="","",SUM(INDIRECT("MAINLINE!M"&$B50+1):INDIRECT("MAINLINE!M"&$D50)))) ->  | G50: =IF(B50="","",IF(D50="","",SUM(INDIRECT("MAINLINE!N"&$B50+1):INDIRECT("MAINLINE!N"&$D50)))) ->  | H50: =IF(B50="","",IF(D50="","",SUM(INDIRECT("MAINLINE!O"&$B50+1):INDIRECT("MAINLINE!O"&$D50)))) ->  | I50: =IF(B50="","",IF(D50="","",SUM(INDIRECT("MAINLINE!P"&$B50+1):INDIRECT("MAINLINE!P"&$D50)))) ->  | J50: =IF(B50="","",IF(D50="","",SUM(INDIRECT("MAINLINE!Q"&$B50+1):INDIRECT("MAINLINE!Q"&$D50)))) ->  | K50: =IF(B50="","",IF(D50="","",SUM(INDIRECT("MAINLINE!R"&$B50+1):INDIRECT("MAINLINE!R"&$D50)))) ->  | L50: =IF(B50="","",IF(D50="","",SUM(INDIRECT("MAINLINE!S"&$B50+1):INDIRECT("MAINLINE!S"&$D50)))) ->  | M50: =IF(B50="","",IF(D50="","",SUM(INDIRECT("MAINLINE!T"&$B50+1):INDIRECT("MAINLINE!T"&$D50)))) ->  | N50: =IF(B50="","",IF(D50="","",SUM(INDIRECT("MAINLINE!U"&$B50+1):INDIRECT("MAINLINE!U"&$D50)))) ->  | O50: =IF(B50="","",IF(D50="","",SUM(INDIRECT("MAINLINE!V"&$B50+1):INDIRECT("MAINLINE!V"&$D50)))) -> 
B51: =_xlfn.IFNA(MATCH(A51,MAINLINE!$A$1:$A$586,0),"") ->  | D51: =_xlfn.IFNA(MATCH(C51,MAINLINE!$A$1:$A$586,0),"") ->  | F51: =IF(B51="","",IF(D51="","",SUM(INDIRECT("MAINLINE!M"&$B51+1):INDIRECT("MAINLINE!M"&$D51)))) ->  | G51: =IF(B51="","",IF(D51="","",SUM(INDIRECT("MAINLINE!N"&$B51+1):INDIRECT("MAINLINE!N"&$D51)))) ->  | H51: =IF(B51="","",IF(D51="","",SUM(INDIRECT("MAINLINE!O"&$B51+1):INDIRECT("MAINLINE!O"&$D51)))) ->  | I51: =IF(B51="","",IF(D51="","",SUM(INDIRECT("MAINLINE!P"&$B51+1):INDIRECT("MAINLINE!P"&$D51)))) ->  | J51: =IF(B51="","",IF(D51="","",SUM(INDIRECT("MAINLINE!Q"&$B51+1):INDIRECT("MAINLINE!Q"&$D51)))) ->  | K51: =IF(B51="","",IF(D51="","",SUM(INDIRECT("MAINLINE!R"&$B51+1):INDIRECT("MAINLINE!R"&$D51)))) ->  | L51: =IF(B51="","",IF(D51="","",SUM(INDIRECT("MAINLINE!S"&$B51+1):INDIRECT("MAINLINE!S"&$D51)))) ->  | M51: =IF(B51="","",IF(D51="","",SUM(INDIRECT("MAINLINE!T"&$B51+1):INDIRECT("MAINLINE!T"&$D51)))) ->  | N51: =IF(B51="","",IF(D51="","",SUM(INDIRECT("MAINLINE!U"&$B51+1):INDIRECT("MAINLINE!U"&$D51)))) ->  | O51: =IF(B51="","",IF(D51="","",SUM(INDIRECT("MAINLINE!V"&$B51+1):INDIRECT("MAINLINE!V"&$D51)))) -> 
B52: =_xlfn.IFNA(MATCH(A52,MAINLINE!$A$1:$A$586,0),"") ->  | D52: =_xlfn.IFNA(MATCH(C52,MAINLINE!$A$1:$A$586,0),"") ->  | F52: =IF(B52="","",IF(D52="","",SUM(INDIRECT("MAINLINE!M"&$B52+1):INDIRECT("MAINLINE!M"&$D52)))) ->  | G52: =IF(B52="","",IF(D52="","",SUM(INDIRECT("MAINLINE!N"&$B52+1):INDIRECT("MAINLINE!N"&$D52)))) ->  | H52: =IF(B52="","",IF(D52="","",SUM(INDIRECT("MAINLINE!O"&$B52+1):INDIRECT("MAINLINE!O"&$D52)))) ->  | I52: =IF(B52="","",IF(D52="","",SUM(INDIRECT("MAINLINE!P"&$B52+1):INDIRECT("MAINLINE!P"&$D52)))) ->  | J52: =IF(B52="","",IF(D52="","",SUM(INDIRECT("MAINLINE!Q"&$B52+1):INDIRECT("MAINLINE!Q"&$D52)))) ->  | K52: =IF(B52="","",IF(D52="","",SUM(INDIRECT("MAINLINE!R"&$B52+1):INDIRECT("MAINLINE!R"&$D52)))) ->  | L52: =IF(B52="","",IF(D52="","",SUM(INDIRECT("MAINLINE!S"&$B52+1):INDIRECT("MAINLINE!S"&$D52)))) ->  | M52: =IF(B52="","",IF(D52="","",SUM(INDIRECT("MAINLINE!T"&$B52+1):INDIRECT("MAINLINE!T"&$D52)))) ->  | N52: =IF(B52="","",IF(D52="","",SUM(INDIRECT("MAINLINE!U"&$B52+1):INDIRECT("MAINLINE!U"&$D52)))) ->  | O52: =IF(B52="","",IF(D52="","",SUM(INDIRECT("MAINLINE!V"&$B52+1):INDIRECT("MAINLINE!V"&$D52)))) -> 
B53: =_xlfn.IFNA(MATCH(A53,MAINLINE!$A$1:$A$586,0),"") ->  | D53: =_xlfn.IFNA(MATCH(C53,MAINLINE!$A$1:$A$586,0),"") ->  | F53: =IF(B53="","",IF(D53="","",SUM(INDIRECT("MAINLINE!M"&$B53+1):INDIRECT("MAINLINE!M"&$D53)))) ->  | G53: =IF(B53="","",IF(D53="","",SUM(INDIRECT("MAINLINE!N"&$B53+1):INDIRECT("MAINLINE!N"&$D53)))) ->  | H53: =IF(B53="","",IF(D53="","",SUM(INDIRECT("MAINLINE!O"&$B53+1):INDIRECT("MAINLINE!O"&$D53)))) ->  | I53: =IF(B53="","",IF(D53="","",SUM(INDIRECT("MAINLINE!P"&$B53+1):INDIRECT("MAINLINE!P"&$D53)))) ->  | J53: =IF(B53="","",IF(D53="","",SUM(INDIRECT("MAINLINE!Q"&$B53+1):INDIRECT("MAINLINE!Q"&$D53)))) ->  | K53: =IF(B53="","",IF(D53="","",SUM(INDIRECT("MAINLINE!R"&$B53+1):INDIRECT("MAINLINE!R"&$D53)))) ->  | L53: =IF(B53="","",IF(D53="","",SUM(INDIRECT("MAINLINE!S"&$B53+1):INDIRECT("MAINLINE!S"&$D53)))) ->  | M53: =IF(B53="","",IF(D53="","",SUM(INDIRECT("MAINLINE!T"&$B53+1):INDIRECT("MAINLINE!T"&$D53)))) ->  | N53: =IF(B53="","",IF(D53="","",SUM(INDIRECT("MAINLINE!U"&$B53+1):INDIRECT("MAINLINE!U"&$D53)))) ->  | O53: =IF(B53="","",IF(D53="","",SUM(INDIRECT("MAINLINE!V"&$B53+1):INDIRECT("MAINLINE!V"&$D53)))) -> 
B54: =_xlfn.IFNA(MATCH(A54,MAINLINE!$A$1:$A$586,0),"") ->  | D54: =_xlfn.IFNA(MATCH(C54,MAINLINE!$A$1:$A$586,0),"") ->  | F54: =IF(B54="","",IF(D54="","",SUM(INDIRECT("MAINLINE!M"&$B54+1):INDIRECT("MAINLINE!M"&$D54)))) ->  | G54: =IF(B54="","",IF(D54="","",SUM(INDIRECT("MAINLINE!N"&$B54+1):INDIRECT("MAINLINE!N"&$D54)))) ->  | H54: =IF(B54="","",IF(D54="","",SUM(INDIRECT("MAINLINE!O"&$B54+1):INDIRECT("MAINLINE!O"&$D54)))) ->  | I54: =IF(B54="","",IF(D54="","",SUM(INDIRECT("MAINLINE!P"&$B54+1):INDIRECT("MAINLINE!P"&$D54)))) ->  | J54: =IF(B54="","",IF(D54="","",SUM(INDIRECT("MAINLINE!Q"&$B54+1):INDIRECT("MAINLINE!Q"&$D54)))) ->  | K54: =IF(B54="","",IF(D54="","",SUM(INDIRECT("MAINLINE!R"&$B54+1):INDIRECT("MAINLINE!R"&$D54)))) ->  | L54: =IF(B54="","",IF(D54="","",SUM(INDIRECT("MAINLINE!S"&$B54+1):INDIRECT("MAINLINE!S"&$D54)))) ->  | M54: =IF(B54="","",IF(D54="","",SUM(INDIRECT("MAINLINE!T"&$B54+1):INDIRECT("MAINLINE!T"&$D54)))) ->  | N54: =IF(B54="","",IF(D54="","",SUM(INDIRECT("MAINLINE!U"&$B54+1):INDIRECT("MAINLINE!U"&$D54)))) ->  | O54: =IF(B54="","",IF(D54="","",SUM(INDIRECT("MAINLINE!V"&$B54+1):INDIRECT("MAINLINE!V"&$D54)))) -> 
B55: =_xlfn.IFNA(MATCH(A55,MAINLINE!$A$1:$A$586,0),"") ->  | D55: =_xlfn.IFNA(MATCH(C55,MAINLINE!$A$1:$A$586,0),"") ->  | F55: =IF(B55="","",IF(D55="","",SUM(INDIRECT("MAINLINE!M"&$B55+1):INDIRECT("MAINLINE!M"&$D55)))) ->  | G55: =IF(B55="","",IF(D55="","",SUM(INDIRECT("MAINLINE!N"&$B55+1):INDIRECT("MAINLINE!N"&$D55)))) ->  | H55: =IF(B55="","",IF(D55="","",SUM(INDIRECT("MAINLINE!O"&$B55+1):INDIRECT("MAINLINE!O"&$D55)))) ->  | I55: =IF(B55="","",IF(D55="","",SUM(INDIRECT("MAINLINE!P"&$B55+1):INDIRECT("MAINLINE!P"&$D55)))) ->  | J55: =IF(B55="","",IF(D55="","",SUM(INDIRECT("MAINLINE!Q"&$B55+1):INDIRECT("MAINLINE!Q"&$D55)))) ->  | K55: =IF(B55="","",IF(D55="","",SUM(INDIRECT("MAINLINE!R"&$B55+1):INDIRECT("MAINLINE!R"&$D55)))) ->  | L55: =IF(B55="","",IF(D55="","",SUM(INDIRECT("MAINLINE!S"&$B55+1):INDIRECT("MAINLINE!S"&$D55)))) ->  | M55: =IF(B55="","",IF(D55="","",SUM(INDIRECT("MAINLINE!T"&$B55+1):INDIRECT("MAINLINE!T"&$D55)))) ->  | N55: =IF(B55="","",IF(D55="","",SUM(INDIRECT("MAINLINE!U"&$B55+1):INDIRECT("MAINLINE!U"&$D55)))) ->  | O55: =IF(B55="","",IF(D55="","",SUM(INDIRECT("MAINLINE!V"&$B55+1):INDIRECT("MAINLINE!V"&$D55)))) -> 
B56: =_xlfn.IFNA(MATCH(A56,MAINLINE!$A$1:$A$586,0),"") ->  | D56: =_xlfn.IFNA(MATCH(C56,MAINLINE!$A$1:$A$586,0),"") ->  | F56: =IF(B56="","",IF(D56="","",SUM(INDIRECT("MAINLINE!M"&$B56+1):INDIRECT("MAINLINE!M"&$D56)))) ->  | G56: =IF(B56="","",IF(D56="","",SUM(INDIRECT("MAINLINE!N"&$B56+1):INDIRECT("MAINLINE!N"&$D56)))) ->  | H56: =IF(B56="","",IF(D56="","",SUM(INDIRECT("MAINLINE!O"&$B56+1):INDIRECT("MAINLINE!O"&$D56)))) ->  | I56: =IF(B56="","",IF(D56="","",SUM(INDIRECT("MAINLINE!P"&$B56+1):INDIRECT("MAINLINE!P"&$D56)))) ->  | J56: =IF(B56="","",IF(D56="","",SUM(INDIRECT("MAINLINE!Q"&$B56+1):INDIRECT("MAINLINE!Q"&$D56)))) ->  | K56: =IF(B56="","",IF(D56="","",SUM(INDIRECT("MAINLINE!R"&$B56+1):INDIRECT("MAINLINE!R"&$D56)))) ->  | L56: =IF(B56="","",IF(D56="","",SUM(INDIRECT("MAINLINE!S"&$B56+1):INDIRECT("MAINLINE!S"&$D56)))) ->  | M56: =IF(B56="","",IF(D56="","",SUM(INDIRECT("MAINLINE!T"&$B56+1):INDIRECT("MAINLINE!T"&$D56)))) ->  | N56: =IF(B56="","",IF(D56="","",SUM(INDIRECT("MAINLINE!U"&$B56+1):INDIRECT("MAINLINE!U"&$D56)))) ->  | O56: =IF(B56="","",IF(D56="","",SUM(INDIRECT("MAINLINE!V"&$B56+1):INDIRECT("MAINLINE!V"&$D56)))) -> 
B57: =_xlfn.IFNA(MATCH(A57,MAINLINE!$A$1:$A$586,0),"") ->  | D57: =_xlfn.IFNA(MATCH(C57,MAINLINE!$A$1:$A$586,0),"") ->  | F57: =IF(B57="","",IF(D57="","",SUM(INDIRECT("MAINLINE!M"&$B57+1):INDIRECT("MAINLINE!M"&$D57)))) ->  | G57: =IF(B57="","",IF(D57="","",SUM(INDIRECT("MAINLINE!N"&$B57+1):INDIRECT("MAINLINE!N"&$D57)))) ->  | H57: =IF(B57="","",IF(D57="","",SUM(INDIRECT("MAINLINE!O"&$B57+1):INDIRECT("MAINLINE!O"&$D57)))) ->  | I57: =IF(B57="","",IF(D57="","",SUM(INDIRECT("MAINLINE!P"&$B57+1):INDIRECT("MAINLINE!P"&$D57)))) ->  | J57: =IF(B57="","",IF(D57="","",SUM(INDIRECT("MAINLINE!Q"&$B57+1):INDIRECT("MAINLINE!Q"&$D57)))) ->  | K57: =IF(B57="","",IF(D57="","",SUM(INDIRECT("MAINLINE!R"&$B57+1):INDIRECT("MAINLINE!R"&$D57)))) ->  | L57: =IF(B57="","",IF(D57="","",SUM(INDIRECT("MAINLINE!S"&$B57+1):INDIRECT("MAINLINE!S"&$D57)))) ->  | M57: =IF(B57="","",IF(D57="","",SUM(INDIRECT("MAINLINE!T"&$B57+1):INDIRECT("MAINLINE!T"&$D57)))) ->  | N57: =IF(B57="","",IF(D57="","",SUM(INDIRECT("MAINLINE!U"&$B57+1):INDIRECT("MAINLINE!U"&$D57)))) ->  | O57: =IF(B57="","",IF(D57="","",SUM(INDIRECT("MAINLINE!V"&$B57+1):INDIRECT("MAINLINE!V"&$D57)))) -> 
B58: =_xlfn.IFNA(MATCH(A58,MAINLINE!$A$1:$A$586,0),"") ->  | D58: =_xlfn.IFNA(MATCH(C58,MAINLINE!$A$1:$A$586,0),"") ->  | F58: =IF(B58="","",IF(D58="","",SUM(INDIRECT("MAINLINE!M"&$B58+1):INDIRECT("MAINLINE!M"&$D58)))) ->  | G58: =IF(B58="","",IF(D58="","",SUM(INDIRECT("MAINLINE!N"&$B58+1):INDIRECT("MAINLINE!N"&$D58)))) ->  | H58: =IF(B58="","",IF(D58="","",SUM(INDIRECT("MAINLINE!O"&$B58+1):INDIRECT("MAINLINE!O"&$D58)))) ->  | I58: =IF(B58="","",IF(D58="","",SUM(INDIRECT("MAINLINE!P"&$B58+1):INDIRECT("MAINLINE!P"&$D58)))) ->  | J58: =IF(B58="","",IF(D58="","",SUM(INDIRECT("MAINLINE!Q"&$B58+1):INDIRECT("MAINLINE!Q"&$D58)))) ->  | K58: =IF(B58="","",IF(D58="","",SUM(INDIRECT("MAINLINE!R"&$B58+1):INDIRECT("MAINLINE!R"&$D58)))) ->  | L58: =IF(B58="","",IF(D58="","",SUM(INDIRECT("MAINLINE!S"&$B58+1):INDIRECT("MAINLINE!S"&$D58)))) ->  | M58: =IF(B58="","",IF(D58="","",SUM(INDIRECT("MAINLINE!T"&$B58+1):INDIRECT("MAINLINE!T"&$D58)))) ->  | N58: =IF(B58="","",IF(D58="","",SUM(INDIRECT("MAINLINE!U"&$B58+1):INDIRECT("MAINLINE!U"&$D58)))) ->  | O58: =IF(B58="","",IF(D58="","",SUM(INDIRECT("MAINLINE!V"&$B58+1):INDIRECT("MAINLINE!V"&$D58)))) -> 
B59: =_xlfn.IFNA(MATCH(A59,MAINLINE!$A$1:$A$586,0),"") ->  | D59: =_xlfn.IFNA(MATCH(C59,MAINLINE!$A$1:$A$586,0),"") ->  | F59: =IF(B59="","",IF(D59="","",SUM(INDIRECT("MAINLINE!M"&$B59+1):INDIRECT("MAINLINE!M"&$D59)))) ->  | G59: =IF(B59="","",IF(D59="","",SUM(INDIRECT("MAINLINE!N"&$B59+1):INDIRECT("MAINLINE!N"&$D59)))) ->  | H59: =IF(B59="","",IF(D59="","",SUM(INDIRECT("MAINLINE!O"&$B59+1):INDIRECT("MAINLINE!O"&$D59)))) ->  | I59: =IF(B59="","",IF(D59="","",SUM(INDIRECT("MAINLINE!P"&$B59+1):INDIRECT("MAINLINE!P"&$D59)))) ->  | J59: =IF(B59="","",IF(D59="","",SUM(INDIRECT("MAINLINE!Q"&$B59+1):INDIRECT("MAINLINE!Q"&$D59)))) ->  | K59: =IF(B59="","",IF(D59="","",SUM(INDIRECT("MAINLINE!R"&$B59+1):INDIRECT("MAINLINE!R"&$D59)))) ->  | L59: =IF(B59="","",IF(D59="","",SUM(INDIRECT("MAINLINE!S"&$B59+1):INDIRECT("MAINLINE!S"&$D59)))) ->  | M59: =IF(B59="","",IF(D59="","",SUM(INDIRECT("MAINLINE!T"&$B59+1):INDIRECT("MAINLINE!T"&$D59)))) ->  | N59: =IF(B59="","",IF(D59="","",SUM(INDIRECT("MAINLINE!U"&$B59+1):INDIRECT("MAINLINE!U"&$D59)))) ->  | O59: =IF(B59="","",IF(D59="","",SUM(INDIRECT("MAINLINE!V"&$B59+1):INDIRECT("MAINLINE!V"&$D59)))) -> 
B60: =_xlfn.IFNA(MATCH(A60,MAINLINE!$A$1:$A$586,0),"") ->  | D60: =_xlfn.IFNA(MATCH(C60,MAINLINE!$A$1:$A$586,0),"") ->  | F60: =IF(B60="","",IF(D60="","",SUM(INDIRECT("MAINLINE!M"&$B60+1):INDIRECT("MAINLINE!M"&$D60)))) ->  | G60: =IF(B60="","",IF(D60="","",SUM(INDIRECT("MAINLINE!N"&$B60+1):INDIRECT("MAINLINE!N"&$D60)))) ->  | H60: =IF(B60="","",IF(D60="","",SUM(INDIRECT("MAINLINE!O"&$B60+1):INDIRECT("MAINLINE!O"&$D60)))) ->  | I60: =IF(B60="","",IF(D60="","",SUM(INDIRECT("MAINLINE!P"&$B60+1):INDIRECT("MAINLINE!P"&$D60)))) ->  | J60: =IF(B60="","",IF(D60="","",SUM(INDIRECT("MAINLINE!Q"&$B60+1):INDIRECT("MAINLINE!Q"&$D60)))) ->  | K60: =IF(B60="","",IF(D60="","",SUM(INDIRECT("MAINLINE!R"&$B60+1):INDIRECT("MAINLINE!R"&$D60)))) ->  | L60: =IF(B60="","",IF(D60="","",SUM(INDIRECT("MAINLINE!S"&$B60+1):INDIRECT("MAINLINE!S"&$D60)))) ->  | M60: =IF(B60="","",IF(D60="","",SUM(INDIRECT("MAINLINE!T"&$B60+1):INDIRECT("MAINLINE!T"&$D60)))) ->  | N60: =IF(B60="","",IF(D60="","",SUM(INDIRECT("MAINLINE!U"&$B60+1):INDIRECT("MAINLINE!U"&$D60)))) ->  | O60: =IF(B60="","",IF(D60="","",SUM(INDIRECT("MAINLINE!V"&$B60+1):INDIRECT("MAINLINE!V"&$D60)))) -> 
B61: =_xlfn.IFNA(MATCH(A61,MAINLINE!$A$1:$A$586,0),"") ->  | D61: =_xlfn.IFNA(MATCH(C61,MAINLINE!$A$1:$A$586,0),"") ->  | F61: =IF(B61="","",IF(D61="","",SUM(INDIRECT("MAINLINE!M"&$B61+1):INDIRECT("MAINLINE!M"&$D61)))) ->  | G61: =IF(B61="","",IF(D61="","",SUM(INDIRECT("MAINLINE!N"&$B61+1):INDIRECT("MAINLINE!N"&$D61)))) ->  | H61: =IF(B61="","",IF(D61="","",SUM(INDIRECT("MAINLINE!O"&$B61+1):INDIRECT("MAINLINE!O"&$D61)))) ->  | I61: =IF(B61="","",IF(D61="","",SUM(INDIRECT("MAINLINE!P"&$B61+1):INDIRECT("MAINLINE!P"&$D61)))) ->  | J61: =IF(B61="","",IF(D61="","",SUM(INDIRECT("MAINLINE!Q"&$B61+1):INDIRECT("MAINLINE!Q"&$D61)))) ->  | K61: =IF(B61="","",IF(D61="","",SUM(INDIRECT("MAINLINE!R"&$B61+1):INDIRECT("MAINLINE!R"&$D61)))) ->  | L61: =IF(B61="","",IF(D61="","",SUM(INDIRECT("MAINLINE!S"&$B61+1):INDIRECT("MAINLINE!S"&$D61)))) ->  | M61: =IF(B61="","",IF(D61="","",SUM(INDIRECT("MAINLINE!T"&$B61+1):INDIRECT("MAINLINE!T"&$D61)))) ->  | N61: =IF(B61="","",IF(D61="","",SUM(INDIRECT("MAINLINE!U"&$B61+1):INDIRECT("MAINLINE!U"&$D61)))) ->  | O61: =IF(B61="","",IF(D61="","",SUM(INDIRECT("MAINLINE!V"&$B61+1):INDIRECT("MAINLINE!V"&$D61)))) -> 
B62: =_xlfn.IFNA(MATCH(A62,MAINLINE!$A$1:$A$586,0),"") ->  | D62: =_xlfn.IFNA(MATCH(C62,MAINLINE!$A$1:$A$586,0),"") ->  | F62: =IF(B62="","",IF(D62="","",SUM(INDIRECT("MAINLINE!M"&$B62+1):INDIRECT("MAINLINE!M"&$D62)))) ->  | G62: =IF(B62="","",IF(D62="","",SUM(INDIRECT("MAINLINE!N"&$B62+1):INDIRECT("MAINLINE!N"&$D62)))) ->  | H62: =IF(B62="","",IF(D62="","",SUM(INDIRECT("MAINLINE!O"&$B62+1):INDIRECT("MAINLINE!O"&$D62)))) ->  | I62: =IF(B62="","",IF(D62="","",SUM(INDIRECT("MAINLINE!P"&$B62+1):INDIRECT("MAINLINE!P"&$D62)))) ->  | J62: =IF(B62="","",IF(D62="","",SUM(INDIRECT("MAINLINE!Q"&$B62+1):INDIRECT("MAINLINE!Q"&$D62)))) ->  | K62: =IF(B62="","",IF(D62="","",SUM(INDIRECT("MAINLINE!R"&$B62+1):INDIRECT("MAINLINE!R"&$D62)))) ->  | L62: =IF(B62="","",IF(D62="","",SUM(INDIRECT("MAINLINE!S"&$B62+1):INDIRECT("MAINLINE!S"&$D62)))) ->  | M62: =IF(B62="","",IF(D62="","",SUM(INDIRECT("MAINLINE!T"&$B62+1):INDIRECT("MAINLINE!T"&$D62)))) ->  | N62: =IF(B62="","",IF(D62="","",SUM(INDIRECT("MAINLINE!U"&$B62+1):INDIRECT("MAINLINE!U"&$D62)))) ->  | O62: =IF(B62="","",IF(D62="","",SUM(INDIRECT("MAINLINE!V"&$B62+1):INDIRECT("MAINLINE!V"&$D62)))) -> 
B63: =_xlfn.IFNA(MATCH(A63,MAINLINE!$A$1:$A$586,0),"") ->  | D63: =_xlfn.IFNA(MATCH(C63,MAINLINE!$A$1:$A$586,0),"") ->  | F63: =IF(B63="","",IF(D63="","",SUM(INDIRECT("MAINLINE!M"&$B63+1):INDIRECT("MAINLINE!M"&$D63)))) ->  | G63: =IF(B63="","",IF(D63="","",SUM(INDIRECT("MAINLINE!N"&$B63+1):INDIRECT("MAINLINE!N"&$D63)))) ->  | H63: =IF(B63="","",IF(D63="","",SUM(INDIRECT("MAINLINE!O"&$B63+1):INDIRECT("MAINLINE!O"&$D63)))) ->  | I63: =IF(B63="","",IF(D63="","",SUM(INDIRECT("MAINLINE!P"&$B63+1):INDIRECT("MAINLINE!P"&$D63)))) ->  | J63: =IF(B63="","",IF(D63="","",SUM(INDIRECT("MAINLINE!Q"&$B63+1):INDIRECT("MAINLINE!Q"&$D63)))) ->  | K63: =IF(B63="","",IF(D63="","",SUM(INDIRECT("MAINLINE!R"&$B63+1):INDIRECT("MAINLINE!R"&$D63)))) ->  | L63: =IF(B63="","",IF(D63="","",SUM(INDIRECT("MAINLINE!S"&$B63+1):INDIRECT("MAINLINE!S"&$D63)))) ->  | M63: =IF(B63="","",IF(D63="","",SUM(INDIRECT("MAINLINE!T"&$B63+1):INDIRECT("MAINLINE!T"&$D63)))) ->  | N63: =IF(B63="","",IF(D63="","",SUM(INDIRECT("MAINLINE!U"&$B63+1):INDIRECT("MAINLINE!U"&$D63)))) ->  | O63: =IF(B63="","",IF(D63="","",SUM(INDIRECT("MAINLINE!V"&$B63+1):INDIRECT("MAINLINE!V"&$D63)))) -> 
B64: =_xlfn.IFNA(MATCH(A64,MAINLINE!$A$1:$A$586,0),"") ->  | D64: =_xlfn.IFNA(MATCH(C64,MAINLINE!$A$1:$A$586,0),"") ->  | F64: =IF(B64="","",IF(D64="","",SUM(INDIRECT("MAINLINE!M"&$B64+1):INDIRECT("MAINLINE!M"&$D64)))) ->  | G64: =IF(B64="","",IF(D64="","",SUM(INDIRECT("MAINLINE!N"&$B64+1):INDIRECT("MAINLINE!N"&$D64)))) ->  | H64: =IF(B64="","",IF(D64="","",SUM(INDIRECT("MAINLINE!O"&$B64+1):INDIRECT("MAINLINE!O"&$D64)))) ->  | I64: =IF(B64="","",IF(D64="","",SUM(INDIRECT("MAINLINE!P"&$B64+1):INDIRECT("MAINLINE!P"&$D64)))) ->  | J64: =IF(B64="","",IF(D64="","",SUM(INDIRECT("MAINLINE!Q"&$B64+1):INDIRECT("MAINLINE!Q"&$D64)))) ->  | K64: =IF(B64="","",IF(D64="","",SUM(INDIRECT("MAINLINE!R"&$B64+1):INDIRECT("MAINLINE!R"&$D64)))) ->  | L64: =IF(B64="","",IF(D64="","",SUM(INDIRECT("MAINLINE!S"&$B64+1):INDIRECT("MAINLINE!S"&$D64)))) ->  | M64: =IF(B64="","",IF(D64="","",SUM(INDIRECT("MAINLINE!T"&$B64+1):INDIRECT("MAINLINE!T"&$D64)))) ->  | N64: =IF(B64="","",IF(D64="","",SUM(INDIRECT("MAINLINE!U"&$B64+1):INDIRECT("MAINLINE!U"&$D64)))) ->  | O64: =IF(B64="","",IF(D64="","",SUM(INDIRECT("MAINLINE!V"&$B64+1):INDIRECT("MAINLINE!V"&$D64)))) -> 
B65: =_xlfn.IFNA(MATCH(A65,MAINLINE!$A$1:$A$586,0),"") ->  | D65: =_xlfn.IFNA(MATCH(C65,MAINLINE!$A$1:$A$586,0),"") ->  | F65: =IF(B65="","",IF(D65="","",SUM(INDIRECT("MAINLINE!M"&$B65+1):INDIRECT("MAINLINE!M"&$D65)))) ->  | G65: =IF(B65="","",IF(D65="","",SUM(INDIRECT("MAINLINE!N"&$B65+1):INDIRECT("MAINLINE!N"&$D65)))) ->  | H65: =IF(B65="","",IF(D65="","",SUM(INDIRECT("MAINLINE!O"&$B65+1):INDIRECT("MAINLINE!O"&$D65)))) ->  | I65: =IF(B65="","",IF(D65="","",SUM(INDIRECT("MAINLINE!P"&$B65+1):INDIRECT("MAINLINE!P"&$D65)))) ->  | J65: =IF(B65="","",IF(D65="","",SUM(INDIRECT("MAINLINE!Q"&$B65+1):INDIRECT("MAINLINE!Q"&$D65)))) ->  | K65: =IF(B65="","",IF(D65="","",SUM(INDIRECT("MAINLINE!R"&$B65+1):INDIRECT("MAINLINE!R"&$D65)))) ->  | L65: =IF(B65="","",IF(D65="","",SUM(INDIRECT("MAINLINE!S"&$B65+1):INDIRECT("MAINLINE!S"&$D65)))) ->  | M65: =IF(B65="","",IF(D65="","",SUM(INDIRECT("MAINLINE!T"&$B65+1):INDIRECT("MAINLINE!T"&$D65)))) ->  | N65: =IF(B65="","",IF(D65="","",SUM(INDIRECT("MAINLINE!U"&$B65+1):INDIRECT("MAINLINE!U"&$D65)))) ->  | O65: =IF(B65="","",IF(D65="","",SUM(INDIRECT("MAINLINE!V"&$B65+1):INDIRECT("MAINLINE!V"&$D65)))) -> 
B66: =_xlfn.IFNA(MATCH(A66,MAINLINE!$A$1:$A$586,0),"") ->  | D66: =_xlfn.IFNA(MATCH(C66,MAINLINE!$A$1:$A$586,0),"") ->  | F66: =IF(B66="","",IF(D66="","",SUM(INDIRECT("MAINLINE!M"&$B66+1):INDIRECT("MAINLINE!M"&$D66)))) ->  | G66: =IF(B66="","",IF(D66="","",SUM(INDIRECT("MAINLINE!N"&$B66+1):INDIRECT("MAINLINE!N"&$D66)))) ->  | H66: =IF(B66="","",IF(D66="","",SUM(INDIRECT("MAINLINE!O"&$B66+1):INDIRECT("MAINLINE!O"&$D66)))) ->  | I66: =IF(B66="","",IF(D66="","",SUM(INDIRECT("MAINLINE!P"&$B66+1):INDIRECT("MAINLINE!P"&$D66)))) ->  | J66: =IF(B66="","",IF(D66="","",SUM(INDIRECT("MAINLINE!Q"&$B66+1):INDIRECT("MAINLINE!Q"&$D66)))) ->  | K66: =IF(B66="","",IF(D66="","",SUM(INDIRECT("MAINLINE!R"&$B66+1):INDIRECT("MAINLINE!R"&$D66)))) ->  | L66: =IF(B66="","",IF(D66="","",SUM(INDIRECT("MAINLINE!S"&$B66+1):INDIRECT("MAINLINE!S"&$D66)))) ->  | M66: =IF(B66="","",IF(D66="","",SUM(INDIRECT("MAINLINE!T"&$B66+1):INDIRECT("MAINLINE!T"&$D66)))) ->  | N66: =IF(B66="","",IF(D66="","",SUM(INDIRECT("MAINLINE!U"&$B66+1):INDIRECT("MAINLINE!U"&$D66)))) ->  | O66: =IF(B66="","",IF(D66="","",SUM(INDIRECT("MAINLINE!V"&$B66+1):INDIRECT("MAINLINE!V"&$D66)))) -> 
B67: =_xlfn.IFNA(MATCH(A67,MAINLINE!$A$1:$A$586,0),"") ->  | D67: =_xlfn.IFNA(MATCH(C67,MAINLINE!$A$1:$A$586,0),"") ->  | F67: =IF(B67="","",IF(D67="","",SUM(INDIRECT("MAINLINE!M"&$B67+1):INDIRECT("MAINLINE!M"&$D67)))) ->  | G67: =IF(B67="","",IF(D67="","",SUM(INDIRECT("MAINLINE!N"&$B67+1):INDIRECT("MAINLINE!N"&$D67)))) ->  | H67: =IF(B67="","",IF(D67="","",SUM(INDIRECT("MAINLINE!O"&$B67+1):INDIRECT("MAINLINE!O"&$D67)))) ->  | I67: =IF(B67="","",IF(D67="","",SUM(INDIRECT("MAINLINE!P"&$B67+1):INDIRECT("MAINLINE!P"&$D67)))) ->  | J67: =IF(B67="","",IF(D67="","",SUM(INDIRECT("MAINLINE!Q"&$B67+1):INDIRECT("MAINLINE!Q"&$D67)))) ->  | K67: =IF(B67="","",IF(D67="","",SUM(INDIRECT("MAINLINE!R"&$B67+1):INDIRECT("MAINLINE!R"&$D67)))) ->  | L67: =IF(B67="","",IF(D67="","",SUM(INDIRECT("MAINLINE!S"&$B67+1):INDIRECT("MAINLINE!S"&$D67)))) ->  | M67: =IF(B67="","",IF(D67="","",SUM(INDIRECT("MAINLINE!T"&$B67+1):INDIRECT("MAINLINE!T"&$D67)))) ->  | N67: =IF(B67="","",IF(D67="","",SUM(INDIRECT("MAINLINE!U"&$B67+1):INDIRECT("MAINLINE!U"&$D67)))) ->  | O67: =IF(B67="","",IF(D67="","",SUM(INDIRECT("MAINLINE!V"&$B67+1):INDIRECT("MAINLINE!V"&$D67)))) -> 
A68: =IF(C67="","",C67) ->  | B68: =_xlfn.IFNA(MATCH(A68,MAINLINE!$A$1:$A$586,0),"") ->  | D68: =_xlfn.IFNA(MATCH(C68,MAINLINE!$A$1:$A$586,0),"") ->  | F68: =IF(B68="","",IF(D68="","",SUM(INDIRECT("MAINLINE!M"&$B68+1):INDIRECT("MAINLINE!M"&$D68)))) ->  | G68: =IF(B68="","",IF(D68="","",SUM(INDIRECT("MAINLINE!N"&$B68+1):INDIRECT("MAINLINE!N"&$D68)))) ->  | H68: =IF(B68="","",IF(D68="","",SUM(INDIRECT("MAINLINE!O"&$B68+1):INDIRECT("MAINLINE!O"&$D68)))) ->  | I68: =IF(B68="","",IF(D68="","",SUM(INDIRECT("MAINLINE!P"&$B68+1):INDIRECT("MAINLINE!P"&$D68)))) ->  | J68: =IF(B68="","",IF(D68="","",SUM(INDIRECT("MAINLINE!Q"&$B68+1):INDIRECT("MAINLINE!Q"&$D68)))) ->  | K68: =IF(B68="","",IF(D68="","",SUM(INDIRECT("MAINLINE!R"&$B68+1):INDIRECT("MAINLINE!R"&$D68)))) ->  | L68: =IF(B68="","",IF(D68="","",SUM(INDIRECT("MAINLINE!S"&$B68+1):INDIRECT("MAINLINE!S"&$D68)))) ->  | M68: =IF(B68="","",IF(D68="","",SUM(INDIRECT("MAINLINE!T"&$B68+1):INDIRECT("MAINLINE!T"&$D68)))) ->  | N68: =IF(B68="","",IF(D68="","",SUM(INDIRECT("MAINLINE!U"&$B68+1):INDIRECT("MAINLINE!U"&$D68)))) ->  | O68: =IF(B68="","",IF(D68="","",SUM(INDIRECT("MAINLINE!V"&$B68+1):INDIRECT("MAINLINE!V"&$D68)))) -> 
B69: =_xlfn.IFNA(MATCH(A69,MAINLINE!$A$1:$A$586,0),"") ->  | D69: =_xlfn.IFNA(MATCH(C69,MAINLINE!$A$1:$A$586,0),"") ->  | F69: =IF(B69="","",IF(D69="","",SUM(INDIRECT("MAINLINE!M"&$B69+1):INDIRECT("MAINLINE!M"&$D69)))) ->  | G69: =IF(B69="","",IF(D69="","",SUM(INDIRECT("MAINLINE!N"&$B69+1):INDIRECT("MAINLINE!N"&$D69)))) ->  | H69: =IF(B69="","",IF(D69="","",SUM(INDIRECT("MAINLINE!O"&$B69+1):INDIRECT("MAINLINE!O"&$D69)))) ->  | I69: =IF(B69="","",IF(D69="","",SUM(INDIRECT("MAINLINE!P"&$B69+1):INDIRECT("MAINLINE!P"&$D69)))) ->  | J69: =IF(B69="","",IF(D69="","",SUM(INDIRECT("MAINLINE!Q"&$B69+1):INDIRECT("MAINLINE!Q"&$D69)))) ->  | K69: =IF(B69="","",IF(D69="","",SUM(INDIRECT("MAINLINE!R"&$B69+1):INDIRECT("MAINLINE!R"&$D69)))) ->  | L69: =IF(B69="","",IF(D69="","",SUM(INDIRECT("MAINLINE!S"&$B69+1):INDIRECT("MAINLINE!S"&$D69)))) ->  | M69: =IF(B69="","",IF(D69="","",SUM(INDIRECT("MAINLINE!T"&$B69+1):INDIRECT("MAINLINE!T"&$D69)))) ->  | N69: =IF(B69="","",IF(D69="","",SUM(INDIRECT("MAINLINE!U"&$B69+1):INDIRECT("MAINLINE!U"&$D69)))) ->  | O69: =IF(B69="","",IF(D69="","",SUM(INDIRECT("MAINLINE!V"&$B69+1):INDIRECT("MAINLINE!V"&$D69)))) -> 
B70: =_xlfn.IFNA(MATCH(A70,MAINLINE!$A$1:$A$586,0),"") ->  | D70: =_xlfn.IFNA(MATCH(C70,MAINLINE!$A$1:$A$586,0),"") ->  | F70: =IF(B70="","",IF(D70="","",SUM(INDIRECT("MAINLINE!M"&$B70+1):INDIRECT("MAINLINE!M"&$D70)))) ->  | G70: =IF(B70="","",IF(D70="","",SUM(INDIRECT("MAINLINE!N"&$B70+1):INDIRECT("MAINLINE!N"&$D70)))) ->  | H70: =IF(B70="","",IF(D70="","",SUM(INDIRECT("MAINLINE!O"&$B70+1):INDIRECT("MAINLINE!O"&$D70)))) ->  | I70: =IF(B70="","",IF(D70="","",SUM(INDIRECT("MAINLINE!P"&$B70+1):INDIRECT("MAINLINE!P"&$D70)))) ->  | J70: =IF(B70="","",IF(D70="","",SUM(INDIRECT("MAINLINE!Q"&$B70+1):INDIRECT("MAINLINE!Q"&$D70)))) ->  | K70: =IF(B70="","",IF(D70="","",SUM(INDIRECT("MAINLINE!R"&$B70+1):INDIRECT("MAINLINE!R"&$D70)))) ->  | L70: =IF(B70="","",IF(D70="","",SUM(INDIRECT("MAINLINE!S"&$B70+1):INDIRECT("MAINLINE!S"&$D70)))) ->  | M70: =IF(B70="","",IF(D70="","",SUM(INDIRECT("MAINLINE!T"&$B70+1):INDIRECT("MAINLINE!T"&$D70)))) ->  | N70: =IF(B70="","",IF(D70="","",SUM(INDIRECT("MAINLINE!U"&$B70+1):INDIRECT("MAINLINE!U"&$D70)))) ->  | O70: =IF(B70="","",IF(D70="","",SUM(INDIRECT("MAINLINE!V"&$B70+1):INDIRECT("MAINLINE!V"&$D70)))) -> 
B71: =_xlfn.IFNA(MATCH(A71,MAINLINE!$A$1:$A$586,0),"") ->  | D71: =_xlfn.IFNA(MATCH(C71,MAINLINE!$A$1:$A$586,0),"") ->  | F71: =IF(B71="","",IF(D71="","",SUM(INDIRECT("MAINLINE!M"&$B71+1):INDIRECT("MAINLINE!M"&$D71)))) ->  | G71: =IF(B71="","",IF(D71="","",SUM(INDIRECT("MAINLINE!N"&$B71+1):INDIRECT("MAINLINE!N"&$D71)))) ->  | H71: =IF(B71="","",IF(D71="","",SUM(INDIRECT("MAINLINE!O"&$B71+1):INDIRECT("MAINLINE!O"&$D71)))) ->  | I71: =IF(B71="","",IF(D71="","",SUM(INDIRECT("MAINLINE!P"&$B71+1):INDIRECT("MAINLINE!P"&$D71)))) ->  | J71: =IF(B71="","",IF(D71="","",SUM(INDIRECT("MAINLINE!Q"&$B71+1):INDIRECT("MAINLINE!Q"&$D71)))) ->  | K71: =IF(B71="","",IF(D71="","",SUM(INDIRECT("MAINLINE!R"&$B71+1):INDIRECT("MAINLINE!R"&$D71)))) ->  | L71: =IF(B71="","",IF(D71="","",SUM(INDIRECT("MAINLINE!S"&$B71+1):INDIRECT("MAINLINE!S"&$D71)))) ->  | M71: =IF(B71="","",IF(D71="","",SUM(INDIRECT("MAINLINE!T"&$B71+1):INDIRECT("MAINLINE!T"&$D71)))) ->  | N71: =IF(B71="","",IF(D71="","",SUM(INDIRECT("MAINLINE!U"&$B71+1):INDIRECT("MAINLINE!U"&$D71)))) ->  | O71: =IF(B71="","",IF(D71="","",SUM(INDIRECT("MAINLINE!V"&$B71+1):INDIRECT("MAINLINE!V"&$D71)))) -> 
B72: =_xlfn.IFNA(MATCH(A72,MAINLINE!$A$1:$A$586,0),"") ->  | D72: =_xlfn.IFNA(MATCH(C72,MAINLINE!$A$1:$A$586,0),"") ->  | F72: =IF(B72="","",IF(D72="","",SUM(INDIRECT("MAINLINE!M"&$B72+1):INDIRECT("MAINLINE!M"&$D72)))) ->  | G72: =IF(B72="","",IF(D72="","",SUM(INDIRECT("MAINLINE!N"&$B72+1):INDIRECT("MAINLINE!N"&$D72)))) ->  | H72: =IF(B72="","",IF(D72="","",SUM(INDIRECT("MAINLINE!O"&$B72+1):INDIRECT("MAINLINE!O"&$D72)))) ->  | I72: =IF(B72="","",IF(D72="","",SUM(INDIRECT("MAINLINE!P"&$B72+1):INDIRECT("MAINLINE!P"&$D72)))) ->  | J72: =IF(B72="","",IF(D72="","",SUM(INDIRECT("MAINLINE!Q"&$B72+1):INDIRECT("MAINLINE!Q"&$D72)))) ->  | K72: =IF(B72="","",IF(D72="","",SUM(INDIRECT("MAINLINE!R"&$B72+1):INDIRECT("MAINLINE!R"&$D72)))) ->  | L72: =IF(B72="","",IF(D72="","",SUM(INDIRECT("MAINLINE!S"&$B72+1):INDIRECT("MAINLINE!S"&$D72)))) ->  | M72: =IF(B72="","",IF(D72="","",SUM(INDIRECT("MAINLINE!T"&$B72+1):INDIRECT("MAINLINE!T"&$D72)))) ->  | N72: =IF(B72="","",IF(D72="","",SUM(INDIRECT("MAINLINE!U"&$B72+1):INDIRECT("MAINLINE!U"&$D72)))) ->  | O72: =IF(B72="","",IF(D72="","",SUM(INDIRECT("MAINLINE!V"&$B72+1):INDIRECT("MAINLINE!V"&$D72)))) -> 
B73: =_xlfn.IFNA(MATCH(A73,MAINLINE!$A$1:$A$586,0),"") ->  | D73: =_xlfn.IFNA(MATCH(C73,MAINLINE!$A$1:$A$586,0),"") ->  | F73: =IF(B73="","",IF(D73="","",SUM(INDIRECT("MAINLINE!M"&$B73+1):INDIRECT("MAINLINE!M"&$D73)))) ->  | G73: =IF(B73="","",IF(D73="","",SUM(INDIRECT("MAINLINE!N"&$B73+1):INDIRECT("MAINLINE!N"&$D73)))) ->  | H73: =IF(B73="","",IF(D73="","",SUM(INDIRECT("MAINLINE!O"&$B73+1):INDIRECT("MAINLINE!O"&$D73)))) ->  | I73: =IF(B73="","",IF(D73="","",SUM(INDIRECT("MAINLINE!P"&$B73+1):INDIRECT("MAINLINE!P"&$D73)))) ->  | J73: =IF(B73="","",IF(D73="","",SUM(INDIRECT("MAINLINE!Q"&$B73+1):INDIRECT("MAINLINE!Q"&$D73)))) ->  | K73: =IF(B73="","",IF(D73="","",SUM(INDIRECT("MAINLINE!R"&$B73+1):INDIRECT("MAINLINE!R"&$D73)))) ->  | L73: =IF(B73="","",IF(D73="","",SUM(INDIRECT("MAINLINE!S"&$B73+1):INDIRECT("MAINLINE!S"&$D73)))) ->  | M73: =IF(B73="","",IF(D73="","",SUM(INDIRECT("MAINLINE!T"&$B73+1):INDIRECT("MAINLINE!T"&$D73)))) ->  | N73: =IF(B73="","",IF(D73="","",SUM(INDIRECT("MAINLINE!U"&$B73+1):INDIRECT("MAINLINE!U"&$D73)))) ->  | O73: =IF(B73="","",IF(D73="","",SUM(INDIRECT("MAINLINE!V"&$B73+1):INDIRECT("MAINLINE!V"&$D73)))) -> 
B74: =_xlfn.IFNA(MATCH(A74,MAINLINE!$A$1:$A$586,0),"") ->  | D74: =_xlfn.IFNA(MATCH(C74,MAINLINE!$A$1:$A$586,0),"") ->  | F74: =IF(B74="","",IF(D74="","",SUM(INDIRECT("MAINLINE!M"&$B74+1):INDIRECT("MAINLINE!M"&$D74)))) ->  | G74: =IF(B74="","",IF(D74="","",SUM(INDIRECT("MAINLINE!N"&$B74+1):INDIRECT("MAINLINE!N"&$D74)))) ->  | H74: =IF(B74="","",IF(D74="","",SUM(INDIRECT("MAINLINE!O"&$B74+1):INDIRECT("MAINLINE!O"&$D74)))) ->  | I74: =IF(B74="","",IF(D74="","",SUM(INDIRECT("MAINLINE!P"&$B74+1):INDIRECT("MAINLINE!P"&$D74)))) ->  | J74: =IF(B74="","",IF(D74="","",SUM(INDIRECT("MAINLINE!Q"&$B74+1):INDIRECT("MAINLINE!Q"&$D74)))) ->  | K74: =IF(B74="","",IF(D74="","",SUM(INDIRECT("MAINLINE!R"&$B74+1):INDIRECT("MAINLINE!R"&$D74)))) ->  | L74: =IF(B74="","",IF(D74="","",SUM(INDIRECT("MAINLINE!S"&$B74+1):INDIRECT("MAINLINE!S"&$D74)))) ->  | M74: =IF(B74="","",IF(D74="","",SUM(INDIRECT("MAINLINE!T"&$B74+1):INDIRECT("MAINLINE!T"&$D74)))) ->  | N74: =IF(B74="","",IF(D74="","",SUM(INDIRECT("MAINLINE!U"&$B74+1):INDIRECT("MAINLINE!U"&$D74)))) ->  | O74: =IF(B74="","",IF(D74="","",SUM(INDIRECT("MAINLINE!V"&$B74+1):INDIRECT("MAINLINE!V"&$D74)))) -> 
B75: =_xlfn.IFNA(MATCH(A75,MAINLINE!$A$1:$A$586,0),"") ->  | D75: =_xlfn.IFNA(MATCH(C75,MAINLINE!$A$1:$A$586,0),"") ->  | F75: =IF(B75="","",IF(D75="","",SUM(INDIRECT("MAINLINE!M"&$B75+1):INDIRECT("MAINLINE!M"&$D75)))) ->  | G75: =IF(B75="","",IF(D75="","",SUM(INDIRECT("MAINLINE!N"&$B75+1):INDIRECT("MAINLINE!N"&$D75)))) ->  | H75: =IF(B75="","",IF(D75="","",SUM(INDIRECT("MAINLINE!O"&$B75+1):INDIRECT("MAINLINE!O"&$D75)))) ->  | I75: =IF(B75="","",IF(D75="","",SUM(INDIRECT("MAINLINE!P"&$B75+1):INDIRECT("MAINLINE!P"&$D75)))) ->  | J75: =IF(B75="","",IF(D75="","",SUM(INDIRECT("MAINLINE!Q"&$B75+1):INDIRECT("MAINLINE!Q"&$D75)))) ->  | K75: =IF(B75="","",IF(D75="","",SUM(INDIRECT("MAINLINE!R"&$B75+1):INDIRECT("MAINLINE!R"&$D75)))) ->  | L75: =IF(B75="","",IF(D75="","",SUM(INDIRECT("MAINLINE!S"&$B75+1):INDIRECT("MAINLINE!S"&$D75)))) ->  | M75: =IF(B75="","",IF(D75="","",SUM(INDIRECT("MAINLINE!T"&$B75+1):INDIRECT("MAINLINE!T"&$D75)))) ->  | N75: =IF(B75="","",IF(D75="","",SUM(INDIRECT("MAINLINE!U"&$B75+1):INDIRECT("MAINLINE!U"&$D75)))) ->  | O75: =IF(B75="","",IF(D75="","",SUM(INDIRECT("MAINLINE!V"&$B75+1):INDIRECT("MAINLINE!V"&$D75)))) -> 
B76: =_xlfn.IFNA(MATCH(A76,MAINLINE!$A$1:$A$586,0),"") ->  | D76: =_xlfn.IFNA(MATCH(C76,MAINLINE!$A$1:$A$586,0),"") ->  | F76: =IF(B76="","",IF(D76="","",SUM(INDIRECT("MAINLINE!M"&$B76+1):INDIRECT("MAINLINE!M"&$D76)))) ->  | G76: =IF(B76="","",IF(D76="","",SUM(INDIRECT("MAINLINE!N"&$B76+1):INDIRECT("MAINLINE!N"&$D76)))) ->  | H76: =IF(B76="","",IF(D76="","",SUM(INDIRECT("MAINLINE!O"&$B76+1):INDIRECT("MAINLINE!O"&$D76)))) ->  | I76: =IF(B76="","",IF(D76="","",SUM(INDIRECT("MAINLINE!P"&$B76+1):INDIRECT("MAINLINE!P"&$D76)))) ->  | J76: =IF(B76="","",IF(D76="","",SUM(INDIRECT("MAINLINE!Q"&$B76+1):INDIRECT("MAINLINE!Q"&$D76)))) ->  | K76: =IF(B76="","",IF(D76="","",SUM(INDIRECT("MAINLINE!R"&$B76+1):INDIRECT("MAINLINE!R"&$D76)))) ->  | L76: =IF(B76="","",IF(D76="","",SUM(INDIRECT("MAINLINE!S"&$B76+1):INDIRECT("MAINLINE!S"&$D76)))) ->  | M76: =IF(B76="","",IF(D76="","",SUM(INDIRECT("MAINLINE!T"&$B76+1):INDIRECT("MAINLINE!T"&$D76)))) ->  | N76: =IF(B76="","",IF(D76="","",SUM(INDIRECT("MAINLINE!U"&$B76+1):INDIRECT("MAINLINE!U"&$D76)))) ->  | O76: =IF(B76="","",IF(D76="","",SUM(INDIRECT("MAINLINE!V"&$B76+1):INDIRECT("MAINLINE!V"&$D76)))) -> 
B77: =_xlfn.IFNA(MATCH(A77,MAINLINE!$A$1:$A$586,0),"") ->  | D77: =_xlfn.IFNA(MATCH(C77,MAINLINE!$A$1:$A$586,0),"") ->  | F77: =IF(B77="","",IF(D77="","",SUM(INDIRECT("MAINLINE!M"&$B77+1):INDIRECT("MAINLINE!M"&$D77)))) ->  | G77: =IF(B77="","",IF(D77="","",SUM(INDIRECT("MAINLINE!N"&$B77+1):INDIRECT("MAINLINE!N"&$D77)))) ->  | H77: =IF(B77="","",IF(D77="","",SUM(INDIRECT("MAINLINE!O"&$B77+1):INDIRECT("MAINLINE!O"&$D77)))) ->  | I77: =IF(B77="","",IF(D77="","",SUM(INDIRECT("MAINLINE!P"&$B77+1):INDIRECT("MAINLINE!P"&$D77)))) ->  | J77: =IF(B77="","",IF(D77="","",SUM(INDIRECT("MAINLINE!Q"&$B77+1):INDIRECT("MAINLINE!Q"&$D77)))) ->  | K77: =IF(B77="","",IF(D77="","",SUM(INDIRECT("MAINLINE!R"&$B77+1):INDIRECT("MAINLINE!R"&$D77)))) ->  | L77: =IF(B77="","",IF(D77="","",SUM(INDIRECT("MAINLINE!S"&$B77+1):INDIRECT("MAINLINE!S"&$D77)))) ->  | M77: =IF(B77="","",IF(D77="","",SUM(INDIRECT("MAINLINE!T"&$B77+1):INDIRECT("MAINLINE!T"&$D77)))) ->  | N77: =IF(B77="","",IF(D77="","",SUM(INDIRECT("MAINLINE!U"&$B77+1):INDIRECT("MAINLINE!U"&$D77)))) ->  | O77: =IF(B77="","",IF(D77="","",SUM(INDIRECT("MAINLINE!V"&$B77+1):INDIRECT("MAINLINE!V"&$D77)))) -> 
B78: =_xlfn.IFNA(MATCH(A78,MAINLINE!$A$1:$A$586,0),"") ->  | D78: =_xlfn.IFNA(MATCH(C78,MAINLINE!$A$1:$A$586,0),"") ->  | F78: =IF(B78="","",IF(D78="","",SUM(INDIRECT("MAINLINE!M"&$B78+1):INDIRECT("MAINLINE!M"&$D78)))) ->  | G78: =IF(B78="","",IF(D78="","",SUM(INDIRECT("MAINLINE!N"&$B78+1):INDIRECT("MAINLINE!N"&$D78)))) ->  | H78: =IF(B78="","",IF(D78="","",SUM(INDIRECT("MAINLINE!O"&$B78+1):INDIRECT("MAINLINE!O"&$D78)))) ->  | I78: =IF(B78="","",IF(D78="","",SUM(INDIRECT("MAINLINE!P"&$B78+1):INDIRECT("MAINLINE!P"&$D78)))) ->  | J78: =IF(B78="","",IF(D78="","",SUM(INDIRECT("MAINLINE!Q"&$B78+1):INDIRECT("MAINLINE!Q"&$D78)))) ->  | K78: =IF(B78="","",IF(D78="","",SUM(INDIRECT("MAINLINE!R"&$B78+1):INDIRECT("MAINLINE!R"&$D78)))) ->  | L78: =IF(B78="","",IF(D78="","",SUM(INDIRECT("MAINLINE!S"&$B78+1):INDIRECT("MAINLINE!S"&$D78)))) ->  | M78: =IF(B78="","",IF(D78="","",SUM(INDIRECT("MAINLINE!T"&$B78+1):INDIRECT("MAINLINE!T"&$D78)))) ->  | N78: =IF(B78="","",IF(D78="","",SUM(INDIRECT("MAINLINE!U"&$B78+1):INDIRECT("MAINLINE!U"&$D78)))) ->  | O78: =IF(B78="","",IF(D78="","",SUM(INDIRECT("MAINLINE!V"&$B78+1):INDIRECT("MAINLINE!V"&$D78)))) -> 
B79: =_xlfn.IFNA(MATCH(A79,MAINLINE!$A$1:$A$586,0),"") ->  | D79: =_xlfn.IFNA(MATCH(C79,MAINLINE!$A$1:$A$586,0),"") ->  | F79: =IF(B79="","",IF(D79="","",SUM(INDIRECT("MAINLINE!M"&$B79+1):INDIRECT("MAINLINE!M"&$D79)))) ->  | G79: =IF(B79="","",IF(D79="","",SUM(INDIRECT("MAINLINE!N"&$B79+1):INDIRECT("MAINLINE!N"&$D79)))) ->  | H79: =IF(B79="","",IF(D79="","",SUM(INDIRECT("MAINLINE!O"&$B79+1):INDIRECT("MAINLINE!O"&$D79)))) ->  | I79: =IF(B79="","",IF(D79="","",SUM(INDIRECT("MAINLINE!P"&$B79+1):INDIRECT("MAINLINE!P"&$D79)))) ->  | J79: =IF(B79="","",IF(D79="","",SUM(INDIRECT("MAINLINE!Q"&$B79+1):INDIRECT("MAINLINE!Q"&$D79)))) ->  | K79: =IF(B79="","",IF(D79="","",SUM(INDIRECT("MAINLINE!R"&$B79+1):INDIRECT("MAINLINE!R"&$D79)))) ->  | L79: =IF(B79="","",IF(D79="","",SUM(INDIRECT("MAINLINE!S"&$B79+1):INDIRECT("MAINLINE!S"&$D79)))) ->  | M79: =IF(B79="","",IF(D79="","",SUM(INDIRECT("MAINLINE!T"&$B79+1):INDIRECT("MAINLINE!T"&$D79)))) ->  | N79: =IF(B79="","",IF(D79="","",SUM(INDIRECT("MAINLINE!U"&$B79+1):INDIRECT("MAINLINE!U"&$D79)))) ->  | O79: =IF(B79="","",IF(D79="","",SUM(INDIRECT("MAINLINE!V"&$B79+1):INDIRECT("MAINLINE!V"&$D79)))) -> 
B80: =_xlfn.IFNA(MATCH(A80,MAINLINE!$A$1:$A$586,0),"") ->  | D80: =_xlfn.IFNA(MATCH(C80,MAINLINE!$A$1:$A$586,0),"") ->  | F80: =IF(B80="","",IF(D80="","",SUM(INDIRECT("MAINLINE!M"&$B80+1):INDIRECT("MAINLINE!M"&$D80)))) ->  | G80: =IF(B80="","",IF(D80="","",SUM(INDIRECT("MAINLINE!N"&$B80+1):INDIRECT("MAINLINE!N"&$D80)))) ->  | H80: =IF(B80="","",IF(D80="","",SUM(INDIRECT("MAINLINE!O"&$B80+1):INDIRECT("MAINLINE!O"&$D80)))) ->  | I80: =IF(B80="","",IF(D80="","",SUM(INDIRECT("MAINLINE!P"&$B80+1):INDIRECT("MAINLINE!P"&$D80)))) ->  | J80: =IF(B80="","",IF(D80="","",SUM(INDIRECT("MAINLINE!Q"&$B80+1):INDIRECT("MAINLINE!Q"&$D80)))) ->  | K80: =IF(B80="","",IF(D80="","",SUM(INDIRECT("MAINLINE!R"&$B80+1):INDIRECT("MAINLINE!R"&$D80)))) ->  | L80: =IF(B80="","",IF(D80="","",SUM(INDIRECT("MAINLINE!S"&$B80+1):INDIRECT("MAINLINE!S"&$D80)))) ->  | M80: =IF(B80="","",IF(D80="","",SUM(INDIRECT("MAINLINE!T"&$B80+1):INDIRECT("MAINLINE!T"&$D80)))) ->  | N80: =IF(B80="","",IF(D80="","",SUM(INDIRECT("MAINLINE!U"&$B80+1):INDIRECT("MAINLINE!U"&$D80)))) ->  | O80: =IF(B80="","",IF(D80="","",SUM(INDIRECT("MAINLINE!V"&$B80+1):INDIRECT("MAINLINE!V"&$D80)))) -> 
B81: =_xlfn.IFNA(MATCH(A81,MAINLINE!$A$1:$A$586,0),"") ->  | D81: =_xlfn.IFNA(MATCH(C81,MAINLINE!$A$1:$A$586,0),"") ->  | F81: =IF(B81="","",IF(D81="","",SUM(INDIRECT("MAINLINE!M"&$B81+1):INDIRECT("MAINLINE!M"&$D81)))) ->  | G81: =IF(B81="","",IF(D81="","",SUM(INDIRECT("MAINLINE!N"&$B81+1):INDIRECT("MAINLINE!N"&$D81)))) ->  | H81: =IF(B81="","",IF(D81="","",SUM(INDIRECT("MAINLINE!O"&$B81+1):INDIRECT("MAINLINE!O"&$D81)))) ->  | I81: =IF(B81="","",IF(D81="","",SUM(INDIRECT("MAINLINE!P"&$B81+1):INDIRECT("MAINLINE!P"&$D81)))) ->  | J81: =IF(B81="","",IF(D81="","",SUM(INDIRECT("MAINLINE!Q"&$B81+1):INDIRECT("MAINLINE!Q"&$D81)))) ->  | K81: =IF(B81="","",IF(D81="","",SUM(INDIRECT("MAINLINE!R"&$B81+1):INDIRECT("MAINLINE!R"&$D81)))) ->  | L81: =IF(B81="","",IF(D81="","",SUM(INDIRECT("MAINLINE!S"&$B81+1):INDIRECT("MAINLINE!S"&$D81)))) ->  | M81: =IF(B81="","",IF(D81="","",SUM(INDIRECT("MAINLINE!T"&$B81+1):INDIRECT("MAINLINE!T"&$D81)))) ->  | N81: =IF(B81="","",IF(D81="","",SUM(INDIRECT("MAINLINE!U"&$B81+1):INDIRECT("MAINLINE!U"&$D81)))) ->  | O81: =IF(B81="","",IF(D81="","",SUM(INDIRECT("MAINLINE!V"&$B81+1):INDIRECT("MAINLINE!V"&$D81)))) -> 
B82: =_xlfn.IFNA(MATCH(A82,MAINLINE!$A$1:$A$586,0),"") ->  | D82: =_xlfn.IFNA(MATCH(C82,MAINLINE!$A$1:$A$586,0),"") ->  | F82: =IF(B82="","",IF(D82="","",SUM(INDIRECT("MAINLINE!M"&$B82+1):INDIRECT("MAINLINE!M"&$D82)))) ->  | G82: =IF(B82="","",IF(D82="","",SUM(INDIRECT("MAINLINE!N"&$B82+1):INDIRECT("MAINLINE!N"&$D82)))) ->  | H82: =IF(B82="","",IF(D82="","",SUM(INDIRECT("MAINLINE!O"&$B82+1):INDIRECT("MAINLINE!O"&$D82)))) ->  | I82: =IF(B82="","",IF(D82="","",SUM(INDIRECT("MAINLINE!P"&$B82+1):INDIRECT("MAINLINE!P"&$D82)))) ->  | J82: =IF(B82="","",IF(D82="","",SUM(INDIRECT("MAINLINE!Q"&$B82+1):INDIRECT("MAINLINE!Q"&$D82)))) ->  | K82: =IF(B82="","",IF(D82="","",SUM(INDIRECT("MAINLINE!R"&$B82+1):INDIRECT("MAINLINE!R"&$D82)))) ->  | L82: =IF(B82="","",IF(D82="","",SUM(INDIRECT("MAINLINE!S"&$B82+1):INDIRECT("MAINLINE!S"&$D82)))) ->  | M82: =IF(B82="","",IF(D82="","",SUM(INDIRECT("MAINLINE!T"&$B82+1):INDIRECT("MAINLINE!T"&$D82)))) ->  | N82: =IF(B82="","",IF(D82="","",SUM(INDIRECT("MAINLINE!U"&$B82+1):INDIRECT("MAINLINE!U"&$D82)))) ->  | O82: =IF(B82="","",IF(D82="","",SUM(INDIRECT("MAINLINE!V"&$B82+1):INDIRECT("MAINLINE!V"&$D82)))) -> 
B83: =_xlfn.IFNA(MATCH(A83,MAINLINE!$A$1:$A$586,0),"") ->  | D83: =_xlfn.IFNA(MATCH(C83,MAINLINE!$A$1:$A$586,0),"") ->  | F83: =IF(B83="","",IF(D83="","",SUM(INDIRECT("MAINLINE!M"&$B83+1):INDIRECT("MAINLINE!M"&$D83)))) ->  | G83: =IF(B83="","",IF(D83="","",SUM(INDIRECT("MAINLINE!N"&$B83+1):INDIRECT("MAINLINE!N"&$D83)))) ->  | H83: =IF(B83="","",IF(D83="","",SUM(INDIRECT("MAINLINE!O"&$B83+1):INDIRECT("MAINLINE!O"&$D83)))) ->  | I83: =IF(B83="","",IF(D83="","",SUM(INDIRECT("MAINLINE!P"&$B83+1):INDIRECT("MAINLINE!P"&$D83)))) ->  | J83: =IF(B83="","",IF(D83="","",SUM(INDIRECT("MAINLINE!Q"&$B83+1):INDIRECT("MAINLINE!Q"&$D83)))) ->  | K83: =IF(B83="","",IF(D83="","",SUM(INDIRECT("MAINLINE!R"&$B83+1):INDIRECT("MAINLINE!R"&$D83)))) ->  | L83: =IF(B83="","",IF(D83="","",SUM(INDIRECT("MAINLINE!S"&$B83+1):INDIRECT("MAINLINE!S"&$D83)))) ->  | M83: =IF(B83="","",IF(D83="","",SUM(INDIRECT("MAINLINE!T"&$B83+1):INDIRECT("MAINLINE!T"&$D83)))) ->  | N83: =IF(B83="","",IF(D83="","",SUM(INDIRECT("MAINLINE!U"&$B83+1):INDIRECT("MAINLINE!U"&$D83)))) ->  | O83: =IF(B83="","",IF(D83="","",SUM(INDIRECT("MAINLINE!V"&$B83+1):INDIRECT("MAINLINE!V"&$D83)))) -> 
B84: =_xlfn.IFNA(MATCH(A84,MAINLINE!$A$1:$A$586,0),"") ->  | D84: =_xlfn.IFNA(MATCH(C84,MAINLINE!$A$1:$A$586,0),"") ->  | F84: =IF(B84="","",IF(D84="","",SUM(INDIRECT("MAINLINE!M"&$B84+1):INDIRECT("MAINLINE!M"&$D84)))) ->  | G84: =IF(B84="","",IF(D84="","",SUM(INDIRECT("MAINLINE!N"&$B84+1):INDIRECT("MAINLINE!N"&$D84)))) ->  | H84: =IF(B84="","",IF(D84="","",SUM(INDIRECT("MAINLINE!O"&$B84+1):INDIRECT("MAINLINE!O"&$D84)))) ->  | I84: =IF(B84="","",IF(D84="","",SUM(INDIRECT("MAINLINE!P"&$B84+1):INDIRECT("MAINLINE!P"&$D84)))) ->  | J84: =IF(B84="","",IF(D84="","",SUM(INDIRECT("MAINLINE!Q"&$B84+1):INDIRECT("MAINLINE!Q"&$D84)))) ->  | K84: =IF(B84="","",IF(D84="","",SUM(INDIRECT("MAINLINE!R"&$B84+1):INDIRECT("MAINLINE!R"&$D84)))) ->  | L84: =IF(B84="","",IF(D84="","",SUM(INDIRECT("MAINLINE!S"&$B84+1):INDIRECT("MAINLINE!S"&$D84)))) ->  | M84: =IF(B84="","",IF(D84="","",SUM(INDIRECT("MAINLINE!T"&$B84+1):INDIRECT("MAINLINE!T"&$D84)))) ->  | N84: =IF(B84="","",IF(D84="","",SUM(INDIRECT("MAINLINE!U"&$B84+1):INDIRECT("MAINLINE!U"&$D84)))) ->  | O84: =IF(B84="","",IF(D84="","",SUM(INDIRECT("MAINLINE!V"&$B84+1):INDIRECT("MAINLINE!V"&$D84)))) -> 
B85: =_xlfn.IFNA(MATCH(A85,MAINLINE!$A$1:$A$586,0),"") ->  | D85: =_xlfn.IFNA(MATCH(C85,MAINLINE!$A$1:$A$586,0),"") ->  | F85: =IF(B85="","",IF(D85="","",SUM(INDIRECT("MAINLINE!M"&$B85+1):INDIRECT("MAINLINE!M"&$D85)))) ->  | G85: =IF(B85="","",IF(D85="","",SUM(INDIRECT("MAINLINE!N"&$B85+1):INDIRECT("MAINLINE!N"&$D85)))) ->  | H85: =IF(B85="","",IF(D85="","",SUM(INDIRECT("MAINLINE!O"&$B85+1):INDIRECT("MAINLINE!O"&$D85)))) ->  | I85: =IF(B85="","",IF(D85="","",SUM(INDIRECT("MAINLINE!P"&$B85+1):INDIRECT("MAINLINE!P"&$D85)))) ->  | J85: =IF(B85="","",IF(D85="","",SUM(INDIRECT("MAINLINE!Q"&$B85+1):INDIRECT("MAINLINE!Q"&$D85)))) ->  | K85: =IF(B85="","",IF(D85="","",SUM(INDIRECT("MAINLINE!R"&$B85+1):INDIRECT("MAINLINE!R"&$D85)))) ->  | L85: =IF(B85="","",IF(D85="","",SUM(INDIRECT("MAINLINE!S"&$B85+1):INDIRECT("MAINLINE!S"&$D85)))) ->  | M85: =IF(B85="","",IF(D85="","",SUM(INDIRECT("MAINLINE!T"&$B85+1):INDIRECT("MAINLINE!T"&$D85)))) ->  | N85: =IF(B85="","",IF(D85="","",SUM(INDIRECT("MAINLINE!U"&$B85+1):INDIRECT("MAINLINE!U"&$D85)))) ->  | O85: =IF(B85="","",IF(D85="","",SUM(INDIRECT("MAINLINE!V"&$B85+1):INDIRECT("MAINLINE!V"&$D85)))) -> 
B86: =_xlfn.IFNA(MATCH(A86,MAINLINE!$A$1:$A$586,0),"") ->  | D86: =_xlfn.IFNA(MATCH(C86,MAINLINE!$A$1:$A$586,0),"") ->  | F86: =IF(B86="","",IF(D86="","",SUM(INDIRECT("MAINLINE!M"&$B86+1):INDIRECT("MAINLINE!M"&$D86)))) ->  | G86: =IF(B86="","",IF(D86="","",SUM(INDIRECT("MAINLINE!N"&$B86+1):INDIRECT("MAINLINE!N"&$D86)))) ->  | H86: =IF(B86="","",IF(D86="","",SUM(INDIRECT("MAINLINE!O"&$B86+1):INDIRECT("MAINLINE!O"&$D86)))) ->  | I86: =IF(B86="","",IF(D86="","",SUM(INDIRECT("MAINLINE!P"&$B86+1):INDIRECT("MAINLINE!P"&$D86)))) ->  | J86: =IF(B86="","",IF(D86="","",SUM(INDIRECT("MAINLINE!Q"&$B86+1):INDIRECT("MAINLINE!Q"&$D86)))) ->  | K86: =IF(B86="","",IF(D86="","",SUM(INDIRECT("MAINLINE!R"&$B86+1):INDIRECT("MAINLINE!R"&$D86)))) ->  | L86: =IF(B86="","",IF(D86="","",SUM(INDIRECT("MAINLINE!S"&$B86+1):INDIRECT("MAINLINE!S"&$D86)))) ->  | M86: =IF(B86="","",IF(D86="","",SUM(INDIRECT("MAINLINE!T"&$B86+1):INDIRECT("MAINLINE!T"&$D86)))) ->  | N86: =IF(B86="","",IF(D86="","",SUM(INDIRECT("MAINLINE!U"&$B86+1):INDIRECT("MAINLINE!U"&$D86)))) ->  | O86: =IF(B86="","",IF(D86="","",SUM(INDIRECT("MAINLINE!V"&$B86+1):INDIRECT("MAINLINE!V"&$D86)))) -> 
B87: =_xlfn.IFNA(MATCH(A87,MAINLINE!$A$1:$A$586,0),"") ->  | D87: =_xlfn.IFNA(MATCH(C87,MAINLINE!$A$1:$A$586,0),"") ->  | F87: =IF(B87="","",IF(D87="","",SUM(INDIRECT("MAINLINE!M"&$B87+1):INDIRECT("MAINLINE!M"&$D87)))) ->  | G87: =IF(B87="","",IF(D87="","",SUM(INDIRECT("MAINLINE!N"&$B87+1):INDIRECT("MAINLINE!N"&$D87)))) ->  | H87: =IF(B87="","",IF(D87="","",SUM(INDIRECT("MAINLINE!O"&$B87+1):INDIRECT("MAINLINE!O"&$D87)))) ->  | I87: =IF(B87="","",IF(D87="","",SUM(INDIRECT("MAINLINE!P"&$B87+1):INDIRECT("MAINLINE!P"&$D87)))) ->  | J87: =IF(B87="","",IF(D87="","",SUM(INDIRECT("MAINLINE!Q"&$B87+1):INDIRECT("MAINLINE!Q"&$D87)))) ->  | K87: =IF(B87="","",IF(D87="","",SUM(INDIRECT("MAINLINE!R"&$B87+1):INDIRECT("MAINLINE!R"&$D87)))) ->  | L87: =IF(B87="","",IF(D87="","",SUM(INDIRECT("MAINLINE!S"&$B87+1):INDIRECT("MAINLINE!S"&$D87)))) ->  | M87: =IF(B87="","",IF(D87="","",SUM(INDIRECT("MAINLINE!T"&$B87+1):INDIRECT("MAINLINE!T"&$D87)))) ->  | N87: =IF(B87="","",IF(D87="","",SUM(INDIRECT("MAINLINE!U"&$B87+1):INDIRECT("MAINLINE!U"&$D87)))) ->  | O87: =IF(B87="","",IF(D87="","",SUM(INDIRECT("MAINLINE!V"&$B87+1):INDIRECT("MAINLINE!V"&$D87)))) -> 
B88: =_xlfn.IFNA(MATCH(A88,MAINLINE!$A$1:$A$586,0),"") ->  | D88: =_xlfn.IFNA(MATCH(C88,MAINLINE!$A$1:$A$586,0),"") ->  | F88: =IF(B88="","",IF(D88="","",SUM(INDIRECT("MAINLINE!M"&$B88+1):INDIRECT("MAINLINE!M"&$D88)))) ->  | G88: =IF(B88="","",IF(D88="","",SUM(INDIRECT("MAINLINE!N"&$B88+1):INDIRECT("MAINLINE!N"&$D88)))) ->  | H88: =IF(B88="","",IF(D88="","",SUM(INDIRECT("MAINLINE!O"&$B88+1):INDIRECT("MAINLINE!O"&$D88)))) ->  | I88: =IF(B88="","",IF(D88="","",SUM(INDIRECT("MAINLINE!P"&$B88+1):INDIRECT("MAINLINE!P"&$D88)))) ->  | J88: =IF(B88="","",IF(D88="","",SUM(INDIRECT("MAINLINE!Q"&$B88+1):INDIRECT("MAINLINE!Q"&$D88)))) ->  | K88: =IF(B88="","",IF(D88="","",SUM(INDIRECT("MAINLINE!R"&$B88+1):INDIRECT("MAINLINE!R"&$D88)))) ->  | L88: =IF(B88="","",IF(D88="","",SUM(INDIRECT("MAINLINE!S"&$B88+1):INDIRECT("MAINLINE!S"&$D88)))) ->  | M88: =IF(B88="","",IF(D88="","",SUM(INDIRECT("MAINLINE!T"&$B88+1):INDIRECT("MAINLINE!T"&$D88)))) ->  | N88: =IF(B88="","",IF(D88="","",SUM(INDIRECT("MAINLINE!U"&$B88+1):INDIRECT("MAINLINE!U"&$D88)))) ->  | O88: =IF(B88="","",IF(D88="","",SUM(INDIRECT("MAINLINE!V"&$B88+1):INDIRECT("MAINLINE!V"&$D88)))) -> 
B89: =_xlfn.IFNA(MATCH(A89,MAINLINE!$A$1:$A$586,0),"") ->  | D89: =_xlfn.IFNA(MATCH(C89,MAINLINE!$A$1:$A$586,0),"") ->  | F89: =IF(B89="","",IF(D89="","",SUM(INDIRECT("MAINLINE!M"&$B89+1):INDIRECT("MAINLINE!M"&$D89)))) ->  | G89: =IF(B89="","",IF(D89="","",SUM(INDIRECT("MAINLINE!N"&$B89+1):INDIRECT("MAINLINE!N"&$D89)))) ->  | H89: =IF(B89="","",IF(D89="","",SUM(INDIRECT("MAINLINE!O"&$B89+1):INDIRECT("MAINLINE!O"&$D89)))) ->  | I89: =IF(B89="","",IF(D89="","",SUM(INDIRECT("MAINLINE!P"&$B89+1):INDIRECT("MAINLINE!P"&$D89)))) ->  | J89: =IF(B89="","",IF(D89="","",SUM(INDIRECT("MAINLINE!Q"&$B89+1):INDIRECT("MAINLINE!Q"&$D89)))) ->  | K89: =IF(B89="","",IF(D89="","",SUM(INDIRECT("MAINLINE!R"&$B89+1):INDIRECT("MAINLINE!R"&$D89)))) ->  | L89: =IF(B89="","",IF(D89="","",SUM(INDIRECT("MAINLINE!S"&$B89+1):INDIRECT("MAINLINE!S"&$D89)))) ->  | M89: =IF(B89="","",IF(D89="","",SUM(INDIRECT("MAINLINE!T"&$B89+1):INDIRECT("MAINLINE!T"&$D89)))) ->  | N89: =IF(B89="","",IF(D89="","",SUM(INDIRECT("MAINLINE!U"&$B89+1):INDIRECT("MAINLINE!U"&$D89)))) ->  | O89: =IF(B89="","",IF(D89="","",SUM(INDIRECT("MAINLINE!V"&$B89+1):INDIRECT("MAINLINE!V"&$D89)))) -> 

Sheet Bethel Church Rd
A1: =MID(CELL("filename",$A$2),FIND("]",CELL("filename",$A$2))+1,256) -> Bethel Church Rd | B1: AREAS | M1: VOLUMES
A2: STATION | B2: ROCK ROADBED | C2: REFILL | D2: EMB. BENCH | E2: MILLING | F2: COM | G2: EM | H2: ROCK EXC. | I2: DT LT | J2: DT RT | K2: LEVEL-WEDGE | M2: ROCK ROADBED | N2: REFILL | O2: EMB. BENCH | P2: LVL. WEDGE | Q2: COM | R2: EM | S2: ROCK EXC. | T2: DT LT | U2: DT RT | V2: LEVEL-WEDGE
A3: TOTALS | M3: =SUM(M7:M2003) -> 0 | N3: =SUM(N7:N2003) -> 0 | O3: 0 | P3: 0 | Q3: 429 | R3: 390 | S3: 0 | T3: 0 | U3: 0 | V3: 0
A4: 4650 | F4: 0 | G4: 0
A5: 4700 | F5: 85 | G5: 0 | M5: =IF((B4+B5)>0,MAX(1,ROUNDUP(($A5-$A4)*((B4+B5)/2)/27,0)),ROUNDUP(($A5-$A4)*((B4+B5)/2)/27,0)) -> 0 | N5: =IF((C4+C5)>0,MAX(1,ROUNDUP(($A5-$A4)*((C4+C5)/2)/27,0)),ROUNDUP(($A5-$A4)*((C4+C5)/2)/27,0)) -> 0 | O5: =IF((D4+D5)>0,MAX(1,ROUNDUP(($A5-$A4)*((D4+D5)/2)/27,0)),ROUNDUP(($A5-$A4)*((D4+D5)/2)/27,0)) -> 0 | P5: =IF((E4+E5)>0,MAX(1,ROUNDUP(($A5-$A4)*((E4+E5)/2)/27,0)),ROUNDUP(($A5-$A4)*((E4+E5)/2)/27,0)) -> 0 | Q5: =IF((F4+F5)>0,MAX(1,ROUNDUP(($A5-$A4)*((F4+F5)/2)/27,0)),ROUNDUP(($A5-$A4)*((F4+F5)/2)/27,0)) -> 79 | R5: =IF((G4+G5)>0,MAX(1,ROUNDUP(($A5-$A4)*((G4+G5)/2)/27,0)),ROUNDUP(($A5-$A4)*((G4+G5)/2)/27,0)) -> 0 | S5: =IF((H4+H5)>0,MAX(1,ROUNDUP(($A5-$A4)*((H4+H5)/2)/27,0)),ROUNDUP(($A5-$A4)*((H4+H5)/2)/27,0)) -> 0 | T5: =IF((I4+I5)>0,MAX(1,ROUNDUP(($A5-$A4)*((I4+I5)/2)/27,0)),ROUNDUP(($A5-$A4)*((I4+I5)/2)/27,0)) -> 0 | U5: =IF((J4+J5)>0,MAX(1,ROUNDUP(($A5-$A4)*((J4+J5)/2)/27,0)),ROUNDUP(($A5-$A4)*((J4+J5)/2)/27,0)) -> 0 | V5: =IF((K4+K5)>0,MAX(1,ROUNDUP(($A5-$A4)*((K4+K5)/2)/27,0)),ROUNDUP(($A5-$A4)*((K4+K5)/2)/27,0)) -> 0
A6: 4750 | F6: 135 | G6: 0 | M6: =IF((B5+B6)>0,MAX(1,ROUNDUP(($A6-$A5)*((B5+B6)/2)/27,0)),ROUNDUP(($A6-$A5)*((B5+B6)/2)/27,0)) -> 0 | N6: 0 | O6: 0 | P6: 0 | Q6: 204 | R6: 0 | S6: 0 | T6: 0 | U6: 0 | V6: =IF((K5+K6)>0,MAX(1,ROUNDUP(($A6-$A5)*((K5+K6)/2)/27,0)),ROUNDUP(($A6-$A5)*((K5+K6)/2)/27,0)) -> 0
A7: 4800 | F7: 128 | G7: 0 | M7: =IF((B6+B7)>0,MAX(1,ROUNDUP(($A7-$A6)*((B6+B7)/2)/27,0)),ROUNDUP(($A7-$A6)*((B6+B7)/2)/27,0)) -> 0 | N7: =IF((C6+C7)>0,MAX(1,ROUNDUP(($A7-$A6)*((C6+C7)/2)/27,0)),ROUNDUP(($A7-$A6)*((C6+C7)/2)/27,0)) -> 0 | O7: 0 | P7: 0 | Q7: 244 | R7: 0 | S7: 0 | T7: 0 | U7: 0 | V7: =IF((K6+K7)>0,MAX(1,ROUNDUP(($A7-$A6)*((K6+K7)/2)/27,0)),ROUNDUP(($A7-$A6)*((K6+K7)/2)/27,0)) -> 0
A8: 4850 | F8: 22 | G8: 1 | M8: =IF((B7+B8)>0,MAX(1,ROUNDUP(($A8-$A7)*((B7+B8)/2)/27,0)),ROUNDUP(($A8-$A7)*((B7+B8)/2)/27,0)) -> 0 | N8: 0 | O8: 0 | P8: 0 | Q8: 139 | R8: 1 | S8: 0 | T8: 0 | U8: 0 | V8: 0
A9: 4900 | F9: 13 | G9: 114 | M9: 0 | N9: 0 | O9: 0 | P9: 0 | Q9: 33 | R9: 107 | S9: 0 | T9: 0 | U9: 0 | V9: 0
A10: 4950 | F10: 0 | G10: 95 | M10: 0 | N10: 0 | O10: 0 | P10: 0 | Q10: 13 | R10: 194 | S10: 0 | T10: 0 | U10: 0 | V10: 0
A11: 5000 | F11: 0 | G11: 0 | M11: 0 | N11: 0 | O11: 0 | P11: 0 | Q11: 0 | R11: 88 | S11: 0 | T11: 0 | U11: 0 | V11: 0
M12: 0 | N12: 0 | O12: 0 | P12: 0 | Q12: 0 | R12: 0 | S12: 0 | T12: 0 | U12: 0 | V12: 0
M13: 0 | N13: 0 | O13: 0 | P13: 0 | Q13: 0 | R13: 0 | S13: 0 | T13: 0 | U13: 0 | V13: 0
M14: 0 | N14: 0 | O14: 0 | P14: 0 | Q14: 0 | R14: 0 | S14: 0 | T14: 0 | U14: 0 | V14: 0
M15: 0 | N15: 0 | O15: 0 | P15: 0 | Q15: 0 | R15: 0 | S15: 0 | T15: 0 | U15: 0 | V15: 0
M16: 0 | N16: 0 | O16: 0 | P16: 0 | Q16: 0 | R16: 0 | S16: 0 | T16: 0 | U16: 0 | V16: 0
M17: 0 | N17: 0 | O17: 0 | P17: 0 | Q17: 0 | R17: 0 | S17: 0 | T17: 0 | U17: 0 | V17: 0
M18: 0 | N18: 0 | O18: 0 | P18: 0 | Q18: 0 | R18: 0 | S18: 0 | T18: 0 | U18: 0 | V18: 0
M19: 0 | N19: 0 | O19: 0 | P19: 0 | Q19: 0 | R19: 0 | S19: 0 | T19: 0 | U19: 0 | V19: 0
M20: 0 | N20: 0 | O20: 0 | P20: 0 | Q20: 0 | R20: 0 | S20: 0 | T20: 0 | U20: 0 | V20: 0
M21: 0 | N21: 0 | O21: 0 | P21: 0 | Q21: 0 | R21: 0 | S21: 0 | T21: 0 | U21: 0 | V21: 0
M22: 0 | N22: 0 | O22: 0 | P22: 0 | Q22: 0 | R22: 0 | S22: 0 | T22: 0 | U22: 0 | V22: 0
M23: 0 | N23: 0 | O23: 0 | P23: 0 | Q23: 0 | R23: 0 | S23: 0 | T23: 0 | U23: 0 | V23: 0
M24: =IF((B23+B24)>0,MAX(1,ROUNDUP(($A24-$A23)*((B23+B24)/2)/27,0)),ROUNDUP(($A24-$A23)*((B23+B24)/2)/27,0)) -> 0 | N24: 0 | O24: 0 | P24: 0 | Q24: 0 | R24: 0 | S24: 0 | T24: 0 | U24: 0 | V24: 0
M25: 0 | N25: 0 | O25: 0 | P25: 0 | Q25: 0 | R25: 0 | S25: 0 | T25: 0 | U25: 0 | V25: 0
M26: 0 | N26: 0 | O26: 0 | P26: 0 | Q26: 0 | R26: 0 | S26: 0 | T26: 0 | U26: 0 | V26: 0
M27: 0 | N27: 0 | O27: 0 | P27: 0 | Q27: 0 | R27: 0 | S27: 0 | T27: 0 | U27: 0 | V27: 0
M28: 0 | N28: 0 | O28: 0 | P28: 0 | Q28: 0 | R28: 0 | S28: 0 | T28: 0 | U28: 0 | V28: 0
M29: 0 | N29: 0 | O29: 0 | P29: 0 | Q29: 0 | R29: 0 | S29: 0 | T29: 0 | U29: 0 | V29: 0
M30: 0 | N30: 0 | O30: 0 | P30: 0 | Q30: 0 | R30: 0 | S30: 0 | T30: 0 | U30: 0 | V30: 0
M31: 0 | N31: 0 | O31: 0 | P31: 0 | Q31: 0 | R31: 0 | S31: 0 | T31: 0 | U31: 0 | V31: 0
M32: 0 | N32: 0 | O32: 0 | P32: 0 | Q32: 0 | R32: 0 | S32: 0 | T32: 0 | U32: 0 | V32: 0
M33: 0 | N33: 0 | O33: 0 | P33: 0 | Q33: 0 | R33: 0 | S33: 0 | T33: 0 | U33: 0 | V33: 0
M34: 0 | N34: 0 | O34: 0 | P34: 0 | Q34: 0 | R34: 0 | S34: 0 | T34: 0 | U34: 0 | V34: 0
M35: 0 | N35: 0 | O35: 0 | P35: 0 | Q35: 0 | R35: 0 | S35: 0 | T35: 0 | U35: 0 | V35: 0
M36: 0 | N36: 0 | O36: 0 | P36: 0 | Q36: 0 | R36: 0 | S36: 0 | T36: 0 | U36: 0 | V36: 0
M37: 0 | N37: 0 | O37: 0 | P37: 0 | Q37: 0 | R37: 0 | S37: 0 | T37: 0 | U37: 0 | V37: 0
M38: 0 | N38: 0 | O38: 0 | P38: 0 | Q38: 0 | R38: 0 | S38: 0 | T38: 0 | U38: 0 | V38: 0
M39: 0 | N39: 0 | O39: 0 | P39: 0 | Q39: 0 | R39: 0 | S39: 0 | T39: 0 | U39: 0 | V39: 0
M40: =IF((B39+B40)>0,MAX(1,ROUNDUP(($A40-$A39)*((B39+B40)/2)/27,0)),ROUNDUP(($A40-$A39)*((B39+B40)/2)/27,0)) -> 0 | N40: 0 | O40: 0 | P40: 0 | Q40: 0 | R40: 0 | S40: 0 | T40: 0 | U40: 0 | V40: 0
M41: 0 | N41: 0 | O41: 0 | P41: 0 | Q41: 0 | R41: 0 | S41: 0 | T41: 0 | U41: 0 | V41: 0
M42: 0 | N42: 0 | O42: 0 | P42: 0 | Q42: 0 | R42: 0 | S42: 0 | T42: 0 | U42: 0 | V42: 0
M43: 0 | N43: 0 | O43: 0 | P43: 0 | Q43: 0 | R43: 0 | S43: 0 | T43: 0 | U43: 0 | V43: 0
M44: 0 | N44: 0 | O44: 0 | P44: 0 | Q44: 0 | R44: 0 | S44: 0 | T44: 0 | U44: 0 | V44: 0
M45: 0 | N45: 0 | O45: 0 | P45: 0 | Q45: 0 | R45: 0 | S45: 0 | T45: 0 | U45: 0 | V45: 0
M46: 0 | N46: 0 | O46: 0 | P46: 0 | Q46: 0 | R46: 0 | S46: 0 | T46: 0 | U46: 0 | V46: 0
M47: 0 | N47: 0 | O47: 0 | P47: 0 | Q47: 0 | R47: 0 | S47: 0 | T47: 0 | U47: 0 | V47: 0
M48: 0 | N48: 0 | O48: 0 | P48: 0 | Q48: 0 | R48: 0 | S48: 0 | T48: 0 | U48: 0 | V48: 0
M49: 0 | N49: 0 | O49: 0 | P49: 0 | Q49: 0 | R49: 0 | S49: 0 | T49: 0 | U49: 0 | V49: 0
M50: 0 | N50: 0 | O50: 0 | P50: 0 | Q50: 0 | R50: 0 | S50: 0 | T50: 0 | U50: 0 | V50: 0
M51: 0 | N51: 0 | O51: 0 | P51: 0 | Q51: 0 | R51: 0 | S51: 0 | T51: 0 | U51: 0 | V51: 0
M52: 0 | N52: 0 | O52: 0 | P52: 0 | Q52: 0 | R52: 0 | S52: 0 | T52: 0 | U52: 0 | V52: 0
M53: 0 | N53: 0 | O53: 0 | P53: 0 | Q53: 0 | R53: 0 | S53: 0 | T53: 0 | U53: 0 | V53: 0
M54: 0 | N54: 0 | O54: 0 | P54: 0 | Q54: 0 | R54: 0 | S54: 0 | T54: 0 | U54: 0 | V54: 0
M55: 0 | N55: 0 | O55: 0 | P55: 0 | Q55: 0 | R55: 0 | S55: 0 | T55: 0 | U55: 0 | V55: 0
M56: =IF((B55+B56)>0,MAX(1,ROUNDUP(($A56-$A55)*((B55+B56)/2)/27,0)),ROUNDUP(($A56-$A55)*((B55+B56)/2)/27,0)) -> 0 | N56: 0 | O56: 0 | P56: 0 | Q56: 0 | R56: 0 | S56: 0 | T56: 0 | U56: 0 | V56: 0
M57: 0 | N57: 0 | O57: 0 | P57: 0 | Q57: 0 | R57: 0 | S57: 0 | T57: 0 | U57: 0 | V57: 0
M58: 0 | N58: 0 | O58: 0 | P58: 0 | Q58: 0 | R58: 0 | S58: 0 | T58: 0 | U58: 0 | V58: 0
M59: 0 | N59: 0 | O59: 0 | P59: 0 | Q59: 0 | R59: 0 | S59: 0 | T59: 0 | U59: 0 | V59: 0
M60: 0 | N60: 0 | O60: 0 | P60: 0 | Q60: 0 | R60: 0 | S60: 0 | T60: 0 | U60: 0 | V60: 0
M61: 0 | N61: 0 | O61: 0 | P61: 0 | Q61: 0 | R61: 0 | S61: 0 | T61: 0 | U61: 0 | V61: 0
M62: 0 | N62: 0 | O62: 0 | P62: 0 | Q62: 0 | R62: 0 | S62: 0 | T62: 0 | U62: 0 | V62: 0
M63: 0 | N63: 0 | O63: 0 | P63: 0 | Q63: 0 | R63: 0 | S63: 0 | T63: 0 | U63: 0 | V63: 0
M64: 0 | N64: 0 | O64: 0 | P64: 0 | Q64: 0 | R64: 0 | S64: 0 | T64: 0 | U64: 0 | V64: 0
M65: 0 | N65: 0 | O65: 0 | P65: 0 | Q65: 0 | R65: 0 | S65: 0 | T65: 0 | U65: 0 | V65: 0
M66: 0 | N66: 0 | O66: 0 | P66: 0 | Q66: 0 | R66: 0 | S66: 0 | T66: 0 | U66: 0 | V66: 0
M67: 0 | N67: 0 | O67: 0 | P67: 0 | Q67: 0 | R67: 0 | S67: 0 | T67: 0 | U67: 0 | V67: 0
M68: 0 | N68: 0 | O68: 0 | P68: 0 | Q68: 0 | R68: 0 | S68: 0 | T68: 0 | U68: 0 | V68: 0
M69: 0 | N69: 0 | O69: 0 | P69: 0 | Q69: 0 | R69: 0 | S69: 0 | T69: 0 | U69: 0 | V69: 0
M70: 0 | N70: 0 | O70: 0 | P70: 0 | Q70: 0 | R70: 0 | S70: 0 | T70: 0 | U70: 0 | V70: 0
M71: 0 | N71: 0 | O71: 0 | P71: 0 | Q71: 0 | R71: 0 | S71: 0 | T71: 0 | U71: 0 | V71: 0
M72: =IF((B71+B72)>0,MAX(1,ROUNDUP(($A72-$A71)*((B71+B72)/2)/27,0)),ROUNDUP(($A72-$A71)*((B71+B72)/2)/27,0)) -> 0 | N72: 0 | O72: 0 | P72: 0 | Q72: 0 | R72: 0 | S72: 0 | T72: 0 | U72: 0 | V72: 0
M73: 0 | N73: 0 | O73: 0 | P73: 0 | Q73: 0 | R73: 0 | S73: 0 | T73: 0 | U73: 0 | V73: 0
M74: 0 | N74: 0 | O74: 0 | P74: 0 | Q74: 0 | R74: 0 | S74: 0 | T74: 0 | U74: 0 | V74: 0
M75: 0 | N75: 0 | O75: 0 | P75: 0 | Q75: 0 | R75: 0 | S75: 0 | T75: 0 | U75: 0 | V75: 0
M76: 0 | N76: 0 | O76: 0 | P76: 0 | Q76: 0 | R76: 0 | S76: 0 | T76: 0 | U76: 0 | V76: 0
M77: 0 | N77: 0 | O77: 0 | P77: 0 | Q77: 0 | R77: 0 | S77: 0 | T77: 0 | U77: 0 | V77: 0
M78: 0 | N78: 0 | O78: 0 | P78: 0 | Q78: 0 | R78: 0 | S78: 0 | T78: 0 | U78: 0 | V78: 0
M79: 0 | N79: 0 | O79: 0 | P79: 0 | Q79: 0 | R79: 0 | S79: 0 | T79: 0 | U79: 0 | V79: 0
M80: 0 | N80: 0 | O80: 0 | P80: 0 | Q80: 0 | R80: 0 | S80: 0 | T80: 0 | U80: 0 | V80: 0

Sheet Wren Rd
A1: =MID(CELL("filename",$A$2),FIND("]",CELL("filename",$A$2))+1,256) -> Wren Rd | B1: AREAS | M1: VOLUMES
A2: STATION | B2: ROCK ROADBED | C2: REFILL | D2: EMB. BENCH | E2: GRAN. EMB. | F2: COM | G2: EM | H2: ROCK EXC. | I2: DT LT | J2: DT RT | K2: LEVEL-WEDGE | M2: ROCK ROADBED | N2: REFILL | O2: EMB. BENCH | P2: GRAN. EMB. | Q2: COM | R2: EM | S2: ROCK EXC. | T2: DT LT | U2: DT RT | V2: LEVEL-WEDGE
A3: TOTALS | M3: =SUM(M6:M2002) -> 0 | N3: =SUM(N6:N2002) -> 0 | O3: 0 | P3: 0 | Q3: 825 | R3: 113 | S3: 0 | T3: 0 | U3: 0 | V3: 0
A4: 4760 | F4: 42 | G4: 1
A5: 4800 | F5: 3 | G5: 30
A6: 4850 | F6: 8 | G6: 18 | M6: =IF((B5+B6)>0,MAX(1,ROUNDUP(($A6-$A5)*((B5+B6)/2)/27,0)),ROUNDUP(($A6-$A5)*((B5+B6)/2)/27,0)) -> 0 | N6: =IF((C5+C6)>0,MAX(1,ROUNDUP(($A6-$A5)*((C5+C6)/2)/27,0)),ROUNDUP(($A6-$A5)*((C5+C6)/2)/27,0)) -> 0 | O6: 0 | P6: 0 | Q6: 11 | R6: 45 | S6: 0 | T6: 0 | U6: 0 | V6: =IF((K5+K6)>0,MAX(1,ROUNDUP(($A6-$A5)*((K5+K6)/2)/27,0)),ROUNDUP(($A6-$A5)*((K5+K6)/2)/27,0)) -> 0
A7: 4900 | F7: 11 | G7: 4 | M7: =IF((B6+B7)>0,MAX(1,ROUNDUP(($A7-$A6)*((B6+B7)/2)/27,0)),ROUNDUP(($A7-$A6)*((B6+B7)/2)/27,0)) -> 0 | N7: 0 | O7: 0 | P7: 0 | Q7: 18 | R7: 21 | S7: 0 | T7: 0 | U7: 0 | V7: 0
A8: 4950 | F8: 25 | G8: 21 | M8: 0 | N8: 0 | O8: 0 | P8: 0 | Q8: 34 | R8: 24 | S8: 0 | T8: 0 | U8: 0 | V8: 0
A9: 5000 | F9: 0 | G9: 0 | M9: 0 | N9: 0 | O9: 0 | P9: 0 | Q9: 24 | R9: 20 | S9: 0 | T9: 0 | U9: 0 | V9: 0
A10: 5050 | F10: 78 | G10: 0 | M10: 0 | N10: 0 | O10: 0 | P10: 0 | Q10: 73 | R10: 0 | S10: 0 | T10: 0 | U10: 0 | V10: 0
A11: 5100 | F11: 88 | G11: 0 | M11: 0 | N11: 0 | O11: 0 | P11: 0 | Q11: 154 | R11: 0 | S11: 0 | T11: 0 | U11: 0 | V11: 0
A12: 5150 | F12: 71 | G12: 0 | M12: 0 | N12: 0 | O12: 0 | P12: 0 | Q12: 148 | R12: 0 | S12: 0 | T12: 0 | U12: 0 | V12: 0
A13: 5200 | F13: 52 | G13: 0 | M13: 0 | N13: 0 | O13: 0 | P13: 0 | Q13: 114 | R13: 0 | S13: 0 | T13: 0 | U13: 0 | V13: 0
A14: 5250 | F14: 40 | G14: 0.007 | M14: 0 | N14: 0 | O14: 0 | P14: 0 | Q14: 86 | R14: 1 | S14: 0 | T14: 0 | U14: 0 | V14: 0
A15: 5300 | F15: 33 | G15: 0.039 | M15: 0 | N15: 0 | O15: 0 | P15: 0 | Q15: 68 | R15: 1 | S15: 0 | T15: 0 | U15: 0 | V15: 0
A16: 5350 | F16: 34 | G16: 0 | M16: 0 | N16: 0 | O16: 0 | P16: 0 | Q16: 63 | R16: 1 | S16: 0 | T16: 0 | U16: 0 | V16: 0
A17: 5400 | F17: 0 | G17: 0 | M17: 0 | N17: 0 | O17: 0 | P17: 0 | Q17: 32 | R17: 0 | S17: 0 | T17: 0 | U17: 0 | V17: 0
A18: 5450 | F18: 0 | G18: 0 | M18: 0 | N18: 0 | O18: 0 | P18: 0 | Q18: 0 | R18: 0 | S18: 0 | T18: 0 | U18: 0 | V18: 0
A19: 5499.56 | F19: 0 | G19: 0 | M19: 0 | N19: 0 | O19: 0 | P19: 0 | Q19: 0 | R19: 0 | S19: 0 | T19: 0 | U19: 0 | V19: 0
M20: 0 | N20: 0 | O20: 0 | P20: 0 | Q20: 0 | R20: 0 | S20: 0 | T20: 0 | U20: 0 | V20: 0
M21: 0 | N21: 0 | O21: 0 | P21: 0 | Q21: 0 | R21: 0 | S21: 0 | T21: 0 | U21: 0 | V21: 0
M22: 0 | N22: 0 | O22: 0 | P22: 0 | Q22: 0 | R22: 0 | S22: 0 | T22: 0 | U22: 0 | V22: 0
M23: =IF((B22+B23)>0,MAX(1,ROUNDUP(($A23-$A22)*((B22+B23)/2)/27,0)),ROUNDUP(($A23-$A22)*((B22+B23)/2)/27,0)) -> 0 | N23: 0 | O23: 0 | P23: 0 | Q23: 0 | R23: 0 | S23: 0 | T23: 0 | U23: 0 | V23: 0
M24: 0 | N24: 0 | O24: 0 | P24: 0 | Q24: 0 | R24: 0 | S24: 0 | T24: 0 | U24: 0 | V24: 0
M25: 0 | N25: 0 | O25: 0 | P25: 0 | Q25: 0 | R25: 0 | S25: 0 | T25: 0 | U25: 0 | V25: 0
M26: 0 | N26: 0 | O26: 0 | P26: 0 | Q26: 0 | R26: 0 | S26: 0 | T26: 0 | U26: 0 | V26: 0
M27: 0 | N27: 0 | O27: 0 | P27: 0 | Q27: 0 | R27: 0 | S27: 0 | T27: 0 | U27: 0 | V27: 0
M28: 0 | N28: 0 | O28: 0 | P28: 0 | Q28: 0 | R28: 0 | S28: 0 | T28: 0 | U28: 0 | V28: 0
M29: 0 | N29: 0 | O29: 0 | P29: 0 | Q29: 0 | R29: 0 | S29: 0 | T29: 0 | U29: 0 | V29: 0
M30: 0 | N30: 0 | O30: 0 | P30: 0 | Q30: 0 | R30: 0 | S30: 0 | T30: 0 | U30: 0 | V30: 0
M31: 0 | N31: 0 | O31: 0 | P31: 0 | Q31: 0 | R31: 0 | S31: 0 | T31: 0 | U31: 0 | V31: 0
M32: 0 | N32: 0 | O32: 0 | P32: 0 | Q32: 0 | R32: 0 | S32: 0 | T32: 0 | U32: 0 | V32: 0
M33: 0 | N33: 0 | O33: 0 | P33: 0 | Q33: 0 | R33: 0 | S33: 0 | T33: 0 | U33: 0 | V33: 0
M34: 0 | N34: 0 | O34: 0 | P34: 0 | Q34: 0 | R34: 0 | S34: 0 | T34: 0 | U34: 0 | V34: 0
M35: 0 | N35: 0 | O35: 0 | P35: 0 | Q35: 0 | R35: 0 | S35: 0 | T35: 0 | U35: 0 | V35: 0
M36: 0 | N36: 0 | O36: 0 | P36: 0 | Q36: 0 | R36: 0 | S36: 0 | T36: 0 | U36: 0 | V36: 0
M37: 0 | N37: 0 | O37: 0 | P37: 0 | Q37: 0 | R37: 0 | S37: 0 | T37: 0 | U37: 0 | V37: 0
M38: 0 | N38: 0 | O38: 0 | P38: 0 | Q38: 0 | R38: 0 | S38: 0 | T38: 0 | U38: 0 | V38: 0
M39: =IF((B38+B39)>0,MAX(1,ROUNDUP(($A39-$A38)*((B38+B39)/2)/27,0)),ROUNDUP(($A39-$A38)*((B38+B39)/2)/27,0)) -> 0 | N39: 0 | O39: 0 | P39: 0 | Q39: 0 | R39: 0 | S39: 0 | T39: 0 | U39: 0 | V39: 0
M40: 0 | N40: 0 | O40: 0 | P40: 0 | Q40: 0 | R40: 0 | S40: 0 | T40: 0 | U40: 0 | V40: 0
M41: 0 | N41: 0 | O41: 0 | P41: 0 | Q41: 0 | R41: 0 | S41: 0 | T41: 0 | U41: 0 | V41: 0
M42: 0 | N42: 0 | O42: 0 | P42: 0 | Q42: 0 | R42: 0 | S42: 0 | T42: 0 | U42: 0 | V42: 0
M43: 0 | N43: 0 | O43: 0 | P43: 0 | Q43: 0 | R43: 0 | S43: 0 | T43: 0 | U43: 0 | V43: 0
M44: 0 | N44: 0 | O44: 0 | P44: 0 | Q44: 0 | R44: 0 | S44: 0 | T44: 0 | U44: 0 | V44: 0
M45: 0 | N45: 0 | O45: 0 | P45: 0 | Q45: 0 | R45: 0 | S45: 0 | T45: 0 | U45: 0 | V45: 0
M46: 0 | N46: 0 | O46: 0 | P46: 0 | Q46: 0 | R46: 0 | S46: 0 | T46: 0 | U46: 0 | V46: 0
M47: 0 | N47: 0 | O47: 0 | P47: 0 | Q47: 0 | R47: 0 | S47: 0 | T47: 0 | U47: 0 | V47: 0
M48: 0 | N48: 0 | O48: 0 | P48: 0 | Q48: 0 | R48: 0 | S48: 0 | T48: 0 | U48: 0 | V48: 0
M49: 0 | N49: 0 | O49: 0 | P49: 0 | Q49: 0 | R49: 0 | S49: 0 | T49: 0 | U49: 0 | V49: 0
M50: 0 | N50: 0 | O50: 0 | P50: 0 | Q50: 0 | R50: 0 | S50: 0 | T50: 0 | U50: 0 | V50: 0
M51: 0 | N51: 0 | O51: 0 | P51: 0 | Q51: 0 | R51: 0 | S51: 0 | T51: 0 | U51: 0 | V51: 0
M52: 0 | N52: 0 | O52: 0 | P52: 0 | Q52: 0 | R52: 0 | S52: 0 | T52: 0 | U52: 0 | V52: 0
M53: 0 | N53: 0 | O53: 0 | P53: 0 | Q53: 0 | R53: 0 | S53: 0 | T53: 0 | U53: 0 | V53: 0
M54: 0 | N54: 0 | O54: 0 | P54: 0 | Q54: 0 | R54: 0 | S54: 0 | T54: 0 | U54: 0 | V54: 0
M55: =IF((B54+B55)>0,MAX(1,ROUNDUP(($A55-$A54)*((B54+B55)/2)/27,0)),ROUNDUP(($A55-$A54)*((B54+B55)/2)/27,0)) -> 0 | N55: 0 | O55: 0 | P55: 0 | Q55: 0 | R55: 0 | S55: 0 | T55: 0 | U55: 0 | V55: 0
M56: 0 | N56: 0 | O56: 0 | P56: 0 | Q56: 0 | R56: 0 | S56: 0 | T56: 0 | U56: 0 | V56: 0
M57: 0 | N57: 0 | O57: 0 | P57: 0 | Q57: 0 | R57: 0 | S57: 0 | T57: 0 | U57: 0 | V57: 0
M58: 0 | N58: 0 | O58: 0 | P58: 0 | Q58: 0 | R58: 0 | S58: 0 | T58: 0 | U58: 0 | V58: 0
M59: 0 | N59: 0 | O59: 0 | P59: 0 | Q59: 0 | R59: 0 | S59: 0 | T59: 0 | U59: 0 | V59: 0
M60: 0 | N60: 0 | O60: 0 | P60: 0 | Q60: 0 | R60: 0 | S60: 0 | T60: 0 | U60: 0 | V60: 0
M61: 0 | N61: 0 | O61: 0 | P61: 0 | Q61: 0 | R61: 0 | S61: 0 | T61: 0 | U61: 0 | V61: 0
M62: 0 | N62: 0 | O62: 0 | P62: 0 | Q62: 0 | R62: 0 | S62: 0 | T62: 0 | U62: 0 | V62: 0
M63: 0 | N63: 0 | O63: 0 | P63: 0 | Q63: 0 | R63: 0 | S63: 0 | T63: 0 | U63: 0 | V63: 0
M64: 0 | N64: 0 | O64: 0 | P64: 0 | Q64: 0 | R64: 0 | S64: 0 | T64: 0 | U64: 0 | V64: 0
M65: 0 | N65: 0 | O65: 0 | P65: 0 | Q65: 0 | R65: 0 | S65: 0 | T65: 0 | U65: 0 | V65: 0
M66: 0 | N66: 0 | O66: 0 | P66: 0 | Q66: 0 | R66: 0 | S66: 0 | T66: 0 | U66: 0 | V66: 0
M67: 0 | N67: 0 | O67: 0 | P67: 0 | Q67: 0 | R67: 0 | S67: 0 | T67: 0 | U67: 0 | V67: 0
M68: 0 | N68: 0 | O68: 0 | P68: 0 | Q68: 0 | R68: 0 | S68: 0 | T68: 0 | U68: 0 | V68: 0
M69: 0 | N69: 0 | O69: 0 | P69: 0 | Q69: 0 | R69: 0 | S69: 0 | T69: 0 | U69: 0 | V69: 0
M70: 0 | N70: 0 | O70: 0 | P70: 0 | Q70: 0 | R70: 0 | S70: 0 | T70: 0 | U70: 0 | V70: 0
M71: =IF((B70+B71)>0,MAX(1,ROUNDUP(($A71-$A70)*((B70+B71)/2)/27,0)),ROUNDUP(($A71-$A70)*((B70+B71)/2)/27,0)) -> 0 | N71: 0 | O71: 0 | P71: 0 | Q71: 0 | R71: 0 | S71: 0 | T71: 0 | U71: 0 | V71: 0
M72: 0 | N72: 0 | O72: 0 | P72: 0 | Q72: 0 | R72: 0 | S72: 0 | T72: 0 | U72: 0 | V72: 0
M73: 0 | N73: 0 | O73: 0 | P73: 0 | Q73: 0 | R73: 0 | S73: 0 | T73: 0 | U73: 0 | V73: 0
M74: 0 | N74: 0 | O74: 0 | P74: 0 | Q74: 0 | R74: 0 | S74: 0 | T74: 0 | U74: 0 | V74: 0
M75: 0 | N75: 0 | O75: 0 | P75: 0 | Q75: 0 | R75: 0 | S75: 0 | T75: 0 | U75: 0 | V75: 0
M76: 0 | N76: 0 | O76: 0 | P76: 0 | Q76: 0 | R76: 0 | S76: 0 | T76: 0 | U76: 0 | V76: 0
M77: 0 | N77: 0 | O77: 0 | P77: 0 | Q77: 0 | R77: 0 | S77: 0 | T77: 0 | U77: 0 | V77: 0
M78: 0 | N78: 0 | O78: 0 | P78: 0 | Q78: 0 | R78: 0 | S78: 0 | T78: 0 | U78: 0 | V78: 0
M79: 0 | N79: 0 | O79: 0 | P79: 0 | Q79: 0 | R79: 0 | S79: 0 | T79: 0 | U79: 0 | V79: 0

Sheet Ex US 60 CulDeSac
A1: =MID(CELL("filename",$A$2),FIND("]",CELL("filename",$A$2))+1,256) -> Ex US 60 CulDeSac | B1: AREAS | M1: VOLUMES
A2: STATION | B2: ROCK ROADBED | C2: REFILL | D2: EMB. BENCH | E2: GRAN. EMB. | F2: COM | G2: EM | H2: ROCK EXC. | I2: DT LT | J2: DT RT | K2: LEVEL-WEDGE | M2: ROCK ROADBED | N2: REFILL | O2: EMB. BENCH | P2: GRAN. EMB. | Q2: COM | R2: EM | S2: ROCK EXC. | T2: DT LT | U2: DT RT | V2: LEVEL-WEDGE
A3: TOTALS | M3: =SUM(M6:M2002) -> 0 | N3: =SUM(N6:N2002) -> 0 | O3: 0 | P3: 0 | Q3: 234 | R3: 10 | S3: 0 | T3: 0 | U3: 0 | V3: 0
A4: 1850 | F4: 0 | G4: 0
A5: 1900 | F5: 30 | G5: 1 | M5: =IF((B4+B5)>0,MAX(1,ROUNDUP(($A5-$A4)*((B4+B5)/2)/27,0)),ROUNDUP(($A5-$A4)*((B4+B5)/2)/27,0)) -> 0 | N5: =IF((C4+C5)>0,MAX(1,ROUNDUP(($A5-$A4)*((C4+C5)/2)/27,0)),ROUNDUP(($A5-$A4)*((C4+C5)/2)/27,0)) -> 0 | O5: =IF((D4+D5)>0,MAX(1,ROUNDUP(($A5-$A4)*((D4+D5)/2)/27,0)),ROUNDUP(($A5-$A4)*((D4+D5)/2)/27,0)) -> 0 | P5: =IF((E4+E5)>0,MAX(1,ROUNDUP(($A5-$A4)*((E4+E5)/2)/27,0)),ROUNDUP(($A5-$A4)*((E4+E5)/2)/27,0)) -> 0 | Q5: =IF((F4+F5)>0,MAX(1,ROUNDUP(($A5-$A4)*((F4+F5)/2)/27,0)),ROUNDUP(($A5-$A4)*((F4+F5)/2)/27,0)) -> 28 | R5: =IF((G4+G5)>0,MAX(1,ROUNDUP(($A5-$A4)*((G4+G5)/2)/27,0)),ROUNDUP(($A5-$A4)*((G4+G5)/2)/27,0)) -> 1 | S5: =IF((H4+H5)>0,MAX(1,ROUNDUP(($A5-$A4)*((H4+H5)/2)/27,0)),ROUNDUP(($A5-$A4)*((H4+H5)/2)/27,0)) -> 0 | T5: =IF((I4+I5)>0,MAX(1,ROUNDUP(($A5-$A4)*((I4+I5)/2)/27,0)),ROUNDUP(($A5-$A4)*((I4+I5)/2)/27,0)) -> 0 | U5: =IF((J4+J5)>0,MAX(1,ROUNDUP(($A5-$A4)*((J4+J5)/2)/27,0)),ROUNDUP(($A5-$A4)*((J4+J5)/2)/27,0)) -> 0 | V5: =IF((K4+K5)>0,MAX(1,ROUNDUP(($A5-$A4)*((K4+K5)/2)/27,0)),ROUNDUP(($A5-$A4)*((K4+K5)/2)/27,0)) -> 0
A6: 1950 | F6: 40 | G6: 4 | M6: =IF((B5+B6)>0,MAX(1,ROUNDUP(($A6-$A5)*((B5+B6)/2)/27,0)),ROUNDUP(($A6-$A5)*((B5+B6)/2)/27,0)) -> 0 | N6: =IF((C5+C6)>0,MAX(1,ROUNDUP(($A6-$A5)*((C5+C6)/2)/27,0)),ROUNDUP(($A6-$A5)*((C5+C6)/2)/27,0)) -> 0 | O6: 0 | P6: 0 | Q6: 65 | R6: 5 | S6: 0 | T6: 0 | U6: 0 | V6: =IF((K5+K6)>0,MAX(1,ROUNDUP(($A6-$A5)*((K5+K6)/2)/27,0)),ROUNDUP(($A6-$A5)*((K5+K6)/2)/27,0)) -> 0
A7: 2000 | F7: 56 | G7: 0.259 | M7: =IF((B6+B7)>0,MAX(1,ROUNDUP(($A7-$A6)*((B6+B7)/2)/27,0)),ROUNDUP(($A7-$A6)*((B6+B7)/2)/27,0)) -> 0 | N7: 0 | O7: 0 | P7: 0 | Q7: 89 | R7: 4 | S7: 0 | T7: 0 | U7: 0 | V7: 0
A8: 2050 | F8: 20 | G8: 0 | M8: 0 | N8: 0 | O8: 0 | P8: 0 | Q8: 71 | R8: 1 | S8: 0 | T8: 0 | U8: 0 | V8: 0
A9: 2072.21 | F9: 0 | G9: 0 | M9: 0 | N9: 0 | O9: 0 | P9: 0 | Q9: 9 | R9: 0 | S9: 0 | T9: 0 | U9: 0 | V9: 0
M10: 0 | N10: 0 | O10: 0 | P10: 0 | Q10: 0 | R10: 0 | S10: 0 | T10: 0 | U10: 0 | V10: 0
M11: 0 | N11: 0 | O11: 0 | P11: 0 | Q11: 0 | R11: 0 | S11: 0 | T11: 0 | U11: 0 | V11: 0
M12: 0 | N12: 0 | O12: 0 | P12: 0 | Q12: 0 | R12: 0 | S12: 0 | T12: 0 | U12: 0 | V12: 0
M13: 0 | N13: 0 | O13: 0 | P13: 0 | Q13: 0 | R13: 0 | S13: 0 | T13: 0 | U13: 0 | V13: 0
M14: 0 | N14: 0 | O14: 0 | P14: 0 | Q14: 0 | R14: 0 | S14: 0 | T14: 0 | U14: 0 | V14: 0
M15: 0 | N15: 0 | O15: 0 | P15: 0 | Q15: 0 | R15: 0 | S15: 0 | T15: 0 | U15: 0 | V15: 0
M16: 0 | N16: 0 | O16: 0 | P16: 0 | Q16: 0 | R16: 0 | S16: 0 | T16: 0 | U16: 0 | V16: 0
M17: 0 | N17: 0 | O17: 0 | P17: 0 | Q17: 0 | R17: 0 | S17: 0 | T17: 0 | U17: 0 | V17: 0
M18: 0 | N18: 0 | O18: 0 | P18: 0 | Q18: 0 | R18: 0 | S18: 0 | T18: 0 | U18: 0 | V18: 0
M19: 0 | N19: 0 | O19: 0 | P19: 0 | Q19: 0 | R19: 0 | S19: 0 | T19: 0 | U19: 0 | V19: 0
M20: 0 | N20: 0 | O20: 0 | P20: 0 | Q20: 0 | R20: 0 | S20: 0 | T20: 0 | U20: 0 | V20: 0
M21: 0 | N21: 0 | O21: 0 | P21: 0 | Q21: 0 | R21: 0 | S21: 0 | T21: 0 | U21: 0 | V21: 0
M22: 0 | N22: 0 | O22: 0 | P22: 0 | Q22: 0 | R22: 0 | S22: 0 | T22: 0 | U22: 0 | V22: 0
M23: =IF((B22+B23)>0,MAX(1,ROUNDUP(($A23-$A22)*((B22+B23)/2)/27,0)),ROUNDUP(($A23-$A22)*((B22+B23)/2)/27,0)) -> 0 | N23: 0 | O23: 0 | P23: 0 | Q23: 0 | R23: 0 | S23: 0 | T23: 0 | U23: 0 | V23: 0
M24: 0 | N24: 0 | O24: 0 | P24: 0 | Q24: 0 | R24: 0 | S24: 0 | T24: 0 | U24: 0 | V24: 0
M25: 0 | N25: 0 | O25: 0 | P25: 0 | Q25: 0 | R25: 0 | S25: 0 | T25: 0 | U25: 0 | V25: 0
M26: 0 | N26: 0 | O26: 0 | P26: 0 | Q26: 0 | R26: 0 | S26: 0 | T26: 0 | U26: 0 | V26: 0
M27: 0 | N27: 0 | O27: 0 | P27: 0 | Q27: 0 | R27: 0 | S27: 0 | T27: 0 | U27: 0 | V27: 0
M28: 0 | N28: 0 | O28: 0 | P28: 0 | Q28: 0 | R28: 0 | S28: 0 | T28: 0 | U28: 0 | V28: 0
M29: 0 | N29: 0 | O29: 0 | P29: 0 | Q29: 0 | R29: 0 | S29: 0 | T29: 0 | U29: 0 | V29: 0
M30: 0 | N30: 0 | O30: 0 | P30: 0 | Q30: 0 | R30: 0 | S30: 0 | T30: 0 | U30: 0 | V30: 0
M31: 0 | N31: 0 | O31: 0 | P31: 0 | Q31: 0 | R31: 0 | S31: 0 | T31: 0 | U31: 0 | V31: 0
M32: 0 | N32: 0 | O32: 0 | P32: 0 | Q32: 0 | R32: 0 | S32: 0 | T32: 0 | U32: 0 | V32: 0
M33: 0 | N33: 0 | O33: 0 | P33: 0 | Q33: 0 | R33: 0 | S33: 0 | T33: 0 | U33: 0 | V33: 0
M34: 0 | N34: 0 | O34: 0 | P34: 0 | Q34: 0 | R34: 0 | S34: 0 | T34: 0 | U34: 0 | V34: 0
M35: 0 | N35: 0 | O35: 0 | P35: 0 | Q35: 0 | R35: 0 | S35: 0 | T35: 0 | U35: 0 | V35: 0
M36: 0 | N36: 0 | O36: 0 | P36: 0 | Q36: 0 | R36: 0 | S36: 0 | T36: 0 | U36: 0 | V36: 0
M37: 0 | N37: 0 | O37: 0 | P37: 0 | Q37: 0 | R37: 0 | S37: 0 | T37: 0 | U37: 0 | V37: 0
M38: 0 | N38: 0 | O38: 0 | P38: 0 | Q38: 0 | R38: 0 | S38: 0 | T38: 0 | U38: 0 | V38: 0
M39: =IF((B38+B39)>0,MAX(1,ROUNDUP(($A39-$A38)*((B38+B39)/2)/27,0)),ROUNDUP(($A39-$A38)*((B38+B39)/2)/27,0)) -> 0 | N39: 0 | O39: 0 | P39: 0 | Q39: 0 | R39: 0 | S39: 0 | T39: 0 | U39: 0 | V39: 0
M40: 0 | N40: 0 | O40: 0 | P40: 0 | Q40: 0 | R40: 0 | S40: 0 | T40: 0 | U40: 0 | V40: 0
M41: 0 | N41: 0 | O41: 0 | P41: 0 | Q41: 0 | R41: 0 | S41: 0 | T41: 0 | U41: 0 | V41: 0
M42: 0 | N42: 0 | O42: 0 | P42: 0 | Q42: 0 | R42: 0 | S42: 0 | T42: 0 | U42: 0 | V42: 0
M43: 0 | N43: 0 | O43: 0 | P43: 0 | Q43: 0 | R43: 0 | S43: 0 | T43: 0 | U43: 0 | V43: 0
M44: 0 | N44: 0 | O44: 0 | P44: 0 | Q44: 0 | R44: 0 | S44: 0 | T44: 0 | U44: 0 | V44: 0
M45: 0 | N45: 0 | O45: 0 | P45: 0 | Q45: 0 | R45: 0 | S45: 0 | T45: 0 | U45: 0 | V45: 0
M46: 0 | N46: 0 | O46: 0 | P46: 0 | Q46: 0 | R46: 0 | S46: 0 | T46: 0 | U46: 0 | V46: 0
M47: 0 | N47: 0 | O47: 0 | P47: 0 | Q47: 0 | R47: 0 | S47: 0 | T47: 0 | U47: 0 | V47: 0
M48: 0 | N48: 0 | O48: 0 | P48: 0 | Q48: 0 | R48: 0 | S48: 0 | T48: 0 | U48: 0 | V48: 0
M49: 0 | N49: 0 | O49: 0 | P49: 0 | Q49: 0 | R49: 0 | S49: 0 | T49: 0 | U49: 0 | V49: 0
M50: 0 | N50: 0 | O50: 0 | P50: 0 | Q50: 0 | R50: 0 | S50: 0 | T50: 0 | U50: 0 | V50: 0
M51: 0 | N51: 0 | O51: 0 | P51: 0 | Q51: 0 | R51: 0 | S51: 0 | T51: 0 | U51: 0 | V51: 0
M52: 0 | N52: 0 | O52: 0 | P52: 0 | Q52: 0 | R52: 0 | S52: 0 | T52: 0 | U52: 0 | V52: 0
M53: 0 | N53: 0 | O53: 0 | P53: 0 | Q53: 0 | R53: 0 | S53: 0 | T53: 0 | U53: 0 | V53: 0
M54: 0 | N54: 0 | O54: 0 | P54: 0 | Q54: 0 | R54: 0 | S54: 0 | T54: 0 | U54: 0 | V54: 0
M55: =IF((B54+B55)>0,MAX(1,ROUNDUP(($A55-$A54)*((B54+B55)/2)/27,0)),ROUNDUP(($A55-$A54)*((B54+B55)/2)/27,0)) -> 0 | N55: 0 | O55: 0 | P55: 0 | Q55: 0 | R55: 0 | S55: 0 | T55: 0 | U55: 0 | V55: 0
M56: 0 | N56: 0 | O56: 0 | P56: 0 | Q56: 0 | R56: 0 | S56: 0 | T56: 0 | U56: 0 | V56: 0
M57: 0 | N57: 0 | O57: 0 | P57: 0 | Q57: 0 | R57: 0 | S57: 0 | T57: 0 | U57: 0 | V57: 0
M58: 0 | N58: 0 | O58: 0 | P58: 0 | Q58: 0 | R58: 0 | S58: 0 | T58: 0 | U58: 0 | V58: 0
M59: 0 | N59: 0 | O59: 0 | P59: 0 | Q59: 0 | R59: 0 | S59: 0 | T59: 0 | U59: 0 | V59: 0
M60: 0 | N60: 0 | O60: 0 | P60: 0 | Q60: 0 | R60: 0 | S60: 0 | T60: 0 | U60: 0 | V60: 0
M61: 0 | N61: 0 | O61: 0 | P61: 0 | Q61: 0 | R61: 0 | S61: 0 | T61: 0 | U61: 0 | V61: 0
M62: 0 | N62: 0 | O62: 0 | P62: 0 | Q62: 0 | R62: 0 | S62: 0 | T62: 0 | U62: 0 | V62: 0
M63: 0 | N63: 0 | O63: 0 | P63: 0 | Q63: 0 | R63: 0 | S63: 0 | T63: 0 | U63: 0 | V63: 0
M64: 0 | N64: 0 | O64: 0 | P64: 0 | Q64: 0 | R64: 0 | S64: 0 | T64: 0 | U64: 0 | V64: 0
M65: 0 | N65: 0 | O65: 0 | P65: 0 | Q65: 0 | R65: 0 | S65: 0 | T65: 0 | U65: 0 | V65: 0
M66: 0 | N66: 0 | O66: 0 | P66: 0 | Q66: 0 | R66: 0 | S66: 0 | T66: 0 | U66: 0 | V66: 0
M67: 0 | N67: 0 | O67: 0 | P67: 0 | Q67: 0 | R67: 0 | S67: 0 | T67: 0 | U67: 0 | V67: 0
M68: 0 | N68: 0 | O68: 0 | P68: 0 | Q68: 0 | R68: 0 | S68: 0 | T68: 0 | U68: 0 | V68: 0
M69: 0 | N69: 0 | O69: 0 | P69: 0 | Q69: 0 | R69: 0 | S69: 0 | T69: 0 | U69: 0 | V69: 0
M70: 0 | N70: 0 | O70: 0 | P70: 0 | Q70: 0 | R70: 0 | S70: 0 | T70: 0 | U70: 0 | V70: 0
M71: =IF((B70+B71)>0,MAX(1,ROUNDUP(($A71-$A70)*((B70+B71)/2)/27,0)),ROUNDUP(($A71-$A70)*((B70+B71)/2)/27,0)) -> 0 | N71: 0 | O71: 0 | P71: 0 | Q71: 0 | R71: 0 | S71: 0 | T71: 0 | U71: 0 | V71: 0
M72: 0 | N72: 0 | O72: 0 | P72: 0 | Q72: 0 | R72: 0 | S72: 0 | T72: 0 | U72: 0 | V72: 0
M73: 0 | N73: 0 | O73: 0 | P73: 0 | Q73: 0 | R73: 0 | S73: 0 | T73: 0 | U73: 0 | V73: 0
M74: 0 | N74: 0 | O74: 0 | P74: 0 | Q74: 0 | R74: 0 | S74: 0 | T74: 0 | U74: 0 | V74: 0
M75: 0 | N75: 0 | O75: 0 | P75: 0 | Q75: 0 | R75: 0 | S75: 0 | T75: 0 | U75: 0 | V75: 0
M76: 0 | N76: 0 | O76: 0 | P76: 0 | Q76: 0 | R76: 0 | S76: 0 | T76: 0 | U76: 0 | V76: 0
M77: 0 | N77: 0 | O77: 0 | P77: 0 | Q77: 0 | R77: 0 | S77: 0 | T77: 0 | U77: 0 | V77: 0
M78: 0 | N78: 0 | O78: 0 | P78: 0 | Q78: 0 | R78: 0 | S78: 0 | T78: 0 | U78: 0 | V78: 0
M79: 0 | N79: 0 | O79: 0 | P79: 0 | Q79: 0 | R79: 0 | S79: 0 | T79: 0 | U79: 0 | V79: 0

Sheet Rice Spring Rd
A1: =MID(CELL("filename",$A$2),FIND("]",CELL("filename",$A$2))+1,256) -> Rice Spring Rd | B1: AREAS | M1: VOLUMES
A2: STATION | B2: ROCK ROADBED | C2: REFILL | D2: EMB. BENCH | E2: GRAN. EMB. | F2: COM | G2: EM | H2: ROCK EXC. | I2: DT LT | J2: DT RT | K2: LEVEL-WEDGE | M2: ROCK ROADBED | N2: REFILL | O2: EMB. BENCH | P2: GRAN. EMB. | Q2: COM | R2: EM | S2: ROCK EXC. | T2: DT LT | U2: DT RT | V2: LEVEL-WEDGE
A3: TOTALS | M3: =SUM(M6:M2002) -> 0 | N3: =SUM(N6:N2002) -> 0 | O3: 0 | P3: 0 | Q3: =SUM(Q5:Q2002) -> 298 | R3: =SUM(R5:R2002) -> 513 | S3: 0 | T3: 0 | U3: 0 | V3: 0
A4: 4600 | F4: 0 | G4: 0
A5: 4650 | F5: 46 | G5: 0 | M5: =IF((B4+B5)>0,MAX(1,ROUNDUP(($A5-$A4)*((B4+B5)/2)/27,0)),ROUNDUP(($A5-$A4)*((B4+B5)/2)/27,0)) -> 0 | N5: =IF((C4+C5)>0,MAX(1,ROUNDUP(($A5-$A4)*((C4+C5)/2)/27,0)),ROUNDUP(($A5-$A4)*((C4+C5)/2)/27,0)) -> 0 | O5: =IF((D4+D5)>0,MAX(1,ROUNDUP(($A5-$A4)*((D4+D5)/2)/27,0)),ROUNDUP(($A5-$A4)*((D4+D5)/2)/27,0)) -> 0 | P5: =IF((E4+E5)>0,MAX(1,ROUNDUP(($A5-$A4)*((E4+E5)/2)/27,0)),ROUNDUP(($A5-$A4)*((E4+E5)/2)/27,0)) -> 0 | Q5: =IF((F4+F5)>0,MAX(1,ROUNDUP(($A5-$A4)*((F4+F5)/2)/27,0)),ROUNDUP(($A5-$A4)*((F4+F5)/2)/27,0)) -> 43 | R5: =IF((G4+G5)>0,MAX(1,ROUNDUP(($A5-$A4)*((G4+G5)/2)/27,0)),ROUNDUP(($A5-$A4)*((G4+G5)/2)/27,0)) -> 0 | S5: =IF((H4+H5)>0,MAX(1,ROUNDUP(($A5-$A4)*((H4+H5)/2)/27,0)),ROUNDUP(($A5-$A4)*((H4+H5)/2)/27,0)) -> 0 | T5: =IF((I4+I5)>0,MAX(1,ROUNDUP(($A5-$A4)*((I4+I5)/2)/27,0)),ROUNDUP(($A5-$A4)*((I4+I5)/2)/27,0)) -> 0 | U5: =IF((J4+J5)>0,MAX(1,ROUNDUP(($A5-$A4)*((J4+J5)/2)/27,0)),ROUNDUP(($A5-$A4)*((J4+J5)/2)/27,0)) -> 0 | V5: =IF((K4+K5)>0,MAX(1,ROUNDUP(($A5-$A4)*((K4+K5)/2)/27,0)),ROUNDUP(($A5-$A4)*((K4+K5)/2)/27,0)) -> 0
A6: 4700 | F6: 43 | G6: 0 | M6: =IF((B5+B6)>0,MAX(1,ROUNDUP(($A6-$A5)*((B5+B6)/2)/27,0)),ROUNDUP(($A6-$A5)*((B5+B6)/2)/27,0)) -> 0 | N6: =IF((C5+C6)>0,MAX(1,ROUNDUP(($A6-$A5)*((C5+C6)/2)/27,0)),ROUNDUP(($A6-$A5)*((C5+C6)/2)/27,0)) -> 0 | O6: =IF((D5+D6)>0,MAX(1,ROUNDUP(($A6-$A5)*((D5+D6)/2)/27,0)),ROUNDUP(($A6-$A5)*((D5+D6)/2)/27,0)) -> 0 | P6: =IF((E5+E6)>0,MAX(1,ROUNDUP(($A6-$A5)*((E5+E6)/2)/27,0)),ROUNDUP(($A6-$A5)*((E5+E6)/2)/27,0)) -> 0 | Q6: =IF((F5+F6)>0,MAX(1,ROUNDUP(($A6-$A5)*((F5+F6)/2)/27,0)),ROUNDUP(($A6-$A5)*((F5+F6)/2)/27,0)) -> 83 | R6: =IF((G5+G6)>0,MAX(1,ROUNDUP(($A6-$A5)*((G5+G6)/2)/27,0)),ROUNDUP(($A6-$A5)*((G5+G6)/2)/27,0)) -> 0 | S6: =IF((H5+H6)>0,MAX(1,ROUNDUP(($A6-$A5)*((H5+H6)/2)/27,0)),ROUNDUP(($A6-$A5)*((H5+H6)/2)/27,0)) -> 0 | T6: =IF((I5+I6)>0,MAX(1,ROUNDUP(($A6-$A5)*((I5+I6)/2)/27,0)),ROUNDUP(($A6-$A5)*((I5+I6)/2)/27,0)) -> 0 | U6: =IF((J5+J6)>0,MAX(1,ROUNDUP(($A6-$A5)*((J5+J6)/2)/27,0)),ROUNDUP(($A6-$A5)*((J5+J6)/2)/27,0)) -> 0 | V6: =IF((K5+K6)>0,MAX(1,ROUNDUP(($A6-$A5)*((K5+K6)/2)/27,0)),ROUNDUP(($A6-$A5)*((K5+K6)/2)/27,0)) -> 0
A7: 4750 | F7: 19 | G7: 3 | M7: 0 | N7: 0 | O7: 0 | P7: 0 | Q7: 58 | R7: 3 | S7: 0 | T7: 0 | U7: 0 | V7: 0
A8: 4800 | F8: 11 | G8: 14 | M8: 0 | N8: 0 | O8: 0 | P8: 0 | Q8: 28 | R8: 16 | S8: 0 | T8: 0 | U8: 0 | V8: 0
A9: 4850 | F9: 23 | G9: 27 | M9: 0 | N9: 0 | O9: 0 | P9: 0 | Q9: 32 | R9: 38 | S9: 0 | T9: 0 | U9: 0 | V9: 0
A10: 4900 | F10: 17 | G10: 92 | M10: 0 | N10: 0 | O10: 0 | P10: 0 | Q10: 38 | R10: 111 | S10: 0 | T10: 0 | U10: 0 | V10: 0
A11: 4950 | F11: 0 | G11: 140 | M11: 0 | N11: 0 | O11: 0 | P11: 0 | Q11: 16 | R11: 215 | S11: 0 | T11: 0 | U11: 0 | V11: 0
A12: 5000 | F12: 0 | G12: 0 | M12: 0 | N12: 0 | O12: 0 | P12: 0 | Q12: 0 | R12: 130 | S12: 0 | T12: 0 | U12: 0 | V12: 0
M13: 0 | N13: 0 | O13: 0 | P13: 0 | Q13: 0 | R13: 0 | S13: 0 | T13: 0 | U13: 0 | V13: 0
M14: 0 | N14: 0 | O14: 0 | P14: 0 | Q14: 0 | R14: 0 | S14: 0 | T14: 0 | U14: 0 | V14: 0
M15: 0 | N15: 0 | O15: 0 | P15: 0 | Q15: 0 | R15: 0 | S15: 0 | T15: 0 | U15: 0 | V15: 0
M16: 0 | N16: 0 | O16: 0 | P16: 0 | Q16: 0 | R16: 0 | S16: 0 | T16: 0 | U16: 0 | V16: 0
M17: =IF((B16+B17)>0,MAX(1,ROUNDUP(($A17-$A16)*((B16+B17)/2)/27,0)),ROUNDUP(($A17-$A16)*((B16+B17)/2)/27,0)) -> 0 | N17: =IF((C16+C17)>0,MAX(1,ROUNDUP(($A17-$A16)*((C16+C17)/2)/27,0)),ROUNDUP(($A17-$A16)*((C16+C17)/2)/27,0)) -> 0 | O17: 0 | P17: 0 | Q17: 0 | R17: 0 | S17: 0 | T17: 0 | U17: 0 | V17: 0
M18: 0 | N18: 0 | O18: 0 | P18: 0 | Q18: 0 | R18: 0 | S18: 0 | T18: 0 | U18: 0 | V18: 0
M19: 0 | N19: 0 | O19: 0 | P19: 0 | Q19: 0 | R19: 0 | S19: 0 | T19: 0 | U19: 0 | V19: 0
M20: =IF((B19+B20)>0,MAX(1,ROUNDUP(($A20-$A19)*((B19+B20)/2)/27,0)),ROUNDUP(($A20-$A19)*((B19+B20)/2)/27,0)) -> 0 | N20: 0 | O20: 0 | P20: 0 | Q20: 0 | R20: 0 | S20: 0 | T20: 0 | U20: 0 | V20: 0
M21: 0 | N21: 0 | O21: 0 | P21: 0 | Q21: 0 | R21: 0 | S21: 0 | T21: 0 | U21: 0 | V21: 0
M22: 0 | N22: 0 | O22: 0 | P22: 0 | Q22: 0 | R22: 0 | S22: 0 | T22: 0 | U22: 0 | V22: 0
M23: 0 | N23: 0 | O23: 0 | P23: 0 | Q23: 0 | R23: 0 | S23: 0 | T23: 0 | U23: 0 | V23: 0
M24: 0 | N24: 0 | O24: 0 | P24: 0 | Q24: 0 | R24: 0 | S24: 0 | T24: 0 | U24: 0 | V24: 0
M25: 0 | N25: 0 | O25: 0 | P25: 0 | Q25: 0 | R25: 0 | S25: 0 | T25: 0 | U25: 0 | V25: 0
M26: =IF((B25+B26)>0,MAX(1,ROUNDUP(($A26-$A25)*((B25+B26)/2)/27,0)),ROUNDUP(($A26-$A25)*((B25+B26)/2)/27,0)) -> 0 | N26: 0 | O26: 0 | P26: 0 | Q26: 0 | R26: 0 | S26: 0 | T26: 0 | U26: 0 | V26: 0
M27: 0 | N27: 0 | O27: 0 | P27: 0 | Q27: 0 | R27: 0 | S27: 0 | T27: 0 | U27: 0 | V27: 0
M28: 0 | N28: 0 | O28: 0 | P28: 0 | Q28: 0 | R28: 0 | S28: 0 | T28: 0 | U28: 0 | V28: 0
M29: 0 | N29: 0 | O29: 0 | P29: 0 | Q29: 0 | R29: 0 | S29: 0 | T29: 0 | U29: 0 | V29: 0
M30: 0 | N30: 0 | O30: 0 | P30: 0 | Q30: 0 | R30: 0 | S30: 0 | T30: 0 | U30: 0 | V30: 0
M31: 0 | N31: 0 | O31: 0 | P31: 0 | Q31: 0 | R31: 0 | S31: 0 | T31: 0 | U31: 0 | V31: 0
M32: 0 | N32: 0 | O32: 0 | P32: 0 | Q32: 0 | R32: 0 | S32: 0 | T32: 0 | U32: 0 | V32: 0
M33: 0 | N33: 0 | O33: 0 | P33: 0 | Q33: 0 | R33: 0 | S33: 0 | T33: 0 | U33: 0 | V33: 0
M34: 0 | N34: 0 | O34: 0 | P34: 0 | Q34: 0 | R34: 0 | S34: 0 | T34: 0 | U34: 0 | V34: 0
M35: 0 | N35: 0 | O35: 0 | P35: 0 | Q35: 0 | R35: 0 | S35: 0 | T35: 0 | U35: 0 | V35: 0
M36: 0 | N36: 0 | O36: 0 | P36: 0 | Q36: 0 | R36: 0 | S36: 0 | T36: 0 | U36: 0 | V36: 0
M37: 0 | N37: 0 | O37: 0 | P37: 0 | Q37: 0 | R37: 0 | S37: 0 | T37: 0 | U37: 0 | V37: 0
M38: 0 | N38: 0 | O38: 0 | P38: 0 | Q38: 0 | R38: 0 | S38: 0 | T38: 0 | U38: 0 | V38: 0
M39: =IF((B38+B39)>0,MAX(1,ROUNDUP(($A39-$A38)*((B38+B39)/2)/27,0)),ROUNDUP(($A39-$A38)*((B38+B39)/2)/27,0)) -> 0 | N39: 0 | O39: 0 | P39: 0 | Q39: 0 | R39: 0 | S39: 0 | T39: 0 | U39: 0 | V39: 0
M40: 0 | N40: 0 | O40: 0 | P40: 0 | Q40: 0 | R40: 0 | S40: 0 | T40: 0 | U40: 0 | V40: 0
M41: 0 | N41: 0 | O41: 0 | P41: 0 | Q41: 0 | R41: 0 | S41: 0 | T41: 0 | U41: 0 | V41: 0
M42: 0 | N42: 0 | O42: 0 | P42: 0 | Q42: 0 | R42: 0 | S42: 0 | T42: 0 | U42: 0 | V42: 0
M43: 0 | N43: 0 | O43: 0 | P43: 0 | Q43: 0 | R43: 0 | S43: 0 | T43: 0 | U43: 0 | V43: 0
M44: 0 | N44: 0 | O44: 0 | P44: 0 | Q44: 0 | R44: 0 | S44: 0 | T44: 0 | U44: 0 | V44: 0
M45: 0 | N45: 0 | O45: 0 | P45: 0 | Q45: 0 | R45: 0 | S45: 0 | T45: 0 | U45: 0 | V45: 0
M46: 0 | N46: 0 | O46: 0 | P46: 0 | Q46: 0 | R46: 0 | S46: 0 | T46: 0 | U46: 0 | V46: 0
M47: 0 | N47: 0 | O47: 0 | P47: 0 | Q47: 0 | R47: 0 | S47: 0 | T47: 0 | U47: 0 | V47: 0
M48: 0 | N48: 0 | O48: 0 | P48: 0 | Q48: 0 | R48: 0 | S48: 0 | T48: 0 | U48: 0 | V48: 0
M49: 0 | N49: 0 | O49: 0 | P49: 0 | Q49: 0 | R49: 0 | S49: 0 | T49: 0 | U49: 0 | V49: 0
M50: 0 | N50: 0 | O50: 0 | P50: 0 | Q50: 0 | R50: 0 | S50: 0 | T50: 0 | U50: 0 | V50: 0
M51: 0 | N51: 0 | O51: 0 | P51: 0 | Q51: 0 | R51: 0 | S51: 0 | T51: 0 | U51: 0 | V51: 0
M52: 0 | N52: 0 | O52: 0 | P52: 0 | Q52: 0 | R52: 0 | S52: 0 | T52: 0 | U52: 0 | V52: 0
M53: 0 | N53: 0 | O53: 0 | P53: 0 | Q53: 0 | R53: 0 | S53: 0 | T53: 0 | U53: 0 | V53: 0
M54: 0 | N54: 0 | O54: 0 | P54: 0 | Q54: 0 | R54: 0 | S54: 0 | T54: 0 | U54: 0 | V54: 0
M55: =IF((B54+B55)>0,MAX(1,ROUNDUP(($A55-$A54)*((B54+B55)/2)/27,0)),ROUNDUP(($A55-$A54)*((B54+B55)/2)/27,0)) -> 0 | N55: 0 | O55: 0 | P55: 0 | Q55: 0 | R55: 0 | S55: 0 | T55: 0 | U55: 0 | V55: 0
M56: 0 | N56: 0 | O56: 0 | P56: 0 | Q56: 0 | R56: 0 | S56: 0 | T56: 0 | U56: 0 | V56: 0
M57: 0 | N57: 0 | O57: 0 | P57: 0 | Q57: 0 | R57: 0 | S57: 0 | T57: 0 | U57: 0 | V57: 0
M58: 0 | N58: 0 | O58: 0 | P58: 0 | Q58: 0 | R58: 0 | S58: 0 | T58: 0 | U58: 0 | V58: 0
M59: 0 | N59: 0 | O59: 0 | P59: 0 | Q59: 0 | R59: 0 | S59: 0 | T59: 0 | U59: 0 | V59: 0
M60: 0 | N60: 0 | O60: 0 | P60: 0 | Q60: 0 | R60: 0 | S60: 0 | T60: 0 | U60: 0 | V60: 0
M61: 0 | N61: 0 | O61: 0 | P61: 0 | Q61: 0 | R61: 0 | S61: 0 | T61: 0 | U61: 0 | V61: 0
M62: 0 | N62: 0 | O62: 0 | P62: 0 | Q62: 0 | R62: 0 | S62: 0 | T62: 0 | U62: 0 | V62: 0
M63: 0 | N63: 0 | O63: 0 | P63: 0 | Q63: 0 | R63: 0 | S63: 0 | T63: 0 | U63: 0 | V63: 0
M64: 0 | N64: 0 | O64: 0 | P64: 0 | Q64: 0 | R64: 0 | S64: 0 | T64: 0 | U64: 0 | V64: 0
M65: 0 | N65: 0 | O65: 0 | P65: 0 | Q65: 0 | R65: 0 | S65: 0 | T65: 0 | U65: 0 | V65: 0
M66: 0 | N66: 0 | O66: 0 | P66: 0 | Q66: 0 | R66: 0 | S66: 0 | T66: 0 | U66: 0 | V66: 0
M67: 0 | N67: 0 | O67: 0 | P67: 0 | Q67: 0 | R67: 0 | S67: 0 | T67: 0 | U67: 0 | V67: 0
M68: 0 | N68: 0 | O68: 0 | P68: 0 | Q68: 0 | R68: 0 | S68: 0 | T68: 0 | U68: 0 | V68: 0
M69: 0 | N69: 0 | O69: 0 | P69: 0 | Q69: 0 | R69: 0 | S69: 0 | T69: 0 | U69: 0 | V69: 0
M70: 0 | N70: 0 | O70: 0 | P70: 0 | Q70: 0 | R70: 0 | S70: 0 | T70: 0 | U70: 0 | V70: 0
M71: =IF((B70+B71)>0,MAX(1,ROUNDUP(($A71-$A70)*((B70+B71)/2)/27,0)),ROUNDUP(($A71-$A70)*((B70+B71)/2)/27,0)) -> 0 | N71: 0 | O71: 0 | P71: 0 | Q71: 0 | R71: 0 | S71: 0 | T71: 0 | U71: 0 | V71: 0
M72: 0 | N72: 0 | O72: 0 | P72: 0 | Q72: 0 | R72: 0 | S72: 0 | T72: 0 | U72: 0 | V72: 0
M73: 0 | N73: 0 | O73: 0 | P73: 0 | Q73: 0 | R73: 0 | S73: 0 | T73: 0 | U73: 0 | V73: 0
M74: 0 | N74: 0 | O74: 0 | P74: 0 | Q74: 0 | R74: 0 | S74: 0 | T74: 0 | U74: 0 | V74: 0
M75: 0 | N75: 0 | O75: 0 | P75: 0 | Q75: 0 | R75: 0 | S75: 0 | T75: 0 | U75: 0 | V75: 0
M76: 0 | N76: 0 | O76: 0 | P76: 0 | Q76: 0 | R76: 0 | S76: 0 | T76: 0 | U76: 0 | V76: 0
M77: 0 | N77: 0 | O77: 0 | P77: 0 | Q77: 0 | R77: 0 | S77: 0 | T77: 0 | U77: 0 | V77: 0
M78: 0 | N78: 0 | O78: 0 | P78: 0 | Q78: 0 | R78: 0 | S78: 0 | T78: 0 | U78: 0 | V78: 0
M79: 0 | N79: 0 | O79: 0 | P79: 0 | Q79: 0 | R79: 0 | S79: 0 | T79: 0 | U79: 0 | V79: 0

Sheet Frontage Rd#1
A1: =MID(CELL("filename",$A$2),FIND("]",CELL("filename",$A$2))+1,256) -> Frontage Rd#1 | B1: AREAS | M1: VOLUMES
A2: STATION | B2: ROCK ROADBED | C2: REFILL | D2: EMB. BENCH | E2: GRAN. EMB. | F2: COM | G2: EM | H2: ROCK EXC. | I2: DT LT | J2: DT RT | K2: LEVEL-WEDGE | M2: ROCK ROADBED | N2: REFILL | O2: EMB. BENCH | P2: GRAN. EMB. | Q2: COM | R2: EM | S2: ROCK EXC. | T2: DT LT | U2: DT RT | V2: LEVEL-WEDGE
A3: TOTALS | M3: =SUM(M6:M2002) -> 0 | N3: =SUM(N6:N2002) -> 0 | O3: 0 | P3: 0 | Q3: =SUM(Q5:Q2002) -> 200 | R3: =SUM(R5:R2002) -> 460 | S3: 0 | T3: 0 | U3: 0 | V3: 0
A4: 5000 | F4: 0 | G4: 0
A5: 5050 | F5: 0 | G5: 247 | M5: =IF((B4+B5)>0,MAX(1,ROUNDUP(($A5-$A4)*((B4+B5)/2)/27,0)),ROUNDUP(($A5-$A4)*((B4+B5)/2)/27,0)) -> 0 | N5: =IF((C4+C5)>0,MAX(1,ROUNDUP(($A5-$A4)*((C4+C5)/2)/27,0)),ROUNDUP(($A5-$A4)*((C4+C5)/2)/27,0)) -> 0 | O5: =IF((D4+D5)>0,MAX(1,ROUNDUP(($A5-$A4)*((D4+D5)/2)/27,0)),ROUNDUP(($A5-$A4)*((D4+D5)/2)/27,0)) -> 0 | P5: =IF((E4+E5)>0,MAX(1,ROUNDUP(($A5-$A4)*((E4+E5)/2)/27,0)),ROUNDUP(($A5-$A4)*((E4+E5)/2)/27,0)) -> 0 | Q5: =IF((F4+F5)>0,MAX(1,ROUNDUP(($A5-$A4)*((F4+F5)/2)/27,0)),ROUNDUP(($A5-$A4)*((F4+F5)/2)/27,0)) -> 0 | R5: =IF((G4+G5)>0,MAX(1,ROUNDUP(($A5-$A4)*((G4+G5)/2)/27,0)),ROUNDUP(($A5-$A4)*((G4+G5)/2)/27,0)) -> 229 | S5: =IF((H4+H5)>0,MAX(1,ROUNDUP(($A5-$A4)*((H4+H5)/2)/27,0)),ROUNDUP(($A5-$A4)*((H4+H5)/2)/27,0)) -> 0 | T5: =IF((I4+I5)>0,MAX(1,ROUNDUP(($A5-$A4)*((I4+I5)/2)/27,0)),ROUNDUP(($A5-$A4)*((I4+I5)/2)/27,0)) -> 0 | U5: =IF((J4+J5)>0,MAX(1,ROUNDUP(($A5-$A4)*((J4+J5)/2)/27,0)),ROUNDUP(($A5-$A4)*((J4+J5)/2)/27,0)) -> 0 | V5: =IF((K4+K5)>0,MAX(1,ROUNDUP(($A5-$A4)*((K4+K5)/2)/27,0)),ROUNDUP(($A5-$A4)*((K4+K5)/2)/27,0)) -> 0
A6: 5100 | F6: 53 | G6: 1 | M6: =IF((B5+B6)>0,MAX(1,ROUNDUP(($A6-$A5)*((B5+B6)/2)/27,0)),ROUNDUP(($A6-$A5)*((B5+B6)/2)/27,0)) -> 0 | N6: =IF((C5+C6)>0,MAX(1,ROUNDUP(($A6-$A5)*((C5+C6)/2)/27,0)),ROUNDUP(($A6-$A5)*((C5+C6)/2)/27,0)) -> 0 | O6: 0 | P6: 0 | Q6: 50 | R6: 230 | S6: 0 | T6: 0 | U6: 0 | V6: =IF((K5+K6)>0,MAX(1,ROUNDUP(($A6-$A5)*((K5+K6)/2)/27,0)),ROUNDUP(($A6-$A5)*((K5+K6)/2)/27,0)) -> 0
A7: 5150 | F7: 54 | G7: 0 | M7: =IF((B6+B7)>0,MAX(1,ROUNDUP(($A7-$A6)*((B6+B7)/2)/27,0)),ROUNDUP(($A7-$A6)*((B6+B7)/2)/27,0)) -> 0 | N7: 0 | O7: 0 | P7: 0 | Q7: 100 | R7: 1 | S7: 0 | T7: 0 | U7: 0 | V7: 0
A8: 5200 | F8: 0 | G8: 0 | M8: 0 | N8: 0 | O8: 0 | P8: 0 | Q8: 50 | R8: 0 | S8: 0 | T8: 0 | U8: 0 | V8: 0
M9: 0 | N9: 0 | O9: 0 | P9: 0 | Q9: 0 | R9: 0 | S9: 0 | T9: 0 | U9: 0 | V9: 0
M10: 0 | N10: 0 | O10: 0 | P10: 0 | Q10: 0 | R10: 0 | S10: 0 | T10: 0 | U10: 0 | V10: 0
M11: 0 | N11: 0 | O11: 0 | P11: 0 | Q11: 0 | R11: 0 | S11: 0 | T11: 0 | U11: 0 | V11: 0
M12: 0 | N12: 0 | O12: 0 | P12: 0 | Q12: 0 | R12: 0 | S12: 0 | T12: 0 | U12: 0 | V12: 0
M13: 0 | N13: 0 | O13: 0 | P13: 0 | Q13: 0 | R13: 0 | S13: 0 | T13: 0 | U13: 0 | V13: 0
M14: 0 | N14: 0 | O14: 0 | P14: 0 | Q14: 0 | R14: 0 | S14: 0 | T14: 0 | U14: 0 | V14: 0
M15: 0 | N15: 0 | O15: 0 | P15: 0 | Q15: 0 | R15: 0 | S15: 0 | T15: 0 | U15: 0 | V15: 0
M16: 0 | N16: 0 | O16: 0 | P16: 0 | Q16: 0 | R16: 0 | S16: 0 | T16: 0 | U16: 0 | V16: 0
M17: 0 | N17: 0 | O17: 0 | P17: 0 | Q17: 0 | R17: 0 | S17: 0 | T17: 0 | U17: 0 | V17: 0
M18: 0 | N18: 0 | O18: 0 | P18: 0 | Q18: 0 | R18: 0 | S18: 0 | T18: 0 | U18: 0 | V18: 0
M19: 0 | N19: 0 | O19: 0 | P19: 0 | Q19: 0 | R19: 0 | S19: 0 | T19: 0 | U19: 0 | V19: 0
M20: 0 | N20: 0 | O20: 0 | P20: 0 | Q20: 0 | R20: 0 | S20: 0 | T20: 0 | U20: 0 | V20: 0
M21: 0 | N21: 0 | O21: 0 | P21: 0 | Q21: 0 | R21: 0 | S21: 0 | T21: 0 | U21: 0 | V21: 0
M22: 0 | N22: 0 | O22: 0 | P22: 0 | Q22: 0 | R22: 0 | S22: 0 | T22: 0 | U22: 0 | V22: 0
M23: =IF((B22+B23)>0,MAX(1,ROUNDUP(($A23-$A22)*((B22+B23)/2)/27,0)),ROUNDUP(($A23-$A22)*((B22+B23)/2)/27,0)) -> 0 | N23: 0 | O23: 0 | P23: 0 | Q23: 0 | R23: 0 | S23: 0 | T23: 0 | U23: 0 | V23: 0
M24: 0 | N24: 0 | O24: 0 | P24: 0 | Q24: 0 | R24: 0 | S24: 0 | T24: 0 | U24: 0 | V24: 0
M25: 0 | N25: 0 | O25: 0 | P25: 0 | Q25: 0 | R25: 0 | S25: 0 | T25: 0 | U25: 0 | V25: 0
M26: 0 | N26: 0 | O26: 0 | P26: 0 | Q26: 0 | R26: 0 | S26: 0 | T26: 0 | U26: 0 | V26: 0
M27: 0 | N27: 0 | O27: 0 | P27: 0 | Q27: 0 | R27: 0 | S27: 0 | T27: 0 | U27: 0 | V27: 0
M28: 0 | N28: 0 | O28: 0 | P28: 0 | Q28: 0 | R28: 0 | S28: 0 | T28: 0 | U28: 0 | V28: 0
M29: 0 | N29: 0 | O29: 0 | P29: 0 | Q29: 0 | R29: 0 | S29: 0 | T29: 0 | U29: 0 | V29: 0
M30: 0 | N30: 0 | O30: 0 | P30: 0 | Q30: 0 | R30: 0 | S30: 0 | T30: 0 | U30: 0 | V30: 0
M31: 0 | N31: 0 | O31: 0 | P31: 0 | Q31: 0 | R31: 0 | S31: 0 | T31: 0 | U31: 0 | V31: 0
M32: 0 | N32: 0 | O32: 0 | P32: 0 | Q32: 0 | R32: 0 | S32: 0 | T32: 0 | U32: 0 | V32: 0
M33: 0 | N33: 0 | O33: 0 | P33: 0 | Q33: 0 | R33: 0 | S33: 0 | T33: 0 | U33: 0 | V33: 0
M34: 0 | N34: 0 | O34: 0 | P34: 0 | Q34: 0 | R34: 0 | S34: 0 | T34: 0 | U34: 0 | V34: 0
M35: 0 | N35: 0 | O35: 0 | P35: 0 | Q35: 0 | R35: 0 | S35: 0 | T35: 0 | U35: 0 | V35: 0
M36: 0 | N36: 0 | O36: 0 | P36: 0 | Q36: 0 | R36: 0 | S36: 0 | T36: 0 | U36: 0 | V36: 0
M37: 0 | N37: 0 | O37: 0 | P37: 0 | Q37: 0 | R37: 0 | S37: 0 | T37: 0 | U37: 0 | V37: 0
M38: 0 | N38: 0 | O38: 0 | P38: 0 | Q38: 0 | R38: 0 | S38: 0 | T38: 0 | U38: 0 | V38: 0
M39: =IF((B38+B39)>0,MAX(1,ROUNDUP(($A39-$A38)*((B38+B39)/2)/27,0)),ROUNDUP(($A39-$A38)*((B38+B39)/2)/27,0)) -> 0 | N39: 0 | O39: 0 | P39: 0 | Q39: 0 | R39: 0 | S39: 0 | T39: 0 | U39: 0 | V39: 0
M40: 0 | N40: 0 | O40: 0 | P40: 0 | Q40: 0 | R40: 0 | S40: 0 | T40: 0 | U40: 0 | V40: 0
M41: 0 | N41: 0 | O41: 0 | P41: 0 | Q41: 0 | R41: 0 | S41: 0 | T41: 0 | U41: 0 | V41: 0
M42: 0 | N42: 0 | O42: 0 | P42: 0 | Q42: 0 | R42: 0 | S42: 0 | T42: 0 | U42: 0 | V42: 0
M43: 0 | N43: 0 | O43: 0 | P43: 0 | Q43: 0 | R43: 0 | S43: 0 | T43: 0 | U43: 0 | V43: 0
M44: 0 | N44: 0 | O44: 0 | P44: 0 | Q44: 0 | R44: 0 | S44: 0 | T44: 0 | U44: 0 | V44: 0
M45: 0 | N45: 0 | O45: 0 | P45: 0 | Q45: 0 | R45: 0 | S45: 0 | T45: 0 | U45: 0 | V45: 0
M46: 0 | N46: 0 | O46: 0 | P46: 0 | Q46: 0 | R46: 0 | S46: 0 | T46: 0 | U46: 0 | V46: 0
M47: 0 | N47: 0 | O47: 0 | P47: 0 | Q47: 0 | R47: 0 | S47: 0 | T47: 0 | U47: 0 | V47: 0
M48: 0 | N48: 0 | O48: 0 | P48: 0 | Q48: 0 | R48: 0 | S48: 0 | T48: 0 | U48: 0 | V48: 0
M49: 0 | N49: 0 | O49: 0 | P49: 0 | Q49: 0 | R49: 0 | S49: 0 | T49: 0 | U49: 0 | V49: 0
M50: 0 | N50: 0 | O50: 0 | P50: 0 | Q50: 0 | R50: 0 | S50: 0 | T50: 0 | U50: 0 | V50: 0
M51: 0 | N51: 0 | O51: 0 | P51: 0 | Q51: 0 | R51: 0 | S51: 0 | T51: 0 | U51: 0 | V51: 0
M52: 0 | N52: 0 | O52: 0 | P52: 0 | Q52: 0 | R52: 0 | S52: 0 | T52: 0 | U52: 0 | V52: 0
M53: 0 | N53: 0 | O53: 0 | P53: 0 | Q53: 0 | R53: 0 | S53: 0 | T53: 0 | U53: 0 | V53: 0
M54: 0 | N54: 0 | O54: 0 | P54: 0 | Q54: 0 | R54: 0 | S54: 0 | T54: 0 | U54: 0 | V54: 0
M55: =IF((B54+B55)>0,MAX(1,ROUNDUP(($A55-$A54)*((B54+B55)/2)/27,0)),ROUNDUP(($A55-$A54)*((B54+B55)/2)/27,0)) -> 0 | N55: 0 | O55: 0 | P55: 0 | Q55: 0 | R55: 0 | S55: 0 | T55: 0 | U55: 0 | V55: 0
M56: 0 | N56: 0 | O56: 0 | P56: 0 | Q56: 0 | R56: 0 | S56: 0 | T56: 0 | U56: 0 | V56: 0
M57: 0 | N57: 0 | O57: 0 | P57: 0 | Q57: 0 | R57: 0 | S57: 0 | T57: 0 | U57: 0 | V57: 0
M58: 0 | N58: 0 | O58: 0 | P58: 0 | Q58: 0 | R58: 0 | S58: 0 | T58: 0 | U58: 0 | V58: 0
M59: 0 | N59: 0 | O59: 0 | P59: 0 | Q59: 0 | R59: 0 | S59: 0 | T59: 0 | U59: 0 | V59: 0
M60: 0 | N60: 0 | O60: 0 | P60: 0 | Q60: 0 | R60: 0 | S60: 0 | T60: 0 | U60: 0 | V60: 0
M61: 0 | N61: 0 | O61: 0 | P61: 0 | Q61: 0 | R61: 0 | S61: 0 | T61: 0 | U61: 0 | V61: 0
M62: 0 | N62: 0 | O62: 0 | P62: 0 | Q62: 0 | R62: 0 | S62: 0 | T62: 0 | U62: 0 | V62: 0
M63: 0 | N63: 0 | O63: 0 | P63: 0 | Q63: 0 | R63: 0 | S63: 0 | T63: 0 | U63: 0 | V63: 0
M64: 0 | N64: 0 | O64: 0 | P64: 0 | Q64: 0 | R64: 0 | S64: 0 | T64: 0 | U64: 0 | V64: 0
M65: 0 | N65: 0 | O65: 0 | P65: 0 | Q65: 0 | R65: 0 | S65: 0 | T65: 0 | U65: 0 | V65: 0
M66: 0 | N66: 0 | O66: 0 | P66: 0 | Q66: 0 | R66: 0 | S66: 0 | T66: 0 | U66: 0 | V66: 0
M67: 0 | N67: 0 | O67: 0 | P67: 0 | Q67: 0 | R67: 0 | S67: 0 | T67: 0 | U67: 0 | V67: 0
M68: 0 | N68: 0 | O68: 0 | P68: 0 | Q68: 0 | R68: 0 | S68: 0 | T68: 0 | U68: 0 | V68: 0
M69: 0 | N69: 0 | O69: 0 | P69: 0 | Q69: 0 | R69: 0 | S69: 0 | T69: 0 | U69: 0 | V69: 0
M70: 0 | N70: 0 | O70: 0 | P70: 0 | Q70: 0 | R70: 0 | S70: 0 | T70: 0 | U70: 0 | V70: 0
M71: =IF((B70+B71)>0,MAX(1,ROUNDUP(($A71-$A70)*((B70+B71)/2)/27,0)),ROUNDUP(($A71-$A70)*((B70+B71)/2)/27,0)) -> 0 | N71: 0 | O71: 0 | P71: 0 | Q71: 0 | R71: 0 | S71: 0 | T71: 0 | U71: 0 | V71: 0
M72: 0 | N72: 0 | O72: 0 | P72: 0 | Q72: 0 | R72: 0 | S72: 0 | T72: 0 | U72: 0 | V72: 0
M73: 0 | N73: 0 | O73: 0 | P73: 0 | Q73: 0 | R73: 0 | S73: 0 | T73: 0 | U73: 0 | V73: 0
M74: 0 | N74: 0 | O74: 0 | P74: 0 | Q74: 0 | R74: 0 | S74: 0 | T74: 0 | U74: 0 | V74: 0
M75: 0 | N75: 0 | O75: 0 | P75: 0 | Q75: 0 | R75: 0 | S75: 0 | T75: 0 | U75: 0 | V75: 0
M76: 0 | N76: 0 | O76: 0 | P76: 0 | Q76: 0 | R76: 0 | S76: 0 | T76: 0 | U76: 0 | V76: 0
M77: 0 | N77: 0 | O77: 0 | P77: 0 | Q77: 0 | R77: 0 | S77: 0 | T77: 0 | U77: 0 | V77: 0
M78: 0 | N78: 0 | O78: 0 | P78: 0 | Q78: 0 | R78: 0 | S78: 0 | T78: 0 | U78: 0 | V78: 0
M79: 0 | N79: 0 | O79: 0 | P79: 0 | Q79: 0 | R79: 0 | S79: 0 | T79: 0 | U79: 0 | V79: 0

Sheet Frontage Rd#2
A1: =MID(CELL("filename",$A$2),FIND("]",CELL("filename",$A$2))+1,256) -> Frontage Rd#2 | B1: AREAS | M1: VOLUMES
A2: STATION | B2: ROCK ROADBED | C2: REFILL | D2: EMB. BENCH | E2: GRAN. EMB. | F2: COM | G2: EM | H2: ROCK EXC. | I2: DT LT | J2: DT RT | K2: LEVEL-WEDGE | M2: ROCK ROADBED | N2: REFILL | O2: EMB. BENCH | P2: GRAN. EMB. | Q2: COM | R2: EM | S2: ROCK EXC. | T2: DT LT | U2: DT RT | V2: LEVEL-WEDGE
A3: TOTALS | M3: =SUM(M15:M2011) -> 0 | N3: =SUM(N15:N2011) -> 0 | O3: 0 | P3: 0 | Q3: =SUM(Q5:Q2011) -> 392 | R3: =SUM(R5:R2011) -> 403 | S3: 0 | T3: 0 | U3: 0 | V3: 0
A4: 3000 | F4: 0 | G4: 0
A5: 3050 | F5: 30 | G5: 4 | M5: =IF((B4+B5)>0,MAX(1,ROUNDUP(($A5-$A4)*((B4+B5)/2)/27,0)),ROUNDUP(($A5-$A4)*((B4+B5)/2)/27,0)) -> 0 | N5: =IF((C4+C5)>0,MAX(1,ROUNDUP(($A5-$A4)*((C4+C5)/2)/27,0)),ROUNDUP(($A5-$A4)*((C4+C5)/2)/27,0)) -> 0 | O5: =IF((D4+D5)>0,MAX(1,ROUNDUP(($A5-$A4)*((D4+D5)/2)/27,0)),ROUNDUP(($A5-$A4)*((D4+D5)/2)/27,0)) -> 0 | P5: =IF((E4+E5)>0,MAX(1,ROUNDUP(($A5-$A4)*((E4+E5)/2)/27,0)),ROUNDUP(($A5-$A4)*((E4+E5)/2)/27,0)) -> 0 | Q5: =IF((F4+F5)>0,MAX(1,ROUNDUP(($A5-$A4)*((F4+F5)/2)/27,0)),ROUNDUP(($A5-$A4)*((F4+F5)/2)/27,0)) -> 28 | R5: =IF((G4+G5)>0,MAX(1,ROUNDUP(($A5-$A4)*((G4+G5)/2)/27,0)),ROUNDUP(($A5-$A4)*((G4+G5)/2)/27,0)) -> 4 | S5: =IF((H4+H5)>0,MAX(1,ROUNDUP(($A5-$A4)*((H4+H5)/2)/27,0)),ROUNDUP(($A5-$A4)*((H4+H5)/2)/27,0)) -> 0 | T5: =IF((I4+I5)>0,MAX(1,ROUNDUP(($A5-$A4)*((I4+I5)/2)/27,0)),ROUNDUP(($A5-$A4)*((I4+I5)/2)/27,0)) -> 0 | U5: =IF((J4+J5)>0,MAX(1,ROUNDUP(($A5-$A4)*((J4+J5)/2)/27,0)),ROUNDUP(($A5-$A4)*((J4+J5)/2)/27,0)) -> 0 | V5: =IF((K4+K5)>0,MAX(1,ROUNDUP(($A5-$A4)*((K4+K5)/2)/27,0)),ROUNDUP(($A5-$A4)*((K4+K5)/2)/27,0)) -> 0
A6: 3100 | F6: 12 | G6: 33 | M6: =IF((B5+B6)>0,MAX(1,ROUNDUP(($A6-$A5)*((B5+B6)/2)/27,0)),ROUNDUP(($A6-$A5)*((B5+B6)/2)/27,0)) -> 0 | N6: =IF((C5+C6)>0,MAX(1,ROUNDUP(($A6-$A5)*((C5+C6)/2)/27,0)),ROUNDUP(($A6-$A5)*((C5+C6)/2)/27,0)) -> 0 | O6: =IF((D5+D6)>0,MAX(1,ROUNDUP(($A6-$A5)*((D5+D6)/2)/27,0)),ROUNDUP(($A6-$A5)*((D5+D6)/2)/27,0)) -> 0 | P6: =IF((E5+E6)>0,MAX(1,ROUNDUP(($A6-$A5)*((E5+E6)/2)/27,0)),ROUNDUP(($A6-$A5)*((E5+E6)/2)/27,0)) -> 0 | Q6: =IF((F5+F6)>0,MAX(1,ROUNDUP(($A6-$A5)*((F5+F6)/2)/27,0)),ROUNDUP(($A6-$A5)*((F5+F6)/2)/27,0)) -> 39 | R6: =IF((G5+G6)>0,MAX(1,ROUNDUP(($A6-$A5)*((G5+G6)/2)/27,0)),ROUNDUP(($A6-$A5)*((G5+G6)/2)/27,0)) -> 35 | S6: =IF((H5+H6)>0,MAX(1,ROUNDUP(($A6-$A5)*((H5+H6)/2)/27,0)),ROUNDUP(($A6-$A5)*((H5+H6)/2)/27,0)) -> 0 | T6: =IF((I5+I6)>0,MAX(1,ROUNDUP(($A6-$A5)*((I5+I6)/2)/27,0)),ROUNDUP(($A6-$A5)*((I5+I6)/2)/27,0)) -> 0 | U6: =IF((J5+J6)>0,MAX(1,ROUNDUP(($A6-$A5)*((J5+J6)/2)/27,0)),ROUNDUP(($A6-$A5)*((J5+J6)/2)/27,0)) -> 0 | V6: =IF((K5+K6)>0,MAX(1,ROUNDUP(($A6-$A5)*((K5+K6)/2)/27,0)),ROUNDUP(($A6-$A5)*((K5+K6)/2)/27,0)) -> 0
A7: 3150 | F7: 29 | G7: 58 | M7: =IF((B6+B7)>0,MAX(1,ROUNDUP(($A7-$A6)*((B6+B7)/2)/27,0)),ROUNDUP(($A7-$A6)*((B6+B7)/2)/27,0)) -> 0 | N7: 0 | O7: 0 | P7: 0 | Q7: 38 | R7: 85 | S7: 0 | T7: 0 | U7: 0 | V7: 0
A8: 3200 | F8: 23 | G8: 121 | M8: 0 | N8: 0 | O8: 0 | P8: 0 | Q8: 49 | R8: 166 | S8: 0 | T8: 0 | U8: 0 | V8: 0
A9: 3250 | F9: 49 | G9: 0 | M9: 0 | N9: 0 | O9: 0 | P9: 0 | Q9: 67 | R9: 113 | S9: 0 | T9: 0 | U9: 0 | V9: 0
A10: 3300 | F10: 84 | G10: 0 | M10: 0 | N10: 0 | O10: 0 | P10: 0 | Q10: 124 | R10: 0 | S10: 0 | T10: 0 | U10: 0 | V10: 0
A11: 3330.06 | F11: 0 | G11: 0 | M11: 0 | N11: 0 | O11: 0 | P11: 0 | Q11: 47 | R11: 0 | S11: 0 | T11: 0 | U11: 0 | V11: 0
M12: 0 | N12: 0 | O12: 0 | P12: 0 | Q12: 0 | R12: 0 | S12: 0 | T12: 0 | U12: 0 | V12: 0
M13: 0 | N13: 0 | O13: 0 | P13: 0 | Q13: 0 | R13: 0 | S13: 0 | T13: 0 | U13: 0 | V13: 0
M14: 0 | N14: 0 | O14: 0 | P14: 0 | Q14: 0 | R14: 0 | S14: 0 | T14: 0 | U14: 0 | V14: 0
M15: =IF((B14+B15)>0,MAX(1,ROUNDUP(($A15-$A14)*((B14+B15)/2)/27,0)),ROUNDUP(($A15-$A14)*((B14+B15)/2)/27,0)) -> 0 | N15: =IF((C14+C15)>0,MAX(1,ROUNDUP(($A15-$A14)*((C14+C15)/2)/27,0)),ROUNDUP(($A15-$A14)*((C14+C15)/2)/27,0)) -> 0 | O15: =IF((D14+D15)>0,MAX(1,ROUNDUP(($A15-$A14)*((D14+D15)/2)/27,0)),ROUNDUP(($A15-$A14)*((D14+D15)/2)/27,0)) -> 0 | P15: =IF((E14+E15)>0,MAX(1,ROUNDUP(($A15-$A14)*((E14+E15)/2)/27,0)),ROUNDUP(($A15-$A14)*((E14+E15)/2)/27,0)) -> 0 | Q15: =IF((F14+F15)>0,MAX(1,ROUNDUP(($A15-$A14)*((F14+F15)/2)/27,0)),ROUNDUP(($A15-$A14)*((F14+F15)/2)/27,0)) -> 0 | R15: =IF((G14+G15)>0,MAX(1,ROUNDUP(($A15-$A14)*((G14+G15)/2)/27,0)),ROUNDUP(($A15-$A14)*((G14+G15)/2)/27,0)) -> 0 | S15: =IF((H14+H15)>0,MAX(1,ROUNDUP(($A15-$A14)*((H14+H15)/2)/27,0)),ROUNDUP(($A15-$A14)*((H14+H15)/2)/27,0)) -> 0 | T15: =IF((I14+I15)>0,MAX(1,ROUNDUP(($A15-$A14)*((I14+I15)/2)/27,0)),ROUNDUP(($A15-$A14)*((I14+I15)/2)/27,0)) -> 0 | U15: =IF((J14+J15)>0,MAX(1,ROUNDUP(($A15-$A14)*((J14+J15)/2)/27,0)),ROUNDUP(($A15-$A14)*((J14+J15)/2)/27,0)) -> 0 | V15: =IF((K14+K15)>0,MAX(1,ROUNDUP(($A15-$A14)*((K14+K15)/2)/27,0)),ROUNDUP(($A15-$A14)*((K14+K15)/2)/27,0)) -> 0
M16: 0 | N16: 0 | O16: 0 | P16: 0 | Q16: 0 | R16: 0 | S16: 0 | T16: 0 | U16: 0 | V16: 0
M17: 0 | N17: 0 | O17: 0 | P17: 0 | Q17: 0 | R17: 0 | S17: 0 | T17: 0 | U17: 0 | V17: 0
M18: 0 | N18: 0 | O18: 0 | P18: 0 | Q18: 0 | R18: 0 | S18: 0 | T18: 0 | U18: 0 | V18: 0
M19: 0 | N19: 0 | O19: 0 | P19: 0 | Q19: 0 | R19: 0 | S19: 0 | T19: 0 | U19: 0 | V19: 0
M20: 0 | N20: 0 | O20: 0 | P20: 0 | Q20: 0 | R20: 0 | S20: 0 | T20: 0 | U20: 0 | V20: 0
M21: 0 | N21: 0 | O21: 0 | P21: 0 | Q21: 0 | R21: 0 | S21: 0 | T21: 0 | U21: 0 | V21: 0
M22: 0 | N22: 0 | O22: 0 | P22: 0 | Q22: 0 | R22: 0 | S22: 0 | T22: 0 | U22: 0 | V22: 0
M23: 0 | N23: 0 | O23: 0 | P23: 0 | Q23: 0 | R23: 0 | S23: 0 | T23: 0 | U23: 0 | V23: 0
M24: 0 | N24: 0 | O24: 0 | P24: 0 | Q24: 0 | R24: 0 | S24: 0 | T24: 0 | U24: 0 | V24: 0
M25: 0 | N25: 0 | O25: 0 | P25: 0 | Q25: 0 | R25: 0 | S25: 0 | T25: 0 | U25: 0 | V25: 0
M26: 0 | N26: 0 | O26: 0 | P26: 0 | Q26: 0 | R26: 0 | S26: 0 | T26: 0 | U26: 0 | V26: 0
M27: 0 | N27: 0 | O27: 0 | P27: 0 | Q27: 0 | R27: 0 | S27: 0 | T27: 0 | U27: 0 | V27: 0
M28: 0 | N28: 0 | O28: 0 | P28: 0 | Q28: 0 | R28: 0 | S28: 0 | T28: 0 | U28: 0 | V28: 0
M29: 0 | N29: 0 | O29: 0 | P29: 0 | Q29: 0 | R29: 0 | S29: 0 | T29: 0 | U29: 0 | V29: 0
M30: 0 | N30: 0 | O30: 0 | P30: 0 | Q30: 0 | R30: 0 | S30: 0 | T30: 0 | U30: 0 | V30: 0
M31: 0 | N31: 0 | O31: 0 | P31: 0 | Q31: 0 | R31: 0 | S31: 0 | T31: 0 | U31: 0 | V31: 0
M32: 0 | N32: 0 | O32: 0 | P32: 0 | Q32: 0 | R32: 0 | S32: 0 | T32: 0 | U32: 0 | V32: 0
M33: 0 | N33: 0 | O33: 0 | P33: 0 | Q33: 0 | R33: 0 | S33: 0 | T33: 0 | U33: 0 | V33: 0
M34: 0 | N34: 0 | O34: 0 | P34: 0 | Q34: 0 | R34: 0 | S34: 0 | T34: 0 | U34: 0 | V34: 0
M35: 0 | N35: 0 | O35: 0 | P35: 0 | Q35: 0 | R35: 0 | S35: 0 | T35: 0 | U35: 0 | V35: 0
M36: 0 | N36: 0 | O36: 0 | P36: 0 | Q36: 0 | R36: 0 | S36: 0 | T36: 0 | U36: 0 | V36: 0
M37: 0 | N37: 0 | O37: 0 | P37: 0 | Q37: 0 | R37: 0 | S37: 0 | T37: 0 | U37: 0 | V37: 0
M38: 0 | N38: 0 | O38: 0 | P38: 0 | Q38: 0 | R38: 0 | S38: 0 | T38: 0 | U38: 0 | V38: 0
M39: 0 | N39: 0 | O39: 0 | P39: 0 | Q39: 0 | R39: 0 | S39: 0 | T39: 0 | U39: 0 | V39: 0
M40: 0 | N40: 0 | O40: 0 | P40: 0 | Q40: 0 | R40: 0 | S40: 0 | T40: 0 | U40: 0 | V40: 0
M41: 0 | N41: 0 | O41: 0 | P41: 0 | Q41: 0 | R41: 0 | S41: 0 | T41: 0 | U41: 0 | V41: 0
M42: 0 | N42: 0 | O42: 0 | P42: 0 | Q42: 0 | R42: 0 | S42: 0 | T42: 0 | U42: 0 | V42: 0
M43: 0 | N43: 0 | O43: 0 | P43: 0 | Q43: 0 | R43: 0 | S43: 0 | T43: 0 | U43: 0 | V43: 0
M44: 0 | N44: 0 | O44: 0 | P44: 0 | Q44: 0 | R44: 0 | S44: 0 | T44: 0 | U44: 0 | V44: 0
M45: 0 | N45: 0 | O45: 0 | P45: 0 | Q45: 0 | R45: 0 | S45: 0 | T45: 0 | U45: 0 | V45: 0
M46: 0 | N46: 0 | O46: 0 | P46: 0 | Q46: 0 | R46: 0 | S46: 0 | T46: 0 | U46: 0 | V46: 0
M47: =IF((B46+B47)>0,MAX(1,ROUNDUP(($A47-$A46)*((B46+B47)/2)/27,0)),ROUNDUP(($A47-$A46)*((B46+B47)/2)/27,0)) -> 0 | N47: =IF((C46+C47)>0,MAX(1,ROUNDUP(($A47-$A46)*((C46+C47)/2)/27,0)),ROUNDUP(($A47-$A46)*((C46+C47)/2)/27,0)) -> 0 | O47: =IF((D46+D47)>0,MAX(1,ROUNDUP(($A47-$A46)*((D46+D47)/2)/27,0)),ROUNDUP(($A47-$A46)*((D46+D47)/2)/27,0)) -> 0 | P47: =IF((E46+E47)>0,MAX(1,ROUNDUP(($A47-$A46)*((E46+E47)/2)/27,0)),ROUNDUP(($A47-$A46)*((E46+E47)/2)/27,0)) -> 0 | Q47: =IF((F46+F47)>0,MAX(1,ROUNDUP(($A47-$A46)*((F46+F47)/2)/27,0)),ROUNDUP(($A47-$A46)*((F46+F47)/2)/27,0)) -> 0 | R47: =IF((G46+G47)>0,MAX(1,ROUNDUP(($A47-$A46)*((G46+G47)/2)/27,0)),ROUNDUP(($A47-$A46)*((G46+G47)/2)/27,0)) -> 0 | S47: =IF((H46+H47)>0,MAX(1,ROUNDUP(($A47-$A46)*((H46+H47)/2)/27,0)),ROUNDUP(($A47-$A46)*((H46+H47)/2)/27,0)) -> 0 | T47: =IF((I46+I47)>0,MAX(1,ROUNDUP(($A47-$A46)*((I46+I47)/2)/27,0)),ROUNDUP(($A47-$A46)*((I46+I47)/2)/27,0)) -> 0 | U47: =IF((J46+J47)>0,MAX(1,ROUNDUP(($A47-$A46)*((J46+J47)/2)/27,0)),ROUNDUP(($A47-$A46)*((J46+J47)/2)/27,0)) -> 0 | V47: =IF((K46+K47)>0,MAX(1,ROUNDUP(($A47-$A46)*((K46+K47)/2)/27,0)),ROUNDUP(($A47-$A46)*((K46+K47)/2)/27,0)) -> 0
M48: 0 | N48: 0 | O48: 0 | P48: 0 | Q48: 0 | R48: 0 | S48: 0 | T48: 0 | U48: 0 | V48: 0
M49: 0 | N49: 0 | O49: 0 | P49: 0 | Q49: 0 | R49: 0 | S49: 0 | T49: 0 | U49: 0 | V49: 0
M50: 0 | N50: 0 | O50: 0 | P50: 0 | Q50: 0 | R50: 0 | S50: 0 | T50: 0 | U50: 0 | V50: 0
M51: 0 | N51: 0 | O51: 0 | P51: 0 | Q51: 0 | R51: 0 | S51: 0 | T51: 0 | U51: 0 | V51: 0
M52: 0 | N52: 0 | O52: 0 | P52: 0 | Q52: 0 | R52: 0 | S52: 0 | T52: 0 | U52: 0 | V52: 0
M53: 0 | N53: 0 | O53: 0 | P53: 0 | Q53: 0 | R53: 0 | S53: 0 | T53: 0 | U53: 0 | V53: 0
M54: 0 | N54: 0 | O54: 0 | P54: 0 | Q54: 0 | R54: 0 | S54: 0 | T54: 0 | U54: 0 | V54: 0
M55: 0 | N55: 0 | O55: 0 | P55: 0 | Q55: 0 | R55: 0 | S55: 0 | T55: 0 | U55: 0 | V55: 0
M56: 0 | N56: 0 | O56: 0 | P56: 0 | Q56: 0 | R56: 0 | S56: 0 | T56: 0 | U56: 0 | V56: 0
M57: 0 | N57: 0 | O57: 0 | P57: 0 | Q57: 0 | R57: 0 | S57: 0 | T57: 0 | U57: 0 | V57: 0
M58: 0 | N58: 0 | O58: 0 | P58: 0 | Q58: 0 | R58: 0 | S58: 0 | T58: 0 | U58: 0 | V58: 0
M59: 0 | N59: 0 | O59: 0 | P59: 0 | Q59: 0 | R59: 0 | S59: 0 | T59: 0 | U59: 0 | V59: 0
M60: 0 | N60: 0 | O60: 0 | P60: 0 | Q60: 0 | R60: 0 | S60: 0 | T60: 0 | U60: 0 | V60: 0
M61: 0 | N61: 0 | O61: 0 | P61: 0 | Q61: 0 | R61: 0 | S61: 0 | T61: 0 | U61: 0 | V61: 0
M62: 0 | N62: 0 | O62: 0 | P62: 0 | Q62: 0 | R62: 0 | S62: 0 | T62: 0 | U62: 0 | V62: 0
M63: 0 | N63: 0 | O63: 0 | P63: 0 | Q63: 0 | R63: 0 | S63: 0 | T63: 0 | U63: 0 | V63: 0
M64: 0 | N64: 0 | O64: 0 | P64: 0 | Q64: 0 | R64: 0 | S64: 0 | T64: 0 | U64: 0 | V64: 0
M65: 0 | N65: 0 | O65: 0 | P65: 0 | Q65: 0 | R65: 0 | S65: 0 | T65: 0 | U65: 0 | V65: 0
M66: =IF((B65+B66)>0,MAX(1,ROUNDUP(($A66-$A65)*((B65+B66)/2)/27,0)),ROUNDUP(($A66-$A65)*((B65+B66)/2)/27,0)) -> 0 | N66: 0 | O66: 0 | P66: 0 | Q66: 0 | R66: 0 | S66: 0 | T66: 0 | U66: 0 | V66: 0
M67: 0 | N67: 0 | O67: 0 | P67: 0 | Q67: 0 | R67: 0 | S67: 0 | T67: 0 | U67: 0 | V67: 0
M68: 0 | N68: 0 | O68: 0 | P68: 0 | Q68: 0 | R68: 0 | S68: 0 | T68: 0 | U68: 0 | V68: 0
M69: 0 | N69: 0 | O69: 0 | P69: 0 | Q69: 0 | R69: 0 | S69: 0 | T69: 0 | U69: 0 | V69: 0
M70: 0 | N70: 0 | O70: 0 | P70: 0 | Q70: 0 | R70: 0 | S70: 0 | T70: 0 | U70: 0 | V70: 0
M71: 0 | N71: 0 | O71: 0 | P71: 0 | Q71: 0 | R71: 0 | S71: 0 | T71: 0 | U71: 0 | V71: 0
M72: 0 | N72: 0 | O72: 0 | P72: 0 | Q72: 0 | R72: 0 | S72: 0 | T72: 0 | U72: 0 | V72: 0
M73: 0 | N73: 0 | O73: 0 | P73: 0 | Q73: 0 | R73: 0 | S73: 0 | T73: 0 | U73: 0 | V73: 0
M74: 0 | N74: 0 | O74: 0 | P74: 0 | Q74: 0 | R74: 0 | S74: 0 | T74: 0 | U74: 0 | V74: 0
M75: 0 | N75: 0 | O75: 0 | P75: 0 | Q75: 0 | R75: 0 | S75: 0 | T75: 0 | U75: 0 | V75: 0
M76: 0 | N76: 0 | O76: 0 | P76: 0 | Q76: 0 | R76: 0 | S76: 0 | T76: 0 | U76: 0 | V76: 0
M77: 0 | N77: 0 | O77: 0 | P77: 0 | Q77: 0 | R77: 0 | S77: 0 | T77: 0 | U77: 0 | V77: 0
M78: 0 | N78: 0 | O78: 0 | P78: 0 | Q78: 0 | R78: 0 | S78: 0 | T78: 0 | U78: 0 | V78: 0
M79: 0 | N79: 0 | O79: 0 | P79: 0 | Q79: 0 | R79: 0 | S79: 0 | T79: 0 | U79: 0 | V79: 0
M80: =IF((B79+B80)>0,MAX(1,ROUNDUP(($A80-$A79)*((B79+B80)/2)/27,0)),ROUNDUP(($A80-$A79)*((B79+B80)/2)/27,0)) -> 0 | N80: 0 | O80: 0 | P80: 0 | Q80: 0 | R80: 0 | S80: 0 | T80: 0 | U80: 0 | V80: 0
M81: 0 | N81: 0 | O81: 0 | P81: 0 | Q81: 0 | R81: 0 | S81: 0 | T81: 0 | U81: 0 | V81: 0
M82: 0 | N82: 0 | O82: 0 | P82: 0 | Q82: 0 | R82: 0 | S82: 0 | T82: 0 | U82: 0 | V82: 0
M83: 0 | N83: 0 | O83: 0 | P83: 0 | Q83: 0 | R83: 0 | S83: 0 | T83: 0 | U83: 0 | V83: 0
M84: 0 | N84: 0 | O84: 0 | P84: 0 | Q84: 0 | R84: 0 | S84: 0 | T84: 0 | U84: 0 | V84: 0
M85: 0 | N85: 0 | O85: 0 | P85: 0 | Q85: 0 | R85: 0 | S85: 0 | T85: 0 | U85: 0 | V85: 0
M86: 0 | N86: 0 | O86: 0 | P86: 0 | Q86: 0 | R86: 0 | S86: 0 | T86: 0 | U86: 0 | V86: 0
M87: 0 | N87: 0 | O87: 0 | P87: 0 | Q87: 0 | R87: 0 | S87: 0 | T87: 0 | U87: 0 | V87: 0
M88: 0 | N88: 0 | O88: 0 | P88: 0 | Q88: 0 | R88: 0 | S88: 0 | T88: 0 | U88: 0 | V88: 0

Sheet Roberts Rd CulDeSac
A1: =MID(CELL("filename",$A$2),FIND("]",CELL("filename",$A$2))+1,256) -> Roberts Rd CulDeSac | B1: AREAS | M1: VOLUMES
A2: STATION | B2: ROCK ROADBED | C2: REFILL | D2: EMB. BENCH | E2: GRAN. EMB. | F2: COM | G2: EM | H2: ROCK EXC. | I2: DT LT | J2: DT RT | K2: LEVEL-WEDGE | M2: ROCK ROADBED | N2: REFILL | O2: EMB. BENCH | P2: GRAN. EMB. | Q2: COM | R2: EM | S2: ROCK EXC. | T2: DT LT | U2: DT RT | V2: LEVEL-WEDGE
A3: TOTALS | M3: =SUM(M6:M2002) -> 0 | N3: =SUM(N6:N2002) -> 0 | O3: 0 | P3: 0 | Q3: =SUM(Q5:Q2002) -> 206 | R3: =SUM(R5:R2002) -> 153 | S3: 0 | T3: 0 | U3: 0 | V3: 0
A4: 4900 | F4: 0 | G4: 0
A5: 4950 | F5: 66.8 | G5: 1.9 | M5: =IF((B4+B5)>0,MAX(1,ROUNDUP(($A5-$A4)*((B4+B5)/2)/27,0)),ROUNDUP(($A5-$A4)*((B4+B5)/2)/27,0)) -> 0 | N5: =IF((C4+C5)>0,MAX(1,ROUNDUP(($A5-$A4)*((C4+C5)/2)/27,0)),ROUNDUP(($A5-$A4)*((C4+C5)/2)/27,0)) -> 0 | O5: =IF((D4+D5)>0,MAX(1,ROUNDUP(($A5-$A4)*((D4+D5)/2)/27,0)),ROUNDUP(($A5-$A4)*((D4+D5)/2)/27,0)) -> 0 | P5: =IF((E4+E5)>0,MAX(1,ROUNDUP(($A5-$A4)*((E4+E5)/2)/27,0)),ROUNDUP(($A5-$A4)*((E4+E5)/2)/27,0)) -> 0 | Q5: =IF((F4+F5)>0,MAX(1,ROUNDUP(($A5-$A4)*((F4+F5)/2)/27,0)),ROUNDUP(($A5-$A4)*((F4+F5)/2)/27,0)) -> 62 | R5: =IF((G4+G5)>0,MAX(1,ROUNDUP(($A5-$A4)*((G4+G5)/2)/27,0)),ROUNDUP(($A5-$A4)*((G4+G5)/2)/27,0)) -> 2 | S5: =IF((H4+H5)>0,MAX(1,ROUNDUP(($A5-$A4)*((H4+H5)/2)/27,0)),ROUNDUP(($A5-$A4)*((H4+H5)/2)/27,0)) -> 0 | T5: =IF((I4+I5)>0,MAX(1,ROUNDUP(($A5-$A4)*((I4+I5)/2)/27,0)),ROUNDUP(($A5-$A4)*((I4+I5)/2)/27,0)) -> 0 | U5: =IF((J4+J5)>0,MAX(1,ROUNDUP(($A5-$A4)*((J4+J5)/2)/27,0)),ROUNDUP(($A5-$A4)*((J4+J5)/2)/27,0)) -> 0 | V5: =IF((K4+K5)>0,MAX(1,ROUNDUP(($A5-$A4)*((K4+K5)/2)/27,0)),ROUNDUP(($A5-$A4)*((K4+K5)/2)/27,0)) -> 0
A6: 5000 | F6: 20.6 | G6: 73.6 | M6: =IF((B5+B6)>0,MAX(1,ROUNDUP(($A6-$A5)*((B5+B6)/2)/27,0)),ROUNDUP(($A6-$A5)*((B5+B6)/2)/27,0)) -> 0 | N6: =IF((C5+C6)>0,MAX(1,ROUNDUP(($A6-$A5)*((C5+C6)/2)/27,0)),ROUNDUP(($A6-$A5)*((C5+C6)/2)/27,0)) -> 0 | O6: 0 | P6: 0 | Q6: 81 | R6: 70 | S6: 0 | T6: 0 | U6: 0 | V6: =IF((K5+K6)>0,MAX(1,ROUNDUP(($A6-$A5)*((K5+K6)/2)/27,0)),ROUNDUP(($A6-$A5)*((K5+K6)/2)/27,0)) -> 0
A7: 5050 | F7: 12.1 | G7: 6.3 | M7: =IF((B6+B7)>0,MAX(1,ROUNDUP(($A7-$A6)*((B6+B7)/2)/27,0)),ROUNDUP(($A7-$A6)*((B6+B7)/2)/27,0)) -> 0 | N7: 0 | O7: 0 | P7: 0 | Q7: 31 | R7: 74 | S7: 0 | T7: 0 | U7: 0 | V7: 0
A8: 5100 | F8: 12.3 | G8: 0.1 | M8: 0 | N8: 0 | O8: 0 | P8: 0 | Q8: 23 | R8: 6 | S8: 0 | T8: 0 | U8: 0 | V8: 0
A9: 5138.76 | F9: 0 | G9: 0 | M9: 0 | N9: 0 | O9: 0 | P9: 0 | Q9: 9 | R9: 1 | S9: 0 | T9: 0 | U9: 0 | V9: 0
M10: 0 | N10: 0 | O10: 0 | P10: 0 | Q10: 0 | R10: 0 | S10: 0 | T10: 0 | U10: 0 | V10: 0
M11: 0 | N11: 0 | O11: 0 | P11: 0 | Q11: 0 | R11: 0 | S11: 0 | T11: 0 | U11: 0 | V11: 0
M12: 0 | N12: 0 | O12: 0 | P12: 0 | Q12: 0 | R12: 0 | S12: 0 | T12: 0 | U12: 0 | V12: 0
M13: 0 | N13: 0 | O13: 0 | P13: 0 | Q13: 0 | R13: 0 | S13: 0 | T13: 0 | U13: 0 | V13: 0
M14: 0 | N14: 0 | O14: 0 | P14: 0 | Q14: 0 | R14: 0 | S14: 0 | T14: 0 | U14: 0 | V14: 0
M15: 0 | N15: 0 | O15: 0 | P15: 0 | Q15: 0 | R15: 0 | S15: 0 | T15: 0 | U15: 0 | V15: 0
M16: 0 | N16: 0 | O16: 0 | P16: 0 | Q16: 0 | R16: 0 | S16: 0 | T16: 0 | U16: 0 | V16: 0
M17: 0 | N17: 0 | O17: 0 | P17: 0 | Q17: 0 | R17: 0 | S17: 0 | T17: 0 | U17: 0 | V17: 0
M18: 0 | N18: 0 | O18: 0 | P18: 0 | Q18: 0 | R18: =IF((G17+G18)>0,MAX(1,ROUNDUP(($A18-$A17)*((G17+G18)/2)/27,0)),ROUNDUP(($A18-$A17)*((G17+G18)/2)/27,0)) -> 0 | S18: 0 | T18: 0 | U18: 0 | V18: 0
M19: 0 | N19: 0 | O19: 0 | P19: 0 | Q19: 0 | R19: 0 | S19: 0 | T19: 0 | U19: 0 | V19: 0
M20: 0 | N20: 0 | O20: 0 | P20: 0 | Q20: 0 | R20: 0 | S20: 0 | T20: 0 | U20: 0 | V20: 0
M21: 0 | N21: 0 | O21: 0 | P21: 0 | Q21: 0 | R21: 0 | S21: 0 | T21: 0 | U21: 0 | V21: 0
M22: 0 | N22: 0 | O22: 0 | P22: 0 | Q22: 0 | R22: 0 | S22: 0 | T22: 0 | U22: 0 | V22: 0
M23: =IF((B22+B23)>0,MAX(1,ROUNDUP(($A23-$A22)*((B22+B23)/2)/27,0)),ROUNDUP(($A23-$A22)*((B22+B23)/2)/27,0)) -> 0 | N23: 0 | O23: 0 | P23: 0 | Q23: 0 | R23: 0 | S23: 0 | T23: 0 | U23: 0 | V23: 0
M24: 0 | N24: 0 | O24: 0 | P24: 0 | Q24: 0 | R24: 0 | S24: 0 | T24: 0 | U24: 0 | V24: 0
M25: 0 | N25: 0 | O25: 0 | P25: 0 | Q25: 0 | R25: 0 | S25: 0 | T25: 0 | U25: 0 | V25: 0
M26: 0 | N26: 0 | O26: 0 | P26: 0 | Q26: 0 | R26: 0 | S26: 0 | T26: 0 | U26: 0 | V26: 0
M27: 0 | N27: 0 | O27: 0 | P27: 0 | Q27: 0 | R27: 0 | S27: 0 | T27: 0 | U27: 0 | V27: 0
M28: 0 | N28: 0 | O28: 0 | P28: 0 | Q28: 0 | R28: 0 | S28: 0 | T28: 0 | U28: 0 | V28: 0
M29: 0 | N29: 0 | O29: 0 | P29: 0 | Q29: 0 | R29: 0 | S29: 0 | T29: 0 | U29: 0 | V29: 0
M30: 0 | N30: 0 | O30: 0 | P30: 0 | Q30: 0 | R30: 0 | S30: 0 | T30: 0 | U30: 0 | V30: 0
M31: 0 | N31: 0 | O31: 0 | P31: 0 | Q31: 0 | R31: 0 | S31: 0 | T31: 0 | U31: 0 | V31: 0
M32: 0 | N32: 0 | O32: 0 | P32: 0 | Q32: 0 | R32: 0 | S32: 0 | T32: 0 | U32: 0 | V32: 0
M33: 0 | N33: 0 | O33: 0 | P33: 0 | Q33: 0 | R33: 0 | S33: 0 | T33: 0 | U33: 0 | V33: 0
M34: 0 | N34: 0 | O34: 0 | P34: 0 | Q34: 0 | R34: 0 | S34: 0 | T34: 0 | U34: 0 | V34: 0
M35: 0 | N35: 0 | O35: 0 | P35: 0 | Q35: 0 | R35: 0 | S35: 0 | T35: 0 | U35: 0 | V35: 0
M36: 0 | N36: 0 | O36: 0 | P36: 0 | Q36: 0 | R36: 0 | S36: 0 | T36: 0 | U36: 0 | V36: 0
M37: 0 | N37: 0 | O37: 0 | P37: 0 | Q37: 0 | R37: 0 | S37: 0 | T37: 0 | U37: 0 | V37: 0
M38: 0 | N38: 0 | O38: 0 | P38: 0 | Q38: 0 | R38: 0 | S38: 0 | T38: 0 | U38: 0 | V38: 0
M39: =IF((B38+B39)>0,MAX(1,ROUNDUP(($A39-$A38)*((B38+B39)/2)/27,0)),ROUNDUP(($A39-$A38)*((B38+B39)/2)/27,0)) -> 0 | N39: 0 | O39: 0 | P39: 0 | Q39: 0 | R39: 0 | S39: 0 | T39: 0 | U39: 0 | V39: 0
M40: 0 | N40: 0 | O40: 0 | P40: 0 | Q40: 0 | R40: 0 | S40: 0 | T40: 0 | U40: 0 | V40: 0
M41: 0 | N41: 0 | O41: 0 | P41: 0 | Q41: 0 | R41: 0 | S41: 0 | T41: 0 | U41: 0 | V41: 0
M42: 0 | N42: 0 | O42: 0 | P42: 0 | Q42: 0 | R42: 0 | S42: 0 | T42: 0 | U42: 0 | V42: 0
M43: 0 | N43: 0 | O43: 0 | P43: 0 | Q43: 0 | R43: 0 | S43: 0 | T43: 0 | U43: 0 | V43: 0
M44: 0 | N44: 0 | O44: 0 | P44: 0 | Q44: 0 | R44: 0 | S44: 0 | T44: 0 | U44: 0 | V44: 0
M45: 0 | N45: 0 | O45: 0 | P45: 0 | Q45: 0 | R45: 0 | S45: 0 | T45: 0 | U45: 0 | V45: 0
M46: 0 | N46: 0 | O46: 0 | P46: 0 | Q46: 0 | R46: 0 | S46: 0 | T46: 0 | U46: 0 | V46: 0
M47: 0 | N47: 0 | O47: 0 | P47: 0 | Q47: 0 | R47: 0 | S47: 0 | T47: 0 | U47: 0 | V47: 0
M48: 0 | N48: 0 | O48: 0 | P48: 0 | Q48: 0 | R48: 0 | S48: 0 | T48: 0 | U48: 0 | V48: 0
M49: 0 | N49: 0 | O49: 0 | P49: 0 | Q49: 0 | R49: 0 | S49: 0 | T49: 0 | U49: 0 | V49: 0
M50: 0 | N50: 0 | O50: 0 | P50: 0 | Q50: 0 | R50: 0 | S50: 0 | T50: 0 | U50: 0 | V50: 0
M51: 0 | N51: 0 | O51: 0 | P51: 0 | Q51: 0 | R51: 0 | S51: 0 | T51: 0 | U51: 0 | V51: 0
M52: 0 | N52: 0 | O52: 0 | P52: 0 | Q52: 0 | R52: 0 | S52: 0 | T52: 0 | U52: 0 | V52: 0
M53: 0 | N53: 0 | O53: 0 | P53: 0 | Q53: 0 | R53: 0 | S53: 0 | T53: 0 | U53: 0 | V53: 0
M54: 0 | N54: 0 | O54: 0 | P54: 0 | Q54: 0 | R54: 0 | S54: 0 | T54: 0 | U54: 0 | V54: 0
M55: =IF((B54+B55)>0,MAX(1,ROUNDUP(($A55-$A54)*((B54+B55)/2)/27,0)),ROUNDUP(($A55-$A54)*((B54+B55)/2)/27,0)) -> 0 | N55: 0 | O55: 0 | P55: 0 | Q55: 0 | R55: 0 | S55: 0 | T55: 0 | U55: 0 | V55: 0
M56: 0 | N56: 0 | O56: 0 | P56: 0 | Q56: 0 | R56: 0 | S56: 0 | T56: 0 | U56: 0 | V56: 0
M57: 0 | N57: 0 | O57: 0 | P57: 0 | Q57: 0 | R57: 0 | S57: 0 | T57: 0 | U57: 0 | V57: 0
M58: 0 | N58: 0 | O58: 0 | P58: 0 | Q58: 0 | R58: 0 | S58: 0 | T58: 0 | U58: 0 | V58: 0
M59: 0 | N59: 0 | O59: 0 | P59: 0 | Q59: 0 | R59: 0 | S59: 0 | T59: 0 | U59: 0 | V59: 0
M60: 0 | N60: 0 | O60: 0 | P60: 0 | Q60: 0 | R60: 0 | S60: 0 | T60: 0 | U60: 0 | V60: 0
M61: 0 | N61: 0 | O61: 0 | P61: 0 | Q61: 0 | R61: 0 | S61: 0 | T61: 0 | U61: 0 | V61: 0
M62: 0 | N62: 0 | O62: 0 | P62: 0 | Q62: 0 | R62: 0 | S62: 0 | T62: 0 | U62: 0 | V62: 0
M63: 0 | N63: 0 | O63: 0 | P63: 0 | Q63: 0 | R63: 0 | S63: 0 | T63: 0 | U63: 0 | V63: 0
M64: 0 | N64: 0 | O64: 0 | P64: 0 | Q64: 0 | R64: 0 | S64: 0 | T64: 0 | U64: 0 | V64: 0
M65: 0 | N65: 0 | O65: 0 | P65: 0 | Q65: 0 | R65: 0 | S65: 0 | T65: 0 | U65: 0 | V65: 0
M66: 0 | N66: 0 | O66: 0 | P66: 0 | Q66: 0 | R66: 0 | S66: 0 | T66: 0 | U66: 0 | V66: 0
M67: 0 | N67: 0 | O67: 0 | P67: 0 | Q67: 0 | R67: 0 | S67: 0 | T67: 0 | U67: 0 | V67: 0
M68: 0 | N68: 0 | O68: 0 | P68: 0 | Q68: 0 | R68: 0 | S68: 0 | T68: 0 | U68: 0 | V68: 0
M69: 0 | N69: 0 | O69: 0 | P69: 0 | Q69: 0 | R69: 0 | S69: 0 | T69: 0 | U69: 0 | V69: 0
M70: 0 | N70: 0 | O70: 0 | P70: 0 | Q70: 0 | R70: 0 | S70: 0 | T70: 0 | U70: 0 | V70: 0
M71: =IF((B70+B71)>0,MAX(1,ROUNDUP(($A71-$A70)*((B70+B71)/2)/27,0)),ROUNDUP(($A71-$A70)*((B70+B71)/2)/27,0)) -> 0 | N71: 0 | O71: 0 | P71: 0 | Q71: 0 | R71: 0 | S71: 0 | T71: 0 | U71: 0 | V71: 0
M72: 0 | N72: 0 | O72: 0 | P72: 0 | Q72: 0 | R72: 0 | S72: 0 | T72: 0 | U72: 0 | V72: 0
M73: 0 | N73: 0 | O73: 0 | P73: 0 | Q73: 0 | R73: 0 | S73: 0 | T73: 0 | U73: 0 | V73: 0
M74: 0 | N74: 0 | O74: 0 | P74: 0 | Q74: 0 | R74: 0 | S74: 0 | T74: 0 | U74: 0 | V74: 0
M75: 0 | N75: 0 | O75: 0 | P75: 0 | Q75: 0 | R75: 0 | S75: 0 | T75: 0 | U75: 0 | V75: 0
M76: 0 | N76: 0 | O76: 0 | P76: 0 | Q76: 0 | R76: 0 | S76: 0 | T76: 0 | U76: 0 | V76: 0
M77: 0 | N77: 0 | O77: 0 | P77: 0 | Q77: 0 | R77: 0 | S77: 0 | T77: 0 | U77: 0 | V77: 0
M78: 0 | N78: 0 | O78: 0 | P78: 0 | Q78: 0 | R78: 0 | S78: 0 | T78: 0 | U78: 0 | V78: 0
M79: 0 | N79: 0 | O79: 0 | P79: 0 | Q79: 0 | R79: 0 | S79: 0 | T79: 0 | U79: 0 | V79: 0

Sheet Linda Mel
A1: =MID(CELL("filename",$A$2),FIND("]",CELL("filename",$A$2))+1,256) -> Linda Mel | B1: AREAS | M1: VOLUMES
A2: STATION | B2: ROCK ROADBED | C2: REFILL | D2: EMB. BENCH | E2: GRAN. EMB. | F2: COM | G2: EM | H2: ROCK EXC. | I2: DT LT | J2: DT RT | K2: LEVEL-WEDGE | M2: ROCK ROADBED | N2: REFILL | O2: EMB. BENCH | P2: GRAN. EMB. | Q2: COM | R2: EM | S2: ROCK EXC. | T2: DT LT | U2: DT RT | V2: LEVEL-WEDGE
A3: TOTALS | M3: =SUM(M6:M2002) -> 0 | N3: =SUM(N6:N2002) -> 0 | O3: 0 | P3: 0 | Q3: =SUM(Q5:Q2002) -> 20 | R3: =SUM(R5:R2002) -> 39 | S3: 0 | T3: 0 | U3: 0 | V3: 0
A4: 5100 | F4: 0 | G4: 0
A5: 5145.23 | F5: 0 | G5: 20.1 | M5: =IF((B4+B5)>0,MAX(1,ROUNDUP(($A5-$A4)*((B4+B5)/2)/27,0)),ROUNDUP(($A5-$A4)*((B4+B5)/2)/27,0)) -> 0 | N5: =IF((C4+C5)>0,MAX(1,ROUNDUP(($A5-$A4)*((C4+C5)/2)/27,0)),ROUNDUP(($A5-$A4)*((C4+C5)/2)/27,0)) -> 0 | O5: =IF((D4+D5)>0,MAX(1,ROUNDUP(($A5-$A4)*((D4+D5)/2)/27,0)),ROUNDUP(($A5-$A4)*((D4+D5)/2)/27,0)) -> 0 | P5: =IF((E4+E5)>0,MAX(1,ROUNDUP(($A5-$A4)*((E4+E5)/2)/27,0)),ROUNDUP(($A5-$A4)*((E4+E5)/2)/27,0)) -> 0 | Q5: =IF((F4+F5)>0,MAX(1,ROUNDUP(($A5-$A4)*((F4+F5)/2)/27,0)),ROUNDUP(($A5-$A4)*((F4+F5)/2)/27,0)) -> 0 | R5: =IF((G4+G5)>0,MAX(1,ROUNDUP(($A5-$A4)*((G4+G5)/2)/27,0)),ROUNDUP(($A5-$A4)*((G4+G5)/2)/27,0)) -> 17 | S5: =IF((H4+H5)>0,MAX(1,ROUNDUP(($A5-$A4)*((H4+H5)/2)/27,0)),ROUNDUP(($A5-$A4)*((H4+H5)/2)/27,0)) -> 0 | T5: =IF((I4+I5)>0,MAX(1,ROUNDUP(($A5-$A4)*((I4+I5)/2)/27,0)),ROUNDUP(($A5-$A4)*((I4+I5)/2)/27,0)) -> 0 | U5: =IF((J4+J5)>0,MAX(1,ROUNDUP(($A5-$A4)*((J4+J5)/2)/27,0)),ROUNDUP(($A5-$A4)*((J4+J5)/2)/27,0)) -> 0 | V5: =IF((K4+K5)>0,MAX(1,ROUNDUP(($A5-$A4)*((K4+K5)/2)/27,0)),ROUNDUP(($A5-$A4)*((K4+K5)/2)/27,0)) -> 0
A6: 5150 | F6: 0 | G6: 29.8 | M6: =IF((B5+B6)>0,MAX(1,ROUNDUP(($A6-$A5)*((B5+B6)/2)/27,0)),ROUNDUP(($A6-$A5)*((B5+B6)/2)/27,0)) -> 0 | N6: =IF((C5+C6)>0,MAX(1,ROUNDUP(($A6-$A5)*((C5+C6)/2)/27,0)),ROUNDUP(($A6-$A5)*((C5+C6)/2)/27,0)) -> 0 | O6: 0 | P6: 0 | Q6: 0 | R6: 5 | S6: 0 | T6: 0 | U6: 0 | V6: =IF((K5+K6)>0,MAX(1,ROUNDUP(($A6-$A5)*((K5+K6)/2)/27,0)),ROUNDUP(($A6-$A5)*((K5+K6)/2)/27,0)) -> 0
A7: 5179.63 | F7: 21.2 | G7: 0 | M7: =IF((B6+B7)>0,MAX(1,ROUNDUP(($A7-$A6)*((B6+B7)/2)/27,0)),ROUNDUP(($A7-$A6)*((B6+B7)/2)/27,0)) -> 0 | N7: 0 | O7: 0 | P7: 0 | Q7: 12 | R7: 17 | S7: 0 | T7: 0 | U7: 0 | V7: 0
A8: 5200 | F8: 0 | G8: 0 | M8: 0 | N8: 0 | O8: 0 | P8: 0 | Q8: 8 | R8: 0 | S8: 0 | T8: 0 | U8: 0 | V8: 0
M9: 0 | N9: 0 | O9: 0 | P9: 0 | Q9: 0 | R9: 0 | S9: 0 | T9: 0 | U9: 0 | V9: 0
M10: 0 | N10: 0 | O10: 0 | P10: 0 | Q10: 0 | R10: 0 | S10: 0 | T10: 0 | U10: 0 | V10: 0
M11: 0 | N11: 0 | O11: 0 | P11: 0 | Q11: 0 | R11: 0 | S11: 0 | T11: 0 | U11: 0 | V11: 0
M12: 0 | N12: 0 | O12: 0 | P12: 0 | Q12: 0 | R12: 0 | S12: 0 | T12: 0 | U12: 0 | V12: 0
M13: 0 | N13: 0 | O13: 0 | P13: 0 | Q13: 0 | R13: 0 | S13: 0 | T13: 0 | U13: 0 | V13: 0
M14: 0 | N14: 0 | O14: 0 | P14: 0 | Q14: 0 | R14: 0 | S14: 0 | T14: 0 | U14: 0 | V14: 0
M15: 0 | N15: 0 | O15: 0 | P15: 0 | Q15: 0 | R15: 0 | S15: 0 | T15: 0 | U15: 0 | V15: 0
M16: 0 | N16: 0 | O16: 0 | P16: 0 | Q16: 0 | R16: 0 | S16: 0 | T16: 0 | U16: 0 | V16: 0
M17: 0 | N17: 0 | O17: 0 | P17: 0 | Q17: 0 | R17: 0 | S17: 0 | T17: 0 | U17: 0 | V17: 0
M18: 0 | N18: 0 | O18: 0 | P18: 0 | Q18: 0 | R18: 0 | S18: 0 | T18: 0 | U18: 0 | V18: 0
M19: 0 | N19: 0 | O19: 0 | P19: 0 | Q19: 0 | R19: 0 | S19: 0 | T19: 0 | U19: 0 | V19: 0
M20: 0 | N20: 0 | O20: 0 | P20: 0 | Q20: 0 | R20: 0 | S20: 0 | T20: 0 | U20: 0 | V20: 0
M21: 0 | N21: 0 | O21: 0 | P21: 0 | Q21: 0 | R21: 0 | S21: 0 | T21: 0 | U21: 0 | V21: 0
M22: 0 | N22: 0 | O22: 0 | P22: 0 | Q22: 0 | R22: 0 | S22: 0 | T22: 0 | U22: 0 | V22: 0
M23: =IF((B22+B23)>0,MAX(1,ROUNDUP(($A23-$A22)*((B22+B23)/2)/27,0)),ROUNDUP(($A23-$A22)*((B22+B23)/2)/27,0)) -> 0 | N23: 0 | O23: 0 | P23: 0 | Q23: 0 | R23: 0 | S23: 0 | T23: 0 | U23: 0 | V23: 0
M24: 0 | N24: 0 | O24: 0 | P24: 0 | Q24: 0 | R24: 0 | S24: 0 | T24: 0 | U24: 0 | V24: 0
M25: 0 | N25: 0 | O25: 0 | P25: 0 | Q25: 0 | R25: 0 | S25: 0 | T25: 0 | U25: 0 | V25: 0
M26: 0 | N26: 0 | O26: 0 | P26: 0 | Q26: 0 | R26: 0 | S26: 0 | T26: 0 | U26: 0 | V26: 0
M27: 0 | N27: 0 | O27: 0 | P27: 0 | Q27: 0 | R27: 0 | S27: 0 | T27: 0 | U27: 0 | V27: 0
M28: 0 | N28: 0 | O28: 0 | P28: 0 | Q28: 0 | R28: 0 | S28: 0 | T28: 0 | U28: 0 | V28: 0
M29: 0 | N29: 0 | O29: 0 | P29: 0 | Q29: 0 | R29: 0 | S29: 0 | T29: 0 | U29: 0 | V29: 0
M30: 0 | N30: 0 | O30: 0 | P30: 0 | Q30: 0 | R30: 0 | S30: 0 | T30: 0 | U30: 0 | V30: 0
M31: 0 | N31: 0 | O31: 0 | P31: 0 | Q31: 0 | R31: 0 | S31: 0 | T31: 0 | U31: 0 | V31: 0
M32: 0 | N32: 0 | O32: 0 | P32: 0 | Q32: 0 | R32: 0 | S32: 0 | T32: 0 | U32: 0 | V32: 0
M33: 0 | N33: 0 | O33: 0 | P33: 0 | Q33: 0 | R33: 0 | S33: 0 | T33: 0 | U33: 0 | V33: 0
M34: 0 | N34: 0 | O34: 0 | P34: 0 | Q34: 0 | R34: 0 | S34: 0 | T34: 0 | U34: 0 | V34: 0
M35: 0 | N35: 0 | O35: 0 | P35: 0 | Q35: 0 | R35: 0 | S35: 0 | T35: 0 | U35: 0 | V35: 0
M36: 0 | N36: 0 | O36: 0 | P36: 0 | Q36: 0 | R36: 0 | S36: 0 | T36: 0 | U36: 0 | V36: 0
M37: 0 | N37: 0 | O37: 0 | P37: 0 | Q37: 0 | R37: 0 | S37: 0 | T37: 0 | U37: 0 | V37: 0
M38: 0 | N38: 0 | O38: 0 | P38: 0 | Q38: 0 | R38: 0 | S38: 0 | T38: 0 | U38: 0 | V38: 0
M39: =IF((B38+B39)>0,MAX(1,ROUNDUP(($A39-$A38)*((B38+B39)/2)/27,0)),ROUNDUP(($A39-$A38)*((B38+B39)/2)/27,0)) -> 0 | N39: 0 | O39: 0 | P39: 0 | Q39: 0 | R39: 0 | S39: 0 | T39: 0 | U39: 0 | V39: 0
M40: 0 | N40: 0 | O40: 0 | P40: 0 | Q40: 0 | R40: 0 | S40: 0 | T40: 0 | U40: 0 | V40: 0
M41: 0 | N41: 0 | O41: 0 | P41: 0 | Q41: 0 | R41: 0 | S41: 0 | T41: 0 | U41: 0 | V41: 0
M42: 0 | N42: 0 | O42: 0 | P42: 0 | Q42: 0 | R42: 0 | S42: 0 | T42: 0 | U42: 0 | V42: 0
M43: 0 | N43: 0 | O43: 0 | P43: 0 | Q43: 0 | R43: 0 | S43: 0 | T43: 0 | U43: 0 | V43: 0
M44: 0 | N44: 0 | O44: 0 | P44: 0 | Q44: 0 | R44: 0 | S44: 0 | T44: 0 | U44: 0 | V44: 0
M45: 0 | N45: 0 | O45: 0 | P45: 0 | Q45: 0 | R45: 0 | S45: 0 | T45: 0 | U45: 0 | V45: 0
M46: 0 | N46: 0 | O46: 0 | P46: 0 | Q46: 0 | R46: 0 | S46: 0 | T46: 0 | U46: 0 | V46: 0
M47: 0 | N47: 0 | O47: 0 | P47: 0 | Q47: 0 | R47: 0 | S47: 0 | T47: 0 | U47: 0 | V47: 0
M48: 0 | N48: 0 | O48: 0 | P48: 0 | Q48: 0 | R48: 0 | S48: 0 | T48: 0 | U48: 0 | V48: 0
M49: 0 | N49: 0 | O49: 0 | P49: 0 | Q49: 0 | R49: 0 | S49: 0 | T49: 0 | U49: 0 | V49: 0
M50: 0 | N50: 0 | O50: 0 | P50: 0 | Q50: 0 | R50: 0 | S50: 0 | T50: 0 | U50: 0 | V50: 0
M51: 0 | N51: 0 | O51: 0 | P51: 0 | Q51: 0 | R51: 0 | S51: 0 | T51: 0 | U51: 0 | V51: 0
M52: 0 | N52: 0 | O52: 0 | P52: 0 | Q52: 0 | R52: 0 | S52: 0 | T52: 0 | U52: 0 | V52: 0
M53: 0 | N53: 0 | O53: 0 | P53: 0 | Q53: 0 | R53: 0 | S53: 0 | T53: 0 | U53: 0 | V53: 0
M54: 0 | N54: 0 | O54: 0 | P54: 0 | Q54: 0 | R54: 0 | S54: 0 | T54: 0 | U54: 0 | V54: 0
M55: =IF((B54+B55)>0,MAX(1,ROUNDUP(($A55-$A54)*((B54+B55)/2)/27,0)),ROUNDUP(($A55-$A54)*((B54+B55)/2)/27,0)) -> 0 | N55: 0 | O55: 0 | P55: 0 | Q55: 0 | R55: 0 | S55: 0 | T55: 0 | U55: 0 | V55: 0
M56: 0 | N56: 0 | O56: 0 | P56: 0 | Q56: 0 | R56: 0 | S56: 0 | T56: 0 | U56: 0 | V56: 0
M57: 0 | N57: 0 | O57: 0 | P57: 0 | Q57: 0 | R57: 0 | S57: 0 | T57: 0 | U57: 0 | V57: 0
M58: 0 | N58: 0 | O58: 0 | P58: 0 | Q58: 0 | R58: 0 | S58: 0 | T58: 0 | U58: 0 | V58: 0
M59: 0 | N59: 0 | O59: 0 | P59: 0 | Q59: 0 | R59: 0 | S59: 0 | T59: 0 | U59: 0 | V59: 0
M60: 0 | N60: 0 | O60: 0 | P60: 0 | Q60: 0 | R60: 0 | S60: 0 | T60: 0 | U60: 0 | V60: 0
M61: 0 | N61: 0 | O61: 0 | P61: 0 | Q61: 0 | R61: 0 | S61: 0 | T61: 0 | U61: 0 | V61: 0
M62: 0 | N62: 0 | O62: 0 | P62: 0 | Q62: 0 | R62: 0 | S62: 0 | T62: 0 | U62: 0 | V62: 0
M63: 0 | N63: 0 | O63: 0 | P63: 0 | Q63: 0 | R63: 0 | S63: 0 | T63: 0 | U63: 0 | V63: 0
M64: 0 | N64: 0 | O64: 0 | P64: 0 | Q64: 0 | R64: 0 | S64: 0 | T64: 0 | U64: 0 | V64: 0
M65: 0 | N65: 0 | O65: 0 | P65: 0 | Q65: 0 | R65: 0 | S65: 0 | T65: 0 | U65: 0 | V65: 0
M66: 0 | N66: 0 | O66: 0 | P66: 0 | Q66: 0 | R66: 0 | S66: 0 | T66: 0 | U66: 0 | V66: 0
M67: 0 | N67: 0 | O67: 0 | P67: 0 | Q67: 0 | R67: 0 | S67: 0 | T67: 0 | U67: 0 | V67: 0
M68: 0 | N68: 0 | O68: 0 | P68: 0 | Q68: 0 | R68: 0 | S68: 0 | T68: 0 | U68: 0 | V68: 0
M69: 0 | N69: 0 | O69: 0 | P69: 0 | Q69: 0 | R69: 0 | S69: 0 | T69: 0 | U69: 0 | V69: 0
M70: 0 | N70: 0 | O70: 0 | P70: 0 | Q70: 0 | R70: 0 | S70: 0 | T70: 0 | U70: 0 | V70: 0
M71: =IF((B70+B71)>0,MAX(1,ROUNDUP(($A71-$A70)*((B70+B71)/2)/27,0)),ROUNDUP(($A71-$A70)*((B70+B71)/2)/27,0)) -> 0 | N71: 0 | O71: 0 | P71: 0 | Q71: 0 | R71: 0 | S71: 0 | T71: 0 | U71: 0 | V71: 0
M72: 0 | N72: 0 | O72: 0 | P72: 0 | Q72: 0 | R72: 0 | S72: 0 | T72: 0 | U72: 0 | V72: 0
M73: 0 | N73: 0 | O73: 0 | P73: 0 | Q73: 0 | R73: 0 | S73: 0 | T73: 0 | U73: 0 | V73: 0
M74: 0 | N74: 0 | O74: 0 | P74: 0 | Q74: 0 | R74: 0 | S74: 0 | T74: 0 | U74: 0 | V74: 0
M75: 0 | N75: 0 | O75: 0 | P75: 0 | Q75: 0 | R75: 0 | S75: 0 | T75: 0 | U75: 0 | V75: 0
M76: 0 | N76: 0 | O76: 0 | P76: 0 | Q76: 0 | R76: 0 | S76: 0 | T76: 0 | U76: 0 | V76: 0
M77: 0 | N77: 0 | O77: 0 | P77: 0 | Q77: 0 | R77: 0 | S77: 0 | T77: 0 | U77: 0 | V77: 0
M78: 0 | N78: 0 | O78: 0 | P78: 0 | Q78: 0 | R78: 0 | S78: 0 | T78: 0 | U78: 0 | V78: 0
M79: 0 | N79: 0 | O79: 0 | P79: 0 | Q79: 0 | R79: 0 | S79: 0 | T79: 0 | U79: 0 | V79: 0

Sheet Frontage Rd#3
A1: =MID(CELL("filename",$A$2),FIND("]",CELL("filename",$A$2))+1,256) -> Frontage Rd#3 | B1: AREAS | M1: VOLUMES
A2: STATION | B2: ROCK ROADBED | C2: REFILL | D2: EMB. BENCH | E2: GRAN. EMB. | F2: COM | G2: EM | H2: ROCK EXC. | I2: DT LT | J2: DT RT | K2: LEVEL-WEDGE | M2: ROCK ROADBED | N2: REFILL | O2: EMB. BENCH | P2: GRAN. EMB. | Q2: COM | R2: EM | S2: ROCK EXC. | T2: DT LT | U2: DT RT | V2: LEVEL-WEDGE
A3: TOTALS | M3: =SUM(M6:M2002) -> 0 | N3: =SUM(N6:N2002) -> 0 | O3: 0 | P3: 0 | Q3: =SUM(Q5:Q2002) -> 216 | R3: =SUM(R5:R2002) -> 0 | S3: 0 | T3: 0 | U3: 0 | V3: 0
A4: 4774 | F4: 0 | G4: 0
A5: 4800 | F5: 100.3 | G5: 0 | M5: =IF((B4+B5)>0,MAX(1,ROUNDUP(($A5-$A4)*((B4+B5)/2)/27,0)),ROUNDUP(($A5-$A4)*((B4+B5)/2)/27,0)) -> 0 | N5: =IF((C4+C5)>0,MAX(1,ROUNDUP(($A5-$A4)*((C4+C5)/2)/27,0)),ROUNDUP(($A5-$A4)*((C4+C5)/2)/27,0)) -> 0 | O5: =IF((D4+D5)>0,MAX(1,ROUNDUP(($A5-$A4)*((D4+D5)/2)/27,0)),ROUNDUP(($A5-$A4)*((D4+D5)/2)/27,0)) -> 0 | P5: =IF((E4+E5)>0,MAX(1,ROUNDUP(($A5-$A4)*((E4+E5)/2)/27,0)),ROUNDUP(($A5-$A4)*((E4+E5)/2)/27,0)) -> 0 | Q5: =IF((F4+F5)>0,MAX(1,ROUNDUP(($A5-$A4)*((F4+F5)/2)/27,0)),ROUNDUP(($A5-$A4)*((F4+F5)/2)/27,0)) -> 49 | R5: =IF((G4+G5)>0,MAX(1,ROUNDUP(($A5-$A4)*((G4+G5)/2)/27,0)),ROUNDUP(($A5-$A4)*((G4+G5)/2)/27,0)) -> 0 | S5: =IF((H4+H5)>0,MAX(1,ROUNDUP(($A5-$A4)*((H4+H5)/2)/27,0)),ROUNDUP(($A5-$A4)*((H4+H5)/2)/27,0)) -> 0 | T5: =IF((I4+I5)>0,MAX(1,ROUNDUP(($A5-$A4)*((I4+I5)/2)/27,0)),ROUNDUP(($A5-$A4)*((I4+I5)/2)/27,0)) -> 0 | U5: =IF((J4+J5)>0,MAX(1,ROUNDUP(($A5-$A4)*((J4+J5)/2)/27,0)),ROUNDUP(($A5-$A4)*((J4+J5)/2)/27,0)) -> 0 | V5: =IF((K4+K5)>0,MAX(1,ROUNDUP(($A5-$A4)*((K4+K5)/2)/27,0)),ROUNDUP(($A5-$A4)*((K4+K5)/2)/27,0)) -> 0
A6: 4850 | F6: 39.4 | G6: 0 | M6: =IF((B5+B6)>0,MAX(1,ROUNDUP(($A6-$A5)*((B5+B6)/2)/27,0)),ROUNDUP(($A6-$A5)*((B5+B6)/2)/27,0)) -> 0 | N6: =IF((C5+C6)>0,MAX(1,ROUNDUP(($A6-$A5)*((C5+C6)/2)/27,0)),ROUNDUP(($A6-$A5)*((C5+C6)/2)/27,0)) -> 0 | O6: 0 | P6: 0 | Q6: 130 | R6: 0 | S6: 0 | T6: 0 | U6: 0 | V6: =IF((K5+K6)>0,MAX(1,ROUNDUP(($A6-$A5)*((K5+K6)/2)/27,0)),ROUNDUP(($A6-$A5)*((K5+K6)/2)/27,0)) -> 0
A7: 4900 | F7: 0 | G7: 0 | M7: =IF((B6+B7)>0,MAX(1,ROUNDUP(($A7-$A6)*((B6+B7)/2)/27,0)),ROUNDUP(($A7-$A6)*((B6+B7)/2)/27,0)) -> 0 | N7: 0 | O7: 0 | P7: 0 | Q7: 37 | R7: 0 | S7: 0 | T7: 0 | U7: 0 | V7: 0
A8: 4919 | F8: 0 | G8: 0 | M8: 0 | N8: 0 | O8: 0 | P8: 0 | Q8: 0 | R8: 0 | S8: 0 | T8: 0 | U8: 0 | V8: 0
M9: 0 | N9: 0 | O9: 0 | P9: 0 | Q9: 0 | R9: 0 | S9: 0 | T9: 0 | U9: 0 | V9: 0
M10: 0 | N10: 0 | O10: 0 | P10: 0 | Q10: 0 | R10: 0 | S10: 0 | T10: 0 | U10: 0 | V10: 0
M11: 0 | N11: 0 | O11: 0 | P11: 0 | Q11: 0 | R11: 0 | S11: 0 | T11: 0 | U11: 0 | V11: 0
M12: 0 | N12: 0 | O12: 0 | P12: 0 | Q12: 0 | R12: 0 | S12: 0 | T12: 0 | U12: 0 | V12: 0
M13: 0 | N13: 0 | O13: 0 | P13: 0 | Q13: 0 | R13: 0 | S13: 0 | T13: 0 | U13: 0 | V13: 0
M14: 0 | N14: 0 | O14: 0 | P14: 0 | Q14: 0 | R14: 0 | S14: 0 | T14: 0 | U14: 0 | V14: 0
M15: 0 | N15: 0 | O15: 0 | P15: 0 | Q15: 0 | R15: 0 | S15: 0 | T15: 0 | U15: 0 | V15: 0
M16: 0 | N16: 0 | O16: 0 | P16: 0 | Q16: 0 | R16: 0 | S16: 0 | T16: 0 | U16: 0 | V16: 0
M17: 0 | N17: 0 | O17: 0 | P17: 0 | Q17: 0 | R17: 0 | S17: 0 | T17: 0 | U17: 0 | V17: 0
M18: 0 | N18: 0 | O18: 0 | P18: 0 | Q18: 0 | R18: 0 | S18: 0 | T18: 0 | U18: 0 | V18: 0
M19: 0 | N19: 0 | O19: 0 | P19: 0 | Q19: 0 | R19: 0 | S19: 0 | T19: 0 | U19: 0 | V19: 0
M20: 0 | N20: 0 | O20: 0 | P20: 0 | Q20: 0 | R20: 0 | S20: 0 | T20: 0 | U20: 0 | V20: 0
M21: 0 | N21: 0 | O21: 0 | P21: 0 | Q21: 0 | R21: 0 | S21: 0 | T21: 0 | U21: 0 | V21: 0
M22: 0 | N22: 0 | O22: 0 | P22: 0 | Q22: 0 | R22: 0 | S22: 0 | T22: 0 | U22: 0 | V22: 0
M23: =IF((B22+B23)>0,MAX(1,ROUNDUP(($A23-$A22)*((B22+B23)/2)/27,0)),ROUNDUP(($A23-$A22)*((B22+B23)/2)/27,0)) -> 0 | N23: 0 | O23: 0 | P23: 0 | Q23: 0 | R23: 0 | S23: 0 | T23: 0 | U23: 0 | V23: 0
M24: 0 | N24: 0 | O24: 0 | P24: 0 | Q24: 0 | R24: 0 | S24: 0 | T24: 0 | U24: 0 | V24: 0
M25: 0 | N25: 0 | O25: 0 | P25: 0 | Q25: 0 | R25: 0 | S25: 0 | T25: 0 | U25: 0 | V25: 0
M26: 0 | N26: 0 | O26: 0 | P26: 0 | Q26: 0 | R26: 0 | S26: 0 | T26: 0 | U26: 0 | V26: 0
M27: 0 | N27: 0 | O27: 0 | P27: 0 | Q27: 0 | R27: 0 | S27: 0 | T27: 0 | U27: 0 | V27: 0
M28: 0 | N28: 0 | O28: 0 | P28: 0 | Q28: 0 | R28: 0 | S28: 0 | T28: 0 | U28: 0 | V28: 0
M29: 0 | N29: 0 | O29: 0 | P29: 0 | Q29: 0 | R29: 0 | S29: 0 | T29: 0 | U29: 0 | V29: 0
M30: 0 | N30: 0 | O30: 0 | P30: 0 | Q30: 0 | R30: 0 | S30: 0 | T30: 0 | U30: 0 | V30: 0
M31: 0 | N31: 0 | O31: 0 | P31: 0 | Q31: 0 | R31: 0 | S31: 0 | T31: 0 | U31: 0 | V31: 0
M32: 0 | N32: 0 | O32: 0 | P32: 0 | Q32: 0 | R32: 0 | S32: 0 | T32: 0 | U32: 0 | V32: 0
M33: 0 | N33: 0 | O33: 0 | P33: 0 | Q33: 0 | R33: 0 | S33: 0 | T33: 0 | U33: 0 | V33: 0
M34: 0 | N34: 0 | O34: 0 | P34: 0 | Q34: 0 | R34: 0 | S34: 0 | T34: 0 | U34: 0 | V34: 0
M35: 0 | N35: 0 | O35: 0 | P35: 0 | Q35: 0 | R35: 0 | S35: 0 | T35: 0 | U35: 0 | V35: 0
M36: 0 | N36: 0 | O36: 0 | P36: 0 | Q36: 0 | R36: 0 | S36: 0 | T36: 0 | U36: 0 | V36: 0
M37: 0 | N37: 0 | O37: 0 | P37: 0 | Q37: 0 | R37: 0 | S37: 0 | T37: 0 | U37: 0 | V37: 0
M38: 0 | N38: 0 | O38: 0 | P38: 0 | Q38: 0 | R38: 0 | S38: 0 | T38: 0 | U38: 0 | V38: 0
M39: =IF((B38+B39)>0,MAX(1,ROUNDUP(($A39-$A38)*((B38+B39)/2)/27,0)),ROUNDUP(($A39-$A38)*((B38+B39)/2)/27,0)) -> 0 | N39: 0 | O39: 0 | P39: 0 | Q39: 0 | R39: 0 | S39: 0 | T39: 0 | U39: 0 | V39: 0
M40: 0 | N40: 0 | O40: 0 | P40: 0 | Q40: 0 | R40: 0 | S40: 0 | T40: 0 | U40: 0 | V40: 0
M41: 0 | N41: 0 | O41: 0 | P41: 0 | Q41: 0 | R41: 0 | S41: 0 | T41: 0 | U41: 0 | V41: 0
M42: 0 | N42: 0 | O42: 0 | P42: 0 | Q42: 0 | R42: 0 | S42: 0 | T42: 0 | U42: 0 | V42: 0
M43: 0 | N43: 0 | O43: 0 | P43: 0 | Q43: 0 | R43: 0 | S43: 0 | T43: 0 | U43: 0 | V43: 0
M44: 0 | N44: 0 | O44: 0 | P44: 0 | Q44: 0 | R44: 0 | S44: 0 | T44: 0 | U44: 0 | V44: 0
M45: 0 | N45: 0 | O45: 0 | P45: 0 | Q45: 0 | R45: 0 | S45: 0 | T45: 0 | U45: 0 | V45: 0
M46: 0 | N46: 0 | O46: 0 | P46: 0 | Q46: 0 | R46: 0 | S46: 0 | T46: 0 | U46: 0 | V46: 0
M47: 0 | N47: 0 | O47: 0 | P47: 0 | Q47: 0 | R47: 0 | S47: 0 | T47: 0 | U47: 0 | V47: 0
M48: 0 | N48: 0 | O48: 0 | P48: 0 | Q48: 0 | R48: 0 | S48: 0 | T48: 0 | U48: 0 | V48: 0
M49: 0 | N49: 0 | O49: 0 | P49: 0 | Q49: 0 | R49: 0 | S49: 0 | T49: 0 | U49: 0 | V49: 0
M50: 0 | N50: 0 | O50: 0 | P50: 0 | Q50: 0 | R50: 0 | S50: 0 | T50: 0 | U50: 0 | V50: 0
M51: 0 | N51: 0 | O51: 0 | P51: 0 | Q51: 0 | R51: 0 | S51: 0 | T51: 0 | U51: 0 | V51: 0
M52: 0 | N52: 0 | O52: 0 | P52: 0 | Q52: 0 | R52: 0 | S52: 0 | T52: 0 | U52: 0 | V52: 0
M53: 0 | N53: 0 | O53: 0 | P53: 0 | Q53: 0 | R53: 0 | S53: 0 | T53: 0 | U53: 0 | V53: 0
M54: 0 | N54: 0 | O54: 0 | P54: 0 | Q54: 0 | R54: 0 | S54: 0 | T54: 0 | U54: 0 | V54: 0
M55: =IF((B54+B55)>0,MAX(1,ROUNDUP(($A55-$A54)*((B54+B55)/2)/27,0)),ROUNDUP(($A55-$A54)*((B54+B55)/2)/27,0)) -> 0 | N55: 0 | O55: 0 | P55: 0 | Q55: 0 | R55: 0 | S55: 0 | T55: 0 | U55: 0 | V55: 0
M56: 0 | N56: 0 | O56: 0 | P56: 0 | Q56: 0 | R56: 0 | S56: 0 | T56: 0 | U56: 0 | V56: 0
M57: 0 | N57: 0 | O57: 0 | P57: 0 | Q57: 0 | R57: 0 | S57: 0 | T57: 0 | U57: 0 | V57: 0
M58: 0 | N58: 0 | O58: 0 | P58: 0 | Q58: 0 | R58: 0 | S58: 0 | T58: 0 | U58: 0 | V58: 0
M59: 0 | N59: 0 | O59: 0 | P59: 0 | Q59: 0 | R59: 0 | S59: 0 | T59: 0 | U59: 0 | V59: 0
M60: 0 | N60: 0 | O60: 0 | P60: 0 | Q60: 0 | R60: 0 | S60: 0 | T60: 0 | U60: 0 | V60: 0
M61: 0 | N61: 0 | O61: 0 | P61: 0 | Q61: 0 | R61: 0 | S61: 0 | T61: 0 | U61: 0 | V61: 0
M62: 0 | N62: 0 | O62: 0 | P62: 0 | Q62: 0 | R62: 0 | S62: 0 | T62: 0 | U62: 0 | V62: 0
M63: 0 | N63: 0 | O63: 0 | P63: 0 | Q63: 0 | R63: 0 | S63: 0 | T63: 0 | U63: 0 | V63: 0
M64: 0 | N64: 0 | O64: 0 | P64: 0 | Q64: 0 | R64: 0 | S64: 0 | T64: 0 | U64: 0 | V64: 0
M65: 0 | N65: 0 | O65: 0 | P65: 0 | Q65: 0 | R65: 0 | S65: 0 | T65: 0 | U65: 0 | V65: 0
M66: 0 | N66: 0 | O66: 0 | P66: 0 | Q66: 0 | R66: 0 | S66: 0 | T66: 0 | U66: 0 | V66: 0
M67: 0 | N67: 0 | O67: 0 | P67: 0 | Q67: 0 | R67: 0 | S67: 0 | T67: 0 | U67: 0 | V67: 0
M68: 0 | N68: 0 | O68: 0 | P68: 0 | Q68: 0 | R68: 0 | S68: 0 | T68: 0 | U68: 0 | V68: 0
M69: 0 | N69: 0 | O69: 0 | P69: 0 | Q69: 0 | R69: 0 | S69: 0 | T69: 0 | U69: 0 | V69: 0
M70: 0 | N70: 0 | O70: 0 | P70: 0 | Q70: 0 | R70: 0 | S70: 0 | T70: 0 | U70: 0 | V70: 0
M71: =IF((B70+B71)>0,MAX(1,ROUNDUP(($A71-$A70)*((B70+B71)/2)/27,0)),ROUNDUP(($A71-$A70)*((B70+B71)/2)/27,0)) -> 0 | N71: 0 | O71: 0 | P71: 0 | Q71: 0 | R71: 0 | S71: 0 | T71: 0 | U71: 0 | V71: 0
M72: 0 | N72: 0 | O72: 0 | P72: 0 | Q72: 0 | R72: 0 | S72: 0 | T72: 0 | U72: 0 | V72: 0
M73: 0 | N73: 0 | O73: 0 | P73: 0 | Q73: 0 | R73: 0 | S73: 0 | T73: 0 | U73: 0 | V73: 0
M74: 0 | N74: 0 | O74: 0 | P74: 0 | Q74: 0 | R74: 0 | S74: 0 | T74: 0 | U74: 0 | V74: 0
M75: 0 | N75: 0 | O75: 0 | P75: 0 | Q75: 0 | R75: 0 | S75: 0 | T75: 0 | U75: 0 | V75: 0
M76: 0 | N76: 0 | O76: 0 | P76: 0 | Q76: 0 | R76: 0 | S76: 0 | T76: 0 | U76: 0 | V76: 0
M77: 0 | N77: 0 | O77: 0 | P77: 0 | Q77: 0 | R77: 0 | S77: 0 | T77: 0 | U77: 0 | V77: 0
M78: 0 | N78: 0 | O78: 0 | P78: 0 | Q78: 0 | R78: 0 | S78: 0 | T78: 0 | U78: 0 | V78: 0
M79: 0 | N79: 0 | O79: 0 | P79: 0 | Q79: 0 | R79: 0 | S79: 0 | T79: 0 | U79: 0 | V79: 0

Sheet Frontage Rd#4
A1: =MID(CELL("filename",$A$2),FIND("]",CELL("filename",$A$2))+1,256) -> Frontage Rd#4 | B1: AREAS | M1: VOLUMES
A2: STATION | B2: ROCK ROADBED | C2: REFILL | D2: EMB. BENCH | E2: GRAN. EMB. | F2: COM | G2: EM | H2: ROCK EXC. | I2: DT LT | J2: DT RT | K2: LEVEL-WEDGE | M2: ROCK ROADBED | N2: REFILL | O2: EMB. BENCH | P2: GRAN. EMB. | Q2: COM | R2: EM | S2: ROCK EXC. | T2: DT LT | U2: DT RT | V2: LEVEL-WEDGE
A3: TOTALS | M3: =SUM(M6:M2002) -> 0 | N3: =SUM(N6:N2002) -> 0 | O3: 0 | P3: 0 | Q3: =SUM(Q5:Q2002) -> 659 | R3: =SUM(R5:R2002) -> 1896 | S3: 0 | T3: 0 | U3: 0 | V3: 0
A4: 2936 | F4: 48.7 | G4: 0
A5: 2950 | F5: 60.4 | G5: 0 | M5: =IF((B4+B5)>0,MAX(1,ROUNDUP(($A5-$A4)*((B4+B5)/2)/27,0)),ROUNDUP(($A5-$A4)*((B4+B5)/2)/27,0)) -> 0 | N5: =IF((C4+C5)>0,MAX(1,ROUNDUP(($A5-$A4)*((C4+C5)/2)/27,0)),ROUNDUP(($A5-$A4)*((C4+C5)/2)/27,0)) -> 0 | O5: =IF((D4+D5)>0,MAX(1,ROUNDUP(($A5-$A4)*((D4+D5)/2)/27,0)),ROUNDUP(($A5-$A4)*((D4+D5)/2)/27,0)) -> 0 | P5: =IF((E4+E5)>0,MAX(1,ROUNDUP(($A5-$A4)*((E4+E5)/2)/27,0)),ROUNDUP(($A5-$A4)*((E4+E5)/2)/27,0)) -> 0 | Q5: =IF((F4+F5)>0,MAX(1,ROUNDUP(($A5-$A4)*((F4+F5)/2)/27,0)),ROUNDUP(($A5-$A4)*((F4+F5)/2)/27,0)) -> 29 | R5: =IF((G4+G5)>0,MAX(1,ROUNDUP(($A5-$A4)*((G4+G5)/2)/27,0)),ROUNDUP(($A5-$A4)*((G4+G5)/2)/27,0)) -> 0 | S5: =IF((H4+H5)>0,MAX(1,ROUNDUP(($A5-$A4)*((H4+H5)/2)/27,0)),ROUNDUP(($A5-$A4)*((H4+H5)/2)/27,0)) -> 0 | T5: =IF((I4+I5)>0,MAX(1,ROUNDUP(($A5-$A4)*((I4+I5)/2)/27,0)),ROUNDUP(($A5-$A4)*((I4+I5)/2)/27,0)) -> 0 | U5: =IF((J4+J5)>0,MAX(1,ROUNDUP(($A5-$A4)*((J4+J5)/2)/27,0)),ROUNDUP(($A5-$A4)*((J4+J5)/2)/27,0)) -> 0 | V5: =IF((K4+K5)>0,MAX(1,ROUNDUP(($A5-$A4)*((K4+K5)/2)/27,0)),ROUNDUP(($A5-$A4)*((K4+K5)/2)/27,0)) -> 0
A6: 3000 | F6: 80 | G6: 0 | M6: =IF((B5+B6)>0,MAX(1,ROUNDUP(($A6-$A5)*((B5+B6)/2)/27,0)),ROUNDUP(($A6-$A5)*((B5+B6)/2)/27,0)) -> 0 | N6: =IF((C5+C6)>0,MAX(1,ROUNDUP(($A6-$A5)*((C5+C6)/2)/27,0)),ROUNDUP(($A6-$A5)*((C5+C6)/2)/27,0)) -> 0 | O6: 0 | P6: 0 | Q6: 130 | R6: 0 | S6: 0 | T6: 0 | U6: 0 | V6: =IF((K5+K6)>0,MAX(1,ROUNDUP(($A6-$A5)*((K5+K6)/2)/27,0)),ROUNDUP(($A6-$A5)*((K5+K6)/2)/27,0)) -> 0
A7: 3050 | F7: 44.4 | G7: 15.3 | M7: =IF((B6+B7)>0,MAX(1,ROUNDUP(($A7-$A6)*((B6+B7)/2)/27,0)),ROUNDUP(($A7-$A6)*((B6+B7)/2)/27,0)) -> 0 | N7: 0 | O7: 0 | P7: 0 | Q7: 116 | R7: 15 | S7: 0 | T7: 0 | U7: 0 | V7: 0
A8: 3100 | F8: 8.5 | G8: 90.2 | M8: 0 | N8: 0 | O8: 0 | P8: 0 | Q8: 49 | R8: 98 | S8: 0 | T8: 0 | U8: 0 | V8: 0
A9: 3150 | F9: 8.9 | G9: 168.9 | M9: 0 | N9: 0 | O9: 0 | P9: 0 | Q9: 17 | R9: 240 | S9: 0 | T9: 0 | U9: 0 | V9: 0
A10: 3200 | F10: 22.3 | G10: 194.7 | M10: 0 | N10: 0 | O10: 0 | P10: 0 | Q10: 29 | R10: 337 | S10: 0 | T10: 0 | U10: 0 | V10: 0
A11: 3250 | F11: 43 | G11: 106.7 | M11: 0 | N11: 0 | O11: 0 | P11: 0 | Q11: 61 | R11: 280 | S11: 0 | T11: 0 | U11: 0 | V11: 0
A12: 3300 | F12: 35.1 | G12: 130.7 | M12: 0 | N12: 0 | O12: 0 | P12: 0 | Q12: 73 | R12: 220 | S12: 0 | T12: 0 | U12: 0 | V12: 0
A13: 3350 | F13: 35.1 | G13: 177 | M13: 0 | N13: 0 | O13: 0 | P13: 0 | Q13: 65 | R13: 285 | S13: 0 | T13: 0 | U13: 0 | V13: 0
A14: 3400 | F14: 22.3 | G14: 93.7 | M14: 0 | N14: 0 | O14: 0 | P14: 0 | Q14: 54 | R14: 251 | S14: 0 | T14: 0 | U14: 0 | V14: 0
A15: 3450 | F15: 7.7 | G15: 44.4 | M15: 0 | N15: 0 | O15: 0 | P15: 0 | Q15: 28 | R15: 128 | S15: 0 | T15: 0 | U15: 0 | V15: 0
A16: 3500 | F16: 0 | G16: 0 | M16: 0 | N16: 0 | O16: 0 | P16: 0 | Q16: 8 | R16: 42 | S16: 0 | T16: 0 | U16: 0 | V16: 0
M17: 0 | N17: 0 | O17: 0 | P17: 0 | Q17: 0 | R17: 0 | S17: 0 | T17: 0 | U17: 0 | V17: 0
M18: 0 | N18: 0 | O18: 0 | P18: 0 | Q18: 0 | R18: 0 | S18: 0 | T18: 0 | U18: 0 | V18: 0
M19: 0 | N19: 0 | O19: 0 | P19: 0 | Q19: 0 | R19: 0 | S19: 0 | T19: 0 | U19: 0 | V19: 0
M20: 0 | N20: 0 | O20: 0 | P20: 0 | Q20: 0 | R20: 0 | S20: 0 | T20: 0 | U20: 0 | V20: 0
M21: 0 | N21: 0 | O21: 0 | P21: 0 | Q21: 0 | R21: 0 | S21: 0 | T21: 0 | U21: 0 | V21: 0
M22: 0 | N22: 0 | O22: 0 | P22: 0 | Q22: 0 | R22: 0 | S22: 0 | T22: 0 | U22: 0 | V22: 0
M23: =IF((B22+B23)>0,MAX(1,ROUNDUP(($A23-$A22)*((B22+B23)/2)/27,0)),ROUNDUP(($A23-$A22)*((B22+B23)/2)/27,0)) -> 0 | N23: 0 | O23: 0 | P23: 0 | Q23: 0 | R23: 0 | S23: 0 | T23: 0 | U23: 0 | V23: 0
M24: 0 | N24: 0 | O24: 0 | P24: 0 | Q24: 0 | R24: 0 | S24: 0 | T24: 0 | U24: 0 | V24: 0
M25: 0 | N25: 0 | O25: 0 | P25: 0 | Q25: 0 | R25: 0 | S25: 0 | T25: 0 | U25: 0 | V25: 0
M26: 0 | N26: 0 | O26: 0 | P26: 0 | Q26: 0 | R26: 0 | S26: 0 | T26: 0 | U26: 0 | V26: 0
M27: 0 | N27: 0 | O27: 0 | P27: 0 | Q27: 0 | R27: 0 | S27: 0 | T27: 0 | U27: 0 | V27: 0
M28: 0 | N28: 0 | O28: 0 | P28: 0 | Q28: 0 | R28: 0 | S28: 0 | T28: 0 | U28: 0 | V28: 0
M29: 0 | N29: 0 | O29: 0 | P29: 0 | Q29: 0 | R29: 0 | S29: 0 | T29: 0 | U29: 0 | V29: 0
M30: 0 | N30: 0 | O30: 0 | P30: 0 | Q30: 0 | R30: 0 | S30: 0 | T30: 0 | U30: 0 | V30: 0
M31: 0 | N31: 0 | O31: 0 | P31: 0 | Q31: 0 | R31: 0 | S31: 0 | T31: 0 | U31: 0 | V31: 0
M32: 0 | N32: 0 | O32: 0 | P32: 0 | Q32: 0 | R32: 0 | S32: 0 | T32: 0 | U32: 0 | V32: 0
M33: 0 | N33: 0 | O33: 0 | P33: 0 | Q33: 0 | R33: 0 | S33: 0 | T33: 0 | U33: 0 | V33: 0
M34: 0 | N34: 0 | O34: 0 | P34: 0 | Q34: 0 | R34: 0 | S34: 0 | T34: 0 | U34: 0 | V34: 0
M35: 0 | N35: 0 | O35: 0 | P35: 0 | Q35: 0 | R35: 0 | S35: 0 | T35: 0 | U35: 0 | V35: 0
M36: 0 | N36: 0 | O36: 0 | P36: 0 | Q36: 0 | R36: 0 | S36: 0 | T36: 0 | U36: 0 | V36: 0
M37: 0 | N37: 0 | O37: 0 | P37: 0 | Q37: 0 | R37: 0 | S37: 0 | T37: 0 | U37: 0 | V37: 0
M38: 0 | N38: 0 | O38: 0 | P38: 0 | Q38: 0 | R38: 0 | S38: 0 | T38: 0 | U38: 0 | V38: 0
M39: =IF((B38+B39)>0,MAX(1,ROUNDUP(($A39-$A38)*((B38+B39)/2)/27,0)),ROUNDUP(($A39-$A38)*((B38+B39)/2)/27,0)) -> 0 | N39: 0 | O39: 0 | P39: 0 | Q39: 0 | R39: 0 | S39: 0 | T39: 0 | U39: 0 | V39: 0
M40: 0 | N40: 0 | O40: 0 | P40: 0 | Q40: 0 | R40: 0 | S40: 0 | T40: 0 | U40: 0 | V40: 0
M41: 0 | N41: 0 | O41: 0 | P41: 0 | Q41: 0 | R41: 0 | S41: 0 | T41: 0 | U41: 0 | V41: 0
M42: 0 | N42: 0 | O42: 0 | P42: 0 | Q42: 0 | R42: 0 | S42: 0 | T42: 0 | U42: 0 | V42: 0
M43: 0 | N43: 0 | O43: 0 | P43: 0 | Q43: 0 | R43: 0 | S43: 0 | T43: 0 | U43: 0 | V43: 0
M44: 0 | N44: 0 | O44: 0 | P44: 0 | Q44: 0 | R44: 0 | S44: 0 | T44: 0 | U44: 0 | V44: 0
M45: 0 | N45: 0 | O45: 0 | P45: 0 | Q45: 0 | R45: 0 | S45: 0 | T45: 0 | U45: 0 | V45: 0
M46: 0 | N46: 0 | O46: 0 | P46: 0 | Q46: 0 | R46: 0 | S46: 0 | T46: 0 | U46: 0 | V46: 0
M47: 0 | N47: 0 | O47: 0 | P47: 0 | Q47: 0 | R47: 0 | S47: 0 | T47: 0 | U47: 0 | V47: 0
M48: 0 | N48: 0 | O48: 0 | P48: 0 | Q48: 0 | R48: 0 | S48: 0 | T48: 0 | U48: 0 | V48: 0
M49: 0 | N49: 0 | O49: 0 | P49: 0 | Q49: 0 | R49: 0 | S49: 0 | T49: 0 | U49: 0 | V49: 0
M50: 0 | N50: 0 | O50: 0 | P50: 0 | Q50: 0 | R50: 0 | S50: 0 | T50: 0 | U50: 0 | V50: 0
M51: 0 | N51: 0 | O51: 0 | P51: 0 | Q51: 0 | R51: 0 | S51: 0 | T51: 0 | U51: 0 | V51: 0
M52: 0 | N52: 0 | O52: 0 | P52: 0 | Q52: 0 | R52: 0 | S52: 0 | T52: 0 | U52: 0 | V52: 0
M53: 0 | N53: 0 | O53: 0 | P53: 0 | Q53: 0 | R53: 0 | S53: 0 | T53: 0 | U53: 0 | V53: 0
M54: 0 | N54: 0 | O54: 0 | P54: 0 | Q54: 0 | R54: 0 | S54: 0 | T54: 0 | U54: 0 | V54: 0
M55: =IF((B54+B55)>0,MAX(1,ROUNDUP(($A55-$A54)*((B54+B55)/2)/27,0)),ROUNDUP(($A55-$A54)*((B54+B55)/2)/27,0)) -> 0 | N55: 0 | O55: 0 | P55: 0 | Q55: 0 | R55: 0 | S55: 0 | T55: 0 | U55: 0 | V55: 0
M56: 0 | N56: 0 | O56: 0 | P56: 0 | Q56: 0 | R56: 0 | S56: 0 | T56: 0 | U56: 0 | V56: 0
M57: 0 | N57: 0 | O57: 0 | P57: 0 | Q57: 0 | R57: 0 | S57: 0 | T57: 0 | U57: 0 | V57: 0
M58: 0 | N58: 0 | O58: 0 | P58: 0 | Q58: 0 | R58: 0 | S58: 0 | T58: 0 | U58: 0 | V58: 0
M59: 0 | N59: 0 | O59: 0 | P59: 0 | Q59: 0 | R59: 0 | S59: 0 | T59: 0 | U59: 0 | V59: 0
M60: 0 | N60: 0 | O60: 0 | P60: 0 | Q60: 0 | R60: 0 | S60: 0 | T60: 0 | U60: 0 | V60: 0
M61: 0 | N61: 0 | O61: 0 | P61: 0 | Q61: 0 | R61: 0 | S61: 0 | T61: 0 | U61: 0 | V61: 0
M62: 0 | N62: 0 | O62: 0 | P62: 0 | Q62: 0 | R62: 0 | S62: 0 | T62: 0 | U62: 0 | V62: 0
M63: 0 | N63: 0 | O63: 0 | P63: 0 | Q63: 0 | R63: 0 | S63: 0 | T63: 0 | U63: 0 | V63: 0
M64: 0 | N64: 0 | O64: 0 | P64: 0 | Q64: 0 | R64: 0 | S64: 0 | T64: 0 | U64: 0 | V64: 0
M65: 0 | N65: 0 | O65: 0 | P65: 0 | Q65: 0 | R65: 0 | S65: 0 | T65: 0 | U65: 0 | V65: 0
M66: 0 | N66: 0 | O66: 0 | P66: 0 | Q66: 0 | R66: 0 | S66: 0 | T66: 0 | U66: 0 | V66: 0
M67: 0 | N67: 0 | O67: 0 | P67: 0 | Q67: 0 | R67: 0 | S67: 0 | T67: 0 | U67: 0 | V67: 0
M68: 0 | N68: 0 | O68: 0 | P68: 0 | Q68: 0 | R68: 0 | S68: 0 | T68: 0 | U68: 0 | V68: 0
M69: 0 | N69: 0 | O69: 0 | P69: 0 | Q69: 0 | R69: 0 | S69: 0 | T69: 0 | U69: 0 | V69: 0
M70: 0 | N70: 0 | O70: 0 | P70: 0 | Q70: 0 | R70: 0 | S70: 0 | T70: 0 | U70: 0 | V70: 0
M71: =IF((B70+B71)>0,MAX(1,ROUNDUP(($A71-$A70)*((B70+B71)/2)/27,0)),ROUNDUP(($A71-$A70)*((B70+B71)/2)/27,0)) -> 0 | N71: 0 | O71: 0 | P71: 0 | Q71: 0 | R71: 0 | S71: 0 | T71: 0 | U71: 0 | V71: 0
M72: 0 | N72: 0 | O72: 0 | P72: 0 | Q72: 0 | R72: 0 | S72: 0 | T72: 0 | U72: 0 | V72: 0
M73: 0 | N73: 0 | O73: 0 | P73: 0 | Q73: 0 | R73: 0 | S73: 0 | T73: 0 | U73: 0 | V73: 0
M74: 0 | N74: 0 | O74: 0 | P74: 0 | Q74: 0 | R74: 0 | S74: 0 | T74: 0 | U74: 0 | V74: 0
M75: 0 | N75: 0 | O75: 0 | P75: 0 | Q75: 0 | R75: 0 | S75: 0 | T75: 0 | U75: 0 | V75: 0
M76: 0 | N76: 0 | O76: 0 | P76: 0 | Q76: 0 | R76: 0 | S76: 0 | T76: 0 | U76: 0 | V76: 0
M77: 0 | N77: 0 | O77: 0 | P77: 0 | Q77: 0 | R77: 0 | S77: 0 | T77: 0 | U77: 0 | V77: 0
M78: 0 | N78: 0 | O78: 0 | P78: 0 | Q78: 0 | R78: 0 | S78: 0 | T78: 0 | U78: 0 | V78: 0
M79: 0 | N79: 0 | O79: 0 | P79: 0 | Q79: 0 | R79: 0 | S79: 0 | T79: 0 | U79: 0 | V79: 0

Sheet Kingsway Dr
A1: =MID(CELL("filename",$A$2),FIND("]",CELL("filename",$A$2))+1,256) -> Kingsway Dr | B1: AREAS | M1: VOLUMES
A2: STATION | B2: ROCK ROADBED | C2: REFILL | D2: EMB. BENCH | E2: GRAN. EMB. | F2: COM | G2: EM | H2: ROCK EXC. | I2: DT LT | J2: DT RT | K2: LEVEL-WEDGE | M2: ROCK ROADBED | N2: REFILL | O2: EMB. BENCH | P2: GRAN. EMB. | Q2: COM | R2: EM | S2: ROCK EXC. | T2: DT LT | U2: DT RT | V2: LEVEL-WEDGE
A3: TOTALS | M3: =SUM(M6:M2002) -> 0 | N3: =SUM(N6:N2002) -> 0 | O3: 0 | P3: 0 | Q3: =SUM(Q5:Q2002) -> 1845 | R3: =SUM(R5:R2002) -> 16 | S3: 0 | T3: 0 | U3: 0 | V3: 0
A4: 5000 | F4: 0 | G4: 0
A5: 5050 | F5: 72.6 | G5: 8.5 | M5: =IF((B4+B5)>0,MAX(1,ROUNDUP(($A5-$A4)*((B4+B5)/2)/27,0)),ROUNDUP(($A5-$A4)*((B4+B5)/2)/27,0)) -> 0 | N5: =IF((C4+C5)>0,MAX(1,ROUNDUP(($A5-$A4)*((C4+C5)/2)/27,0)),ROUNDUP(($A5-$A4)*((C4+C5)/2)/27,0)) -> 0 | O5: =IF((D4+D5)>0,MAX(1,ROUNDUP(($A5-$A4)*((D4+D5)/2)/27,0)),ROUNDUP(($A5-$A4)*((D4+D5)/2)/27,0)) -> 0 | P5: =IF((E4+E5)>0,MAX(1,ROUNDUP(($A5-$A4)*((E4+E5)/2)/27,0)),ROUNDUP(($A5-$A4)*((E4+E5)/2)/27,0)) -> 0 | Q5: =IF((F4+F5)>0,MAX(1,ROUNDUP(($A5-$A4)*((F4+F5)/2)/27,0)),ROUNDUP(($A5-$A4)*((F4+F5)/2)/27,0)) -> 68 | R5: =IF((G4+G5)>0,MAX(1,ROUNDUP(($A5-$A4)*((G4+G5)/2)/27,0)),ROUNDUP(($A5-$A4)*((G4+G5)/2)/27,0)) -> 8 | S5: =IF((H4+H5)>0,MAX(1,ROUNDUP(($A5-$A4)*((H4+H5)/2)/27,0)),ROUNDUP(($A5-$A4)*((H4+H5)/2)/27,0)) -> 0 | T5: =IF((I4+I5)>0,MAX(1,ROUNDUP(($A5-$A4)*((I4+I5)/2)/27,0)),ROUNDUP(($A5-$A4)*((I4+I5)/2)/27,0)) -> 0 | U5: =IF((J4+J5)>0,MAX(1,ROUNDUP(($A5-$A4)*((J4+J5)/2)/27,0)),ROUNDUP(($A5-$A4)*((J4+J5)/2)/27,0)) -> 0 | V5: =IF((K4+K5)>0,MAX(1,ROUNDUP(($A5-$A4)*((K4+K5)/2)/27,0)),ROUNDUP(($A5-$A4)*((K4+K5)/2)/27,0)) -> 0
A6: 5100 | F6: 431.3 | G6: 0 | M6: =IF((B5+B6)>0,MAX(1,ROUNDUP(($A6-$A5)*((B5+B6)/2)/27,0)),ROUNDUP(($A6-$A5)*((B5+B6)/2)/27,0)) -> 0 | N6: =IF((C5+C6)>0,MAX(1,ROUNDUP(($A6-$A5)*((C5+C6)/2)/27,0)),ROUNDUP(($A6-$A5)*((C5+C6)/2)/27,0)) -> 0 | O6: 0 | P6: 0 | Q6: 467 | R6: 8 | S6: 0 | T6: 0 | U6: 0 | V6: =IF((K5+K6)>0,MAX(1,ROUNDUP(($A6-$A5)*((K5+K6)/2)/27,0)),ROUNDUP(($A6-$A5)*((K5+K6)/2)/27,0)) -> 0
A7: 5150 | F7: 219.1 | G7: 0 | M7: =IF((B6+B7)>0,MAX(1,ROUNDUP(($A7-$A6)*((B6+B7)/2)/27,0)),ROUNDUP(($A7-$A6)*((B6+B7)/2)/27,0)) -> 0 | N7: 0 | O7: 0 | P7: 0 | Q7: 603 | R7: 0 | S7: 0 | T7: 0 | U7: 0 | V7: 0
A8: 5200 | F8: 148.2 | G8: 0 | M8: 0 | N8: 0 | O8: 0 | P8: 0 | Q8: 341 | R8: 0 | S8: 0 | T8: 0 | U8: 0 | V8: 0
A9: 5250 | F9: 82.8 | G9: 0 | M9: 0 | N9: 0 | O9: 0 | P9: 0 | Q9: 214 | R9: 0 | S9: 0 | T9: 0 | U9: 0 | V9: 0
A10: 5300 | F10: 40 | G10: 0 | M10: 0 | N10: 0 | O10: 0 | P10: 0 | Q10: 114 | R10: 0 | S10: 0 | T10: 0 | U10: 0 | V10: 0
A11: 5350 | F11: 0 | G11: 0 | M11: 0 | N11: 0 | O11: 0 | P11: 0 | Q11: 38 | R11: 0 | S11: 0 | T11: 0 | U11: 0 | V11: 0
M12: 0 | N12: 0 | O12: 0 | P12: 0 | Q12: 0 | R12: 0 | S12: 0 | T12: 0 | U12: 0 | V12: 0
M13: 0 | N13: 0 | O13: 0 | P13: 0 | Q13: 0 | R13: 0 | S13: 0 | T13: 0 | U13: 0 | V13: 0
M14: 0 | N14: 0 | O14: 0 | P14: 0 | Q14: 0 | R14: 0 | S14: 0 | T14: 0 | U14: 0 | V14: 0
M15: 0 | N15: 0 | O15: 0 | P15: 0 | Q15: 0 | R15: 0 | S15: 0 | T15: 0 | U15: 0 | V15: 0
M16: 0 | N16: 0 | O16: 0 | P16: 0 | Q16: 0 | R16: 0 | S16: 0 | T16: 0 | U16: 0 | V16: 0
M17: 0 | N17: 0 | O17: 0 | P17: 0 | Q17: 0 | R17: 0 | S17: 0 | T17: 0 | U17: 0 | V17: 0
M18: 0 | N18: 0 | O18: 0 | P18: 0 | Q18: 0 | R18: 0 | S18: 0 | T18: 0 | U18: 0 | V18: 0
M19: 0 | N19: 0 | O19: 0 | P19: 0 | Q19: 0 | R19: 0 | S19: 0 | T19: 0 | U19: 0 | V19: 0
M20: 0 | N20: 0 | O20: 0 | P20: 0 | Q20: 0 | R20: 0 | S20: 0 | T20: 0 | U20: 0 | V20: 0
M21: 0 | N21: 0 | O21: 0 | P21: 0 | Q21: 0 | R21: 0 | S21: 0 | T21: 0 | U21: 0 | V21: 0
M22: 0 | N22: 0 | O22: 0 | P22: 0 | Q22: 0 | R22: 0 | S22: 0 | T22: 0 | U22: 0 | V22: 0
M23: =IF((B22+B23)>0,MAX(1,ROUNDUP(($A23-$A22)*((B22+B23)/2)/27,0)),ROUNDUP(($A23-$A22)*((B22+B23)/2)/27,0)) -> 0 | N23: 0 | O23: 0 | P23: 0 | Q23: 0 | R23: 0 | S23: 0 | T23: 0 | U23: 0 | V23: 0
M24: 0 | N24: 0 | O24: 0 | P24: 0 | Q24: 0 | R24: 0 | S24: 0 | T24: 0 | U24: 0 | V24: 0
M25: 0 | N25: 0 | O25: 0 | P25: 0 | Q25: 0 | R25: 0 | S25: 0 | T25: 0 | U25: 0 | V25: 0
M26: 0 | N26: 0 | O26: 0 | P26: 0 | Q26: 0 | R26: 0 | S26: 0 | T26: 0 | U26: 0 | V26: 0
M27: 0 | N27: 0 | O27: 0 | P27: 0 | Q27: 0 | R27: 0 | S27: 0 | T27: 0 | U27: 0 | V27: 0
M28: 0 | N28: 0 | O28: 0 | P28: 0 | Q28: 0 | R28: 0 | S28: 0 | T28: 0 | U28: 0 | V28: 0
M29: 0 | N29: 0 | O29: 0 | P29: 0 | Q29: 0 | R29: 0 | S29: 0 | T29: 0 | U29: 0 | V29: 0
M30: 0 | N30: 0 | O30: 0 | P30: 0 | Q30: 0 | R30: 0 | S30: 0 | T30: 0 | U30: 0 | V30: 0
M31: 0 | N31: 0 | O31: 0 | P31: 0 | Q31: 0 | R31: 0 | S31: 0 | T31: 0 | U31: 0 | V31: 0
M32: 0 | N32: 0 | O32: 0 | P32: 0 | Q32: 0 | R32: 0 | S32: 0 | T32: 0 | U32: 0 | V32: 0
M33: 0 | N33: 0 | O33: 0 | P33: 0 | Q33: 0 | R33: 0 | S33: 0 | T33: 0 | U33: 0 | V33: 0
M34: 0 | N34: 0 | O34: 0 | P34: 0 | Q34: 0 | R34: 0 | S34: 0 | T34: 0 | U34: 0 | V34: 0
M35: 0 | N35: 0 | O35: 0 | P35: 0 | Q35: 0 | R35: 0 | S35: 0 | T35: 0 | U35: 0 | V35: 0
M36: 0 | N36: 0 | O36: 0 | P36: 0 | Q36: 0 | R36: 0 | S36: 0 | T36: 0 | U36: 0 | V36: 0
M37: 0 | N37: 0 | O37: 0 | P37: 0 | Q37: 0 | R37: 0 | S37: 0 | T37: 0 | U37: 0 | V37: 0
M38: 0 | N38: 0 | O38: 0 | P38: 0 | Q38: 0 | R38: 0 | S38: 0 | T38: 0 | U38: 0 | V38: 0
M39: =IF((B38+B39)>0,MAX(1,ROUNDUP(($A39-$A38)*((B38+B39)/2)/27,0)),ROUNDUP(($A39-$A38)*((B38+B39)/2)/27,0)) -> 0 | N39: 0 | O39: 0 | P39: 0 | Q39: 0 | R39: 0 | S39: 0 | T39: 0 | U39: 0 | V39: 0
M40: 0 | N40: 0 | O40: 0 | P40: 0 | Q40: 0 | R40: 0 | S40: 0 | T40: 0 | U40: 0 | V40: 0
M41: 0 | N41: 0 | O41: 0 | P41: 0 | Q41: 0 | R41: 0 | S41: 0 | T41: 0 | U41: 0 | V41: 0
M42: 0 | N42: 0 | O42: 0 | P42: 0 | Q42: 0 | R42: 0 | S42: 0 | T42: 0 | U42: 0 | V42: 0
M43: 0 | N43: 0 | O43: 0 | P43: 0 | Q43: 0 | R43: 0 | S43: 0 | T43: 0 | U43: 0 | V43: 0
M44: 0 | N44: 0 | O44: 0 | P44: 0 | Q44: 0 | R44: 0 | S44: 0 | T44: 0 | U44: 0 | V44: 0
M45: 0 | N45: 0 | O45: 0 | P45: 0 | Q45: 0 | R45: 0 | S45: 0 | T45: 0 | U45: 0 | V45: 0
M46: 0 | N46: 0 | O46: 0 | P46: 0 | Q46: 0 | R46: 0 | S46: 0 | T46: 0 | U46: 0 | V46: 0
M47: 0 | N47: 0 | O47: 0 | P47: 0 | Q47: 0 | R47: 0 | S47: 0 | T47: 0 | U47: 0 | V47: 0
M48: 0 | N48: 0 | O48: 0 | P48: 0 | Q48: 0 | R48: 0 | S48: 0 | T48: 0 | U48: 0 | V48: 0
M49: 0 | N49: 0 | O49: 0 | P49: 0 | Q49: 0 | R49: 0 | S49: 0 | T49: 0 | U49: 0 | V49: 0
M50: 0 | N50: 0 | O50: 0 | P50: 0 | Q50: 0 | R50: 0 | S50: 0 | T50: 0 | U50: 0 | V50: 0
M51: 0 | N51: 0 | O51: 0 | P51: 0 | Q51: 0 | R51: 0 | S51: 0 | T51: 0 | U51: 0 | V51: 0
M52: 0 | N52: 0 | O52: 0 | P52: 0 | Q52: 0 | R52: 0 | S52: 0 | T52: 0 | U52: 0 | V52: 0
M53: 0 | N53: 0 | O53: 0 | P53: 0 | Q53: 0 | R53: 0 | S53: 0 | T53: 0 | U53: 0 | V53: 0
M54: 0 | N54: 0 | O54: 0 | P54: 0 | Q54: 0 | R54: 0 | S54: 0 | T54: 0 | U54: 0 | V54: 0
M55: =IF((B54+B55)>0,MAX(1,ROUNDUP(($A55-$A54)*((B54+B55)/2)/27,0)),ROUNDUP(($A55-$A54)*((B54+B55)/2)/27,0)) -> 0 | N55: 0 | O55: 0 | P55: 0 | Q55: 0 | R55: 0 | S55: 0 | T55: 0 | U55: 0 | V55: 0
M56: 0 | N56: 0 | O56: 0 | P56: 0 | Q56: 0 | R56: 0 | S56: 0 | T56: 0 | U56: 0 | V56: 0
M57: 0 | N57: 0 | O57: 0 | P57: 0 | Q57: 0 | R57: 0 | S57: 0 | T57: 0 | U57: 0 | V57: 0
M58: 0 | N58: 0 | O58: 0 | P58: 0 | Q58: 0 | R58: 0 | S58: 0 | T58: 0 | U58: 0 | V58: 0
M59: 0 | N59: 0 | O59: 0 | P59: 0 | Q59: 0 | R59: 0 | S59: 0 | T59: 0 | U59: 0 | V59: 0
M60: 0 | N60: 0 | O60: 0 | P60: 0 | Q60: 0 | R60: 0 | S60: 0 | T60: 0 | U60: 0 | V60: 0
M61: 0 | N61: 0 | O61: 0 | P61: 0 | Q61: 0 | R61: 0 | S61: 0 | T61: 0 | U61: 0 | V61: 0
M62: 0 | N62: 0 | O62: 0 | P62: 0 | Q62: 0 | R62: 0 | S62: 0 | T62: 0 | U62: 0 | V62: 0
M63: 0 | N63: 0 | O63: 0 | P63: 0 | Q63: 0 | R63: 0 | S63: 0 | T63: 0 | U63: 0 | V63: 0
M64: 0 | N64: 0 | O64: 0 | P64: 0 | Q64: 0 | R64: 0 | S64: 0 | T64: 0 | U64: 0 | V64: 0
M65: 0 | N65: 0 | O65: 0 | P65: 0 | Q65: 0 | R65: 0 | S65: 0 | T65: 0 | U65: 0 | V65: 0
M66: 0 | N66: 0 | O66: 0 | P66: 0 | Q66: 0 | R66: 0 | S66: 0 | T66: 0 | U66: 0 | V66: 0
M67: 0 | N67: 0 | O67: 0 | P67: 0 | Q67: 0 | R67: 0 | S67: 0 | T67: 0 | U67: 0 | V67: 0
M68: 0 | N68: 0 | O68: 0 | P68: 0 | Q68: 0 | R68: 0 | S68: 0 | T68: 0 | U68: 0 | V68: 0
M69: 0 | N69: 0 | O69: 0 | P69: 0 | Q69: 0 | R69: 0 | S69: 0 | T69: 0 | U69: 0 | V69: 0
M70: 0 | N70: 0 | O70: 0 | P70: 0 | Q70: 0 | R70: 0 | S70: 0 | T70: 0 | U70: 0 | V70: 0
M71: =IF((B70+B71)>0,MAX(1,ROUNDUP(($A71-$A70)*((B70+B71)/2)/27,0)),ROUNDUP(($A71-$A70)*((B70+B71)/2)/27,0)) -> 0 | N71: 0 | O71: 0 | P71: 0 | Q71: 0 | R71: 0 | S71: 0 | T71: 0 | U71: 0 | V71: 0
M72: 0 | N72: 0 | O72: 0 | P72: 0 | Q72: 0 | R72: 0 | S72: 0 | T72: 0 | U72: 0 | V72: 0
M73: 0 | N73: 0 | O73: 0 | P73: 0 | Q73: 0 | R73: 0 | S73: 0 | T73: 0 | U73: 0 | V73: 0
M74: 0 | N74: 0 | O74: 0 | P74: 0 | Q74: 0 | R74: 0 | S74: 0 | T74: 0 | U74: 0 | V74: 0
M75: 0 | N75: 0 | O75: 0 | P75: 0 | Q75: 0 | R75: 0 | S75: 0 | T75: 0 | U75: 0 | V75: 0
M76: 0 | N76: 0 | O76: 0 | P76: 0 | Q76: 0 | R76: 0 | S76: 0 | T76: 0 | U76: 0 | V76: 0
M77: 0 | N77: 0 | O77: 0 | P77: 0 | Q77: 0 | R77: 0 | S77: 0 | T77: 0 | U77: 0 | V77: 0
M78: 0 | N78: 0 | O78: 0 | P78: 0 | Q78: 0 | R78: 0 | S78: 0 | T78: 0 | U78: 0 | V78: 0
M79: 0 | N79: 0 | O79: 0 | P79: 0 | Q79: 0 | R79: 0 | S79: 0 | T79: 0 | U79: 0 | V79: 0

Sheet Queensway Dr
A1: =MID(CELL("filename",$A$2),FIND("]",CELL("filename",$A$2))+1,256) -> Queensway Dr | B1: AREAS | M1: VOLUMES
A2: STATION | B2: ROCK ROADBED | C2: REFILL | D2: EMB. BENCH | E2: GRAN. EMB. | F2: COM | G2: EM | H2: ROCK EXC. | I2: DT LT | J2: DT RT | K2: LEVEL-WEDGE | M2: ROCK ROADBED | N2: REFILL | O2: EMB. BENCH | P2: GRAN. EMB. | Q2: COM | R2: EM | S2: ROCK EXC. | T2: DT LT | U2: DT RT | V2: LEVEL-WEDGE
A3: TOTALS | M3: =SUM(M6:M2002) -> 0 | N3: =SUM(N6:N2002) -> 0 | O3: 0 | P3: 0 | Q3: =SUM(Q5:Q2002) -> 352 | R3: =SUM(R5:R2002) -> 0 | S3: 0 | T3: 0 | U3: 0 | V3: 0
A4: 5100 | F4: 0 | G4: 0
A5: 5142 | F5: 181.8 | G5: 0 | M5: =IF((B4+B5)>0,MAX(1,ROUNDUP(($A5-$A4)*((B4+B5)/2)/27,0)),ROUNDUP(($A5-$A4)*((B4+B5)/2)/27,0)) -> 0 | N5: =IF((C4+C5)>0,MAX(1,ROUNDUP(($A5-$A4)*((C4+C5)/2)/27,0)),ROUNDUP(($A5-$A4)*((C4+C5)/2)/27,0)) -> 0 | O5: =IF((D4+D5)>0,MAX(1,ROUNDUP(($A5-$A4)*((D4+D5)/2)/27,0)),ROUNDUP(($A5-$A4)*((D4+D5)/2)/27,0)) -> 0 | P5: =IF((E4+E5)>0,MAX(1,ROUNDUP(($A5-$A4)*((E4+E5)/2)/27,0)),ROUNDUP(($A5-$A4)*((E4+E5)/2)/27,0)) -> 0 | Q5: =IF((F4+F5)>0,MAX(1,ROUNDUP(($A5-$A4)*((F4+F5)/2)/27,0)),ROUNDUP(($A5-$A4)*((F4+F5)/2)/27,0)) -> 142 | R5: =IF((G4+G5)>0,MAX(1,ROUNDUP(($A5-$A4)*((G4+G5)/2)/27,0)),ROUNDUP(($A5-$A4)*((G4+G5)/2)/27,0)) -> 0 | S5: =IF((H4+H5)>0,MAX(1,ROUNDUP(($A5-$A4)*((H4+H5)/2)/27,0)),ROUNDUP(($A5-$A4)*((H4+H5)/2)/27,0)) -> 0 | T5: =IF((I4+I5)>0,MAX(1,ROUNDUP(($A5-$A4)*((I4+I5)/2)/27,0)),ROUNDUP(($A5-$A4)*((I4+I5)/2)/27,0)) -> 0 | U5: =IF((J4+J5)>0,MAX(1,ROUNDUP(($A5-$A4)*((J4+J5)/2)/27,0)),ROUNDUP(($A5-$A4)*((J4+J5)/2)/27,0)) -> 0 | V5: =IF((K4+K5)>0,MAX(1,ROUNDUP(($A5-$A4)*((K4+K5)/2)/27,0)),ROUNDUP(($A5-$A4)*((K4+K5)/2)/27,0)) -> 0
A6: 5150 | F6: 131.2 | G6: 0 | M6: =IF((B5+B6)>0,MAX(1,ROUNDUP(($A6-$A5)*((B5+B6)/2)/27,0)),ROUNDUP(($A6-$A5)*((B5+B6)/2)/27,0)) -> 0 | N6: =IF((C5+C6)>0,MAX(1,ROUNDUP(($A6-$A5)*((C5+C6)/2)/27,0)),ROUNDUP(($A6-$A5)*((C5+C6)/2)/27,0)) -> 0 | O6: 0 | P6: 0 | Q6: 47 | R6: 0 | S6: 0 | T6: 0 | U6: 0 | V6: =IF((K5+K6)>0,MAX(1,ROUNDUP(($A6-$A5)*((K5+K6)/2)/27,0)),ROUNDUP(($A6-$A5)*((K5+K6)/2)/27,0)) -> 0
A7: 5200 | F7: 24.8 | G7: 0 | M7: =IF((B6+B7)>0,MAX(1,ROUNDUP(($A7-$A6)*((B6+B7)/2)/27,0)),ROUNDUP(($A7-$A6)*((B6+B7)/2)/27,0)) -> 0 | N7: 0 | O7: 0 | P7: 0 | Q7: 145 | R7: 0 | S7: 0 | T7: 0 | U7: 0 | V7: 0
A8: 5237.42 | F8: 0 | G8: 0 | M8: 0 | N8: 0 | O8: 0 | P8: 0 | Q8: 18 | R8: 0 | S8: 0 | T8: 0 | U8: 0 | V8: 0
M9: 0 | N9: 0 | O9: 0 | P9: 0 | Q9: 0 | R9: 0 | S9: 0 | T9: 0 | U9: 0 | V9: 0
M10: 0 | N10: 0 | O10: 0 | P10: 0 | Q10: 0 | R10: 0 | S10: 0 | T10: 0 | U10: 0 | V10: 0
M11: 0 | N11: 0 | O11: 0 | P11: 0 | Q11: 0 | R11: 0 | S11: 0 | T11: 0 | U11: 0 | V11: 0
M12: 0 | N12: 0 | O12: 0 | P12: 0 | Q12: 0 | R12: 0 | S12: 0 | T12: 0 | U12: 0 | V12: 0
M13: 0 | N13: 0 | O13: 0 | P13: 0 | Q13: 0 | R13: 0 | S13: 0 | T13: 0 | U13: 0 | V13: 0
M14: 0 | N14: 0 | O14: 0 | P14: 0 | Q14: 0 | R14: 0 | S14: 0 | T14: 0 | U14: 0 | V14: 0
M15: 0 | N15: 0 | O15: 0 | P15: 0 | Q15: 0 | R15: 0 | S15: 0 | T15: 0 | U15: 0 | V15: 0
M16: 0 | N16: 0 | O16: 0 | P16: 0 | Q16: 0 | R16: 0 | S16: 0 | T16: 0 | U16: 0 | V16: 0
M17: 0 | N17: 0 | O17: 0 | P17: 0 | Q17: 0 | R17: 0 | S17: 0 | T17: 0 | U17: 0 | V17: 0
M18: 0 | N18: 0 | O18: 0 | P18: 0 | Q18: 0 | R18: 0 | S18: 0 | T18: 0 | U18: 0 | V18: 0
M19: 0 | N19: 0 | O19: 0 | P19: 0 | Q19: 0 | R19: 0 | S19: 0 | T19: 0 | U19: 0 | V19: 0
M20: 0 | N20: 0 | O20: 0 | P20: 0 | Q20: 0 | R20: 0 | S20: 0 | T20: 0 | U20: 0 | V20: 0
M21: 0 | N21: 0 | O21: 0 | P21: 0 | Q21: 0 | R21: 0 | S21: 0 | T21: 0 | U21: 0 | V21: 0
M22: 0 | N22: 0 | O22: 0 | P22: 0 | Q22: 0 | R22: 0 | S22: 0 | T22: 0 | U22: 0 | V22: 0
M23: =IF((B22+B23)>0,MAX(1,ROUNDUP(($A23-$A22)*((B22+B23)/2)/27,0)),ROUNDUP(($A23-$A22)*((B22+B23)/2)/27,0)) -> 0 | N23: 0 | O23: 0 | P23: 0 | Q23: 0 | R23: 0 | S23: 0 | T23: 0 | U23: 0 | V23: 0
M24: 0 | N24: 0 | O24: 0 | P24: 0 | Q24: 0 | R24: 0 | S24: 0 | T24: 0 | U24: 0 | V24: 0
M25: 0 | N25: 0 | O25: 0 | P25: 0 | Q25: 0 | R25: 0 | S25: 0 | T25: 0 | U25: 0 | V25: 0
M26: 0 | N26: 0 | O26: 0 | P26: 0 | Q26: 0 | R26: 0 | S26: 0 | T26: 0 | U26: 0 | V26: 0
M27: 0 | N27: 0 | O27: 0 | P27: 0 | Q27: 0 | R27: 0 | S27: 0 | T27: 0 | U27: 0 | V27: 0
M28: 0 | N28: 0 | O28: 0 | P28: 0 | Q28: 0 | R28: 0 | S28: 0 | T28: 0 | U28: 0 | V28: 0
M29: 0 | N29: 0 | O29: 0 | P29: 0 | Q29: 0 | R29: 0 | S29: 0 | T29: 0 | U29: 0 | V29: 0
M30: 0 | N30: 0 | O30: 0 | P30: 0 | Q30: 0 | R30: 0 | S30: 0 | T30: 0 | U30: 0 | V30: 0
M31: 0 | N31: 0 | O31: 0 | P31: 0 | Q31: 0 | R31: 0 | S31: 0 | T31: 0 | U31: 0 | V31: 0
M32: 0 | N32: 0 | O32: 0 | P32: 0 | Q32: 0 | R32: 0 | S32: 0 | T32: 0 | U32: 0 | V32: 0
M33: 0 | N33: 0 | O33: 0 | P33: 0 | Q33: 0 | R33: 0 | S33: 0 | T33: 0 | U33: 0 | V33: 0
M34: 0 | N34: 0 | O34: 0 | P34: 0 | Q34: 0 | R34: 0 | S34: 0 | T34: 0 | U34: 0 | V34: 0
M35: 0 | N35: 0 | O35: 0 | P35: 0 | Q35: 0 | R35: 0 | S35: 0 | T35: 0 | U35: 0 | V35: 0
M36: 0 | N36: 0 | O36: 0 | P36: 0 | Q36: 0 | R36: 0 | S36: 0 | T36: 0 | U36: 0 | V36: 0
M37: 0 | N37: 0 | O37: 0 | P37: 0 | Q37: 0 | R37: 0 | S37: 0 | T37: 0 | U37: 0 | V37: 0
M38: 0 | N38: 0 | O38: 0 | P38: 0 | Q38: 0 | R38: 0 | S38: 0 | T38: 0 | U38: 0 | V38: 0
M39: =IF((B38+B39)>0,MAX(1,ROUNDUP(($A39-$A38)*((B38+B39)/2)/27,0)),ROUNDUP(($A39-$A38)*((B38+B39)/2)/27,0)) -> 0 | N39: 0 | O39: 0 | P39: 0 | Q39: 0 | R39: 0 | S39: 0 | T39: 0 | U39: 0 | V39: 0
M40: 0 | N40: 0 | O40: 0 | P40: 0 | Q40: 0 | R40: 0 | S40: 0 | T40: 0 | U40: 0 | V40: 0
M41: 0 | N41: 0 | O41: 0 | P41: 0 | Q41: 0 | R41: 0 | S41: 0 | T41: 0 | U41: 0 | V41: 0
M42: 0 | N42: 0 | O42: 0 | P42: 0 | Q42: 0 | R42: 0 | S42: 0 | T42: 0 | U42: 0 | V42: 0
M43: 0 | N43: 0 | O43: 0 | P43: 0 | Q43: 0 | R43: 0 | S43: 0 | T43: 0 | U43: 0 | V43: 0
M44: 0 | N44: 0 | O44: 0 | P44: 0 | Q44: 0 | R44: 0 | S44: 0 | T44: 0 | U44: 0 | V44: 0
M45: 0 | N45: 0 | O45: 0 | P45: 0 | Q45: 0 | R45: 0 | S45: 0 | T45: 0 | U45: 0 | V45: 0
M46: 0 | N46: 0 | O46: 0 | P46: 0 | Q46: 0 | R46: 0 | S46: 0 | T46: 0 | U46: 0 | V46: 0
M47: 0 | N47: 0 | O47: 0 | P47: 0 | Q47: 0 | R47: 0 | S47: 0 | T47: 0 | U47: 0 | V47: 0
M48: 0 | N48: 0 | O48: 0 | P48: 0 | Q48: 0 | R48: 0 | S48: 0 | T48: 0 | U48: 0 | V48: 0
M49: 0 | N49: 0 | O49: 0 | P49: 0 | Q49: 0 | R49: 0 | S49: 0 | T49: 0 | U49: 0 | V49: 0
M50: 0 | N50: 0 | O50: 0 | P50: 0 | Q50: 0 | R50: 0 | S50: 0 | T50: 0 | U50: 0 | V50: 0
M51: 0 | N51: 0 | O51: 0 | P51: 0 | Q51: 0 | R51: 0 | S51: 0 | T51: 0 | U51: 0 | V51: 0
M52: 0 | N52: 0 | O52: 0 | P52: 0 | Q52: 0 | R52: 0 | S52: 0 | T52: 0 | U52: 0 | V52: 0
M53: 0 | N53: 0 | O53: 0 | P53: 0 | Q53: 0 | R53: 0 | S53: 0 | T53: 0 | U53: 0 | V53: 0
M54: 0 | N54: 0 | O54: 0 | P54: 0 | Q54: 0 | R54: 0 | S54: 0 | T54: 0 | U54: 0 | V54: 0
M55: =IF((B54+B55)>0,MAX(1,ROUNDUP(($A55-$A54)*((B54+B55)/2)/27,0)),ROUNDUP(($A55-$A54)*((B54+B55)/2)/27,0)) -> 0 | N55: 0 | O55: 0 | P55: 0 | Q55: 0 | R55: 0 | S55: 0 | T55: 0 | U55: 0 | V55: 0
M56: 0 | N56: 0 | O56: 0 | P56: 0 | Q56: 0 | R56: 0 | S56: 0 | T56: 0 | U56: 0 | V56: 0
M57: 0 | N57: 0 | O57: 0 | P57: 0 | Q57: 0 | R57: 0 | S57: 0 | T57: 0 | U57: 0 | V57: 0
M58: 0 | N58: 0 | O58: 0 | P58: 0 | Q58: 0 | R58: 0 | S58: 0 | T58: 0 | U58: 0 | V58: 0
M59: 0 | N59: 0 | O59: 0 | P59: 0 | Q59: 0 | R59: 0 | S59: 0 | T59: 0 | U59: 0 | V59: 0
M60: 0 | N60: 0 | O60: 0 | P60: 0 | Q60: 0 | R60: 0 | S60: 0 | T60: 0 | U60: 0 | V60: 0
M61: 0 | N61: 0 | O61: 0 | P61: 0 | Q61: 0 | R61: 0 | S61: 0 | T61: 0 | U61: 0 | V61: 0
M62: 0 | N62: 0 | O62: 0 | P62: 0 | Q62: 0 | R62: 0 | S62: 0 | T62: 0 | U62: 0 | V62: 0
M63: 0 | N63: 0 | O63: 0 | P63: 0 | Q63: 0 | R63: 0 | S63: 0 | T63: 0 | U63: 0 | V63: 0
M64: 0 | N64: 0 | O64: 0 | P64: 0 | Q64: 0 | R64: 0 | S64: 0 | T64: 0 | U64: 0 | V64: 0
M65: 0 | N65: 0 | O65: 0 | P65: 0 | Q65: 0 | R65: 0 | S65: 0 | T65: 0 | U65: 0 | V65: 0
M66: 0 | N66: 0 | O66: 0 | P66: 0 | Q66: 0 | R66: 0 | S66: 0 | T66: 0 | U66: 0 | V66: 0
M67: 0 | N67: 0 | O67: 0 | P67: 0 | Q67: 0 | R67: 0 | S67: 0 | T67: 0 | U67: 0 | V67: 0
M68: 0 | N68: 0 | O68: 0 | P68: 0 | Q68: 0 | R68: 0 | S68: 0 | T68: 0 | U68: 0 | V68: 0
M69: 0 | N69: 0 | O69: 0 | P69: 0 | Q69: 0 | R69: 0 | S69: 0 | T69: 0 | U69: 0 | V69: 0
M70: 0 | N70: 0 | O70: 0 | P70: 0 | Q70: 0 | R70: 0 | S70: 0 | T70: 0 | U70: 0 | V70: 0
M71: =IF((B70+B71)>0,MAX(1,ROUNDUP(($A71-$A70)*((B70+B71)/2)/27,0)),ROUNDUP(($A71-$A70)*((B70+B71)/2)/27,0)) -> 0 | N71: 0 | O71: 0 | P71: 0 | Q71: 0 | R71: 0 | S71: 0 | T71: 0 | U71: 0 | V71: 0
M72: 0 | N72: 0 | O72: 0 | P72: 0 | Q72: 0 | R72: 0 | S72: 0 | T72: 0 | U72: 0 | V72: 0
M73: 0 | N73: 0 | O73: 0 | P73: 0 | Q73: 0 | R73: 0 | S73: 0 | T73: 0 | U73: 0 | V73: 0
M74: 0 | N74: 0 | O74: 0 | P74: 0 | Q74: 0 | R74: 0 | S74: 0 | T74: 0 | U74: 0 | V74: 0
M75: 0 | N75: 0 | O75: 0 | P75: 0 | Q75: 0 | R75: 0 | S75: 0 | T75: 0 | U75: 0 | V75: 0
M76: 0 | N76: 0 | O76: 0 | P76: 0 | Q76: 0 | R76: 0 | S76: 0 | T76: 0 | U76: 0 | V76: 0
M77: 0 | N77: 0 | O77: 0 | P77: 0 | Q77: 0 | R77: 0 | S77: 0 | T77: 0 | U77: 0 | V77: 0
M78: 0 | N78: 0 | O78: 0 | P78: 0 | Q78: 0 | R78: 0 | S78: 0 | T78: 0 | U78: 0 | V78: 0
M79: 0 | N79: 0 | O79: 0 | P79: 0 | Q79: 0 | R79: 0 | S79: 0 | T79: 0 | U79: 0 | V79: 0
